Workbook

Sheet Summary
B2: Loss Limit Exceedance Analysis | S2: ="Likelihood of exceeding loss limit within " & $C$4 & " years:" -> Likelihood of exceeding loss limit within 3 years:
S3: ="Current: " & ROUND('Event Simulations'!$Z$9*100,1) & "%" -> Current: 100%
B4: Event Window [yrs] | C4: 3 | S4: ="Target: " & ROUND('Event Simulations'!$AA$9*100,1) & "%" -> Target: 2.3%
B6: Loss Limit | C6: 0 | D6: 5000000
B8: Control Levels | C8: Current | D8: Target
B9: Security Training | C9: UNMANAGED:No Training | D9: MANAGED:Attack Simulations
B10: Email Security | C10: UNMANAGED:No Controls | D10: DEPLOYED:Email Security Gateway & Email Auth
B11: Vulnerability Patch SLA | C11: UNMANAGED:Adhoc Patch | D11: MANAGED:30 Days Patch CRITCAL
B12: Endpoint Protection | C12: UNMANAGED:No Controls | D12: MANAGED:EPP & EDR
B13: Identity Verification | C13: UNMANAGED:No Controls | D13: MANAGED:MFA & PAM
B14: Network Segmentation | C14: UNMANAGED:Ext Firewall | D14: MANAGED:Micro-Segmentation
B15: Backup Security | C15: UNMANAGED:No Backups | D15: MANAGED:Tested Backups
B17: Probability of Independent Ransomware Events
B19: Current Control | C19: ='Controls Regression'!J44 -> 0.1337708321
B20: Target Control | C20: ='Controls Regression'!K44 -> 0.03230511391
B26: Security Controls Cost Analysis
B28: Baseline | C28: ='Cost Simulations'!O5 -> 1587500
B29: Mean | C29: ='Cost Simulations'!R9 -> 1841155.751
B30: Contingency | C30: ='Cost Simulations'!R9-'Cost Simulations'!O5 -> 253655.7509
B31: P10 | C31: ='Cost Simulations'!R4 -> 1388108.35
B32: P50 | C32: ='Cost Simulations'!R5 -> 1806029.31
B33: P90 | C33: ='Cost Simulations'!R6 -> 2318146.869

Sheet Cost Assessments
A1: Loss Severity Assessments | B1: SME | C1: Date | D1: Reasons for Low | E1: Reasons for High | F1: LB | G1: p10 | H1: p50 | I1: p90 | J1: UB
A2: Extortion Cost | B2: George P. Burdell | C2: 43100 | F2: 0 | G2: 1000000 | H2: 2000000 | I2: 6000000 | J2: 1e+99
A3: Availability Cost | B3: George P. Burdell | C3: 43100 | F3: 0 | G3: 2000000 | H3: 4000000 | I3: 5000000 | J3: 1e+99
A4: Data Expropriation Cost | B4: George P. Burdell | C4: 43100 | F4: 0 | G4: 3000000 | H4: 4000000 | I4: 8000000 | J4: 1e+99
O6: 1 | P6: 2 | Q6: 3 | R6: 4 | S6: 5
A7: Target Controls Cost Assessments | B7: SME | C7: Date | D7: Reasons for Low | E7: Reasons for High | F7: LB | G7: p10 | H7: p50 | I7: p90 | J7: UB | O7: LB | P7: p10 | Q7: p50 | R7: p90 | S7: UB | T7: selector
A8: Security Training | F8: 0 | G8: 0 | H8: 0 | I8: 0 | J8: 0 | N8: Security Training | O8: =INDEX($F8:$J9,$T8,O$6) -> 0 | P8: =INDEX($F8:$J9,$T8,P$6) -> 50000 | Q8: =INDEX($F8:$J9,$T8,Q$6) -> 100000 | R8: =INDEX($F8:$J9,$T8,R$6) -> 200000 | S8: =INDEX($F8:$J9,$T8,S$6) -> 1e+99 | T8: ='Controls Regression'!K32 -> 2
A9: MANAGED:Attack Simulations | B9: George P. Burdell | C9: 43100 | F9: 0 | G9: 50000 | H9: 100000 | I9: 200000 | J9: 1e+99 | N9: Email Security | O9: =INDEX($F10:$J11,$T9,O$6) -> 0 | P9: =INDEX($F10:$J11,$T9,P$6) -> 75000 | Q9: =INDEX($F10:$J11,$T9,Q$6) -> 125000 | R9: =INDEX($F10:$J11,$T9,R$6) -> 225000 | S9: =INDEX($F10:$J11,$T9,S$6) -> 1e+99 | T9: ='Controls Regression'!K33 -> 2
A10: Email Security | F10: 0 | G10: 0 | H10: 0 | I10: 0 | J10: 0 | N10: Vulnerability Patch SLA | O10: =INDEX($F12:$J13,$T10,O$6) -> 0 | P10: =INDEX($F12:$J13,$T10,P$6) -> 100000 | Q10: =INDEX($F12:$J13,$T10,Q$6) -> 150000 | R10: =INDEX($F12:$J13,$T10,R$6) -> 300000 | S10: =INDEX($F12:$J13,$T10,S$6) -> 1e+99 | T10: ='Controls Regression'!K34 -> 2
A11: DEPLOYED:Email Security Gateway & Email Auth | B11: George P. Burdell | C11: 43100 | F11: 0 | G11: 75000 | H11: 125000 | I11: 225000 | J11: 1e+99 | N11: Endpoint Protection | O11: =INDEX($F14:$J16,$T11,O$6) -> 0 | P11: =INDEX($F14:$J16,$T11,P$6) -> 187500 | Q11: =INDEX($F14:$J16,$T11,Q$6) -> 312500 | R11: =INDEX($F14:$J16,$T11,R$6) -> 625000 | S11: =INDEX($F14:$J16,$T11,S$6) -> 1e+99 | T11: ='Controls Regression'!K35 -> 3
A12: Vulnerability Patch SLA | F12: 0 | G12: 0 | H12: 0 | I12: 0 | J12: 0 | N12: Identity Verification | O12: =INDEX($F17:$J19,$T12,O$6) -> 0 | P12: =INDEX($F17:$J19,$T12,P$6) -> 200000 | Q12: =INDEX($F17:$J19,$T12,Q$6) -> 325000 | R12: =INDEX($F17:$J19,$T12,R$6) -> 637500 | S12: =INDEX($F17:$J19,$T12,S$6) -> 1e+99 | T12: ='Controls Regression'!K36 -> 3
A13: MANAGED:30 Days Patch CRITCAL | B13: George P. Burdell | C13: 43100 | F13: 0 | G13: 100000 | H13: 150000 | I13: 300000 | J13: 1e+99 | N13: Network Segmentation | O13: =INDEX($F20:$J22,$T13,O$6) -> 0 | P13: =INDEX($F20:$J22,$T13,P$6) -> 212500 | Q13: =INDEX($F20:$J22,$T13,Q$6) -> 387500 | R13: =INDEX($F20:$J22,$T13,R$6) -> 750000 | S13: =INDEX($F20:$J22,$T13,S$6) -> 1e+99 | T13: ='Controls Regression'!K37 -> 3
A14: Endpoint Protection | F14: 0 | G14: 0 | H14: 0 | I14: 0 | J14: 0 | N14: Backup Security | O14: =INDEX($F23:$J25,$T14,O$6) -> 0 | P14: =INDEX($F23:$J25,$T14,P$6) -> 93750 | Q14: =INDEX($F23:$J25,$T14,Q$6) -> 187500 | R14: =INDEX($F23:$J25,$T14,R$6) -> 375000 | S14: =INDEX($F23:$J25,$T14,S$6) -> 1e+99 | T14: ='Controls Regression'!K38 -> 3
A15: DEPLOYED:EPP | B15: George P. Burdell | C15: 43100 | F15: 0 | G15: 150000 | H15: 250000 | I15: 500000 | J15: 1e+99
A16: MANAGED:EPP & EDR | B16: George P. Burdell | C16: 43100 | F16: 0 | G16: 187500 | H16: 312500 | I16: 625000 | J16: 1e+99
A17: Identity Verification | F17: 0 | G17: 0 | H17: 0 | I17: 0 | J17: 0
A18: DEPLOYED:MFA | B18: George P. Burdell | C18: 43100 | F18: 0 | G18: 160000 | H18: 260000 | I18: 510000 | J18: 1e+99
A19: MANAGED:MFA & PAM | B19: George P. Burdell | C19: 43100 | F19: 0 | G19: 200000 | H19: 325000 | I19: 637500 | J19: 1e+99
A20: Network Segmentation | F20: 0 | G20: 0 | H20: 0 | I20: 0 | J20: 0
A21: DEPLOYED:Users Segmented | B21: George P. Burdell | C21: 43100 | F21: 0 | G21: 170000 | H21: 310000 | I21: 600000 | J21: 1e+99
A22: MANAGED:Micro-Segmentation | B22: George P. Burdell | C22: 43100 | F22: 0 | G22: 212500 | H22: 387500 | I22: 750000 | J22: 1e+99
A23: Backup Security | F23: 0 | G23: 0 | H23: 0 | I23: 0 | J23: 0
A24: DEPLOYED:Backups | B24: George P. Burdell | C24: 43100 | F24: 0 | G24: 75000 | H24: 150000 | I24: 300000 | J24: 1e+99
A25: MANAGED:Tested Backups | B25: George P. Burdell | C25: 43100 | F25: 0 | G25: 93750 | H25: 187500 | I25: 375000 | J25: 1e+99

Sheet Cost Simulations
A1: Security Training Cost | C1: Email Security Cost | E1: Vulnerability Management Cost | G1: Endpoint Protection Cost | I1: Identity Verification Cost | K1: Network Segmentation Cost | M1: Backup Security Cost | O1: Baseline | R1: Total Cost | W1: 4 | X1: 6
A2: Value | B2: Percentile | C2: Value | D2: Percentile | E2: Value | F2: Percentile | G2: Value | H2: Percentile | I2: Value | J2: Percentile | K2: Value | L2: Percentile | M2: Value | N2: Percentile | O2: Value | P2: Percentile | R2: Value | S2: Percentile | U2: Col Index | V2: Variable Cost | W2: P10 | X2: P90 | Y2: Range
A3: =MAX(2.5*A4 - 1.5*A5, 'Cost Assessments'!$O8) -> 0 | B3: 0 | C3: =MAX(2.5*C4 - 1.5*C5, 'Cost Assessments'!$O9) -> 0 | D3: 0 | E3: =MAX(2.5*E4 - 1.5*E5, 'Cost Assessments'!$O10) -> 25000 | F3: 0 | G3: =MAX(2.5*G4 - 1.5*G5, 'Cost Assessments'!$O11) -> 0 | H3: 0 | I3: =MAX(2.5*I4 - 1.5*I5, 'Cost Assessments'!$O12) -> 12500 | J3: 0 | K3: =MAX(2.5*K4 - 1.5*K5, 'Cost Assessments'!$O13) -> 0 | L3: 0 | M3: =MAX(2.5*M4 - 1.5*M5, 'Cost Assessments'!$O14) -> 0 | N3: 0 | R3: =_xlfn.PERCENTILE.INC($R$10:$R$1009,$S3) -> 825721.2339 | S3: 0 | U3: 1 | V3: Security Training Cost | W3: =$R$9-INDIRECT("R" & 9 & "C" & $U3,FALSE)+INDIRECT("R" & W$1 & "C" & $U3,FALSE) -> 1773684.124 | X3: =$R$9-INDIRECT("R" & 9 & "C" & $U3,FALSE)+INDIRECT("R" & X$1 & "C" & $U3,FALSE) -> 1923684.124 | Y3: =ABS(W3-X3) -> 150000
A4: ='Cost Assessments'!$P8 -> 50000 | B4: 0.1 | C4: ='Cost Assessments'!$P9 -> 75000 | D4: 0.1 | E4: ='Cost Assessments'!$P10 -> 100000 | F4: 0.1 | G4: ='Cost Assessments'!$P11 -> 187500 | H4: 0.1 | I4: ='Cost Assessments'!$P12 -> 200000 | J4: 0.1 | K4: ='Cost Assessments'!$P13 -> 212500 | L4: 0.1 | M4: ='Cost Assessments'!$P14 -> 93750 | N4: 0.1 | R4: =_xlfn.PERCENTILE.INC($R$10:$R$1009,$S4) -> 1388108.35 | S4: 0.1 | U4: 3 | V4: Email Security Cost | W4: =$R$9-INDIRECT("R" & 9 & "C" & $U4,FALSE)+INDIRECT("R" & W$1 & "C" & $U4,FALSE) -> 1774853.711 | X4: =$R$9-INDIRECT("R" & 9 & "C" & $U4,FALSE)+INDIRECT("R" & X$1 & "C" & $U4,FALSE) -> 1924853.711 | Y4: 150000
A5: ='Cost Assessments'!$Q8 -> 100000 | B5: 0.5 | C5: ='Cost Assessments'!$Q9 -> 125000 | D5: 0.5 | E5: ='Cost Assessments'!$Q10 -> 150000 | F5: 0.5 | G5: ='Cost Assessments'!$Q11 -> 312500 | H5: 0.5 | I5: ='Cost Assessments'!$Q12 -> 325000 | J5: 0.5 | K5: ='Cost Assessments'!$Q13 -> 387500 | L5: 0.5 | M5: ='Cost Assessments'!$Q14 -> 187500 | N5: 0.5 | O5: =A5+C5+E5+G5+I5+K5+M5 -> 1587500 | P5: =_xlfn.PERCENTRANK.INC($R$10:$R$1009,$O5) -> 0.266 | R5: =_xlfn.PERCENTILE.INC($R$10:$R$1009,$S5) -> 1806029.31 | S5: 0.5 | U5: 5 | V5: Vulnerability Management Cost | W5: =$R$9-INDIRECT("R" & 9 & "C" & $U5,FALSE)+INDIRECT("R" & W$1 & "C" & $U5,FALSE) -> 1761101.853 | X5: =$R$9-INDIRECT("R" & 9 & "C" & $U5,FALSE)+INDIRECT("R" & X$1 & "C" & $U5,FALSE) -> 1961101.853 | Y5: 200000
A6: ='Cost Assessments'!$R8 -> 200000 | B6: 0.9 | C6: ='Cost Assessments'!$R9 -> 225000 | D6: 0.9 | E6: ='Cost Assessments'!$R10 -> 300000 | F6: 0.9 | G6: ='Cost Assessments'!$R11 -> 625000 | H6: 0.9 | I6: ='Cost Assessments'!$R12 -> 637500 | J6: 0.9 | K6: ='Cost Assessments'!$R13 -> 750000 | L6: 0.9 | M6: ='Cost Assessments'!$R14 -> 375000 | N6: 0.9 | R6: =_xlfn.PERCENTILE.INC($R$10:$R$1009,$S6) -> 2318146.869 | S6: 0.9 | U6: 13 | V6: Backup Security Cost | W6: =$R$9-INDIRECT("R" & 9 & "C" & $U6,FALSE)+INDIRECT("R" & W$1 & "C" & $U6,FALSE) -> 1722845.617 | X6: =$R$9-INDIRECT("R" & 9 & "C" & $U6,FALSE)+INDIRECT("R" & X$1 & "C" & $U6,FALSE) -> 2004095.617 | Y6: 281250
A7: =MIN(2.5*A6 - 1.5*A5,'Cost Assessments'!$S8) -> 350000 | B7: 1 | C7: =MIN(2.5*C6 - 1.5*C5,'Cost Assessments'!$S9) -> 375000 | D7: 1 | E7: =MIN(2.5*E6 - 1.5*E5,'Cost Assessments'!$S10) -> 525000 | F7: 1 | G7: =MIN(2.5*G6 - 1.5*G5,'Cost Assessments'!$S11) -> 1093750 | H7: 1 | I7: =MIN(2.5*I6 - 1.5*I5,'Cost Assessments'!$S12) -> 1106250 | J7: 1 | K7: =MIN(2.5*K6 - 1.5*K5,'Cost Assessments'!$S13) -> 1293750 | L7: 1 | M7: =MIN(2.5*M6 - 1.5*M5,'Cost Assessments'!$S14) -> 656250 | N7: 1 | R7: =_xlfn.PERCENTILE.INC($R$10:$R$1009,$S7) -> 3183094.549 | S7: 1 | U7: 9 | V7: Identity Verification Cost | W7: =$R$9-INDIRECT("R" & 9 & "C" & $U7,FALSE)+INDIRECT("R" & W$1 & "C" & $U7,FALSE) -> 1656802.917 | X7: =$R$9-INDIRECT("R" & 9 & "C" & $U7,FALSE)+INDIRECT("R" & X$1 & "C" & $U7,FALSE) -> 2094302.917 | Y7: 437500
U8: 7 | V8: Endpoint Protection Cost | W8: =$R$9-INDIRECT("R" & 9 & "C" & $U8,FALSE)+INDIRECT("R" & W$1 & "C" & $U8,FALSE) -> 1657606.821 | X8: =$R$9-INDIRECT("R" & 9 & "C" & $U8,FALSE)+INDIRECT("R" & X$1 & "C" & $U8,FALSE) -> 2095106.821 | Y8: 437500
A9: =AVERAGE(A10:A1009) -> 117471.6274 | C9: =AVERAGE(C10:C1009) -> 141302.0395 | E9: =AVERAGE(E10:E1009) -> 180053.8976 | G9: =AVERAGE(G10:G1009) -> 371048.93 | I9: =AVERAGE(I10:I1009) -> 384352.8336 | K9: =AVERAGE(K10:K1009) -> 434866.289 | M9: =AVERAGE(M10:M1009) -> 212060.1339 | R9: =AVERAGE(R10:R1009) -> 1841155.751 | S9: =_xlfn.PERCENTRANK.INC($R$10:$R$1009,$R9) -> 0.534 | U9: 11 | V9: Network Segmentation Cost | W9: =$R$9-INDIRECT("R" & 9 & "C" & $U9,FALSE)+INDIRECT("R" & W$1 & "C" & $U9,FALSE) -> 1618789.462 | X9: =$R$9-INDIRECT("R" & 9 & "C" & $U9,FALSE)+INDIRECT("R" & X$1 & "C" & $U9,FALSE) -> 2156289.462 | Y9: 537500
A10: =MAX(A$3, MIN(A$7, A$5 + (-LN(1/B10 - 1) * ((-1)^(B10 <= 0.5))) * (((B10<= 0.5) * A$4 + (B10 > 0.5) * A$6) - A$5) / LN(9))) -> 34515.38415 | B10: 0.05326760316 | C10: =MAX(C$3, MIN(C$7, C$5 + (-LN(1/D10 - 1) * ((-1)^(D10 <= 0.5))) * (((D10<= 0.5) * C$4 + (D10 > 0.5) * C$6) - C$5) / LN(9))) -> 59248.60606 | D10: 0.05267947566 | E10: =MAX(E$3, MIN(E$7, E$5 + (-LN(1/F10 - 1) * ((-1)^(F10 <= 0.5))) * (((F10<= 0.5) * E$4 + (F10 > 0.5) * E$6) - E$5) / LN(9))) -> 135284.0654 | F10: 0.3437371194 | G10: =MAX(G$3, MIN(G$7, G$5 + (-LN(1/H10 - 1) * ((-1)^(H10 <= 0.5))) * (((H10<= 0.5) * G$4 + (H10 > 0.5) * G$6) - G$5) / LN(9))) -> 366566.6901 | H10: 0.5939091148 | I10: =MAX(I$3, MIN(I$7, I$5 + (-LN(1/J10 - 1) * ((-1)^(J10 <= 0.5))) * (((J10<= 0.5) * I$4 + (J10 > 0.5) * I$6) - I$5) / LN(9))) -> 378932.1399 | J10: 0.593680928 | K10: =MAX(K$3, MIN(K$7, K$5 + (-LN(1/L10 - 1) * ((-1)^(L10 <= 0.5))) * (((L10<= 0.5) * K$4 + (L10 > 0.5) * K$6) - K$5) / LN(9))) -> 424592.2897 | L10: 0.5559713894 | M10: =MAX(M$3, MIN(M$7, M$5 + (-LN(1/N10 - 1) * ((-1)^(N10 <= 0.5))) * (((N10<= 0.5) * M$4 + (N10 > 0.5) * M$6) - M$5) / LN(9))) -> 170471.7819 | N10: 0.4015306592 | R10: =A10+C10+E10+G10+I10+K10+M10 -> 1569610.957 | S10: =_xlfn.PERCENTRANK.INC($R$10:$R$1009,$R10) -> 0.247
A11: =MAX(A$3, MIN(A$7, A$5 + (-LN(1/B11 - 1) * ((-1)^(B11 <= 0.5))) * (((B11<= 0.5) * A$4 + (B11 > 0.5) * A$6) - A$5) / LN(9))) -> 56426.63491 | B11: 0.1284415075 | C11: 175889.0938 | D11: 0.7536449678 | E11: =MAX(E$3, MIN(E$7, E$5 + (-LN(1/F11 - 1) * ((-1)^(F11 <= 0.5))) * (((F11<= 0.5) * E$4 + (F11 > 0.5) * E$6) - E$5) / LN(9))) -> 172060.9908 | F11: 0.5800924714 | G11: =MAX(G$3, MIN(G$7, G$5 + (-LN(1/H11 - 1) * ((-1)^(H11 <= 0.5))) * (((H11<= 0.5) * G$4 + (H11 > 0.5) * G$6) - G$5) / LN(9))) -> 297578.1839 | H11: 0.4348002082 | I11: =MAX(I$3, MIN(I$7, I$5 + (-LN(1/J11 - 1) * ((-1)^(J11 <= 0.5))) * (((J11<= 0.5) * I$4 + (J11 > 0.5) * I$6) - I$5) / LN(9))) -> 248813.4744 | J11: 0.2076430884 | K11: =MAX(K$3, MIN(K$7, K$5 + (-LN(1/L11 - 1) * ((-1)^(L11 <= 0.5))) * (((L11<= 0.5) * K$4 + (L11 > 0.5) * K$6) - K$5) / LN(9))) -> 637416.2074 | L11: 0.819774344 | M11: =MAX(M$3, MIN(M$7, M$5 + (-LN(1/N11 - 1) * ((-1)^(N11 <= 0.5))) * (((N11<= 0.5) * M$4 + (N11 > 0.5) * M$6) - M$5) / LN(9))) -> 144040.3108 | N11: 0.2653065404 | R11: =A11+C11+E11+G11+I11+K11+M11 -> 1732224.896 | S11: =_xlfn.PERCENTRANK.INC($R$10:$R$1009,$R11) -> 0.421 | U11: ﻿max(lb, min(ub, p50 + (-ln(1/U - 1) * ((-1)^(U <= 0.5))) * (((U[t] <= 0.5) * p10 + (U > 0.5) * p90) - p50) / ln(9)))
A12: 85632.71426 | B12: 0.3472015309 | C12: 190126.5551 | D12: 0.8070534476 | E12: =MAX(E$3, MIN(E$7, E$5 + (-LN(1/F12 - 1) * ((-1)^(F12 <= 0.5))) * (((F12<= 0.5) * E$4 + (F12 > 0.5) * E$6) - E$5) / LN(9))) -> 89880.97555 | F12: 0.06649000949 | G12: =MAX(G$3, MIN(G$7, G$5 + (-LN(1/H12 - 1) * ((-1)^(H12 <= 0.5))) * (((H12<= 0.5) * G$4 + (H12 > 0.5) * G$6) - G$5) / LN(9))) -> 173749.0745 | H12: 0.0802514454 | I12: =MAX(I$3, MIN(I$7, I$5 + (-LN(1/J12 - 1) * ((-1)^(J12 <= 0.5))) * (((J12<= 0.5) * I$4 + (J12 > 0.5) * I$6) - I$5) / LN(9))) -> 58491.82741 | J12: 0.009151657703 | K12: =MAX(K$3, MIN(K$7, K$5 + (-LN(1/L12 - 1) * ((-1)^(L12 <= 0.5))) * (((L12<= 0.5) * K$4 + (L12 > 0.5) * K$6) - K$5) / LN(9))) -> 478626.4783 | L12: 0.6346796536 | M12: =MAX(M$3, MIN(M$7, M$5 + (-LN(1/N12 - 1) * ((-1)^(N12 <= 0.5))) * (((N12<= 0.5) * M$4 + (N12 > 0.5) * M$6) - M$5) / LN(9))) -> 181921.0991 | N12: 0.4673582295 | R12: 1258428.724 | S12: 0.037
A13: 177262.2696 | B13: 0.845224367 | C13: 143257.5204 | D13: 0.5989660246 | E13: =MAX(E$3, MIN(E$7, E$5 + (-LN(1/F13 - 1) * ((-1)^(F13 <= 0.5))) * (((F13<= 0.5) * E$4 + (F13 > 0.5) * E$6) - E$5) / LN(9))) -> 215019.6322 | F13: 0.7216012428 | G13: =MAX(G$3, MIN(G$7, G$5 + (-LN(1/H13 - 1) * ((-1)^(H13 <= 0.5))) * (((H13<= 0.5) * G$4 + (H13 > 0.5) * G$6) - G$5) / LN(9))) -> 204801.3862 | H13: 0.1308909207 | I13: =MAX(I$3, MIN(I$7, I$5 + (-LN(1/J13 - 1) * ((-1)^(J13 <= 0.5))) * (((J13<= 0.5) * I$4 + (J13 > 0.5) * I$6) - I$5) / LN(9))) -> 466654.5587 | J13: 0.7302694365 | K13: =MAX(K$3, MIN(K$7, K$5 + (-LN(1/L13 - 1) * ((-1)^(L13 <= 0.5))) * (((L13<= 0.5) * K$4 + (L13 > 0.5) * K$6) - K$5) / LN(9))) -> 372783.5268 | L13: 0.4539375544 | M13: =MAX(M$3, MIN(M$7, M$5 + (-LN(1/N13 - 1) * ((-1)^(N13 <= 0.5))) * (((N13<= 0.5) * M$4 + (N13 > 0.5) * M$6) - M$5) / LN(9))) -> 225632.9983 | N13: 0.6098930604 | R13: 1805411.892 | S13: 0.499
A14: 142591.8866 | B14: 0.7182584701 | C14: 35459.23341 | D14: 0.01917430878 | E14: =MAX(E$3, MIN(E$7, E$5 + (-LN(1/F14 - 1) * ((-1)^(F14 <= 0.5))) * (((F14<= 0.5) * E$4 + (F14 > 0.5) * E$6) - E$5) / LN(9))) -> 139324.7273 | F14: 0.3848246832 | G14: =MAX(G$3, MIN(G$7, G$5 + (-LN(1/H14 - 1) * ((-1)^(H14 <= 0.5))) * (((H14<= 0.5) * G$4 + (H14 > 0.5) * G$6) - G$5) / LN(9))) -> 462772.4794 | H14: 0.7420371318 | I14: =MAX(I$3, MIN(I$7, I$5 + (-LN(1/J14 - 1) * ((-1)^(J14 <= 0.5))) * (((J14<= 0.5) * I$4 + (J14 > 0.5) * I$6) - I$5) / LN(9))) -> 468236.9943 | J14: 0.7324554258 | K14: =MAX(K$3, MIN(K$7, K$5 + (-LN(1/L14 - 1) * ((-1)^(L14 <= 0.5))) * (((L14<= 0.5) * K$4 + (L14 > 0.5) * K$6) - K$5) / LN(9))) -> 401164.3514 | L14: 0.5206941363 | M14: =MAX(M$3, MIN(M$7, M$5 + (-LN(1/N14 - 1) * ((-1)^(N14 <= 0.5))) * (((N14<= 0.5) * M$4 + (N14 > 0.5) * M$6) - M$5) / LN(9))) -> 0 | N14: 0.008678694364 | R14: 1649549.672 | S14: 0.33
A15: 106410.1078 | B15: 0.5351530237 | C15: 127591.9831 | D15: 0.5142340755 | E15: =MAX(E$3, MIN(E$7, E$5 + (-LN(1/F15 - 1) * ((-1)^(F15 <= 0.5))) * (((F15<= 0.5) * E$4 + (F15 > 0.5) * E$6) - E$5) / LN(9))) -> 143885.8498 | F15: 0.4332303909 | G15: =MAX(G$3, MIN(G$7, G$5 + (-LN(1/H15 - 1) * ((-1)^(H15 <= 0.5))) * (((H15<= 0.5) * G$4 + (H15 > 0.5) * G$6) - G$5) / LN(9))) -> 193784.021 | H15: 0.1103898312 | I15: =MAX(I$3, MIN(I$7, I$5 + (-LN(1/J15 - 1) * ((-1)^(J15 <= 0.5))) * (((J15<= 0.5) * I$4 + (J15 > 0.5) * I$6) - I$5) / LN(9))) -> 371366.3754 | J15: 0.5807876209 | K15: =MAX(K$3, MIN(K$7, K$5 + (-LN(1/L15 - 1) * ((-1)^(L15 <= 0.5))) * (((L15<= 0.5) * K$4 + (L15 > 0.5) * K$6) - K$5) / LN(9))) -> 235006.415 | L15: 0.1284600515 | M15: =MAX(M$3, MIN(M$7, M$5 + (-LN(1/N15 - 1) * ((-1)^(N15 <= 0.5))) * (((N15<= 0.5) * M$4 + (N15 > 0.5) * M$6) - M$5) / LN(9))) -> 146051.3798 | N15: 0.2745947903 | R15: 1324096.132 | S15: 0.067
A16: 72065.49163 | B16: 0.2266074069 | C16: 155553.3443 | D16: 0.6617999173 | E16: =MAX(E$3, MIN(E$7, E$5 + (-LN(1/F16 - 1) * ((-1)^(F16 <= 0.5))) * (((F16<= 0.5) * E$4 + (F16 > 0.5) * E$6) - E$5) / LN(9))) -> 48887.96167 | F16: 0.01162025697 | G16: =MAX(G$3, MIN(G$7, G$5 + (-LN(1/H16 - 1) * ((-1)^(H16 <= 0.5))) * (((H16<= 0.5) * G$4 + (H16 > 0.5) * G$6) - G$5) / LN(9))) -> 17896.90425 | H16: 0.005605012012 | I16: =MAX(I$3, MIN(I$7, I$5 + (-LN(1/J16 - 1) * ((-1)^(J16 <= 0.5))) * (((J16<= 0.5) * I$4 + (J16 > 0.5) * I$6) - I$5) / LN(9))) -> 731429.8535 | J16: 0.9457131114 | K16: =MAX(K$3, MIN(K$7, K$5 + (-LN(1/L16 - 1) * ((-1)^(L16 <= 0.5))) * (((L16<= 0.5) * K$4 + (L16 > 0.5) * K$6) - K$5) / LN(9))) -> 386780.5852 | L16: 0.4977418499 | M16: =MAX(M$3, MIN(M$7, M$5 + (-LN(1/N16 - 1) * ((-1)^(N16 <= 0.5))) * (((N16<= 0.5) * M$4 + (N16 > 0.5) * M$6) - M$5) / LN(9))) -> 163197.0841 | N16: 0.3613316775 | R16: 1575811.225 | S16: 0.251
A17: 99472.67666 | B17: 0.4942070202 | C17: 63670.67949 | D17: 0.06326395488 | E17: =MAX(E$3, MIN(E$7, E$5 + (-LN(1/F17 - 1) * ((-1)^(F17 <= 0.5))) * (((F17<= 0.5) * E$4 + (F17 > 0.5) * E$6) - E$5) / LN(9))) -> 135828.9421 | F17: 0.3491585526 | G17: =MAX(G$3, MIN(G$7, G$5 + (-LN(1/H17 - 1) * ((-1)^(H17 <= 0.5))) * (((H17<= 0.5) * G$4 + (H17 > 0.5) * G$6) - G$5) / LN(9))) -> 380475.1287 | H17: 0.6172616002 | I17: =MAX(I$3, MIN(I$7, I$5 + (-LN(1/J17 - 1) * ((-1)^(J17 <= 0.5))) * (((J17<= 0.5) * I$4 + (J17 > 0.5) * I$6) - I$5) / LN(9))) -> 279015.1799 | J17: 0.3082503541 | K17: =MAX(K$3, MIN(K$7, K$5 + (-LN(1/L17 - 1) * ((-1)^(L17 <= 0.5))) * (((L17<= 0.5) * K$4 + (L17 > 0.5) * K$6) - K$5) / LN(9))) -> 459667.3441 | L17: 0.6076461438 | M17: =MAX(M$3, MIN(M$7, M$5 + (-LN(1/N17 - 1) * ((-1)^(N17 <= 0.5))) * (((N17<= 0.5) * M$4 + (N17 > 0.5) * M$6) - M$5) / LN(9))) -> 306842.1968 | N17: 0.8019481742 | R17: 1724972.148 | S17: 0.411
A18: 40689.92024 | B18: 0.06873077846 | C18: 180957.8453 | D18: 0.7737344697 | E18: =MAX(E$3, MIN(E$7, E$5 + (-LN(1/F18 - 1) * ((-1)^(F18 <= 0.5))) * (((F18<= 0.5) * E$4 + (F18 > 0.5) * E$6) - E$5) / LN(9))) -> 343567.2348 | F18: 0.9445593043 | G18: =MAX(G$3, MIN(G$7, G$5 + (-LN(1/H18 - 1) * ((-1)^(H18 <= 0.5))) * (((H18<= 0.5) * G$4 + (H18 > 0.5) * G$6) - G$5) / LN(9))) -> 180261.0098 | H18: 0.08911653486 | I18: =MAX(I$3, MIN(I$7, I$5 + (-LN(1/J18 - 1) * ((-1)^(J18 <= 0.5))) * (((J18<= 0.5) * I$4 + (J18 > 0.5) * I$6) - I$5) / LN(9))) -> 517859.454 | J18: 0.7951117078 | K18: =MAX(K$3, MIN(K$7, K$5 + (-LN(1/L18 - 1) * ((-1)^(L18 <= 0.5))) * (((L18<= 0.5) * K$4 + (L18 > 0.5) * K$6) - K$5) / LN(9))) -> 862975.9278 | L18: 0.9469497577 | M18: =MAX(M$3, MIN(M$7, M$5 + (-LN(1/N18 - 1) * ((-1)^(N18 <= 0.5))) * (((N18<= 0.5) * M$4 + (N18 > 0.5) * M$6) - M$5) / LN(9))) -> 177458.2876 | N18: 0.4414330209 | R18: 2303769.679 | S18: 0.893
A19: 93829.95495 | B19: 0.4326273727 | C19: 117240.5468 | D19: 0.4155701741 | E19: =MAX(E$3, MIN(E$7, E$5 + (-LN(1/F19 - 1) * ((-1)^(F19 <= 0.5))) * (((F19<= 0.5) * E$4 + (F19 > 0.5) * E$6) - E$5) / LN(9))) -> 106170.342 | F19: 0.1271859843 | G19: =MAX(G$3, MIN(G$7, G$5 + (-LN(1/H19 - 1) * ((-1)^(H19 <= 0.5))) * (((H19<= 0.5) * G$4 + (H19 > 0.5) * G$6) - G$5) / LN(9))) -> 283750.533 | H19: 0.3762836889 | I19: =MAX(I$3, MIN(I$7, I$5 + (-LN(1/J19 - 1) * ((-1)^(J19 <= 0.5))) * (((J19<= 0.5) * I$4 + (J19 > 0.5) * I$6) - I$5) / LN(9))) -> 188120.0879 | J19: 0.08271272377 | K19: =MAX(K$3, MIN(K$7, K$5 + (-LN(1/L19 - 1) * ((-1)^(L19 <= 0.5))) * (((L19<= 0.5) * K$4 + (L19 > 0.5) * K$6) - K$5) / LN(9))) -> 572113.1357 | L19: 0.7538026774 | M19: =MAX(M$3, MIN(M$7, M$5 + (-LN(1/N19 - 1) * ((-1)^(N19 <= 0.5))) * (((N19<= 0.5) * M$4 + (N19 > 0.5) * M$6) - M$5) / LN(9))) -> 417435.8163 | N19: 0.9367019138 | R19: 1778660.417 | S19: 0.464
A20: 103980.9067 | B20: 0.5218534337 | C20: 96528.94379 | D20: 0.2225018084 | E20: =MAX(E$3, MIN(E$7, E$5 + (-LN(1/F20 - 1) * ((-1)^(F20 <= 0.5))) * (((F20<= 0.5) * E$4 + (F20 > 0.5) * E$6) - E$5) / LN(9))) -> 104540.1427 | F20: 0.1194435338 | G20: =MAX(G$3, MIN(G$7, G$5 + (-LN(1/H20 - 1) * ((-1)^(H20 <= 0.5))) * (((H20<= 0.5) * G$4 + (H20 > 0.5) * G$6) - G$5) / LN(9))) -> 257537.321 | H20: 0.275653986 | I20: =MAX(I$3, MIN(I$7, I$5 + (-LN(1/J20 - 1) * ((-1)^(J20 <= 0.5))) * (((J20<= 0.5) * I$4 + (J20 > 0.5) * I$6) - I$5) / LN(9))) -> 230082.1365 | J20: 0.1586313572 | K20: =MAX(K$3, MIN(K$7, K$5 + (-LN(1/L20 - 1) * ((-1)^(L20 <= 0.5))) * (((L20<= 0.5) * K$4 + (L20 > 0.5) * K$6) - K$5) / LN(9))) -> 1016945.869 | L20: 0.9784430861 | M20: =MAX(M$3, MIN(M$7, M$5 + (-LN(1/N20 - 1) * ((-1)^(N20 <= 0.5))) * (((N20<= 0.5) * M$4 + (N20 > 0.5) * M$6) - M$5) / LN(9))) -> 185583.4268 | N20: 0.4887721762 | R20: 1995198.747 | S20: 0.687
A21: 98678.9663 | B21: 0.4854910359 | C21: 122344.0273 | D21: 0.4708542362 | E21: =MAX(E$3, MIN(E$7, E$5 + (-LN(1/F21 - 1) * ((-1)^(F21 <= 0.5))) * (((F21<= 0.5) * E$4 + (F21 > 0.5) * E$6) - E$5) / LN(9))) -> 89969.49344 | F21: 0.06673185795 | G21: =MAX(G$3, MIN(G$7, G$5 + (-LN(1/H21 - 1) * ((-1)^(H21 <= 0.5))) * (((H21<= 0.5) * G$4 + (H21 > 0.5) * G$6) - G$5) / LN(9))) -> 583771.3865 | H21: 0.8707201625 | I21: =MAX(I$3, MIN(I$7, I$5 + (-LN(1/J21 - 1) * ((-1)^(J21 <= 0.5))) * (((J21<= 0.5) * I$4 + (J21 > 0.5) * I$6) - I$5) / LN(9))) -> 226091.651 | J21: 0.1494920122 | K21: =MAX(K$3, MIN(K$7, K$5 + (-LN(1/L21 - 1) * ((-1)^(L21 <= 0.5))) * (((L21<= 0.5) * K$4 + (L21 > 0.5) * K$6) - K$5) / LN(9))) -> 291928.3304 | L21: 0.2314829205 | M21: =MAX(M$3, MIN(M$7, M$5 + (-LN(1/N21 - 1) * ((-1)^(N21 <= 0.5))) * (((N21<= 0.5) * M$4 + (N21 > 0.5) * M$6) - M$5) / LN(9))) -> 151296.8994 | N21: 0.299748804 | R21: 1564080.754 | S21: 0.244
A22: 187529.5298 | B22: 0.8724971133 | C22: 171433.2117 | D22: 0.7350197235 | E22: =MAX(E$3, MIN(E$7, E$5 + (-LN(1/F22 - 1) * ((-1)^(F22 <= 0.5))) * (((F22<= 0.5) * E$4 + (F22 > 0.5) * E$6) - E$5) / LN(9))) -> 147050.5147 | F22: 0.4676418795 | G22: =MAX(G$3, MIN(G$7, G$5 + (-LN(1/H22 - 1) * ((-1)^(H22 <= 0.5))) * (((H22<= 0.5) * G$4 + (H22 > 0.5) * G$6) - G$5) / LN(9))) -> 276568.7706 | H22: 0.34714968 | I22: =MAX(I$3, MIN(I$7, I$5 + (-LN(1/J22 - 1) * ((-1)^(J22 <= 0.5))) * (((J22<= 0.5) * I$4 + (J22 > 0.5) * I$6) - I$5) / LN(9))) -> 462775.8511 | J22: 0.7248639653 | K22: =MAX(K$3, MIN(K$7, K$5 + (-LN(1/L22 - 1) * ((-1)^(L22 <= 0.5))) * (((L22<= 0.5) * K$4 + (L22 > 0.5) * K$6) - K$5) / LN(9))) -> 435016.2695 | L22: 0.5715090743 | M22: =MAX(M$3, MIN(M$7, M$5 + (-LN(1/N22 - 1) * ((-1)^(N22 <= 0.5))) * (((N22<= 0.5) * M$4 + (N22 > 0.5) * M$6) - M$5) / LN(9))) -> 192533.5696 | N22: 0.5147422362 | R22: 1872907.717 | S22: 0.557
A23: 119599.411 | B23: 0.6060272184 | C23: 135754.9104 | D23: 0.5588039926 | E23: =MAX(E$3, MIN(E$7, E$5 + (-LN(1/F23 - 1) * ((-1)^(F23 <= 0.5))) * (((F23<= 0.5) * E$4 + (F23 > 0.5) * E$6) - E$5) / LN(9))) -> 124395.568 | F23: 0.245052868 | G23: =MAX(G$3, MIN(G$7, G$5 + (-LN(1/H23 - 1) * ((-1)^(H23 <= 0.5))) * (((H23<= 0.5) * G$4 + (H23 > 0.5) * G$6) - G$5) / LN(9))) -> 325538.8843 | H23: 0.5229034462 | I23: =MAX(I$3, MIN(I$7, I$5 + (-LN(1/J23 - 1) * ((-1)^(J23 <= 0.5))) * (((J23<= 0.5) * I$4 + (J23 > 0.5) * I$6) - I$5) / LN(9))) -> 255387.3751 | J23: 0.2272971162 | K23: =MAX(K$3, MIN(K$7, K$5 + (-LN(1/L23 - 1) * ((-1)^(L23 <= 0.5))) * (((L23<= 0.5) * K$4 + (L23 > 0.5) * K$6) - K$5) / LN(9))) -> 236311.7988 | L23: 0.1303062267 | M23: =MAX(M$3, MIN(M$7, M$5 + (-LN(1/N23 - 1) * ((-1)^(N23 <= 0.5))) * (((N23<= 0.5) * M$4 + (N23 > 0.5) * M$6) - M$5) / LN(9))) -> 159458.4559 | N23: 0.3413663071 | R23: 1356446.403 | S23: 0.085
A24: 117520.0668 | B24: 0.5950676823 | C24: 219493.0116 | D24: 0.8885706768 | E24: =MAX(E$3, MIN(E$7, E$5 + (-LN(1/F24 - 1) * ((-1)^(F24 <= 0.5))) * (((F24<= 0.5) * E$4 + (F24 > 0.5) * E$6) - E$5) / LN(9))) -> 159056.1427 | F24: 0.5331154171 | G24: =MAX(G$3, MIN(G$7, G$5 + (-LN(1/H24 - 1) * ((-1)^(H24 <= 0.5))) * (((H24<= 0.5) * G$4 + (H24 > 0.5) * G$6) - G$5) / LN(9))) -> 221780.3543 | H24: 0.1687304722 | I24: =MAX(I$3, MIN(I$7, I$5 + (-LN(1/J24 - 1) * ((-1)^(J24 <= 0.5))) * (((J24<= 0.5) * I$4 + (J24 > 0.5) * I$6) - I$5) / LN(9))) -> 1083236.908 | J24: 0.9951852926 | K24: =MAX(K$3, MIN(K$7, K$5 + (-LN(1/L24 - 1) * ((-1)^(L24 <= 0.5))) * (((L24<= 0.5) * K$4 + (L24 > 0.5) * K$6) - K$5) / LN(9))) -> 380764.6273 | L24: 0.4788709814 | M24: =MAX(M$3, MIN(M$7, M$5 + (-LN(1/N24 - 1) * ((-1)^(N24 <= 0.5))) * (((N24<= 0.5) * M$4 + (N24 > 0.5) * M$6) - M$5) / LN(9))) -> 354722.3908 | N24: 0.8764897416 | R24: 2536573.501 | S24: 0.95
A25: 111889.3852 | B25: 0.5649402252 | C25: 176422.0765 | D25: 0.7558127853 | E25: =MAX(E$3, MIN(E$7, E$5 + (-LN(1/F25 - 1) * ((-1)^(F25 <= 0.5))) * (((F25<= 0.5) * E$4 + (F25 > 0.5) * E$6) - E$5) / LN(9))) -> 142283.1553 | F25: 0.4160250001 | G25: =MAX(G$3, MIN(G$7, G$5 + (-LN(1/H25 - 1) * ((-1)^(H25 <= 0.5))) * (((H25<= 0.5) * G$4 + (H25 > 0.5) * G$6) - G$5) / LN(9))) -> 285043.2852 | H25: 0.3816316242 | I25: =MAX(I$3, MIN(I$7, I$5 + (-LN(1/J25 - 1) * ((-1)^(J25 <= 0.5))) * (((J25<= 0.5) * I$4 + (J25 > 0.5) * I$6) - I$5) / LN(9))) -> 456411.8811 | J25: 0.7158508437 | K25: =MAX(K$3, MIN(K$7, K$5 + (-LN(1/L25 - 1) * ((-1)^(L25 <= 0.5))) * (((L25<= 0.5) * K$4 + (L25 > 0.5) * K$6) - K$5) / LN(9))) -> 565989.6329 | L25: 0.7468497518 | M25: =MAX(M$3, MIN(M$7, M$5 + (-LN(1/N25 - 1) * ((-1)^(N25 <= 0.5))) * (((N25<= 0.5) * M$4 + (N25 > 0.5) * M$6) - M$5) / LN(9))) -> 155179.4729 | N25: 0.3191896797 | R25: 1893218.889 | S25: 0.579
A26: 116813.0755 | B26: 0.5913190708 | C26: 156418.6891 | D26: 0.6660423701 | E26: =MAX(E$3, MIN(E$7, E$5 + (-LN(1/F26 - 1) * ((-1)^(F26 <= 0.5))) * (((F26<= 0.5) * E$4 + (F26 > 0.5) * E$6) - E$5) / LN(9))) -> 122987.3247 | F26: 0.2337854727 | G26: =MAX(G$3, MIN(G$7, G$5 + (-LN(1/H26 - 1) * ((-1)^(H26 <= 0.5))) * (((H26<= 0.5) * G$4 + (H26 > 0.5) * G$6) - G$5) / LN(9))) -> 625337.8239 | H26: 0.9002135722 | I26: =MAX(I$3, MIN(I$7, I$5 + (-LN(1/J26 - 1) * ((-1)^(J26 <= 0.5))) * (((J26<= 0.5) * I$4 + (J26 > 0.5) * I$6) - I$5) / LN(9))) -> 471300.2894 | J26: 0.7366549969 | K26: =MAX(K$3, MIN(K$7, K$5 + (-LN(1/L26 - 1) * ((-1)^(L26 <= 0.5))) * (((L26<= 0.5) * K$4 + (L26 > 0.5) * K$6) - K$5) / LN(9))) -> 489491.7337 | L26: 0.6498098369 | M26: =MAX(M$3, MIN(M$7, M$5 + (-LN(1/N26 - 1) * ((-1)^(N26 <= 0.5))) * (((N26<= 0.5) * M$4 + (N26 > 0.5) * M$6) - M$5) / LN(9))) -> 181657.0885 | N26: 0.4658182302 | R26: 2164006.025 | S26: 0.824
A27: 71320.68941 | B27: 0.2209226453 | C27: 97143.83062 | D27: 0.2272113069 | E27: =MAX(E$3, MIN(E$7, E$5 + (-LN(1/F27 - 1) * ((-1)^(F27 <= 0.5))) * (((F27<= 0.5) * E$4 + (F27 > 0.5) * E$6) - E$5) / LN(9))) -> 322610.2588 | F27: 0.9261105362 | G27: =MAX(G$3, MIN(G$7, G$5 + (-LN(1/H27 - 1) * ((-1)^(H27 <= 0.5))) * (((H27<= 0.5) * G$4 + (H27 > 0.5) * G$6) - G$5) / LN(9))) -> 38165.30796 | H27: 0.007984794244 | I27: =MAX(I$3, MIN(I$7, I$5 + (-LN(1/J27 - 1) * ((-1)^(J27 <= 0.5))) * (((J27<= 0.5) * I$4 + (J27 > 0.5) * I$6) - I$5) / LN(9))) -> 542356.13 | J27: 0.8217511111 | K27: =MAX(K$3, MIN(K$7, K$5 + (-LN(1/L27 - 1) * ((-1)^(L27 <= 0.5))) * (((L27<= 0.5) * K$4 + (L27 > 0.5) * K$6) - K$5) / LN(9))) -> 461739.8902 | L27: 0.610637077 | M27: =MAX(M$3, MIN(M$7, M$5 + (-LN(1/N27 - 1) * ((-1)^(N27 <= 0.5))) * (((N27<= 0.5) * M$4 + (N27 > 0.5) * M$6) - M$5) / LN(9))) -> 279772.6996 | N27: 0.7467400116 | R27: 1813108.807 | S27: 0.508
A28: 130356.9591 | B28: 0.6608334524 | C28: 349471.7972 | D28: 0.9928406394 | E28: =MAX(E$3, MIN(E$7, E$5 + (-LN(1/F28 - 1) * ((-1)^(F28 <= 0.5))) * (((F28<= 0.5) * E$4 + (F28 > 0.5) * E$6) - E$5) / LN(9))) -> 149062.4622 | F28: 0.4897015515 | G28: =MAX(G$3, MIN(G$7, G$5 + (-LN(1/H28 - 1) * ((-1)^(H28 <= 0.5))) * (((H28<= 0.5) * G$4 + (H28 > 0.5) * G$6) - G$5) / LN(9))) -> 286871.8308 | H28: 0.3892450441 | I28: =MAX(I$3, MIN(I$7, I$5 + (-LN(1/J28 - 1) * ((-1)^(J28 <= 0.5))) * (((J28<= 0.5) * I$4 + (J28 > 0.5) * I$6) - I$5) / LN(9))) -> 154785.7991 | J28: 0.04778902531 | K28: =MAX(K$3, MIN(K$7, K$5 + (-LN(1/L28 - 1) * ((-1)^(L28 <= 0.5))) * (((L28<= 0.5) * K$4 + (L28 > 0.5) * K$6) - K$5) / LN(9))) -> 560872.5175 | L28: 0.7409408592 | M28: =MAX(M$3, MIN(M$7, M$5 + (-LN(1/N28 - 1) * ((-1)^(N28 <= 0.5))) * (((N28<= 0.5) * M$4 + (N28 > 0.5) * M$6) - M$5) / LN(9))) -> 117952.1932 | N28: 0.1638308721 | R28: 1749373.559 | S28: 0.438
A29: 96929.98757 | B29: 0.4663235288 | C29: 197232.7378 | D29: 0.8302098824 | E29: =MAX(E$3, MIN(E$7, E$5 + (-LN(1/F29 - 1) * ((-1)^(F29 <= 0.5))) * (((F29<= 0.5) * E$4 + (F29 > 0.5) * E$6) - E$5) / LN(9))) -> 87326.63371 | F29: 0.05985274536 | G29: =MAX(G$3, MIN(G$7, G$5 + (-LN(1/H29 - 1) * ((-1)^(H29 <= 0.5))) * (((H29<= 0.5) * G$4 + (H29 > 0.5) * G$6) - G$5) / LN(9))) -> 255821.195 | H29: 0.2696717706 | I29: =MAX(I$3, MIN(I$7, I$5 + (-LN(1/J29 - 1) * ((-1)^(J29 <= 0.5))) * (((J29<= 0.5) * I$4 + (J29 > 0.5) * I$6) - I$5) / LN(9))) -> 239174.9181 | J29: 0.181144017 | K29: =MAX(K$3, MIN(K$7, K$5 + (-LN(1/L29 - 1) * ((-1)^(L29 <= 0.5))) * (((L29<= 0.5) * K$4 + (L29 > 0.5) * K$6) - K$5) / LN(9))) -> 602665.641 | L29: 0.7865385489 | M29: =MAX(M$3, MIN(M$7, M$5 + (-LN(1/N29 - 1) * ((-1)^(N29 <= 0.5))) * (((N29<= 0.5) * M$4 + (N29 > 0.5) * M$6) - M$5) / LN(9))) -> 129544.7592 | N29: 0.2045166413 | R29: 1608695.872 | S29: 0.291
A30: 75188.45012 | B30: 0.2515559646 | C30: 208729.4423 | D30: 0.8629160484 | E30: =MAX(E$3, MIN(E$7, E$5 + (-LN(1/F30 - 1) * ((-1)^(F30 <= 0.5))) * (((F30<= 0.5) * E$4 + (F30 > 0.5) * E$6) - E$5) / LN(9))) -> 126001.2785 | F30: 0.2583405282 | G30: =MAX(G$3, MIN(G$7, G$5 + (-LN(1/H30 - 1) * ((-1)^(H30 <= 0.5))) * (((H30<= 0.5) * G$4 + (H30 > 0.5) * G$6) - G$5) / LN(9))) -> 187947.912 | H30: 0.1007108325 | I30: =MAX(I$3, MIN(I$7, I$5 + (-LN(1/J30 - 1) * ((-1)^(J30 <= 0.5))) * (((J30<= 0.5) * I$4 + (J30 > 0.5) * I$6) - I$5) / LN(9))) -> 395629.5598 | J30: 0.6216611191 | K30: =MAX(K$3, MIN(K$7, K$5 + (-LN(1/L30 - 1) * ((-1)^(L30 <= 0.5))) * (((L30<= 0.5) * K$4 + (L30 > 0.5) * K$6) - K$5) / LN(9))) -> 453373.444 | L30: 0.5985144945 | M30: =MAX(M$3, MIN(M$7, M$5 + (-LN(1/N30 - 1) * ((-1)^(N30 <= 0.5))) * (((N30<= 0.5) * M$4 + (N30 > 0.5) * M$6) - M$5) / LN(9))) -> 340847.8184 | N30: 0.8577847179 | R30: 1787717.905 | S30: 0.476
A31: 79837.82453 | B31: 0.2919325553 | C31: 127464.2196 | D31: 0.5135328037 | E31: =MAX(E$3, MIN(E$7, E$5 + (-LN(1/F31 - 1) * ((-1)^(F31 <= 0.5))) * (((F31<= 0.5) * E$4 + (F31 > 0.5) * E$6) - E$5) / LN(9))) -> 442638.27 | F31: 0.9864351183 | G31: =MAX(G$3, MIN(G$7, G$5 + (-LN(1/H31 - 1) * ((-1)^(H31 <= 0.5))) * (((H31<= 0.5) * G$4 + (H31 > 0.5) * G$6) - G$5) / LN(9))) -> 122404.8666 | H31: 0.03417614477 | I31: =MAX(I$3, MIN(I$7, I$5 + (-LN(1/J31 - 1) * ((-1)^(J31 <= 0.5))) * (((J31<= 0.5) * I$4 + (J31 > 0.5) * I$6) - I$5) / LN(9))) -> 209755.0299 | J31: 0.116525464 | K31: =MAX(K$3, MIN(K$7, K$5 + (-LN(1/L31 - 1) * ((-1)^(L31 <= 0.5))) * (((L31<= 0.5) * K$4 + (L31 > 0.5) * K$6) - K$5) / LN(9))) -> 582215.7428 | L31: 0.7649895728 | M31: =MAX(M$3, MIN(M$7, M$5 + (-LN(1/N31 - 1) * ((-1)^(N31 <= 0.5))) * (((N31<= 0.5) * M$4 + (N31 > 0.5) * M$6) - M$5) / LN(9))) -> 240906.054 | N31: 0.6515457117 | R31: =A31+C31+E31+G31+I31+K31+M31 -> 1805222.007 | S31: 0.498
A32: 160384.5484 | B32: 0.790308196 | C32: 166143.7086 | D32: 0.7117748465 | E32: =MAX(E$3, MIN(E$7, E$5 + (-LN(1/F32 - 1) * ((-1)^(F32 <= 0.5))) * (((F32<= 0.5) * E$4 + (F32 > 0.5) * E$6) - E$5) / LN(9))) -> 108928.5021 | F32: 0.1412597504 | G32: =MAX(G$3, MIN(G$7, G$5 + (-LN(1/H32 - 1) * ((-1)^(H32 <= 0.5))) * (((H32<= 0.5) * G$4 + (H32 > 0.5) * G$6) - G$5) / LN(9))) -> 262122.5977 | H32: 0.2920344349 | I32: =MAX(I$3, MIN(I$7, I$5 + (-LN(1/J32 - 1) * ((-1)^(J32 <= 0.5))) * (((J32<= 0.5) * I$4 + (J32 > 0.5) * I$6) - I$5) / LN(9))) -> 187612.9641 | J32: 0.08203890859 | K32: =MAX(K$3, MIN(K$7, K$5 + (-LN(1/L32 - 1) * ((-1)^(L32 <= 0.5))) * (((L32<= 0.5) * K$4 + (L32 > 0.5) * K$6) - K$5) / LN(9))) -> 724231.0761 | L32: 0.8850382258 | M32: =MAX(M$3, MIN(M$7, M$5 + (-LN(1/N32 - 1) * ((-1)^(N32 <= 0.5))) * (((N32<= 0.5) * M$4 + (N32 > 0.5) * M$6) - M$5) / LN(9))) -> 169647.2613 | N32: 0.3968959103 | R32: 1779070.658 | S32: 0.465
A33: 71729.30174 | B33: 0.2240286836 | C33: 130680.7932 | D33: 0.5311644947 | E33: =MAX(E$3, MIN(E$7, E$5 + (-LN(1/F33 - 1) * ((-1)^(F33 <= 0.5))) * (((F33<= 0.5) * E$4 + (F33 > 0.5) * E$6) - E$5) / LN(9))) -> 136339.1862 | F33: 0.3542710539 | G33: =MAX(G$3, MIN(G$7, G$5 + (-LN(1/H33 - 1) * ((-1)^(H33 <= 0.5))) * (((H33<= 0.5) * G$4 + (H33 > 0.5) * G$6) - G$5) / LN(9))) -> 453727.1985 | H33: 0.7296771496 | I33: =MAX(I$3, MIN(I$7, I$5 + (-LN(1/J33 - 1) * ((-1)^(J33 <= 0.5))) * (((J33<= 0.5) * I$4 + (J33 > 0.5) * I$6) - I$5) / LN(9))) -> 259304.6604 | J33: 0.2396172041 | K33: =MAX(K$3, MIN(K$7, K$5 + (-LN(1/L33 - 1) * ((-1)^(L33 <= 0.5))) * (((L33<= 0.5) * K$4 + (L33 > 0.5) * K$6) - K$5) / LN(9))) -> 696023.0406 | L33: 0.8664644721 | M33: =MAX(M$3, MIN(M$7, M$5 + (-LN(1/N33 - 1) * ((-1)^(N33 <= 0.5))) * (((N33<= 0.5) * M$4 + (N33 > 0.5) * M$6) - M$5) / LN(9))) -> 277270.2164 | N33: 0.7411539866 | R33: 2025074.397 | S33: 0.712
A34: 144179.3516 | B34: 0.7252629003 | C34: 108482.5823 | D34: 0.3261061808 | E34: =MAX(E$3, MIN(E$7, E$5 + (-LN(1/F34 - 1) * ((-1)^(F34 <= 0.5))) * (((F34<= 0.5) * E$4 + (F34 > 0.5) * E$6) - E$5) / LN(9))) -> 246957.6391 | F34: 0.8053778225 | G34: =MAX(G$3, MIN(G$7, G$5 + (-LN(1/H34 - 1) * ((-1)^(H34 <= 0.5))) * (((H34<= 0.5) * G$4 + (H34 > 0.5) * G$6) - G$5) / LN(9))) -> 252886.5074 | H34: 0.2596335893 | I34: =MAX(I$3, MIN(I$7, I$5 + (-LN(1/J34 - 1) * ((-1)^(J34 <= 0.5))) * (((J34<= 0.5) * I$4 + (J34 > 0.5) * I$6) - I$5) / LN(9))) -> 349994.424 | J34: 0.5438219646 | K34: =MAX(K$3, MIN(K$7, K$5 + (-LN(1/L34 - 1) * ((-1)^(L34 <= 0.5))) * (((L34<= 0.5) * K$4 + (L34 > 0.5) * K$6) - K$5) / LN(9))) -> 351476.9152 | L34: 0.3888163583 | M34: =MAX(M$3, MIN(M$7, M$5 + (-LN(1/N34 - 1) * ((-1)^(N34 <= 0.5))) * (((N34<= 0.5) * M$4 + (N34 > 0.5) * M$6) - M$5) / LN(9))) -> 173498.8079 | N34: 0.4186916013 | R34: 1627476.227 | S34: 0.31
A35: 136468.1618 | B35: 0.6902498039 | C35: 60638.20045 | D35: 0.05581146473 | E35: =MAX(E$3, MIN(E$7, E$5 + (-LN(1/F35 - 1) * ((-1)^(F35 <= 0.5))) * (((F35<= 0.5) * E$4 + (F35 > 0.5) * E$6) - E$5) / LN(9))) -> 132389.8775 | F35: 0.3156430004 | G35: =MAX(G$3, MIN(G$7, G$5 + (-LN(1/H35 - 1) * ((-1)^(H35 <= 0.5))) * (((H35<= 0.5) * G$4 + (H35 > 0.5) * G$6) - G$5) / LN(9))) -> 187892.0691 | H35: 0.1006219661 | I35: =MAX(I$3, MIN(I$7, I$5 + (-LN(1/J35 - 1) * ((-1)^(J35 <= 0.5))) * (((J35<= 0.5) * I$4 + (J35 > 0.5) * I$6) - I$5) / LN(9))) -> 218827.2985 | J35: 0.1339724948 | K35: =MAX(K$3, MIN(K$7, K$5 + (-LN(1/L35 - 1) * ((-1)^(L35 <= 0.5))) * (((L35<= 0.5) * K$4 + (L35 > 0.5) * K$6) - K$5) / LN(9))) -> 412637.3165 | L35: 0.5380177414 | M35: =MAX(M$3, MIN(M$7, M$5 + (-LN(1/N35 - 1) * ((-1)^(N35 <= 0.5))) * (((N35<= 0.5) * M$4 + (N35 > 0.5) * M$6) - M$5) / LN(9))) -> 265323.8181 | N35: 0.713405331 | R35: 1414176.742 | S35: 0.117
A36: 46289.58176 | B36: 0.08625235923 | C36: 91006.51049 | D36: 0.1833480684 | E36: =MAX(E$3, MIN(E$7, E$5 + (-LN(1/F36 - 1) * ((-1)^(F36 <= 0.5))) * (((F36<= 0.5) * E$4 + (F36 > 0.5) * E$6) - E$5) / LN(9))) -> 168874.1381 | F36: 0.5686809457 | G36: =MAX(G$3, MIN(G$7, G$5 + (-LN(1/H36 - 1) * ((-1)^(H36 <= 0.5))) * (((H36<= 0.5) * G$4 + (H36 > 0.5) * G$6) - G$5) / LN(9))) -> 919061.4599 | H36: 0.9861401948 | I36: =MAX(I$3, MIN(I$7, I$5 + (-LN(1/J36 - 1) * ((-1)^(J36 <= 0.5))) * (((J36<= 0.5) * I$4 + (J36 > 0.5) * I$6) - I$5) / LN(9))) -> 129721.7241 | J36: 0.03129318022 | K36: =MAX(K$3, MIN(K$7, K$5 + (-LN(1/L36 - 1) * ((-1)^(L36 <= 0.5))) * (((L36<= 0.5) * K$4 + (L36 > 0.5) * K$6) - K$5) / LN(9))) -> 639265.7476 | L36: 0.8214247185 | M36: =MAX(M$3, MIN(M$7, M$5 + (-LN(1/N36 - 1) * ((-1)^(N36 <= 0.5))) * (((N36<= 0.5) * M$4 + (N36 > 0.5) * M$6) - M$5) / LN(9))) -> 396982.8983 | N36: 0.9209140777 | R36: 2391202.06 | S36: 0.914
A37: 133128.4582 | B37: 0.674345728 | C37: 97561.39936 | D37: 0.2304494068 | E37: =MAX(E$3, MIN(E$7, E$5 + (-LN(1/F37 - 1) * ((-1)^(F37 <= 0.5))) * (((F37<= 0.5) * E$4 + (F37 > 0.5) * E$6) - E$5) / LN(9))) -> 275963.2157 | F37: 0.8635542736 | G37: =MAX(G$3, MIN(G$7, G$5 + (-LN(1/H37 - 1) * ((-1)^(H37 <= 0.5))) * (((H37<= 0.5) * G$4 + (H37 > 0.5) * G$6) - G$5) / LN(9))) -> 175131.2609 | H37: 0.0820631325 | I37: =MAX(I$3, MIN(I$7, I$5 + (-LN(1/J37 - 1) * ((-1)^(J37 <= 0.5))) * (((J37<= 0.5) * I$4 + (J37 > 0.5) * I$6) - I$5) / LN(9))) -> 242156.2268 | J37: 0.1890475277 | K37: =MAX(K$3, MIN(K$7, K$5 + (-LN(1/L37 - 1) * ((-1)^(L37 <= 0.5))) * (((L37<= 0.5) * K$4 + (L37 > 0.5) * K$6) - K$5) / LN(9))) -> 464109.2159 | L37: 0.6140461164 | M37: =MAX(M$3, MIN(M$7, M$5 + (-LN(1/N37 - 1) * ((-1)^(N37 <= 0.5))) * (((N37<= 0.5) * M$4 + (N37 > 0.5) * M$6) - M$5) / LN(9))) -> 446116.0277 | N37: 0.9539375427 | R37: 1834165.805 | S37: 0.526
A38: 41177.81713 | B38: 0.07011586412 | C38: 212778.6992 | D38: 0.8731049226 | E38: =MAX(E$3, MIN(E$7, E$5 + (-LN(1/F38 - 1) * ((-1)^(F38 <= 0.5))) * (((F38<= 0.5) * E$4 + (F38 > 0.5) * E$6) - E$5) / LN(9))) -> 176183.3183 | F38: 0.5947260296 | G38: =MAX(G$3, MIN(G$7, G$5 + (-LN(1/H38 - 1) * ((-1)^(H38 <= 0.5))) * (((H38<= 0.5) * G$4 + (H38 > 0.5) * G$6) - G$5) / LN(9))) -> 756015.8214 | H38: 0.95764588 | I38: =MAX(I$3, MIN(I$7, I$5 + (-LN(1/J38 - 1) * ((-1)^(J38 <= 0.5))) * (((J38<= 0.5) * I$4 + (J38 > 0.5) * I$6) - I$5) / LN(9))) -> 228417.7636 | J38: 0.1547655166 | K38: =MAX(K$3, MIN(K$7, K$5 + (-LN(1/L38 - 1) * ((-1)^(L38 <= 0.5))) * (((L38<= 0.5) * K$4 + (L38 > 0.5) * K$6) - K$5) / LN(9))) -> 423829.5918 | L38: 0.5548298417 | M38: =MAX(M$3, MIN(M$7, M$5 + (-LN(1/N38 - 1) * ((-1)^(N38 <= 0.5))) * (((N38<= 0.5) * M$4 + (N38 > 0.5) * M$6) - M$5) / LN(9))) -> 234988.2261 | N38: 0.6356405275 | R38: 2073391.237 | S38: 0.753
A39: 208867.0661 | B39: 0.9162193658 | C39: 111045.8638 | D39: 0.3513278897 | E39: =MAX(E$3, MIN(E$7, E$5 + (-LN(1/F39 - 1) * ((-1)^(F39 <= 0.5))) * (((F39<= 0.5) * E$4 + (F39 > 0.5) * E$6) - E$5) / LN(9))) -> 140620.2169 | F39: 0.3983871643 | G39: =MAX(G$3, MIN(G$7, G$5 + (-LN(1/H39 - 1) * ((-1)^(H39 <= 0.5))) * (((H39<= 0.5) * G$4 + (H39 > 0.5) * G$6) - G$5) / LN(9))) -> 682739.7641 | H39: 0.9310672238 | I39: =MAX(I$3, MIN(I$7, I$5 + (-LN(1/J39 - 1) * ((-1)^(J39 <= 0.5))) * (((J39<= 0.5) * I$4 + (J39 > 0.5) * I$6) - I$5) / LN(9))) -> 910687.7073 | J39: 0.9839842891 | K39: =MAX(K$3, MIN(K$7, K$5 + (-LN(1/L39 - 1) * ((-1)^(L39 <= 0.5))) * (((L39<= 0.5) * K$4 + (L39 > 0.5) * K$6) - K$5) / LN(9))) -> 378924.0656 | L39: 0.4731070441 | M39: =MAX(M$3, MIN(M$7, M$5 + (-LN(1/N39 - 1) * ((-1)^(N39 <= 0.5))) * (((N39<= 0.5) * M$4 + (N39 > 0.5) * M$6) - M$5) / LN(9))) -> 196412.4963 | N39: 0.5260866329 | R39: 2629297.18 | S39: 0.966
A40: 105125.6696 | B40: 0.5281258959 | C40: 166811.1718 | D40: 0.7147741593 | E40: =MAX(E$3, MIN(E$7, E$5 + (-LN(1/F40 - 1) * ((-1)^(F40 <= 0.5))) * (((F40<= 0.5) * E$4 + (F40 > 0.5) * E$6) - E$5) / LN(9))) -> 106769.5175 | F40: 0.1301377258 | G40: =MAX(G$3, MIN(G$7, G$5 + (-LN(1/H40 - 1) * ((-1)^(H40 <= 0.5))) * (((H40<= 0.5) * G$4 + (H40 > 0.5) * G$6) - G$5) / LN(9))) -> 675566.0685 | H40: 0.9277587557 | I40: =MAX(I$3, MIN(I$7, I$5 + (-LN(1/J40 - 1) * ((-1)^(J40 <= 0.5))) * (((J40<= 0.5) * I$4 + (J40 > 0.5) * I$6) - I$5) / LN(9))) -> 319885.6273 | J40: 0.4775402735 | K40: =MAX(K$3, MIN(K$7, K$5 + (-LN(1/L40 - 1) * ((-1)^(L40 <= 0.5))) * (((L40<= 0.5) * K$4 + (L40 > 0.5) * K$6) - K$5) / LN(9))) -> 329115.7343 | L40: 0.3245262921 | M40: =MAX(M$3, MIN(M$7, M$5 + (-LN(1/N40 - 1) * ((-1)^(N40 <= 0.5))) * (((N40<= 0.5) * M$4 + (N40 > 0.5) * M$6) - M$5) / LN(9))) -> 149006.0088 | N40: 0.2886014676 | R40: 1852279.798 | S40: 0.539
A41: 85251.80851 | B41: 0.3434174251 | C41: 62713.08706 | D41: 0.06081553059 | E41: =MAX(E$3, MIN(E$7, E$5 + (-LN(1/F41 - 1) * ((-1)^(F41 <= 0.5))) * (((F41<= 0.5) * E$4 + (F41 > 0.5) * E$6) - E$5) / LN(9))) -> 237378.2788 | F41: 0.7824380897 | G41: =MAX(G$3, MIN(G$7, G$5 + (-LN(1/H41 - 1) * ((-1)^(H41 <= 0.5))) * (((H41<= 0.5) * G$4 + (H41 > 0.5) * G$6) - G$5) / LN(9))) -> 271024.4869 | H41: 0.3254036425 | I41: =MAX(I$3, MIN(I$7, I$5 + (-LN(1/J41 - 1) * ((-1)^(J41 <= 0.5))) * (((J41<= 0.5) * I$4 + (J41 > 0.5) * I$6) - I$5) / LN(9))) -> 705066.4178 | J41: 0.9353717292 | K41: =MAX(K$3, MIN(K$7, K$5 + (-LN(1/L41 - 1) * ((-1)^(L41 <= 0.5))) * (((L41<= 0.5) * K$4 + (L41 > 0.5) * K$6) - K$5) / LN(9))) -> 359582.314 | L41: 0.4132557382 | M41: =MAX(M$3, MIN(M$7, M$5 + (-LN(1/N41 - 1) * ((-1)^(N41 <= 0.5))) * (((N41<= 0.5) * M$4 + (N41 > 0.5) * M$6) - M$5) / LN(9))) -> 129969.8443 | N41: 0.2061422483 | R41: 1850986.237 | S41: 0.538
A42: 160507.2457 | B42: 0.7907546197 | C42: 105117.0775 | D42: 0.29447566 | E42: =MAX(E$3, MIN(E$7, E$5 + (-LN(1/F42 - 1) * ((-1)^(F42 <= 0.5))) * (((F42<= 0.5) * E$4 + (F42 > 0.5) * E$6) - E$5) / LN(9))) -> 130084.382 | F42: 0.2941772414 | G42: =MAX(G$3, MIN(G$7, G$5 + (-LN(1/H42 - 1) * ((-1)^(H42 <= 0.5))) * (((H42<= 0.5) * G$4 + (H42 > 0.5) * G$6) - G$5) / LN(9))) -> 222341.9028 | H42: 0.170119484 | I42: =MAX(I$3, MIN(I$7, I$5 + (-LN(1/J42 - 1) * ((-1)^(J42 <= 0.5))) * (((J42<= 0.5) * I$4 + (J42 > 0.5) * I$6) - I$5) / LN(9))) -> 255245.4411 | J42: 0.2268592295 | K42: =MAX(K$3, MIN(K$7, K$5 + (-LN(1/L42 - 1) * ((-1)^(L42 <= 0.5))) * (((L42<= 0.5) * K$4 + (L42 > 0.5) * K$6) - K$5) / LN(9))) -> 951026.2904 | L42: 0.9681918304 | M42: =MAX(M$3, MIN(M$7, M$5 + (-LN(1/N42 - 1) * ((-1)^(N42 <= 0.5))) * (((N42<= 0.5) * M$4 + (N42 > 0.5) * M$6) - M$5) / LN(9))) -> 83542.33707 | N42: 0.08043419522 | R42: 1907864.676 | S42: 0.593
A43: 195953.0178 | B43: 0.8917075991 | C43: 168938.0579 | D43: 0.724205228 | E43: =MAX(E$3, MIN(E$7, E$5 + (-LN(1/F43 - 1) * ((-1)^(F43 <= 0.5))) * (((F43<= 0.5) * E$4 + (F43 > 0.5) * E$6) - E$5) / LN(9))) -> 223326.039 | F43: 0.7453742904 | G43: =MAX(G$3, MIN(G$7, G$5 + (-LN(1/H43 - 1) * ((-1)^(H43 <= 0.5))) * (((H43<= 0.5) * G$4 + (H43 > 0.5) * G$6) - G$5) / LN(9))) -> 354442.128 | H43: 0.5731953278 | I43: =MAX(I$3, MIN(I$7, I$5 + (-LN(1/J43 - 1) * ((-1)^(J43 <= 0.5))) * (((J43<= 0.5) * I$4 + (J43 > 0.5) * I$6) - I$5) / LN(9))) -> 350647.0951 | J43: 0.5449601732 | K43: =MAX(K$3, MIN(K$7, K$5 + (-LN(1/L43 - 1) * ((-1)^(L43 <= 0.5))) * (((L43<= 0.5) * K$4 + (L43 > 0.5) * K$6) - K$5) / LN(9))) -> 364731.0038 | L43: 0.4290133719 | M43: =MAX(M$3, MIN(M$7, M$5 + (-LN(1/N43 - 1) * ((-1)^(N43 <= 0.5))) * (((N43<= 0.5) * M$4 + (N43 > 0.5) * M$6) - M$5) / LN(9))) -> 408775.2685 | N43: 0.9304110775 | R43: 2066812.61 | S43: 0.744
A44: 11023.19395 | B44: 0.01964598988 | C44: 100028.5 | D44: 0.2502349021 | E44: =MAX(E$3, MIN(E$7, E$5 + (-LN(1/F44 - 1) * ((-1)^(F44 <= 0.5))) * (((F44<= 0.5) * E$4 + (F44 > 0.5) * E$6) - E$5) / LN(9))) -> 302460.0783 | F44: 0.9031967815 | G44: =MAX(G$3, MIN(G$7, G$5 + (-LN(1/H44 - 1) * ((-1)^(H44 <= 0.5))) * (((H44<= 0.5) * G$4 + (H44 > 0.5) * G$6) - G$5) / LN(9))) -> 457256.1997 | H44: 0.7345434577 | I44: =MAX(I$3, MIN(I$7, I$5 + (-LN(1/J44 - 1) * ((-1)^(J44 <= 0.5))) * (((J44<= 0.5) * I$4 + (J44 > 0.5) * I$6) - I$5) / LN(9))) -> 463258.2925 | J44: 0.7255399571 | K44: =MAX(K$3, MIN(K$7, K$5 + (-LN(1/L44 - 1) * ((-1)^(L44 <= 0.5))) * (((L44<= 0.5) * K$4 + (L44 > 0.5) * K$6) - K$5) / LN(9))) -> 561791.5951 | L44: 0.7420087269 | M44: =MAX(M$3, MIN(M$7, M$5 + (-LN(1/N44 - 1) * ((-1)^(N44 <= 0.5))) * (((N44<= 0.5) * M$4 + (N44 > 0.5) * M$6) - M$5) / LN(9))) -> 151980.4501 | N44: 0.3031222315 | R44: 2047798.31 | S44: 0.732
A45: 112480.1042 | B45: 0.5681276121 | C45: 280129.736 | D45: 0.9679706373 | E45: =MAX(E$3, MIN(E$7, E$5 + (-LN(1/F45 - 1) * ((-1)^(F45 <= 0.5))) * (((F45<= 0.5) * E$4 + (F45 > 0.5) * E$6) - E$5) / LN(9))) -> 166873.3947 | F45: 0.5614784037 | G45: =MAX(G$3, MIN(G$7, G$5 + (-LN(1/H45 - 1) * ((-1)^(H45 <= 0.5))) * (((H45<= 0.5) * G$4 + (H45 > 0.5) * G$6) - G$5) / LN(9))) -> 293612.9863 | H45: 0.417755997 | I45: =MAX(I$3, MIN(I$7, I$5 + (-LN(1/J45 - 1) * ((-1)^(J45 <= 0.5))) * (((J45<= 0.5) * I$4 + (J45 > 0.5) * I$6) - I$5) / LN(9))) -> 406463.5856 | J45: 0.6394044292 | K45: =MAX(K$3, MIN(K$7, K$5 + (-LN(1/L45 - 1) * ((-1)^(L45 <= 0.5))) * (((L45<= 0.5) * K$4 + (L45 > 0.5) * K$6) - K$5) / LN(9))) -> 577013.4062 | L45: 0.7592732675 | M45: =MAX(M$3, MIN(M$7, M$5 + (-LN(1/N45 - 1) * ((-1)^(N45 <= 0.5))) * (((N45<= 0.5) * M$4 + (N45 > 0.5) * M$6) - M$5) / LN(9))) -> 209349.2556 | N45: 0.5636628784 | R45: 2045922.469 | S45: 0.729
A46: 183464.0345 | B46: 0.8622247554 | C46: 113815.9132 | D46: 0.3795452135 | E46: =MAX(E$3, MIN(E$7, E$5 + (-LN(1/F46 - 1) * ((-1)^(F46 <= 0.5))) * (((F46<= 0.5) * E$4 + (F46 > 0.5) * E$6) - E$5) / LN(9))) -> 308924.8117 | F46: 0.9111660844 | G46: =MAX(G$3, MIN(G$7, G$5 + (-LN(1/H46 - 1) * ((-1)^(H46 <= 0.5))) * (((H46<= 0.5) * G$4 + (H46 > 0.5) * G$6) - G$5) / LN(9))) -> 405446.9614 | H46: 0.6578034984 | I46: =MAX(I$3, MIN(I$7, I$5 + (-LN(1/J46 - 1) * ((-1)^(J46 <= 0.5))) * (((J46<= 0.5) * I$4 + (J46 > 0.5) * I$6) - I$5) / LN(9))) -> 280492.3651 | J46: 0.3138144565 | K46: =MAX(K$3, MIN(K$7, K$5 + (-LN(1/L46 - 1) * ((-1)^(L46 <= 0.5))) * (((L46<= 0.5) * K$4 + (L46 > 0.5) * K$6) - K$5) / LN(9))) -> 255865.832 | L46: 0.1607387208 | M46: =MAX(M$3, MIN(M$7, M$5 + (-LN(1/N46 - 1) * ((-1)^(N46 <= 0.5))) * (((N46<= 0.5) * M$4 + (N46 > 0.5) * M$6) - M$5) / LN(9))) -> 2230.130105 | N46: 0.01284108223 | R46: 1550240.048 | S46: 0.225
A47: 123831.844 | B47: 0.6279983227 | C47: 56118.51308 | D47: 0.04622257951 | E47: =MAX(E$3, MIN(E$7, E$5 + (-LN(1/F47 - 1) * ((-1)^(F47 <= 0.5))) * (((F47<= 0.5) * E$4 + (F47 > 0.5) * E$6) - E$5) / LN(9))) -> 127637.7738 | F47: 0.2723570354 | G47: =MAX(G$3, MIN(G$7, G$5 + (-LN(1/H47 - 1) * ((-1)^(H47 <= 0.5))) * (((H47<= 0.5) * G$4 + (H47 > 0.5) * G$6) - G$5) / LN(9))) -> 470196.7187 | H47: 0.7519024053 | I47: =MAX(I$3, MIN(I$7, I$5 + (-LN(1/J47 - 1) * ((-1)^(J47 <= 0.5))) * (((J47<= 0.5) * I$4 + (J47 > 0.5) * I$6) - I$5) / LN(9))) -> 256315.3954 | J47: 0.2301748789 | K47: =MAX(K$3, MIN(K$7, K$5 + (-LN(1/L47 - 1) * ((-1)^(L47 <= 0.5))) * (((L47<= 0.5) * K$4 + (L47 > 0.5) * K$6) - K$5) / LN(9))) -> 638223.5806 | L47: 0.8204962352 | M47: =MAX(M$3, MIN(M$7, M$5 + (-LN(1/N47 - 1) * ((-1)^(N47 <= 0.5))) * (((N47<= 0.5) * M$4 + (N47 > 0.5) * M$6) - M$5) / LN(9))) -> 280238.4142 | N47: 0.7477707383 | R47: 1952562.24 | S47: 0.638
A48: 107791.0774 | B48: 0.5426926583 | C48: 233798.7144 | D48: 0.9161040103 | E48: =MAX(E$3, MIN(E$7, E$5 + (-LN(1/F48 - 1) * ((-1)^(F48 <= 0.5))) * (((F48<= 0.5) * E$4 + (F48 > 0.5) * E$6) - E$5) / LN(9))) -> 143035.2166 | F48: 0.4240757946 | G48: =MAX(G$3, MIN(G$7, G$5 + (-LN(1/H48 - 1) * ((-1)^(H48 <= 0.5))) * (((H48<= 0.5) * G$4 + (H48 > 0.5) * G$6) - G$5) / LN(9))) -> 267773.4057 | H48: 0.3129862647 | I48: =MAX(I$3, MIN(I$7, I$5 + (-LN(1/J48 - 1) * ((-1)^(J48 <= 0.5))) * (((J48<= 0.5) * I$4 + (J48 > 0.5) * I$6) - I$5) / LN(9))) -> 457872.9319 | J48: 0.7179357805 | K48: =MAX(K$3, MIN(K$7, K$5 + (-LN(1/L48 - 1) * ((-1)^(L48 <= 0.5))) * (((L48<= 0.5) * K$4 + (L48 > 0.5) * K$6) - K$5) / LN(9))) -> 281020.1506 | L48: 0.2080178273 | M48: =MAX(M$3, MIN(M$7, M$5 + (-LN(1/N48 - 1) * ((-1)^(N48 <= 0.5))) * (((N48<= 0.5) * M$4 + (N48 > 0.5) * M$6) - M$5) / LN(9))) -> 116605.3693 | N48: 0.1595524465 | R48: 1607896.866 | S48: 0.29
A49: 219466.4763 | B49: 0.9324499567 | C49: 208768.3795 | D49: 0.8630172203 | E49: =MAX(E$3, MIN(E$7, E$5 + (-LN(1/F49 - 1) * ((-1)^(F49 <= 0.5))) * (((F49<= 0.5) * E$4 + (F49 > 0.5) * E$6) - E$5) / LN(9))) -> 387950.3475 | F49: 0.9702734017 | G49: =MAX(G$3, MIN(G$7, G$5 + (-LN(1/H49 - 1) * ((-1)^(H49 <= 0.5))) * (((H49<= 0.5) * G$4 + (H49 > 0.5) * G$6) - G$5) / LN(9))) -> 409867.8469 | H49: 0.6647656837 | I49: =MAX(I$3, MIN(I$7, I$5 + (-LN(1/J49 - 1) * ((-1)^(J49 <= 0.5))) * (((J49<= 0.5) * I$4 + (J49 > 0.5) * I$6) - I$5) / LN(9))) -> 344567.2166 | J49: 0.5343407055 | K49: =MAX(K$3, MIN(K$7, K$5 + (-LN(1/L49 - 1) * ((-1)^(L49 <= 0.5))) * (((L49<= 0.5) * K$4 + (L49 > 0.5) * K$6) - K$5) / LN(9))) -> 237988.3796 | L49: 0.1327104192 | M49: =MAX(M$3, MIN(M$7, M$5 + (-LN(1/N49 - 1) * ((-1)^(N49 <= 0.5))) * (((N49<= 0.5) * M$4 + (N49 > 0.5) * M$6) - M$5) / LN(9))) -> 182937.4049 | N49: 0.4732919892 | R49: 1991546.051 | S49: 0.68
A50: 197142.1918 | B50: 0.8942050301 | C50: 122947.8978 | D50: 0.4774706192 | E50: =MAX(E$3, MIN(E$7, E$5 + (-LN(1/F50 - 1) * ((-1)^(F50 <= 0.5))) * (((F50<= 0.5) * E$4 + (F50 > 0.5) * E$6) - E$5) / LN(9))) -> 74472.55901 | F50: 0.03492459288 | G50: =MAX(G$3, MIN(G$7, G$5 + (-LN(1/H50 - 1) * ((-1)^(H50 <= 0.5))) * (((H50<= 0.5) * G$4 + (H50 > 0.5) * G$6) - G$5) / LN(9))) -> 424228.0778 | H50: 0.6868800582 | I50: =MAX(I$3, MIN(I$7, I$5 + (-LN(1/J50 - 1) * ((-1)^(J50 <= 0.5))) * (((J50<= 0.5) * I$4 + (J50 > 0.5) * I$6) - I$5) / LN(9))) -> 284954.285 | J50: 0.3309446983 | K50: =MAX(K$3, MIN(K$7, K$5 + (-LN(1/L50 - 1) * ((-1)^(L50 <= 0.5))) * (((L50<= 0.5) * K$4 + (L50 > 0.5) * K$6) - K$5) / LN(9))) -> 407653.2133 | L50: 0.5305007963 | M50: =MAX(M$3, MIN(M$7, M$5 + (-LN(1/N50 - 1) * ((-1)^(N50 <= 0.5))) * (((N50<= 0.5) * M$4 + (N50 > 0.5) * M$6) - M$5) / LN(9))) -> 130250.8816 | N50: 0.2072222306 | R50: 1641649.106 | S50: 0.322
A51: 131980.1057 | B51: 0.6687805301 | C51: 71673.08841 | D51: 0.08758988801 | E51: =MAX(E$3, MIN(E$7, E$5 + (-LN(1/F51 - 1) * ((-1)^(F51 <= 0.5))) * (((F51<= 0.5) * E$4 + (F51 > 0.5) * E$6) - E$5) / LN(9))) -> 98649.86763 | F51: 0.09478550259 | G51: =MAX(G$3, MIN(G$7, G$5 + (-LN(1/H51 - 1) * ((-1)^(H51 <= 0.5))) * (((H51<= 0.5) * G$4 + (H51 > 0.5) * G$6) - G$5) / LN(9))) -> 296367.0434 | H51: 0.4295758623 | I51: =MAX(I$3, MIN(I$7, I$5 + (-LN(1/J51 - 1) * ((-1)^(J51 <= 0.5))) * (((J51<= 0.5) * I$4 + (J51 > 0.5) * I$6) - I$5) / LN(9))) -> 219444.2618 | J51: 0.1352357589 | K51: =MAX(K$3, MIN(K$7, K$5 + (-LN(1/L51 - 1) * ((-1)^(L51 <= 0.5))) * (((L51<= 0.5) * K$4 + (L51 > 0.5) * K$6) - K$5) / LN(9))) -> 533160.3005 | L51: 0.7074211799 | M51: =MAX(M$3, MIN(M$7, M$5 + (-LN(1/N51 - 1) * ((-1)^(N51 <= 0.5))) * (((N51<= 0.5) * M$4 + (N51 > 0.5) * M$6) - M$5) / LN(9))) -> 154435.8782 | N51: 0.3154145044 | R51: 1505710.546 | S51: 0.177
A52: 319160.331 | B52: 0.9919615228 | C52: 90231.72516 | D52: 0.1783049345 | E52: =MAX(E$3, MIN(E$7, E$5 + (-LN(1/F52 - 1) * ((-1)^(F52 <= 0.5))) * (((F52<= 0.5) * E$4 + (F52 > 0.5) * E$6) - E$5) / LN(9))) -> 363019.4932 | F52: 0.9577241762 | G52: =MAX(G$3, MIN(G$7, G$5 + (-LN(1/H52 - 1) * ((-1)^(H52 <= 0.5))) * (((H52<= 0.5) * G$4 + (H52 > 0.5) * G$6) - G$5) / LN(9))) -> 419879.5723 | H52: 0.6802668733 | I52: =MAX(I$3, MIN(I$7, I$5 + (-LN(1/J52 - 1) * ((-1)^(J52 <= 0.5))) * (((J52<= 0.5) * I$4 + (J52 > 0.5) * I$6) - I$5) / LN(9))) -> 543210.1509 | J52: 0.8226289615 | K52: =MAX(K$3, MIN(K$7, K$5 + (-LN(1/L52 - 1) * ((-1)^(L52 <= 0.5))) * (((L52<= 0.5) * K$4 + (L52 > 0.5) * K$6) - K$5) / LN(9))) -> 341804.0086 | L52: 0.3603744784 | M52: =MAX(M$3, MIN(M$7, M$5 + (-LN(1/N52 - 1) * ((-1)^(N52 <= 0.5))) * (((N52<= 0.5) * M$4 + (N52 > 0.5) * M$6) - M$5) / LN(9))) -> 132856.7709 | N52: 0.2174350467 | R52: 2210162.052 | S52: 0.845
A53: 82116.76184 | B53: 0.3130561889 | C53: 133338.8424 | D53: 0.545678058 | E53: =MAX(E$3, MIN(E$7, E$5 + (-LN(1/F53 - 1) * ((-1)^(F53 <= 0.5))) * (((F53<= 0.5) * E$4 + (F53 > 0.5) * E$6) - E$5) / LN(9))) -> 257320.3323 | F53: 0.8280750595 | G53: =MAX(G$3, MIN(G$7, G$5 + (-LN(1/H53 - 1) * ((-1)^(H53 <= 0.5))) * (((H53<= 0.5) * G$4 + (H53 > 0.5) * G$6) - G$5) / LN(9))) -> 580256.9065 | H53: 0.867912988 | I53: =MAX(I$3, MIN(I$7, I$5 + (-LN(1/J53 - 1) * ((-1)^(J53 <= 0.5))) * (((J53<= 0.5) * I$4 + (J53 > 0.5) * I$6) - I$5) / LN(9))) -> 513594.913 | J53: 0.7901837241 | K53: =MAX(K$3, MIN(K$7, K$5 + (-LN(1/L53 - 1) * ((-1)^(L53 <= 0.5))) * (((L53<= 0.5) * K$4 + (L53 > 0.5) * K$6) - K$5) / LN(9))) -> 255526.3676 | L53: 0.1601645776 | M53: =MAX(M$3, MIN(M$7, M$5 + (-LN(1/N53 - 1) * ((-1)^(N53 <= 0.5))) * (((N53<= 0.5) * M$4 + (N53 > 0.5) * M$6) - M$5) / LN(9))) -> 169208.0134 | N53: 0.3944343115 | R53: 1991362.137 | S53: 0.679
A54: 98785.60266 | B54: 0.486661647 | C54: 102387.2709 | D54: 0.2701809157 | E54: =MAX(E$3, MIN(E$7, E$5 + (-LN(1/F54 - 1) * ((-1)^(F54 <= 0.5))) * (((F54<= 0.5) * E$4 + (F54 > 0.5) * E$6) - E$5) / LN(9))) -> 113705.3572 | F54: 0.1686886587 | G54: =MAX(G$3, MIN(G$7, G$5 + (-LN(1/H54 - 1) * ((-1)^(H54 <= 0.5))) * (((H54<= 0.5) * G$4 + (H54 > 0.5) * G$6) - G$5) / LN(9))) -> 353337.1971 | H54: 0.5712936531 | I54: =MAX(I$3, MIN(I$7, I$5 + (-LN(1/J54 - 1) * ((-1)^(J54 <= 0.5))) * (((J54<= 0.5) * I$4 + (J54 > 0.5) * I$6) - I$5) / LN(9))) -> 277242.0593 | J54: 0.3016444462 | K54: =MAX(K$3, MIN(K$7, K$5 + (-LN(1/L54 - 1) * ((-1)^(L54 <= 0.5))) * (((L54<= 0.5) * K$4 + (L54 > 0.5) * K$6) - K$5) / LN(9))) -> 502519.3126 | L54: 0.6675594971 | M54: =MAX(M$3, MIN(M$7, M$5 + (-LN(1/N54 - 1) * ((-1)^(N54 <= 0.5))) * (((N54<= 0.5) * M$4 + (N54 > 0.5) * M$6) - M$5) / LN(9))) -> 221484.6269 | N54: 0.5982671089 | R54: 1669461.427 | S54: 0.353
A55: 202721.6099 | B55: 0.9052547306 | C55: 171752.0544 | D55: 0.7363819435 | E55: =MAX(E$3, MIN(E$7, E$5 + (-LN(1/F55 - 1) * ((-1)^(F55 <= 0.5))) * (((F55<= 0.5) * E$4 + (F55 > 0.5) * E$6) - E$5) / LN(9))) -> 218597.2393 | F55: 0.7320058984 | G55: =MAX(G$3, MIN(G$7, G$5 + (-LN(1/H55 - 1) * ((-1)^(H55 <= 0.5))) * (((H55<= 0.5) * G$4 + (H55 > 0.5) * G$6) - G$5) / LN(9))) -> 357529.1094 | H55: 0.5784966452 | I55: =MAX(I$3, MIN(I$7, I$5 + (-LN(1/J55 - 1) * ((-1)^(J55 <= 0.5))) * (((J55<= 0.5) * I$4 + (J55 > 0.5) * I$6) - I$5) / LN(9))) -> 148728.1393 | J55: 0.04317037219 | K55: =MAX(K$3, MIN(K$7, K$5 + (-LN(1/L55 - 1) * ((-1)^(L55 <= 0.5))) * (((L55<= 0.5) * K$4 + (L55 > 0.5) * K$6) - K$5) / LN(9))) -> 154890.0164 | L55: 0.05114696819 | M55: =MAX(M$3, MIN(M$7, M$5 + (-LN(1/N55 - 1) * ((-1)^(N55 <= 0.5))) * (((N55<= 0.5) * M$4 + (N55 > 0.5) * M$6) - M$5) / LN(9))) -> 166275.5979 | N55: 0.3781430236 | R55: 1420493.767 | S55: 0.12
A56: 241260.4989 | B56: 0.957049647 | C56: 349483.7331 | D56: 0.9928425034 | E56: =MAX(E$3, MIN(E$7, E$5 + (-LN(1/F56 - 1) * ((-1)^(F56 <= 0.5))) * (((F56<= 0.5) * E$4 + (F56 > 0.5) * E$6) - E$5) / LN(9))) -> 195424.1075 | F56: 0.6604678415 | G56: =MAX(G$3, MIN(G$7, G$5 + (-LN(1/H56 - 1) * ((-1)^(H56 <= 0.5))) * (((H56<= 0.5) * G$4 + (H56 > 0.5) * G$6) - G$5) / LN(9))) -> 274860.3391 | H56: 0.3403752775 | I56: =MAX(I$3, MIN(I$7, I$5 + (-LN(1/J56 - 1) * ((-1)^(J56 <= 0.5))) * (((J56<= 0.5) * I$4 + (J56 > 0.5) * I$6) - I$5) / LN(9))) -> 1106250 | J56: 0.9967129374 | K56: =MAX(K$3, MIN(K$7, K$5 + (-LN(1/L56 - 1) * ((-1)^(L56 <= 0.5))) * (((L56<= 0.5) * K$4 + (L56 > 0.5) * K$6) - K$5) / LN(9))) -> 320389.594 | L56: 0.3009855129 | M56: =MAX(M$3, MIN(M$7, M$5 + (-LN(1/N56 - 1) * ((-1)^(N56 <= 0.5))) * (((N56<= 0.5) * M$4 + (N56 > 0.5) * M$6) - M$5) / LN(9))) -> 148766.8083 | N56: 0.2874518293 | R56: 2636435.081 | S56: 0.967
A57: 135158.3811 | B57: 0.6840633022 | C57: 134070.3616 | D57: 0.5496597925 | E57: =MAX(E$3, MIN(E$7, E$5 + (-LN(1/F57 - 1) * ((-1)^(F57 <= 0.5))) * (((F57<= 0.5) * E$4 + (F57 > 0.5) * E$6) - E$5) / LN(9))) -> 140432.8708 | F57: 0.3964156235 | G57: =MAX(G$3, MIN(G$7, G$5 + (-LN(1/H57 - 1) * ((-1)^(H57 <= 0.5))) * (((H57<= 0.5) * G$4 + (H57 > 0.5) * G$6) - G$5) / LN(9))) -> 386005.3548 | H57: 0.6264050156 | I57: =MAX(I$3, MIN(I$7, I$5 + (-LN(1/J57 - 1) * ((-1)^(J57 <= 0.5))) * (((J57<= 0.5) * I$4 + (J57 > 0.5) * I$6) - I$5) / LN(9))) -> 427416.1332 | J57: 0.6726290339 | K57: =MAX(K$3, MIN(K$7, K$5 + (-LN(1/L57 - 1) * ((-1)^(L57 <= 0.5))) * (((L57<= 0.5) * K$4 + (L57 > 0.5) * K$6) - K$5) / LN(9))) -> 274362.113 | L57: 0.1945815581 | M57: =MAX(M$3, MIN(M$7, M$5 + (-LN(1/N57 - 1) * ((-1)^(N57 <= 0.5))) * (((N57<= 0.5) * M$4 + (N57 > 0.5) * M$6) - M$5) / LN(9))) -> 134599.7121 | N57: 0.2244660418 | R57: 1632044.927 | S57: 0.315
A58: 140267.9564 | B58: 0.7078112436 | C58: 124685.5082 | D58: 0.4965450094 | E58: =MAX(E$3, MIN(E$7, E$5 + (-LN(1/F58 - 1) * ((-1)^(F58 <= 0.5))) * (((F58<= 0.5) * E$4 + (F58 > 0.5) * E$6) - E$5) / LN(9))) -> 163572.839 | F58: 0.5495412101 | G58: =MAX(G$3, MIN(G$7, G$5 + (-LN(1/H58 - 1) * ((-1)^(H58 <= 0.5))) * (((H58<= 0.5) * G$4 + (H58 > 0.5) * G$6) - G$5) / LN(9))) -> 269043.907 | H58: 0.317808293 | I58: =MAX(I$3, MIN(I$7, I$5 + (-LN(1/J58 - 1) * ((-1)^(J58 <= 0.5))) * (((J58<= 0.5) * I$4 + (J58 > 0.5) * I$6) - I$5) / LN(9))) -> 476550.517 | J58: 0.7437534762 | K58: =MAX(K$3, MIN(K$7, K$5 + (-LN(1/L58 - 1) * ((-1)^(L58 <= 0.5))) * (((L58<= 0.5) * K$4 + (L58 > 0.5) * K$6) - K$5) / LN(9))) -> 479301.192 | L58: 0.6356273619 | M58: =MAX(M$3, MIN(M$7, M$5 + (-LN(1/N58 - 1) * ((-1)^(N58 <= 0.5))) * (((N58<= 0.5) * M$4 + (N58 > 0.5) * M$6) - M$5) / LN(9))) -> 159344.8835 | N58: 0.3407680924 | R58: 1812766.803 | S58: 0.507
A59: 94363.29618 | B59: 0.4383891752 | C59: 147940.1563 | D59: 0.6234098608 | E59: =MAX(E$3, MIN(E$7, E$5 + (-LN(1/F59 - 1) * ((-1)^(F59 <= 0.5))) * (((F59<= 0.5) * E$4 + (F59 > 0.5) * E$6) - E$5) / LN(9))) -> 175258.3751 | F59: 0.5914562763 | G59: =MAX(G$3, MIN(G$7, G$5 + (-LN(1/H59 - 1) * ((-1)^(H59 <= 0.5))) * (((H59<= 0.5) * G$4 + (H59 > 0.5) * G$6) - G$5) / LN(9))) -> 565973.4291 | H59: 0.855968525 | I59: =MAX(I$3, MIN(I$7, I$5 + (-LN(1/J59 - 1) * ((-1)^(J59 <= 0.5))) * (((J59<= 0.5) * I$4 + (J59 > 0.5) * I$6) - I$5) / LN(9))) -> 243774.2419 | J59: 0.1934464044 | K59: =MAX(K$3, MIN(K$7, K$5 + (-LN(1/L59 - 1) * ((-1)^(L59 <= 0.5))) * (((L59<= 0.5) * K$4 + (L59 > 0.5) * K$6) - K$5) / LN(9))) -> 654656.6326 | L59: 0.8347011832 | M59: =MAX(M$3, MIN(M$7, M$5 + (-LN(1/N59 - 1) * ((-1)^(N59 <= 0.5))) * (((N59<= 0.5) * M$4 + (N59 > 0.5) * M$6) - M$5) / LN(9))) -> 219120.7676 | N59: 0.5915916168 | R59: 2101086.899 | S59: 0.777
A60: 166188.0066 | B60: 0.8106591954 | C60: 121819.9276 | D60: 0.4651200798 | E60: =MAX(E$3, MIN(E$7, E$5 + (-LN(1/F60 - 1) * ((-1)^(F60 <= 0.5))) * (((F60<= 0.5) * E$4 + (F60 > 0.5) * E$6) - E$5) / LN(9))) -> 25000 | F60: 0.00314009876 | G60: =MAX(G$3, MIN(G$7, G$5 + (-LN(1/H60 - 1) * ((-1)^(H60 <= 0.5))) * (((H60<= 0.5) * G$4 + (H60 > 0.5) * G$6) - G$5) / LN(9))) -> 425561.6593 | H60: 0.6888931895 | I60: =MAX(I$3, MIN(I$7, I$5 + (-LN(1/J60 - 1) * ((-1)^(J60 <= 0.5))) * (((J60<= 0.5) * I$4 + (J60 > 0.5) * I$6) - I$5) / LN(9))) -> 274644.1008 | J60: 0.2921125881 | K60: =MAX(K$3, MIN(K$7, K$5 + (-LN(1/L60 - 1) * ((-1)^(L60 <= 0.5))) * (((L60<= 0.5) * K$4 + (L60 > 0.5) * K$6) - K$5) / LN(9))) -> 641330.0986 | L60: 0.8232527777 | M60: =MAX(M$3, MIN(M$7, M$5 + (-LN(1/N60 - 1) * ((-1)^(N60 <= 0.5))) * (((N60<= 0.5) * M$4 + (N60 > 0.5) * M$6) - M$5) / LN(9))) -> 229859.5912 | N60: 0.6216111076 | R60: 1884403.384 | S60: 0.568
A61: 29835.17299 | B61: 0.04379897941 | C61: 125311.9578 | D61: 0.5017135965 | E61: =MAX(E$3, MIN(E$7, E$5 + (-LN(1/F61 - 1) * ((-1)^(F61 <= 0.5))) * (((F61<= 0.5) * E$4 + (F61 > 0.5) * E$6) - E$5) / LN(9))) -> 107592.196 | F61: 0.1342852282 | G61: =MAX(G$3, MIN(G$7, G$5 + (-LN(1/H61 - 1) * ((-1)^(H61 <= 0.5))) * (((H61<= 0.5) * G$4 + (H61 > 0.5) * G$6) - G$5) / LN(9))) -> 290076.8597 | H61: 0.4027188174 | I61: =MAX(I$3, MIN(I$7, I$5 + (-LN(1/J61 - 1) * ((-1)^(J61 <= 0.5))) * (((J61<= 0.5) * I$4 + (J61 > 0.5) * I$6) - I$5) / LN(9))) -> 201456.7838 | J61: 0.1023283562 | K61: =MAX(K$3, MIN(K$7, K$5 + (-LN(1/L61 - 1) * ((-1)^(L61 <= 0.5))) * (((L61<= 0.5) * K$4 + (L61 > 0.5) * K$6) - K$5) / LN(9))) -> 349240.058 | L61: 0.3821634976 | M61: =MAX(M$3, MIN(M$7, M$5 + (-LN(1/N61 - 1) * ((-1)^(N61 <= 0.5))) * (((N61<= 0.5) * M$4 + (N61 > 0.5) * M$6) - M$5) / LN(9))) -> 270937.2345 | N61: 0.7266638879 | R61: 1374450.263 | S61: 0.093
A62: 120578.2278 | B62: 0.6111502649 | C62: 112213.5747 | D62: 0.363109579 | E62: =MAX(E$3, MIN(E$7, E$5 + (-LN(1/F62 - 1) * ((-1)^(F62 <= 0.5))) * (((F62<= 0.5) * E$4 + (F62 > 0.5) * E$6) - E$5) / LN(9))) -> 88386.99587 | F62: 0.06252918969 | G62: =MAX(G$3, MIN(G$7, G$5 + (-LN(1/H62 - 1) * ((-1)^(H62 <= 0.5))) * (((H62<= 0.5) * G$4 + (H62 > 0.5) * G$6) - G$5) / LN(9))) -> 722010.246 | H62: 0.9468143861 | I62: =MAX(I$3, MIN(I$7, I$5 + (-LN(1/J62 - 1) * ((-1)^(J62 <= 0.5))) * (((J62<= 0.5) * I$4 + (J62 > 0.5) * I$6) - I$5) / LN(9))) -> 413263.5127 | J62: 0.6503530027 | K62: =MAX(K$3, MIN(K$7, K$5 + (-LN(1/L62 - 1) * ((-1)^(L62 <= 0.5))) * (((L62<= 0.5) * K$4 + (L62 > 0.5) * K$6) - K$5) / LN(9))) -> 198445.893 | L62: 0.08520172572 | M62: =MAX(M$3, MIN(M$7, M$5 + (-LN(1/N62 - 1) * ((-1)^(N62 <= 0.5))) * (((N62<= 0.5) * M$4 + (N62 > 0.5) * M$6) - M$5) / LN(9))) -> 360204.1449 | N62: 0.8832773754 | R62: 2015102.595 | S62: 0.703
A63: 74031.15967 | B63: 0.2421024041 | C63: 184071.5733 | D63: 0.785487263 | E63: =MAX(E$3, MIN(E$7, E$5 + (-LN(1/F63 - 1) * ((-1)^(F63 <= 0.5))) * (((F63<= 0.5) * E$4 + (F63 > 0.5) * E$6) - E$5) / LN(9))) -> 282416.5615 | F63: 0.87431473 | G63: =MAX(G$3, MIN(G$7, G$5 + (-LN(1/H63 - 1) * ((-1)^(H63 <= 0.5))) * (((H63<= 0.5) * G$4 + (H63 > 0.5) * G$6) - G$5) / LN(9))) -> 421987.2854 | H63: 0.6834815425 | I63: =MAX(I$3, MIN(I$7, I$5 + (-LN(1/J63 - 1) * ((-1)^(J63 <= 0.5))) * (((J63<= 0.5) * I$4 + (J63 > 0.5) * I$6) - I$5) / LN(9))) -> 826871.8043 | J63: 0.9714939917 | K63: =MAX(K$3, MIN(K$7, K$5 + (-LN(1/L63 - 1) * ((-1)^(L63 <= 0.5))) * (((L63<= 0.5) * K$4 + (L63 > 0.5) * K$6) - K$5) / LN(9))) -> 844280.8443 | L63: 0.9409602486 | M63: =MAX(M$3, MIN(M$7, M$5 + (-LN(1/N63 - 1) * ((-1)^(N63 <= 0.5))) * (((N63<= 0.5) * M$4 + (N63 > 0.5) * M$6) - M$5) / LN(9))) -> 307011.5402 | N63: 0.8022631711 | R63: 2940670.769 | S63: 0.993
A64: 120237.086 | B64: 0.6093674795 | C64: 109077.2785 | D64: 0.3318752192 | E64: =MAX(E$3, MIN(E$7, E$5 + (-LN(1/F64 - 1) * ((-1)^(F64 <= 0.5))) * (((F64<= 0.5) * E$4 + (F64 > 0.5) * E$6) - E$5) / LN(9))) -> 167593.008 | F64: 0.5640721115 | G64: =MAX(G$3, MIN(G$7, G$5 + (-LN(1/H64 - 1) * ((-1)^(H64 <= 0.5))) * (((H64<= 0.5) * G$4 + (H64 > 0.5) * G$6) - G$5) / LN(9))) -> 589548.246 | H64: 0.8752239306 | I64: =MAX(I$3, MIN(I$7, I$5 + (-LN(1/J64 - 1) * ((-1)^(J64 <= 0.5))) * (((J64<= 0.5) * I$4 + (J64 > 0.5) * I$6) - I$5) / LN(9))) -> 242539.0994 | J64: 0.1900814626 | K64: =MAX(K$3, MIN(K$7, K$5 + (-LN(1/L64 - 1) * ((-1)^(L64 <= 0.5))) * (((L64<= 0.5) * K$4 + (L64 > 0.5) * K$6) - K$5) / LN(9))) -> 631554.7272 | L64: 0.8144654905 | M64: =MAX(M$3, MIN(M$7, M$5 + (-LN(1/N64 - 1) * ((-1)^(N64 <= 0.5))) * (((N64<= 0.5) * M$4 + (N64 > 0.5) * M$6) - M$5) / LN(9))) -> 114583.6896 | N64: 0.1533007212 | R64: 1975133.135 | S64: 0.661
A65: 99413.76779 | B65: 0.493559937 | C65: 117767.6876 | D65: 0.4212070513 | E65: =MAX(E$3, MIN(E$7, E$5 + (-LN(1/F65 - 1) * ((-1)^(F65 <= 0.5))) * (((F65<= 0.5) * E$4 + (F65 > 0.5) * E$6) - E$5) / LN(9))) -> 207831.0256 | F65: 0.6999622991 | G65: =MAX(G$3, MIN(G$7, G$5 + (-LN(1/H65 - 1) * ((-1)^(H65 <= 0.5))) * (((H65<= 0.5) * G$4 + (H65 > 0.5) * G$6) - G$5) / LN(9))) -> 568212.2843 | H65: 0.8578984034 | I65: =MAX(I$3, MIN(I$7, I$5 + (-LN(1/J65 - 1) * ((-1)^(J65 <= 0.5))) * (((J65<= 0.5) * I$4 + (J65 > 0.5) * I$6) - I$5) / LN(9))) -> 485778.2884 | J65: 0.7559221609 | K65: =MAX(K$3, MIN(K$7, K$5 + (-LN(1/L65 - 1) * ((-1)^(L65 <= 0.5))) * (((L65<= 0.5) * K$4 + (L65 > 0.5) * K$6) - K$5) / LN(9))) -> 277492.6952 | L65: 0.2008156523 | M65: =MAX(M$3, MIN(M$7, M$5 + (-LN(1/N65 - 1) * ((-1)^(N65 <= 0.5))) * (((N65<= 0.5) * M$4 + (N65 > 0.5) * M$6) - M$5) / LN(9))) -> 393772.5332 | N65: 0.9181303549 | R65: 2150268.282 | S65: 0.815
A66: 98662.2404 | B66: 0.4853074397 | C66: 138801.2637 | D66: 0.5752355325 | E66: =MAX(E$3, MIN(E$7, E$5 + (-LN(1/F66 - 1) * ((-1)^(F66 <= 0.5))) * (((F66<= 0.5) * E$4 + (F66 > 0.5) * E$6) - E$5) / LN(9))) -> 149265.5777 | F66: 0.4919322467 | G66: =MAX(G$3, MIN(G$7, G$5 + (-LN(1/H66 - 1) * ((-1)^(H66 <= 0.5))) * (((H66<= 0.5) * G$4 + (H66 > 0.5) * G$6) - G$5) / LN(9))) -> 0 | H66: 0.003428767246 | I66: =MAX(I$3, MIN(I$7, I$5 + (-LN(1/J66 - 1) * ((-1)^(J66 <= 0.5))) * (((J66<= 0.5) * I$4 + (J66 > 0.5) * I$6) - I$5) / LN(9))) -> 50515.49972 | J66: 0.007963962787 | K66: =MAX(K$3, MIN(K$7, K$5 + (-LN(1/L66 - 1) * ((-1)^(L66 <= 0.5))) * (((L66<= 0.5) * K$4 + (L66 > 0.5) * K$6) - K$5) / LN(9))) -> 485954.8155 | L66: 0.6449158586 | M66: =MAX(M$3, MIN(M$7, M$5 + (-LN(1/N66 - 1) * ((-1)^(N66 <= 0.5))) * (((N66<= 0.5) * M$4 + (N66 > 0.5) * M$6) - M$5) / LN(9))) -> 317022.5294 | N66: 0.8202163239 | R66: 1240221.926 | S66: 0.028
A67: 110722.7059 | B67: 0.5586295308 | C67: 140239.8207 | D67: 0.5829397368 | E67: =MAX(E$3, MIN(E$7, E$5 + (-LN(1/F67 - 1) * ((-1)^(F67 <= 0.5))) * (((F67<= 0.5) * E$4 + (F67 > 0.5) * E$6) - E$5) / LN(9))) -> 97082.12179 | F67: 0.08903708243 | G67: =MAX(G$3, MIN(G$7, G$5 + (-LN(1/H67 - 1) * ((-1)^(H67 <= 0.5))) * (((H67<= 0.5) * G$4 + (H67 > 0.5) * G$6) - G$5) / LN(9))) -> 311473.6927 | H67: 0.4954900671 | I67: =MAX(I$3, MIN(I$7, I$5 + (-LN(1/J67 - 1) * ((-1)^(J67 <= 0.5))) * (((J67<= 0.5) * I$4 + (J67 > 0.5) * I$6) - I$5) / LN(9))) -> 84238.17391 | J67: 0.01431452704 | K67: =MAX(K$3, MIN(K$7, K$5 + (-LN(1/L67 - 1) * ((-1)^(L67 <= 0.5))) * (((L67<= 0.5) * K$4 + (L67 > 0.5) * K$6) - K$5) / LN(9))) -> 316284.4672 | L67: 0.2902538394 | M67: =MAX(M$3, MIN(M$7, M$5 + (-LN(1/N67 - 1) * ((-1)^(N67 <= 0.5))) * (((N67<= 0.5) * M$4 + (N67 > 0.5) * M$6) - M$5) / LN(9))) -> 181454.3974 | N67: 0.4646363536 | R67: 1241495.38 | S67: 0.029
A68: 82882.07928 | B68: 0.3203337773 | C68: 121254.6184 | D68: 0.4589454142 | E68: =MAX(E$3, MIN(E$7, E$5 + (-LN(1/F68 - 1) * ((-1)^(F68 <= 0.5))) * (((F68<= 0.5) * E$4 + (F68 > 0.5) * E$6) - E$5) / LN(9))) -> 323088.6007 | F68: 0.926588583 | G68: =MAX(G$3, MIN(G$7, G$5 + (-LN(1/H68 - 1) * ((-1)^(H68 <= 0.5))) * (((H68<= 0.5) * G$4 + (H68 > 0.5) * G$6) - G$5) / LN(9))) -> 775422.0933 | H68: 0.9628473636 | I68: =MAX(I$3, MIN(I$7, I$5 + (-LN(1/J68 - 1) * ((-1)^(J68 <= 0.5))) * (((J68<= 0.5) * I$4 + (J68 > 0.5) * I$6) - I$5) / LN(9))) -> 404313.9959 | J68: 0.6359123526 | K68: =MAX(K$3, MIN(K$7, K$5 + (-LN(1/L68 - 1) * ((-1)^(L68 <= 0.5))) * (((L68<= 0.5) * K$4 + (L68 > 0.5) * K$6) - K$5) / LN(9))) -> 354350.4052 | L68: 0.3974235335 | M68: =MAX(M$3, MIN(M$7, M$5 + (-LN(1/N68 - 1) * ((-1)^(N68 <= 0.5))) * (((N68<= 0.5) * M$4 + (N68 > 0.5) * M$6) - M$5) / LN(9))) -> 170989.4382 | N68: 0.4044495582 | R68: 2232301.231 | S68: 0.855
A69: 49103.64691 | B69: 0.09651035348 | C69: 119456.6107 | D69: 0.4393990286 | E69: =MAX(E$3, MIN(E$7, E$5 + (-LN(1/F69 - 1) * ((-1)^(F69 <= 0.5))) * (((F69<= 0.5) * E$4 + (F69 > 0.5) * E$6) - E$5) / LN(9))) -> 90548.92965 | F69: 0.06833526542 | G69: =MAX(G$3, MIN(G$7, G$5 + (-LN(1/H69 - 1) * ((-1)^(H69 <= 0.5))) * (((H69<= 0.5) * G$4 + (H69 > 0.5) * G$6) - G$5) / LN(9))) -> 438130.9141 | H69: 0.7075109471 | I69: =MAX(I$3, MIN(I$7, I$5 + (-LN(1/J69 - 1) * ((-1)^(J69 <= 0.5))) * (((J69<= 0.5) * I$4 + (J69 > 0.5) * I$6) - I$5) / LN(9))) -> 436250.6215 | J69: 0.6861575848 | K69: =MAX(K$3, MIN(K$7, K$5 + (-LN(1/L69 - 1) * ((-1)^(L69 <= 0.5))) * (((L69<= 0.5) * K$4 + (L69 > 0.5) * K$6) - K$5) / LN(9))) -> 484967.3545 | L69: 0.6435440413 | M69: =MAX(M$3, MIN(M$7, M$5 + (-LN(1/N69 - 1) * ((-1)^(N69 <= 0.5))) * (((N69<= 0.5) * M$4 + (N69 > 0.5) * M$6) - M$5) / LN(9))) -> 274112.7196 | N69: 0.7339924101 | R69: 1892570.797 | S69: 0.577
A70: 23404.00698 | B70: 0.03337601748 | C70: 75956.85955 | D70: 0.1038485471 | E70: =MAX(E$3, MIN(E$7, E$5 + (-LN(1/F70 - 1) * ((-1)^(F70 <= 0.5))) * (((F70<= 0.5) * E$4 + (F70 > 0.5) * E$6) - E$5) / LN(9))) -> 222604.8455 | F70: 0.7433641108 | G70: =MAX(G$3, MIN(G$7, G$5 + (-LN(1/H70 - 1) * ((-1)^(H70 <= 0.5))) * (((H70<= 0.5) * G$4 + (H70 > 0.5) * G$6) - G$5) / LN(9))) -> 476417.1516 | H70: 0.7599710759 | I70: =MAX(I$3, MIN(I$7, I$5 + (-LN(1/J70 - 1) * ((-1)^(J70 <= 0.5))) * (((J70<= 0.5) * I$4 + (J70 > 0.5) * I$6) - I$5) / LN(9))) -> 253385.8992 | J70: 0.2211774169 | K70: =MAX(K$3, MIN(K$7, K$5 + (-LN(1/L70 - 1) * ((-1)^(L70 <= 0.5))) * (((L70<= 0.5) * K$4 + (L70 > 0.5) * K$6) - K$5) / LN(9))) -> 619946.5077 | L70: 0.8035971454 | M70: =MAX(M$3, MIN(M$7, M$5 + (-LN(1/N70 - 1) * ((-1)^(N70 <= 0.5))) * (((N70<= 0.5) * M$4 + (N70 > 0.5) * M$6) - M$5) / LN(9))) -> 115682.1744 | N70: 0.1566723538 | R70: 1787397.445 | S70: 0.475
A71: 85346.56143 | B71: 0.3443569134 | C71: 210297.1771 | D71: 0.8669401064 | E71: =MAX(E$3, MIN(E$7, E$5 + (-LN(1/F71 - 1) * ((-1)^(F71 <= 0.5))) * (((F71<= 0.5) * E$4 + (F71 > 0.5) * E$6) - E$5) / LN(9))) -> 233539.1963 | F71: 0.7727132938 | G71: =MAX(G$3, MIN(G$7, G$5 + (-LN(1/H71 - 1) * ((-1)^(H71 <= 0.5))) * (((H71<= 0.5) * G$4 + (H71 > 0.5) * G$6) - G$5) / LN(9))) -> 274712.6369 | H71: 0.3397926028 | I71: =MAX(I$3, MIN(I$7, I$5 + (-LN(1/J71 - 1) * ((-1)^(J71 <= 0.5))) * (((J71<= 0.5) * I$4 + (J71 > 0.5) * I$6) - I$5) / LN(9))) -> 535883.9906 | J71: 0.8149876467 | K71: =MAX(K$3, MIN(K$7, K$5 + (-LN(1/L71 - 1) * ((-1)^(L71 <= 0.5))) * (((L71<= 0.5) * K$4 + (L71 > 0.5) * K$6) - K$5) / LN(9))) -> 264263.082 | L71: 0.175475181 | M71: =MAX(M$3, MIN(M$7, M$5 + (-LN(1/N71 - 1) * ((-1)^(N71 <= 0.5))) * (((N71<= 0.5) * M$4 + (N71 > 0.5) * M$6) - M$5) / LN(9))) -> 431675.5499 | N71: 0.9459038942 | R71: 2035718.194 | S71: 0.725
A72: 86558.29074 | B72: 0.3564767632 | C72: 176320.912 | D72: 0.7554023106 | E72: =MAX(E$3, MIN(E$7, E$5 + (-LN(1/F72 - 1) * ((-1)^(F72 <= 0.5))) * (((F72<= 0.5) * E$4 + (F72 > 0.5) * E$6) - E$5) / LN(9))) -> 102196.1382 | F72: 0.1090272105 | G72: =MAX(G$3, MIN(G$7, G$5 + (-LN(1/H72 - 1) * ((-1)^(H72 <= 0.5))) * (((H72<= 0.5) * G$4 + (H72 > 0.5) * G$6) - G$5) / LN(9))) -> 240870.2174 | H72: 0.2211299376 | I72: =MAX(I$3, MIN(I$7, I$5 + (-LN(1/J72 - 1) * ((-1)^(J72 <= 0.5))) * (((J72<= 0.5) * I$4 + (J72 > 0.5) * I$6) - I$5) / LN(9))) -> 305591.4351 | J72: 0.4155277739 | K72: =MAX(K$3, MIN(K$7, K$5 + (-LN(1/L72 - 1) * ((-1)^(L72 <= 0.5))) * (((L72<= 0.5) * K$4 + (L72 > 0.5) * K$6) - K$5) / LN(9))) -> 360934.5426 | L72: 0.4173784586 | M72: =MAX(M$3, MIN(M$7, M$5 + (-LN(1/N72 - 1) * ((-1)^(N72 <= 0.5))) * (((N72<= 0.5) * M$4 + (N72 > 0.5) * M$6) - M$5) / LN(9))) -> 126060.9677 | N72: 0.1915530266 | R72: 1398532.504 | S72: 0.105
A73: 161073.7623 | B73: 0.7928067749 | C73: 78251.64016 | D73: 0.1136152971 | E73: =MAX(E$3, MIN(E$7, E$5 + (-LN(1/F73 - 1) * ((-1)^(F73 <= 0.5))) * (((F73<= 0.5) * E$4 + (F73 > 0.5) * E$6) - E$5) / LN(9))) -> 285935.2306 | F73: 0.8798701956 | G73: =MAX(G$3, MIN(G$7, G$5 + (-LN(1/H73 - 1) * ((-1)^(H73 <= 0.5))) * (((H73<= 0.5) * G$4 + (H73 > 0.5) * G$6) - G$5) / LN(9))) -> 93066.01449 | H73: 0.02069064397 | I73: =MAX(I$3, MIN(I$7, I$5 + (-LN(1/J73 - 1) * ((-1)^(J73 <= 0.5))) * (((J73<= 0.5) * I$4 + (J73 > 0.5) * I$6) - I$5) / LN(9))) -> 163505.1709 | J73: 0.05526716198 | K73: =MAX(K$3, MIN(K$7, K$5 + (-LN(1/L73 - 1) * ((-1)^(L73 <= 0.5))) * (((L73<= 0.5) * K$4 + (L73 > 0.5) * K$6) - K$5) / LN(9))) -> 239600.0375 | L73: 0.1350568261 | M73: =MAX(M$3, MIN(M$7, M$5 + (-LN(1/N73 - 1) * ((-1)^(N73 <= 0.5))) * (((N73<= 0.5) * M$4 + (N73 > 0.5) * M$6) - M$5) / LN(9))) -> 494690.2249 | N73: 0.9733982992 | R73: 1516122.081 | S73: 0.187
A74: 185733.9244 | B74: 0.8680431967 | C74: 95790.09705 | D74: 0.2169356122 | E74: =MAX(E$3, MIN(E$7, E$5 + (-LN(1/F74 - 1) * ((-1)^(F74 <= 0.5))) * (((F74<= 0.5) * E$4 + (F74 > 0.5) * E$6) - E$5) / LN(9))) -> 227747.3898 | F74: 0.75746963 | G74: =MAX(G$3, MIN(G$7, G$5 + (-LN(1/H74 - 1) * ((-1)^(H74 <= 0.5))) * (((H74<= 0.5) * G$4 + (H74 > 0.5) * G$6) - G$5) / LN(9))) -> 238377.8526 | H74: 0.2136766789 | I74: =MAX(I$3, MIN(I$7, I$5 + (-LN(1/J74 - 1) * ((-1)^(J74 <= 0.5))) * (((J74<= 0.5) * I$4 + (J74 > 0.5) * I$6) - I$5) / LN(9))) -> 567824.6566 | J74: 0.8464895185 | K74: =MAX(K$3, MIN(K$7, K$5 + (-LN(1/L74 - 1) * ((-1)^(L74 <= 0.5))) * (((L74<= 0.5) * K$4 + (L74 > 0.5) * K$6) - K$5) / LN(9))) -> 569633.4663 | L74: 0.7510027107 | M74: =MAX(M$3, MIN(M$7, M$5 + (-LN(1/N74 - 1) * ((-1)^(N74 <= 0.5))) * (((N74<= 0.5) * M$4 + (N74 > 0.5) * M$6) - M$5) / LN(9))) -> 268141.1582 | N74: 0.7201077041 | R74: 2153248.545 | S74: 0.817
A75: =MAX(A$3, MIN(A$7, A$5 + (-LN(1/B75 - 1) * ((-1)^(B75 <= 0.5))) * (((B75<= 0.5) * A$4 + (B75 > 0.5) * A$6) - A$5) / LN(9))) -> 107061.9763 | B75: 0.538714224 | C75: 200967.838 | D75: 0.8414669977 | E75: =MAX(E$3, MIN(E$7, E$5 + (-LN(1/F75 - 1) * ((-1)^(F75 <= 0.5))) * (((F75<= 0.5) * E$4 + (F75 > 0.5) * E$6) - E$5) / LN(9))) -> 206488.5609 | F75: 0.695816258 | G75: =MAX(G$3, MIN(G$7, G$5 + (-LN(1/H75 - 1) * ((-1)^(H75 <= 0.5))) * (((H75<= 0.5) * G$4 + (H75 > 0.5) * G$6) - G$5) / LN(9))) -> 176967.4721 | H75: 0.08452751471 | I75: =MAX(I$3, MIN(I$7, I$5 + (-LN(1/J75 - 1) * ((-1)^(J75 <= 0.5))) * (((J75<= 0.5) * I$4 + (J75 > 0.5) * I$6) - I$5) / LN(9))) -> 506884.7381 | J75: 0.782254498 | K75: =MAX(K$3, MIN(K$7, K$5 + (-LN(1/L75 - 1) * ((-1)^(L75 <= 0.5))) * (((L75<= 0.5) * K$4 + (L75 > 0.5) * K$6) - K$5) / LN(9))) -> 344459.7067 | L75: 0.3680956133 | M75: =MAX(M$3, MIN(M$7, M$5 + (-LN(1/N75 - 1) * ((-1)^(N75 <= 0.5))) * (((N75<= 0.5) * M$4 + (N75 > 0.5) * M$6) - M$5) / LN(9))) -> 79231.93808 | N75: 0.07327174617 | R75: 1622062.23 | S75: =_xlfn.PERCENTRANK.INC($R$10:$R$1009,$R75) -> 0.306
A76: 126368.7528 | B76: 0.640924897 | C76: 131582.8006 | D76: 0.53609682 | E76: =MAX(E$3, MIN(E$7, E$5 + (-LN(1/F76 - 1) * ((-1)^(F76 <= 0.5))) * (((F76<= 0.5) * E$4 + (F76 > 0.5) * E$6) - E$5) / LN(9))) -> 120278.4661 | F76: 0.2131405735 | G76: =MAX(G$3, MIN(G$7, G$5 + (-LN(1/H76 - 1) * ((-1)^(H76 <= 0.5))) * (((H76<= 0.5) * G$4 + (H76 > 0.5) * G$6) - G$5) / LN(9))) -> 382263.8792 | H76: 0.6202284787 | I76: =MAX(I$3, MIN(I$7, I$5 + (-LN(1/J76 - 1) * ((-1)^(J76 <= 0.5))) * (((J76<= 0.5) * I$4 + (J76 > 0.5) * I$6) - I$5) / LN(9))) -> 653926.8519 | J76: 0.9099253443 | K76: =MAX(K$3, MIN(K$7, K$5 + (-LN(1/L76 - 1) * ((-1)^(L76 <= 0.5))) * (((L76<= 0.5) * K$4 + (L76 > 0.5) * K$6) - K$5) / LN(9))) -> 317848.983 | L76: 0.2943171163 | M76: =MAX(M$3, MIN(M$7, M$5 + (-LN(1/N76 - 1) * ((-1)^(N76 <= 0.5))) * (((N76<= 0.5) * M$4 + (N76 > 0.5) * M$6) - M$5) / LN(9))) -> 326633.2701 | N76: 0.8362295699 | R76: 2058903.004 | S76: 0.739
A77: 171536.0926 | B77: 0.828041287 | C77: 193046.5211 | D77: 0.8168477401 | E77: =MAX(E$3, MIN(E$7, E$5 + (-LN(1/F77 - 1) * ((-1)^(F77 <= 0.5))) * (((F77<= 0.5) * E$4 + (F77 > 0.5) * E$6) - E$5) / LN(9))) -> 161384.8343 | F77: 0.5415953726 | G77: =MAX(G$3, MIN(G$7, G$5 + (-LN(1/H77 - 1) * ((-1)^(H77 <= 0.5))) * (((H77<= 0.5) * G$4 + (H77 > 0.5) * G$6) - G$5) / LN(9))) -> 623374.1587 | H77: 0.8989664518 | I77: =MAX(I$3, MIN(I$7, I$5 + (-LN(1/J77 - 1) * ((-1)^(J77 <= 0.5))) * (((J77<= 0.5) * I$4 + (J77 > 0.5) * I$6) - I$5) / LN(9))) -> 312370.6999 | J77: 0.444727989 | K77: =MAX(K$3, MIN(K$7, K$5 + (-LN(1/L77 - 1) * ((-1)^(L77 <= 0.5))) * (((L77<= 0.5) * K$4 + (L77 > 0.5) * K$6) - K$5) / LN(9))) -> 510966.8905 | L77: 0.6788236439 | M77: =MAX(M$3, MIN(M$7, M$5 + (-LN(1/N77 - 1) * ((-1)^(N77 <= 0.5))) * (((N77<= 0.5) * M$4 + (N77 > 0.5) * M$6) - M$5) / LN(9))) -> 483859.8428 | N77: 0.9699068373 | R77: 2456539.04 | S77: 0.933
A78: 112574.9468 | B78: 0.5686388433 | C78: 120453.5349 | D78: 0.4502174628 | E78: =MAX(E$3, MIN(E$7, E$5 + (-LN(1/F78 - 1) * ((-1)^(F78 <= 0.5))) * (((F78<= 0.5) * E$4 + (F78 > 0.5) * E$6) - E$5) / LN(9))) -> 218626.4557 | F78: 0.7320898458 | G78: =MAX(G$3, MIN(G$7, G$5 + (-LN(1/H78 - 1) * ((-1)^(H78 <= 0.5))) * (((H78<= 0.5) * G$4 + (H78 > 0.5) * G$6) - G$5) / LN(9))) -> 388351.1494 | H78: 0.6302567501 | I78: =MAX(I$3, MIN(I$7, I$5 + (-LN(1/J78 - 1) * ((-1)^(J78 <= 0.5))) * (((J78<= 0.5) * I$4 + (J78 > 0.5) * I$6) - I$5) / LN(9))) -> 466799.8772 | J78: 0.7304706497 | K78: =MAX(K$3, MIN(K$7, K$5 + (-LN(1/L78 - 1) * ((-1)^(L78 <= 0.5))) * (((L78<= 0.5) * K$4 + (L78 > 0.5) * K$6) - K$5) / LN(9))) -> 800336.9584 | L78: 0.9243051714 | M78: =MAX(M$3, MIN(M$7, M$5 + (-LN(1/N78 - 1) * ((-1)^(N78 <= 0.5))) * (((N78<= 0.5) * M$4 + (N78 > 0.5) * M$6) - M$5) / LN(9))) -> 303653.2082 | N78: 0.795945724 | R78: 2410796.131 | S78: 0.921
A79: 66624.86605 | B79: 0.1874518302 | C79: 146132.5955 | D79: 0.6140410067 | E79: =MAX(E$3, MIN(E$7, E$5 + (-LN(1/F79 - 1) * ((-1)^(F79 <= 0.5))) * (((F79<= 0.5) * E$4 + (F79 > 0.5) * E$6) - E$5) / LN(9))) -> 409073.552 | F79: 0.9780104247 | G79: =MAX(G$3, MIN(G$7, G$5 + (-LN(1/H79 - 1) * ((-1)^(H79 <= 0.5))) * (((H79<= 0.5) * G$4 + (H79 > 0.5) * G$6) - G$5) / LN(9))) -> 506346.1021 | H79: 0.7962395337 | I79: =MAX(I$3, MIN(I$7, I$5 + (-LN(1/J79 - 1) * ((-1)^(J79 <= 0.5))) * (((J79<= 0.5) * I$4 + (J79 > 0.5) * I$6) - I$5) / LN(9))) -> 427503.8532 | J79: 0.6727648315 | K79: =MAX(K$3, MIN(K$7, K$5 + (-LN(1/L79 - 1) * ((-1)^(L79 <= 0.5))) * (((L79<= 0.5) * K$4 + (L79 > 0.5) * K$6) - K$5) / LN(9))) -> 779563.2333 | L79: 0.915011173 | M79: =MAX(M$3, MIN(M$7, M$5 + (-LN(1/N79 - 1) * ((-1)^(N79 <= 0.5))) * (((N79<= 0.5) * M$4 + (N79 > 0.5) * M$6) - M$5) / LN(9))) -> 219337.9665 | N79: 0.592206434 | R79: 2554582.169 | S79: 0.953
A80: 116952.065 | B80: 0.592056875 | C80: 117651.3505 | D80: 0.4199612014 | E80: =MAX(E$3, MIN(E$7, E$5 + (-LN(1/F80 - 1) * ((-1)^(F80 <= 0.5))) * (((F80<= 0.5) * E$4 + (F80 > 0.5) * E$6) - E$5) / LN(9))) -> 272874.0419 | F80: 0.8581342172 | G80: =MAX(G$3, MIN(G$7, G$5 + (-LN(1/H80 - 1) * ((-1)^(H80 <= 0.5))) * (((H80<= 0.5) * G$4 + (H80 > 0.5) * G$6) - G$5) / LN(9))) -> 549520.5612 | H80: 0.8411112534 | I80: =MAX(I$3, MIN(I$7, I$5 + (-LN(1/J80 - 1) * ((-1)^(J80 <= 0.5))) * (((J80<= 0.5) * I$4 + (J80 > 0.5) * I$6) - I$5) / LN(9))) -> 352862.3099 | J80: 0.5488197674 | K80: =MAX(K$3, MIN(K$7, K$5 + (-LN(1/L80 - 1) * ((-1)^(L80 <= 0.5))) * (((L80<= 0.5) * K$4 + (L80 > 0.5) * K$6) - K$5) / LN(9))) -> 378232.5351 | L80: 0.4709432027 | M80: =MAX(M$3, MIN(M$7, M$5 + (-LN(1/N80 - 1) * ((-1)^(N80 <= 0.5))) * (((N80<= 0.5) * M$4 + (N80 > 0.5) * M$6) - M$5) / LN(9))) -> 457159.4721 | N80: 0.9593014502 | R80: 2245252.336 | S80: 0.861
A81: 83419.43566 | B81: 0.3254966506 | C81: 245252.5359 | D81: 0.9335297452 | E81: =MAX(E$3, MIN(E$7, E$5 + (-LN(1/F81 - 1) * ((-1)^(F81 <= 0.5))) * (((F81<= 0.5) * E$4 + (F81 > 0.5) * E$6) - E$5) / LN(9))) -> 150245.8452 | F81: 0.5009002943 | G81: =MAX(G$3, MIN(G$7, G$5 + (-LN(1/H81 - 1) * ((-1)^(H81 <= 0.5))) * (((H81<= 0.5) * G$4 + (H81 > 0.5) * G$6) - G$5) / LN(9))) -> 281755.6465 | H81: 0.3680903516 | I81: =MAX(I$3, MIN(I$7, I$5 + (-LN(1/J81 - 1) * ((-1)^(J81 <= 0.5))) * (((J81<= 0.5) * I$4 + (J81 > 0.5) * I$6) - I$5) / LN(9))) -> 308795.3611 | J81: 0.4292671348 | K81: =MAX(K$3, MIN(K$7, K$5 + (-LN(1/L81 - 1) * ((-1)^(L81 <= 0.5))) * (((L81<= 0.5) * K$4 + (L81 > 0.5) * K$6) - K$5) / LN(9))) -> 339146.6436 | L81: 0.3527201196 | M81: =MAX(M$3, MIN(M$7, M$5 + (-LN(1/N81 - 1) * ((-1)^(N81 <= 0.5))) * (((N81<= 0.5) * M$4 + (N81 > 0.5) * M$6) - M$5) / LN(9))) -> 285575.5 | N81: 0.759383181 | R81: 1694190.968 | S81: 0.386
A82: 73865.14593 | B82: 0.2407663014 | C82: 60696.24118 | D82: 0.05594602335 | E82: =MAX(E$3, MIN(E$7, E$5 + (-LN(1/F82 - 1) * ((-1)^(F82 <= 0.5))) * (((F82<= 0.5) * E$4 + (F82 > 0.5) * E$6) - E$5) / LN(9))) -> 243748.4468 | F82: 0.7979035407 | G82: =MAX(G$3, MIN(G$7, G$5 + (-LN(1/H82 - 1) * ((-1)^(H82 <= 0.5))) * (((H82<= 0.5) * G$4 + (H82 > 0.5) * G$6) - G$5) / LN(9))) -> 275233.0572 | H82: 0.3418477689 | I82: =MAX(I$3, MIN(I$7, I$5 + (-LN(1/J82 - 1) * ((-1)^(J82 <= 0.5))) * (((J82<= 0.5) * I$4 + (J82 > 0.5) * I$6) - I$5) / LN(9))) -> 279036.4688 | J82: 0.3083301541 | K82: =MAX(K$3, MIN(K$7, K$5 + (-LN(1/L82 - 1) * ((-1)^(L82 <= 0.5))) * (((L82<= 0.5) * K$4 + (L82 > 0.5) * K$6) - K$5) / LN(9))) -> 596929.9519 | L82: 0.7806433922 | M82: =MAX(M$3, MIN(M$7, M$5 + (-LN(1/N82 - 1) * ((-1)^(N82 <= 0.5))) * (((N82<= 0.5) * M$4 + (N82 > 0.5) * M$6) - M$5) / LN(9))) -> 110374.7904 | N82: 0.1409298505 | R82: 1639884.102 | S82: 0.321
A83: 96011.89461 | B83: 0.4562979837 | C83: 173351.376 | D83: 0.7431466913 | E83: =MAX(E$3, MIN(E$7, E$5 + (-LN(1/F83 - 1) * ((-1)^(F83 <= 0.5))) * (((F83<= 0.5) * E$4 + (F83 > 0.5) * E$6) - E$5) / LN(9))) -> 198778.1889 | F83: 0.6713971373 | G83: =MAX(G$3, MIN(G$7, G$5 + (-LN(1/H83 - 1) * ((-1)^(H83 <= 0.5))) * (((H83<= 0.5) * G$4 + (H83 > 0.5) * G$6) - G$5) / LN(9))) -> 232697.3453 | H83: 0.1973793249 | I83: =MAX(I$3, MIN(I$7, I$5 + (-LN(1/J83 - 1) * ((-1)^(J83 <= 0.5))) * (((J83<= 0.5) * I$4 + (J83 > 0.5) * I$6) - I$5) / LN(9))) -> 665842.5337 | J83: 0.9165603498 | K83: =MAX(K$3, MIN(K$7, K$5 + (-LN(1/L83 - 1) * ((-1)^(L83 <= 0.5))) * (((L83<= 0.5) * K$4 + (L83 > 0.5) * K$6) - K$5) / LN(9))) -> 355607.6452 | L83: 0.4012098342 | M83: =MAX(M$3, MIN(M$7, M$5 + (-LN(1/N83 - 1) * ((-1)^(N83 <= 0.5))) * (((N83<= 0.5) * M$4 + (N83 > 0.5) * M$6) - M$5) / LN(9))) -> 177204.1831 | N83: 0.4399650995 | R83: 1899493.167 | S83: 0.587
A84: 221761.9695 | B84: 0.9355583841 | C84: 136791.2498 | D84: 0.5644101805 | E84: =MAX(E$3, MIN(E$7, E$5 + (-LN(1/F84 - 1) * ((-1)^(F84 <= 0.5))) * (((F84<= 0.5) * E$4 + (F84 > 0.5) * E$6) - E$5) / LN(9))) -> 192005.3929 | F84: 0.6491492814 | G84: =MAX(G$3, MIN(G$7, G$5 + (-LN(1/H84 - 1) * ((-1)^(H84 <= 0.5))) * (((H84<= 0.5) * G$4 + (H84 > 0.5) * G$6) - G$5) / LN(9))) -> 603895.1636 | H84: 0.8858297447 | I84: =MAX(I$3, MIN(I$7, I$5 + (-LN(1/J84 - 1) * ((-1)^(J84 <= 0.5))) * (((J84<= 0.5) * I$4 + (J84 > 0.5) * I$6) - I$5) / LN(9))) -> 509376.9732 | J84: 0.7852245012 | K84: =MAX(K$3, MIN(K$7, K$5 + (-LN(1/L84 - 1) * ((-1)^(L84 <= 0.5))) * (((L84<= 0.5) * K$4 + (L84 > 0.5) * K$6) - K$5) / LN(9))) -> 983032.3465 | L84: 0.9736531313 | M84: =MAX(M$3, MIN(M$7, M$5 + (-LN(1/N84 - 1) * ((-1)^(N84 <= 0.5))) * (((N84<= 0.5) * M$4 + (N84 > 0.5) * M$6) - M$5) / LN(9))) -> 342822.8031 | N84: 0.8605847362 | R84: 2989685.899 | S84: 0.995
A85: 104485.4897 | B85: 0.5246191458 | C85: 83881.31646 | D85: 0.1410084047 | E85: =MAX(E$3, MIN(E$7, E$5 + (-LN(1/F85 - 1) * ((-1)^(F85 <= 0.5))) * (((F85<= 0.5) * E$4 + (F85 > 0.5) * E$6) - E$5) / LN(9))) -> 139726.0487 | F85: 0.3890080932 | G85: =MAX(G$3, MIN(G$7, G$5 + (-LN(1/H85 - 1) * ((-1)^(H85 <= 0.5))) * (((H85<= 0.5) * G$4 + (H85 > 0.5) * G$6) - G$5) / LN(9))) -> 266019.3322 | H85: 0.3063949553 | I85: =MAX(I$3, MIN(I$7, I$5 + (-LN(1/J85 - 1) * ((-1)^(J85 <= 0.5))) * (((J85<= 0.5) * I$4 + (J85 > 0.5) * I$6) - I$5) / LN(9))) -> 78161.41809 | J85: 0.01288301997 | K85: =MAX(K$3, MIN(K$7, K$5 + (-LN(1/L85 - 1) * ((-1)^(L85 <= 0.5))) * (((L85<= 0.5) * K$4 + (L85 > 0.5) * K$6) - K$5) / LN(9))) -> 363257.8515 | L85: 0.42448858 | M85: =MAX(M$3, MIN(M$7, M$5 + (-LN(1/N85 - 1) * ((-1)^(N85 <= 0.5))) * (((N85<= 0.5) * M$4 + (N85 > 0.5) * M$6) - M$5) / LN(9))) -> 160182.7612 | N85: 0.345193233 | R85: 1195714.218 | S85: 0.018
A86: 93487.1886 | B86: 0.4289338881 | C86: 124609.6454 | D86: 0.4957116216 | E86: =MAX(E$3, MIN(E$7, E$5 + (-LN(1/F86 - 1) * ((-1)^(F86 <= 0.5))) * (((F86<= 0.5) * E$4 + (F86 > 0.5) * E$6) - E$5) / LN(9))) -> 117104.5284 | F86: 0.1906835469 | G86: =MAX(G$3, MIN(G$7, G$5 + (-LN(1/H86 - 1) * ((-1)^(H86 <= 0.5))) * (((H86<= 0.5) * G$4 + (H86 > 0.5) * G$6) - G$5) / LN(9))) -> 359519.6684 | H86: 0.5819055699 | I86: =MAX(I$3, MIN(I$7, I$5 + (-LN(1/J86 - 1) * ((-1)^(J86 <= 0.5))) * (((J86<= 0.5) * I$4 + (J86 > 0.5) * I$6) - I$5) / LN(9))) -> 176949.542 | J86: 0.06898406614 | K86: =MAX(K$3, MIN(K$7, K$5 + (-LN(1/L86 - 1) * ((-1)^(L86 <= 0.5))) * (((L86<= 0.5) * K$4 + (L86 > 0.5) * K$6) - K$5) / LN(9))) -> 632917.679 | L86: 0.8157106215 | M86: =MAX(M$3, MIN(M$7, M$5 + (-LN(1/N86 - 1) * ((-1)^(N86 <= 0.5))) * (((N86<= 0.5) * M$4 + (N86 > 0.5) * M$6) - M$5) / LN(9))) -> 171279.1211 | N86: 0.406085957 | R86: 1675867.373 | S86: 0.363
A87: 135965.0069 | B87: 0.6878811372 | C87: 137914.6991 | D87: 0.570469007 | E87: =MAX(E$3, MIN(E$7, E$5 + (-LN(1/F87 - 1) * ((-1)^(F87 <= 0.5))) * (((F87<= 0.5) * E$4 + (F87 > 0.5) * E$6) - E$5) / LN(9))) -> 157979.3415 | F87: 0.5291874543 | G87: =MAX(G$3, MIN(G$7, G$5 + (-LN(1/H87 - 1) * ((-1)^(H87 <= 0.5))) * (((H87<= 0.5) * G$4 + (H87 > 0.5) * G$6) - G$5) / LN(9))) -> 334636.6648 | H87: 0.538833015 | I87: =MAX(I$3, MIN(I$7, I$5 + (-LN(1/J87 - 1) * ((-1)^(J87 <= 0.5))) * (((J87<= 0.5) * I$4 + (J87 > 0.5) * I$6) - I$5) / LN(9))) -> 723025.0021 | J87: 0.9425980145 | K87: =MAX(K$3, MIN(K$7, K$5 + (-LN(1/L87 - 1) * ((-1)^(L87 <= 0.5))) * (((L87<= 0.5) * K$4 + (L87 > 0.5) * K$6) - K$5) / LN(9))) -> 536304.9003 | L87: 0.7113505784 | M87: =MAX(M$3, MIN(M$7, M$5 + (-LN(1/N87 - 1) * ((-1)^(N87 <= 0.5))) * (((N87<= 0.5) * M$4 + (N87 > 0.5) * M$6) - M$5) / LN(9))) -> 193467.3602 | N87: 0.5174750536 | R87: 2219292.975 | S87: 0.849
A88: 159420.1488 | B88: 0.7867749577 | C88: 169706.3025 | D88: 0.727563925 | E88: =MAX(E$3, MIN(E$7, E$5 + (-LN(1/F88 - 1) * ((-1)^(F88 <= 0.5))) * (((F88<= 0.5) * E$4 + (F88 > 0.5) * E$6) - E$5) / LN(9))) -> 55213.92162 | F88: 0.01528732236 | G88: =MAX(G$3, MIN(G$7, G$5 + (-LN(1/H88 - 1) * ((-1)^(H88 <= 0.5))) * (((H88<= 0.5) * G$4 + (H88 > 0.5) * G$6) - G$5) / LN(9))) -> 450522.2503 | H88: 0.7252093462 | I88: =MAX(I$3, MIN(I$7, I$5 + (-LN(1/J88 - 1) * ((-1)^(J88 <= 0.5))) * (((J88<= 0.5) * I$4 + (J88 > 0.5) * I$6) - I$5) / LN(9))) -> 313027.9846 | J88: 0.4475828885 | K88: =MAX(K$3, MIN(K$7, K$5 + (-LN(1/L88 - 1) * ((-1)^(L88 <= 0.5))) * (((L88<= 0.5) * K$4 + (L88 > 0.5) * K$6) - K$5) / LN(9))) -> 611790.5714 | L88: 0.7956775283 | M88: =MAX(M$3, MIN(M$7, M$5 + (-LN(1/N88 - 1) * ((-1)^(N88 <= 0.5))) * (((N88<= 0.5) * M$4 + (N88 > 0.5) * M$6) - M$5) / LN(9))) -> 271528.3032 | N88: 0.7280374829 | R88: 2031209.482 | S88: 0.72
A89: 140299.2067 | B89: 0.7079532306 | C89: 99033.48609 | D89: 0.2421211634 | E89: =MAX(E$3, MIN(E$7, E$5 + (-LN(1/F89 - 1) * ((-1)^(F89 <= 0.5))) * (((F89<= 0.5) * E$4 + (F89 > 0.5) * E$6) - E$5) / LN(9))) -> 127820.6136 | F89: 0.273952271 | G89: =MAX(G$3, MIN(G$7, G$5 + (-LN(1/H89 - 1) * ((-1)^(H89 <= 0.5))) * (((H89<= 0.5) * G$4 + (H89 > 0.5) * G$6) - G$5) / LN(9))) -> 298650.6197 | H89: 0.4394384001 | I89: =MAX(I$3, MIN(I$7, I$5 + (-LN(1/J89 - 1) * ((-1)^(J89 <= 0.5))) * (((J89<= 0.5) * I$4 + (J89 > 0.5) * I$6) - I$5) / LN(9))) -> 277752.5627 | J89: 0.3035381229 | K89: =MAX(K$3, MIN(K$7, K$5 + (-LN(1/L89 - 1) * ((-1)^(L89 <= 0.5))) * (((L89<= 0.5) * K$4 + (L89 > 0.5) * K$6) - K$5) / LN(9))) -> 593296.9999 | L89: 0.7768493333 | M89: =MAX(M$3, MIN(M$7, M$5 + (-LN(1/N89 - 1) * ((-1)^(N89 <= 0.5))) * (((N89<= 0.5) * M$4 + (N89 > 0.5) * M$6) - M$5) / LN(9))) -> 284729.9696 | N89: 0.7575680692 | R89: 1821583.458 | S89: 0.514
A90: 97427.48555 | B90: 0.4717681003 | C90: 267405.734 | D90: 0.9580721895 | E90: =MAX(E$3, MIN(E$7, E$5 + (-LN(1/F90 - 1) * ((-1)^(F90 <= 0.5))) * (((F90<= 0.5) * E$4 + (F90 > 0.5) * E$6) - E$5) / LN(9))) -> 144730.1347 | F90: 0.4423619767 | G90: =MAX(G$3, MIN(G$7, G$5 + (-LN(1/H90 - 1) * ((-1)^(H90 <= 0.5))) * (((H90<= 0.5) * G$4 + (H90 > 0.5) * G$6) - G$5) / LN(9))) -> 268787.9036 | H90: 0.3168334714 | I90: =MAX(I$3, MIN(I$7, I$5 + (-LN(1/J90 - 1) * ((-1)^(J90 <= 0.5))) * (((J90<= 0.5) * I$4 + (J90 > 0.5) * I$6) - I$5) / LN(9))) -> 391750.0748 | J90: 0.6152246187 | K90: =MAX(K$3, MIN(K$7, K$5 + (-LN(1/L90 - 1) * ((-1)^(L90 <= 0.5))) * (((L90<= 0.5) * K$4 + (L90 > 0.5) * K$6) - K$5) / LN(9))) -> 378589.2214 | L90: 0.4720591648 | M90: =MAX(M$3, MIN(M$7, M$5 + (-LN(1/N90 - 1) * ((-1)^(N90 <= 0.5))) * (((N90<= 0.5) * M$4 + (N90 > 0.5) * M$6) - M$5) / LN(9))) -> 170159.3283 | N90: 0.3997721914 | R90: 1718849.882 | S90: 0.405
A91: 66142.96415 | B91: 0.1842476221 | C91: 135116.2382 | D91: 0.5553414515 | E91: =MAX(E$3, MIN(E$7, E$5 + (-LN(1/F91 - 1) * ((-1)^(F91 <= 0.5))) * (((F91<= 0.5) * E$4 + (F91 > 0.5) * E$6) - E$5) / LN(9))) -> 197773.5241 | F91: 0.6681421884 | G91: =MAX(G$3, MIN(G$7, G$5 + (-LN(1/H91 - 1) * ((-1)^(H91 <= 0.5))) * (((H91<= 0.5) * G$4 + (H91 > 0.5) * G$6) - G$5) / LN(9))) -> 301833.6944 | H91: 0.4532642888 | I91: =MAX(I$3, MIN(I$7, I$5 + (-LN(1/J91 - 1) * ((-1)^(J91 <= 0.5))) * (((J91<= 0.5) * I$4 + (J91 > 0.5) * I$6) - I$5) / LN(9))) -> 222311.893 | J91: 0.1412397886 | K91: =MAX(K$3, MIN(K$7, K$5 + (-LN(1/L91 - 1) * ((-1)^(L91 <= 0.5))) * (((L91<= 0.5) * K$4 + (L91 > 0.5) * K$6) - K$5) / LN(9))) -> 660908.6415 | L91: 0.8398637025 | M91: =MAX(M$3, MIN(M$7, M$5 + (-LN(1/N91 - 1) * ((-1)^(N91 <= 0.5))) * (((N91<= 0.5) * M$4 + (N91 > 0.5) * M$6) - M$5) / LN(9))) -> 192886.9773 | N91: 0.5157766264 | R91: 1776973.933 | S91: 0.46
A92: 172603.3847 | B92: 0.8313547793 | C92: 225569.3465 | D92: 0.9011202636 | E92: =MAX(E$3, MIN(E$7, E$5 + (-LN(1/F92 - 1) * ((-1)^(F92 <= 0.5))) * (((F92<= 0.5) * E$4 + (F92 > 0.5) * E$6) - E$5) / LN(9))) -> 367353.4421 | F92: 0.960221172 | G92: =MAX(G$3, MIN(G$7, G$5 + (-LN(1/H92 - 1) * ((-1)^(H92 <= 0.5))) * (((H92<= 0.5) * G$4 + (H92 > 0.5) * G$6) - G$5) / LN(9))) -> 306198.468 | H92: 0.4723365166 | I92: =MAX(I$3, MIN(I$7, I$5 + (-LN(1/J92 - 1) * ((-1)^(J92 <= 0.5))) * (((J92<= 0.5) * I$4 + (J92 > 0.5) * I$6) - I$5) / LN(9))) -> 277823.5386 | J92: 0.3038019336 | K92: =MAX(K$3, MIN(K$7, K$5 + (-LN(1/L92 - 1) * ((-1)^(L92 <= 0.5))) * (((L92<= 0.5) * K$4 + (L92 > 0.5) * K$6) - K$5) / LN(9))) -> 299603.2645 | L92: 0.2490671812 | M92: =MAX(M$3, MIN(M$7, M$5 + (-LN(1/N92 - 1) * ((-1)^(N92 <= 0.5))) * (((N92<= 0.5) * M$4 + (N92 > 0.5) * M$6) - M$5) / LN(9))) -> 78221.42648 | N92: 0.07167973465 | R92: 1727372.871 | S92: 0.413
A93: 151716.8948 | B93: 0.7570063488 | C93: 137069.7901 | D93: 0.5659142317 | E93: =MAX(E$3, MIN(E$7, E$5 + (-LN(1/F93 - 1) * ((-1)^(F93 <= 0.5))) * (((F93<= 0.5) * E$4 + (F93 > 0.5) * E$6) - E$5) / LN(9))) -> 390265.8155 | F93: 0.9712362277 | G93: =MAX(G$3, MIN(G$7, G$5 + (-LN(1/H93 - 1) * ((-1)^(H93 <= 0.5))) * (((H93<= 0.5) * G$4 + (H93 > 0.5) * G$6) - G$5) / LN(9))) -> 352785.0273 | H93: 0.5703425315 | I93: =MAX(I$3, MIN(I$7, I$5 + (-LN(1/J93 - 1) * ((-1)^(J93 <= 0.5))) * (((J93<= 0.5) * I$4 + (J93 > 0.5) * I$6) - I$5) / LN(9))) -> 276768.8985 | J93: 0.2998952976 | K93: =MAX(K$3, MIN(K$7, K$5 + (-LN(1/L93 - 1) * ((-1)^(L93 <= 0.5))) * (((L93<= 0.5) * K$4 + (L93 > 0.5) * K$6) - K$5) / LN(9))) -> 276301.1701 | L93: 0.1984254396 | M93: =MAX(M$3, MIN(M$7, M$5 + (-LN(1/N93 - 1) * ((-1)^(N93 <= 0.5))) * (((N93<= 0.5) * M$4 + (N93 > 0.5) * M$6) - M$5) / LN(9))) -> 278893.5491 | N93: 0.7447866891 | R93: 1863801.145 | S93: 0.552
A94: 33290.08629 | B94: 0.05061659501 | C94: 108662.1127 | D94: 0.3278423294 | E94: =MAX(E$3, MIN(E$7, E$5 + (-LN(1/F94 - 1) * ((-1)^(F94 <= 0.5))) * (((F94<= 0.5) * E$4 + (F94 > 0.5) * E$6) - E$5) / LN(9))) -> 209792.4355 | F94: 0.7059613754 | G94: =MAX(G$3, MIN(G$7, G$5 + (-LN(1/H94 - 1) * ((-1)^(H94 <= 0.5))) * (((H94<= 0.5) * G$4 + (H94 > 0.5) * G$6) - G$5) / LN(9))) -> 171719.3722 | H94: 0.07765716013 | I94: =MAX(I$3, MIN(I$7, I$5 + (-LN(1/J94 - 1) * ((-1)^(J94 <= 0.5))) * (((J94<= 0.5) * I$4 + (J94 > 0.5) * I$6) - I$5) / LN(9))) -> 425857.9791 | J94: 0.6702120798 | K94: =MAX(K$3, MIN(K$7, K$5 + (-LN(1/L94 - 1) * ((-1)^(L94 <= 0.5))) * (((L94<= 0.5) * K$4 + (L94 > 0.5) * K$6) - K$5) / LN(9))) -> 330639.4125 | L94: 0.3287338982 | M94: =MAX(M$3, MIN(M$7, M$5 + (-LN(1/N94 - 1) * ((-1)^(N94 <= 0.5))) * (((N94<= 0.5) * M$4 + (N94 > 0.5) * M$6) - M$5) / LN(9))) -> 364508.1352 | N94: 0.88837762 | R94: 1644469.534 | S94: 0.327
A95: 183017.7056 | B95: 0.8610556246 | C95: 122436.4843 | D95: 0.4718666474 | E95: =MAX(E$3, MIN(E$7, E$5 + (-LN(1/F95 - 1) * ((-1)^(F95 <= 0.5))) * (((F95<= 0.5) * E$4 + (F95 > 0.5) * E$6) - E$5) / LN(9))) -> 148702.9005 | F95: 0.4857537629 | G95: =MAX(G$3, MIN(G$7, G$5 + (-LN(1/H95 - 1) * ((-1)^(H95 <= 0.5))) * (((H95<= 0.5) * G$4 + (H95 > 0.5) * G$6) - G$5) / LN(9))) -> 281878.9676 | H95: 0.3685947057 | I95: =MAX(I$3, MIN(I$7, I$5 + (-LN(1/J95 - 1) * ((-1)^(J95 <= 0.5))) * (((J95<= 0.5) * I$4 + (J95 > 0.5) * I$6) - I$5) / LN(9))) -> 389523.5817 | J95: 0.6115121569 | K95: =MAX(K$3, MIN(K$7, K$5 + (-LN(1/L95 - 1) * ((-1)^(L95 <= 0.5))) * (((L95<= 0.5) * K$4 + (L95 > 0.5) * K$6) - K$5) / LN(9))) -> 541476.0609 | L95: 0.7177435973 | M95: =MAX(M$3, MIN(M$7, M$5 + (-LN(1/N95 - 1) * ((-1)^(N95 <= 0.5))) * (((N95<= 0.5) * M$4 + (N95 > 0.5) * M$6) - M$5) / LN(9))) -> 211062.4853 | N95: 0.5685941745 | R95: =A95+C95+E95+G95+I95+K95+M95 -> 1878098.186 | S95: 0.561
A96: 258871.7436 | B96: 0.970423975 | C96: 93096.35813 | D96: 0.1975006261 | E96: =MAX(E$3, MIN(E$7, E$5 + (-LN(1/F96 - 1) * ((-1)^(F96 <= 0.5))) * (((F96<= 0.5) * E$4 + (F96 > 0.5) * E$6) - E$5) / LN(9))) -> 300807.8583 | F96: 0.9010599978 | G96: =MAX(G$3, MIN(G$7, G$5 + (-LN(1/H96 - 1) * ((-1)^(H96 <= 0.5))) * (((H96<= 0.5) * G$4 + (H96 > 0.5) * G$6) - G$5) / LN(9))) -> 393359.1625 | H96: 0.6384239956 | I96: =MAX(I$3, MIN(I$7, I$5 + (-LN(1/J96 - 1) * ((-1)^(J96 <= 0.5))) * (((J96<= 0.5) * I$4 + (J96 > 0.5) * I$6) - I$5) / LN(9))) -> 185815.1954 | J96: 0.07969031352 | K96: =MAX(K$3, MIN(K$7, K$5 + (-LN(1/L96 - 1) * ((-1)^(L96 <= 0.5))) * (((L96<= 0.5) * K$4 + (L96 > 0.5) * K$6) - K$5) / LN(9))) -> 1293750 | L96: 0.9991906785 | M96: =MAX(M$3, MIN(M$7, M$5 + (-LN(1/N96 - 1) * ((-1)^(N96 <= 0.5))) * (((N96<= 0.5) * M$4 + (N96 > 0.5) * M$6) - M$5) / LN(9))) -> 166852.8388 | N96: 0.3813295448 | R96: 2692553.157 | S96: 0.977
A97: 105923.3611 | B97: 0.5324915354 | C97: 173822.9127 | D97: 0.7451193551 | E97: =MAX(E$3, MIN(E$7, E$5 + (-LN(1/F97 - 1) * ((-1)^(F97 <= 0.5))) * (((F97<= 0.5) * E$4 + (F97 > 0.5) * E$6) - E$5) / LN(9))) -> 144298.7934 | F97: 0.4376914219 | G97: =MAX(G$3, MIN(G$7, G$5 + (-LN(1/H97 - 1) * ((-1)^(H97 <= 0.5))) * (((H97<= 0.5) * G$4 + (H97 > 0.5) * G$6) - G$5) / LN(9))) -> 266885.9185 | H97: 0.3096416718 | I97: =MAX(I$3, MIN(I$7, I$5 + (-LN(1/J97 - 1) * ((-1)^(J97 <= 0.5))) * (((J97<= 0.5) * I$4 + (J97 > 0.5) * I$6) - I$5) / LN(9))) -> 250255.0688 | J97: 0.2118431128 | K97: =MAX(K$3, MIN(K$7, K$5 + (-LN(1/L97 - 1) * ((-1)^(L97 <= 0.5))) * (((L97<= 0.5) * K$4 + (L97 > 0.5) * K$6) - K$5) / LN(9))) -> 778332.8966 | L97: 0.9144294411 | M97: =MAX(M$3, MIN(M$7, M$5 + (-LN(1/N97 - 1) * ((-1)^(N97 <= 0.5))) * (((N97<= 0.5) * M$4 + (N97 > 0.5) * M$6) - M$5) / LN(9))) -> 455608.4092 | N97: 0.9585858584 | R97: 2175127.36 | S97: 0.831
A98: 92966.41851 | B98: 0.4233375678 | C98: 191661.7919 | D98: 0.8122518896 | E98: =MAX(E$3, MIN(E$7, E$5 + (-LN(1/F98 - 1) * ((-1)^(F98 <= 0.5))) * (((F98<= 0.5) * E$4 + (F98 > 0.5) * E$6) - E$5) / LN(9))) -> 88332.59549 | F98: 0.06238920103 | G98: =MAX(G$3, MIN(G$7, G$5 + (-LN(1/H98 - 1) * ((-1)^(H98 <= 0.5))) * (((H98<= 0.5) * G$4 + (H98 > 0.5) * G$6) - G$5) / LN(9))) -> 466495.9789 | H98: 0.747016688 | I98: =MAX(I$3, MIN(I$7, I$5 + (-LN(1/J98 - 1) * ((-1)^(J98 <= 0.5))) * (((J98<= 0.5) * I$4 + (J98 > 0.5) * I$6) - I$5) / LN(9))) -> 286793.5976 | J98: 0.3381421646 | K98: =MAX(K$3, MIN(K$7, K$5 + (-LN(1/L98 - 1) * ((-1)^(L98 <= 0.5))) * (((L98<= 0.5) * K$4 + (L98 > 0.5) * K$6) - K$5) / LN(9))) -> 157157.9255 | L98: 0.05254667698 | M98: =MAX(M$3, MIN(M$7, M$5 + (-LN(1/N98 - 1) * ((-1)^(N98 <= 0.5))) * (((N98<= 0.5) * M$4 + (N98 > 0.5) * M$6) - M$5) / LN(9))) -> 247628.8583 | N98: 0.6692117079 | R98: 1531037.166 | S98: 0.205
A99: 125995.9658 | B99: 0.6390376582 | C99: 124822.1246 | D99: 0.4980458493 | E99: =MAX(E$3, MIN(E$7, E$5 + (-LN(1/F99 - 1) * ((-1)^(F99 <= 0.5))) * (((F99<= 0.5) * E$4 + (F99 > 0.5) * E$6) - E$5) / LN(9))) -> 97575.87463 | F99: 0.09081273681 | G99: =MAX(G$3, MIN(G$7, G$5 + (-LN(1/H99 - 1) * ((-1)^(H99 <= 0.5))) * (((H99<= 0.5) * G$4 + (H99 > 0.5) * G$6) - G$5) / LN(9))) -> 685317.4227 | H99: 0.9322213813 | I99: =MAX(I$3, MIN(I$7, I$5 + (-LN(1/J99 - 1) * ((-1)^(J99 <= 0.5))) * (((J99<= 0.5) * I$4 + (J99 > 0.5) * I$6) - I$5) / LN(9))) -> 182716.2092 | J99: 0.07578561691 | K99: =MAX(K$3, MIN(K$7, K$5 + (-LN(1/L99 - 1) * ((-1)^(L99 <= 0.5))) * (((L99<= 0.5) * K$4 + (L99 > 0.5) * K$6) - K$5) / LN(9))) -> 642285.019 | L99: 0.8240934107 | M99: =MAX(M$3, MIN(M$7, M$5 + (-LN(1/N99 - 1) * ((-1)^(N99 <= 0.5))) * (((N99<= 0.5) * M$4 + (N99 > 0.5) * M$6) - M$5) / LN(9))) -> 210943.5378 | N99: 0.5682522279 | R99: 2069656.154 | S99: 0.748
A100: 198173.0085 | B100: 0.8963286619 | C100: 124513.0863 | D100: 0.4946509108 | E100: =MAX(E$3, MIN(E$7, E$5 + (-LN(1/F100 - 1) * ((-1)^(F100 <= 0.5))) * (((F100<= 0.5) * E$4 + (F100 > 0.5) * E$6) - E$5) / LN(9))) -> 131400.1471 | F100: 0.3063241164 | G100: =MAX(G$3, MIN(G$7, G$5 + (-LN(1/H100 - 1) * ((-1)^(H100 <= 0.5))) * (((H100<= 0.5) * G$4 + (H100 > 0.5) * G$6) - G$5) / LN(9))) -> 289557.114 | H100: 0.4005232477 | I100: =MAX(I$3, MIN(I$7, I$5 + (-LN(1/J100 - 1) * ((-1)^(J100 <= 0.5))) * (((J100<= 0.5) * I$4 + (J100 > 0.5) * I$6) - I$5) / LN(9))) -> 496884.8832 | J100: 0.7700410495 | K100: =MAX(K$3, MIN(K$7, K$5 + (-LN(1/L100 - 1) * ((-1)^(L100 <= 0.5))) * (((L100<= 0.5) * K$4 + (L100 > 0.5) * K$6) - K$5) / LN(9))) -> 332437.9453 | L100: 0.3337360664 | M100: =MAX(M$3, MIN(M$7, M$5 + (-LN(1/N100 - 1) * ((-1)^(N100 <= 0.5))) * (((N100<= 0.5) * M$4 + (N100 > 0.5) * M$6) - M$5) / LN(9))) -> 405495.2297 | N100: 0.9278808605 | R100: 1978461.414 | S100: 0.666
A101: 54189.26355 | B101: 0.117831284 | C101: 230121.9044 | D101: 0.9096824936 | E101: =MAX(E$3, MIN(E$7, E$5 + (-LN(1/F101 - 1) * ((-1)^(F101 <= 0.5))) * (((F101<= 0.5) * E$4 + (F101 > 0.5) * E$6) - E$5) / LN(9))) -> 217082.9888 | F101: 0.7276322535 | G101: =MAX(G$3, MIN(G$7, G$5 + (-LN(1/H101 - 1) * ((-1)^(H101 <= 0.5))) * (((H101<= 0.5) * G$4 + (H101 > 0.5) * G$6) - G$5) / LN(9))) -> 190338.6551 | H101: 0.1045812434 | I101: =MAX(I$3, MIN(I$7, I$5 + (-LN(1/J101 - 1) * ((-1)^(J101 <= 0.5))) * (((J101<= 0.5) * I$4 + (J101 > 0.5) * I$6) - I$5) / LN(9))) -> 419463.2923 | J101: 0.6601993283 | K101: =MAX(K$3, MIN(K$7, K$5 + (-LN(1/L101 - 1) * ((-1)^(L101 <= 0.5))) * (((L101<= 0.5) * K$4 + (L101 > 0.5) * K$6) - K$5) / LN(9))) -> 301014.005 | L101: 0.2523947291 | M101: =MAX(M$3, MIN(M$7, M$5 + (-LN(1/N101 - 1) * ((-1)^(N101 <= 0.5))) * (((N101<= 0.5) * M$4 + (N101 > 0.5) * M$6) - M$5) / LN(9))) -> 111357.7398 | N101: 0.1437421011 | R101: 1523567.849 | S101: 0.197
A102: 182345.0308 | B102: 0.8592778872 | C102: 147063.9135 | D102: 0.6188792035 | E102: =MAX(E$3, MIN(E$7, E$5 + (-LN(1/F102 - 1) * ((-1)^(F102 <= 0.5))) * (((F102<= 0.5) * E$4 + (F102 > 0.5) * E$6) - E$5) / LN(9))) -> 68820.75668 | F102: 0.02745466555 | G102: =MAX(G$3, MIN(G$7, G$5 + (-LN(1/H102 - 1) * ((-1)^(H102 <= 0.5))) * (((H102<= 0.5) * G$4 + (H102 > 0.5) * G$6) - G$5) / LN(9))) -> 259417.3809 | H102: 0.2823011826 | I102: =MAX(I$3, MIN(I$7, I$5 + (-LN(1/J102 - 1) * ((-1)^(J102 <= 0.5))) * (((J102<= 0.5) * I$4 + (J102 > 0.5) * I$6) - I$5) / LN(9))) -> 609013.4163 | J102: 0.880474584 | K102: =MAX(K$3, MIN(K$7, K$5 + (-LN(1/L102 - 1) * ((-1)^(L102 <= 0.5))) * (((L102<= 0.5) * K$4 + (L102 > 0.5) * K$6) - K$5) / LN(9))) -> 379876.3963 | L102: 0.476088583 | M102: =MAX(M$3, MIN(M$7, M$5 + (-LN(1/N102 - 1) * ((-1)^(N102 <= 0.5))) * (((N102<= 0.5) * M$4 + (N102 > 0.5) * M$6) - M$5) / LN(9))) -> 324192.9509 | N102: 0.8322754763 | R102: 1970729.845 | S102: 0.657
A103: 134307.5088 | B103: 0.6800089679 | C103: 84782.55509 | D103: 0.1458740399 | E103: =MAX(E$3, MIN(E$7, E$5 + (-LN(1/F103 - 1) * ((-1)^(F103 <= 0.5))) * (((F103<= 0.5) * E$4 + (F103 > 0.5) * E$6) - E$5) / LN(9))) -> 148496.8666 | F103: 0.4834923932 | G103: =MAX(G$3, MIN(G$7, G$5 + (-LN(1/H103 - 1) * ((-1)^(H103 <= 0.5))) * (((H103<= 0.5) * G$4 + (H103 > 0.5) * G$6) - G$5) / LN(9))) -> 609597.3927 | H103: 0.889822276 | I103: =MAX(I$3, MIN(I$7, I$5 + (-LN(1/J103 - 1) * ((-1)^(J103 <= 0.5))) * (((J103<= 0.5) * I$4 + (J103 > 0.5) * I$6) - I$5) / LN(9))) -> 324215.1228 | J103: 0.4965509519 | K103: =MAX(K$3, MIN(K$7, K$5 + (-LN(1/L103 - 1) * ((-1)^(L103 <= 0.5))) * (((L103<= 0.5) * K$4 + (L103 > 0.5) * K$6) - K$5) / LN(9))) -> 309551.712 | L103: 0.2731527645 | M103: =MAX(M$3, MIN(M$7, M$5 + (-LN(1/N103 - 1) * ((-1)^(N103 <= 0.5))) * (((N103<= 0.5) * M$4 + (N103 > 0.5) * M$6) - M$5) / LN(9))) -> 193681.9058 | N103: 0.5181027977 | R103: 1804633.064 | S103: 0.495
A104: 143485.4182 | B104: 0.722214368 | C104: 107129.3374 | D104: 0.3131750446 | E104: =MAX(E$3, MIN(E$7, E$5 + (-LN(1/F104 - 1) * ((-1)^(F104 <= 0.5))) * (((F104<= 0.5) * E$4 + (F104 > 0.5) * E$6) - E$5) / LN(9))) -> 191713.5423 | F104: 0.6481749941 | G104: =MAX(G$3, MIN(G$7, G$5 + (-LN(1/H104 - 1) * ((-1)^(H104 <= 0.5))) * (((H104<= 0.5) * G$4 + (H104 > 0.5) * G$6) - G$5) / LN(9))) -> 266463.1831 | H104: 0.3080554966 | I104: =MAX(I$3, MIN(I$7, I$5 + (-LN(1/J104 - 1) * ((-1)^(J104 <= 0.5))) * (((J104<= 0.5) * I$4 + (J104 > 0.5) * I$6) - I$5) / LN(9))) -> 633014.0836 | J104: 0.8971252787 | K104: =MAX(K$3, MIN(K$7, K$5 + (-LN(1/L104 - 1) * ((-1)^(L104 <= 0.5))) * (((L104<= 0.5) * K$4 + (L104 > 0.5) * K$6) - K$5) / LN(9))) -> 594180.546 | L104: 0.7777763471 | M104: =MAX(M$3, MIN(M$7, M$5 + (-LN(1/N104 - 1) * ((-1)^(N104 <= 0.5))) * (((N104<= 0.5) * M$4 + (N104 > 0.5) * M$6) - M$5) / LN(9))) -> 165159.2758 | N104: 0.3720105996 | R104: 2101145.386 | S104: 0.778
A105: 91454.38047 | B105: 0.4072047563 | C105: 187794.7979 | D105: 0.7989496789 | E105: =MAX(E$3, MIN(E$7, E$5 + (-LN(1/F105 - 1) * ((-1)^(F105 <= 0.5))) * (((F105<= 0.5) * E$4 + (F105 > 0.5) * E$6) - E$5) / LN(9))) -> 119597.1153 | F105: 0.2081621472 | G105: =MAX(G$3, MIN(G$7, G$5 + (-LN(1/H105 - 1) * ((-1)^(H105 <= 0.5))) * (((H105<= 0.5) * G$4 + (H105 > 0.5) * G$6) - G$5) / LN(9))) -> 171615.4244 | H105: 0.07752638697 | I105: =MAX(I$3, MIN(I$7, I$5 + (-LN(1/J105 - 1) * ((-1)^(J105 <= 0.5))) * (((J105<= 0.5) * I$4 + (J105 > 0.5) * I$6) - I$5) / LN(9))) -> 283757.938 | J105: 0.3263050838 | K105: =MAX(K$3, MIN(K$7, K$5 + (-LN(1/L105 - 1) * ((-1)^(L105 <= 0.5))) * (((L105<= 0.5) * K$4 + (L105 > 0.5) * K$6) - K$5) / LN(9))) -> 577313.6834 | L105: 0.7596057786 | M105: =MAX(M$3, MIN(M$7, M$5 + (-LN(1/N105 - 1) * ((-1)^(N105 <= 0.5))) * (((N105<= 0.5) * M$4 + (N105 > 0.5) * M$6) - M$5) / LN(9))) -> 484485.6573 | N105: 0.9701201519 | R105: 1916018.997 | S105: 0.602
A106: 74395.96847 | B106: 0.2450561242 | C106: 113030.4121 | D106: 0.3714509007 | E106: =MAX(E$3, MIN(E$7, E$5 + (-LN(1/F106 - 1) * ((-1)^(F106 <= 0.5))) * (((F106<= 0.5) * E$4 + (F106 > 0.5) * E$6) - E$5) / LN(9))) -> 190263.8959 | F106: 0.6433174526 | G106: =MAX(G$3, MIN(G$7, G$5 + (-LN(1/H106 - 1) * ((-1)^(H106 <= 0.5))) * (((H106<= 0.5) * G$4 + (H106 > 0.5) * G$6) - G$5) / LN(9))) -> 154797.4004 | H106: 0.05885257419 | I106: =MAX(I$3, MIN(I$7, I$5 + (-LN(1/J106 - 1) * ((-1)^(J106 <= 0.5))) * (((J106<= 0.5) * I$4 + (J106 > 0.5) * I$6) - I$5) / LN(9))) -> 369289.7384 | J106: 0.5772285116 | K106: =MAX(K$3, MIN(K$7, K$5 + (-LN(1/L106 - 1) * ((-1)^(L106 <= 0.5))) * (((L106<= 0.5) * K$4 + (L106 > 0.5) * K$6) - K$5) / LN(9))) -> 346293.5969 | L106: 0.3734674591 | M106: =MAX(M$3, MIN(M$7, M$5 + (-LN(1/N106 - 1) * ((-1)^(N106 <= 0.5))) * (((N106<= 0.5) * M$4 + (N106 > 0.5) * M$6) - M$5) / LN(9))) -> 100219.919 | N106: 0.1144988796 | R106: 1348290.931 | S106: 0.083
A107: 92191.04931 | B107: 0.4150419908 | C107: 91432.49732 | D107: 0.1861676404 | E107: =MAX(E$3, MIN(E$7, E$5 + (-LN(1/F107 - 1) * ((-1)^(F107 <= 0.5))) * (((F107<= 0.5) * E$4 + (F107 > 0.5) * E$6) - E$5) / LN(9))) -> 232376.7914 | F107: 0.7697089898 | G107: =MAX(G$3, MIN(G$7, G$5 + (-LN(1/H107 - 1) * ((-1)^(H107 <= 0.5))) * (((H107<= 0.5) * G$4 + (H107 > 0.5) * G$6) - G$5) / LN(9))) -> 169805.5764 | H107: 0.07528159671 | I107: =MAX(I$3, MIN(I$7, I$5 + (-LN(1/J107 - 1) * ((-1)^(J107 <= 0.5))) * (((J107<= 0.5) * I$4 + (J107 > 0.5) * I$6) - I$5) / LN(9))) -> 213143.7548 | J107: 0.122799103 | K107: =MAX(K$3, MIN(K$7, K$5 + (-LN(1/L107 - 1) * ((-1)^(L107 <= 0.5))) * (((L107<= 0.5) * K$4 + (L107 > 0.5) * K$6) - K$5) / LN(9))) -> 381464.5562 | L107: 0.4810644525 | M107: =MAX(M$3, MIN(M$7, M$5 + (-LN(1/N107 - 1) * ((-1)^(N107 <= 0.5))) * (((N107<= 0.5) * M$4 + (N107 > 0.5) * M$6) - M$5) / LN(9))) -> 67787.17075 | N107: 0.05701601962 | R107: 1248201.396 | S107: 0.032
A108: 133540.0549 | B108: 0.6763286175 | C108: 158839.431 | D108: 0.6777669147 | E108: =MAX(E$3, MIN(E$7, E$5 + (-LN(1/F108 - 1) * ((-1)^(F108 <= 0.5))) * (((F108<= 0.5) * E$4 + (F108 > 0.5) * E$6) - E$5) / LN(9))) -> 122582.4042 | F108: 0.2306131428 | G108: =MAX(G$3, MIN(G$7, G$5 + (-LN(1/H108 - 1) * ((-1)^(H108 <= 0.5))) * (((H108<= 0.5) * G$4 + (H108 > 0.5) * G$6) - G$5) / LN(9))) -> 345105.2075 | H108: 0.5570630718 | I108: =MAX(I$3, MIN(I$7, I$5 + (-LN(1/J108 - 1) * ((-1)^(J108 <= 0.5))) * (((J108<= 0.5) * I$4 + (J108 > 0.5) * I$6) - I$5) / LN(9))) -> 385626.726 | J108: 0.6049835132 | K108: =MAX(K$3, MIN(K$7, K$5 + (-LN(1/L108 - 1) * ((-1)^(L108 <= 0.5))) * (((L108<= 0.5) * K$4 + (L108 > 0.5) * K$6) - K$5) / LN(9))) -> 691047.5616 | L108: 0.8629363623 | M108: =MAX(M$3, MIN(M$7, M$5 + (-LN(1/N108 - 1) * ((-1)^(N108 <= 0.5))) * (((N108<= 0.5) * M$4 + (N108 > 0.5) * M$6) - M$5) / LN(9))) -> 119614.1326 | N108: 0.1692368822 | R108: 1956355.518 | S108: 0.64
A109: 97604.22074 | B109: 0.4737039592 | C109: 124435.8438 | D109: 0.4938024279 | E109: =MAX(E$3, MIN(E$7, E$5 + (-LN(1/F109 - 1) * ((-1)^(F109 <= 0.5))) * (((F109<= 0.5) * E$4 + (F109 > 0.5) * E$6) - E$5) / LN(9))) -> 123031.4672 | F109: 0.2341331313 | G109: =MAX(G$3, MIN(G$7, G$5 + (-LN(1/H109 - 1) * ((-1)^(H109 <= 0.5))) * (((H109<= 0.5) * G$4 + (H109 > 0.5) * G$6) - G$5) / LN(9))) -> 372613.4146 | H109: 0.6041206773 | I109: =MAX(I$3, MIN(I$7, I$5 + (-LN(1/J109 - 1) * ((-1)^(J109 <= 0.5))) * (((J109<= 0.5) * I$4 + (J109 > 0.5) * I$6) - I$5) / LN(9))) -> 276626.1947 | J109: 0.2993688993 | K109: =MAX(K$3, MIN(K$7, K$5 + (-LN(1/L109 - 1) * ((-1)^(L109 <= 0.5))) * (((L109<= 0.5) * K$4 + (L109 > 0.5) * K$6) - K$5) / LN(9))) -> 257942.189 | L109: 0.1642867689 | M109: =MAX(M$3, MIN(M$7, M$5 + (-LN(1/N109 - 1) * ((-1)^(N109 <= 0.5))) * (((N109<= 0.5) * M$4 + (N109 > 0.5) * M$6) - M$5) / LN(9))) -> 213765.0639 | N109: 0.5763452376 | R109: 1466018.394 | S109: 0.149
A110: 98898.11004 | B110: 0.4878968662 | C110: 87174.38064 | D110: 0.1594631934 | E110: =MAX(E$3, MIN(E$7, E$5 + (-LN(1/F110 - 1) * ((-1)^(F110 <= 0.5))) * (((F110<= 0.5) * E$4 + (F110 > 0.5) * E$6) - E$5) / LN(9))) -> 198326.9377 | F110: 0.6699371701 | G110: =MAX(G$3, MIN(G$7, G$5 + (-LN(1/H110 - 1) * ((-1)^(H110 <= 0.5))) * (((H110<= 0.5) * G$4 + (H110 > 0.5) * G$6) - G$5) / LN(9))) -> 345448.9309 | H110: 0.5576593098 | I110: =MAX(I$3, MIN(I$7, I$5 + (-LN(1/J110 - 1) * ((-1)^(J110 <= 0.5))) * (((J110<= 0.5) * I$4 + (J110 > 0.5) * I$6) - I$5) / LN(9))) -> 194997.2886 | J110: 0.09235938126 | K110: =MAX(K$3, MIN(K$7, K$5 + (-LN(1/L110 - 1) * ((-1)^(L110 <= 0.5))) * (((L110<= 0.5) * K$4 + (L110 > 0.5) * K$6) - K$5) / LN(9))) -> 287657.8771 | L110: 0.2220819608 | M110: =MAX(M$3, MIN(M$7, M$5 + (-LN(1/N110 - 1) * ((-1)^(N110 <= 0.5))) * (((N110<= 0.5) * M$4 + (N110 > 0.5) * M$6) - M$5) / LN(9))) -> 110232.7936 | N110: 0.1405274167 | R110: 1322736.319 | S110: 0.065
A111: 167378.6062 | B111: 0.8146419445 | C111: 130258.7695 | D111: 0.5288546478 | E111: =MAX(E$3, MIN(E$7, E$5 + (-LN(1/F111 - 1) * ((-1)^(F111 <= 0.5))) * (((F111<= 0.5) * E$4 + (F111 > 0.5) * E$6) - E$5) / LN(9))) -> 139571.341 | F111: 0.3873934321 | G111: =MAX(G$3, MIN(G$7, G$5 + (-LN(1/H111 - 1) * ((-1)^(H111 <= 0.5))) * (((H111<= 0.5) * G$4 + (H111 > 0.5) * G$6) - G$5) / LN(9))) -> 268560.2604 | H111: 0.3159679896 | I111: =MAX(I$3, MIN(I$7, I$5 + (-LN(1/J111 - 1) * ((-1)^(J111 <= 0.5))) * (((J111<= 0.5) * I$4 + (J111 > 0.5) * I$6) - I$5) / LN(9))) -> 382047.4432 | J111: 0.5989536817 | K111: =MAX(K$3, MIN(K$7, K$5 + (-LN(1/L111 - 1) * ((-1)^(L111 <= 0.5))) * (((L111<= 0.5) * K$4 + (L111 > 0.5) * K$6) - K$5) / LN(9))) -> 317752.5649 | L111: 0.2940657471 | M111: =MAX(M$3, MIN(M$7, M$5 + (-LN(1/N111 - 1) * ((-1)^(N111 <= 0.5))) * (((N111<= 0.5) * M$4 + (N111 > 0.5) * M$6) - M$5) / LN(9))) -> 254128.5679 | N111: 0.6858501245 | R111: 1659697.553 | S111: 0.338
A112: 88572.09734 | B112: 0.3770253569 | C112: 163712.0032 | D112: 0.7006908201 | E112: =MAX(E$3, MIN(E$7, E$5 + (-LN(1/F112 - 1) * ((-1)^(F112 <= 0.5))) * (((F112<= 0.5) * E$4 + (F112 > 0.5) * E$6) - E$5) / LN(9))) -> 132844.1643 | F112: 0.319971131 | G112: =MAX(G$3, MIN(G$7, G$5 + (-LN(1/H112 - 1) * ((-1)^(H112 <= 0.5))) * (((H112<= 0.5) * G$4 + (H112 > 0.5) * G$6) - G$5) / LN(9))) -> 376393.3485 | H112: 0.6104589295 | I112: =MAX(I$3, MIN(I$7, I$5 + (-LN(1/J112 - 1) * ((-1)^(J112 <= 0.5))) * (((J112<= 0.5) * I$4 + (J112 > 0.5) * I$6) - I$5) / LN(9))) -> 550927.8643 | J112: 0.8304085669 | K112: =MAX(K$3, MIN(K$7, K$5 + (-LN(1/L112 - 1) * ((-1)^(L112 <= 0.5))) * (((L112<= 0.5) * K$4 + (L112 > 0.5) * K$6) - K$5) / LN(9))) -> 319065.2547 | L112: 0.2974987479 | M112: =MAX(M$3, MIN(M$7, M$5 + (-LN(1/N112 - 1) * ((-1)^(N112 <= 0.5))) * (((N112<= 0.5) * M$4 + (N112 > 0.5) * M$6) - M$5) / LN(9))) -> 146708.5102 | N112: 0.2776732209 | R112: 1778223.243 | S112: 0.462
A113: 63157.59049 | B113: 0.165339937 | C113: 124521.5711 | D113: 0.4947441152 | E113: =MAX(E$3, MIN(E$7, E$5 + (-LN(1/F113 - 1) * ((-1)^(F113 <= 0.5))) * (((F113<= 0.5) * E$4 + (F113 > 0.5) * E$6) - E$5) / LN(9))) -> 82491.56021 | F113: 0.04895666726 | G113: =MAX(G$3, MIN(G$7, G$5 + (-LN(1/H113 - 1) * ((-1)^(H113 <= 0.5))) * (((H113<= 0.5) * G$4 + (H113 > 0.5) * G$6) - G$5) / LN(9))) -> 373077.3678 | H113: 0.6049005742 | I113: =MAX(I$3, MIN(I$7, I$5 + (-LN(1/J113 - 1) * ((-1)^(J113 <= 0.5))) * (((J113<= 0.5) * I$4 + (J113 > 0.5) * I$6) - I$5) / LN(9))) -> 358962.1378 | J113: 0.559415891 | K113: =MAX(K$3, MIN(K$7, K$5 + (-LN(1/L113 - 1) * ((-1)^(L113 <= 0.5))) * (((L113<= 0.5) * K$4 + (L113 > 0.5) * K$6) - K$5) / LN(9))) -> 149664.2456 | L113: 0.04805490136 | M113: =MAX(M$3, MIN(M$7, M$5 + (-LN(1/N113 - 1) * ((-1)^(N113 <= 0.5))) * (((N113<= 0.5) * M$4 + (N113 > 0.5) * M$6) - M$5) / LN(9))) -> 199554.593 | N113: 0.5352569209 | R113: 1351429.066 | S113: 0.084
A114: 138712.52 | B114: 0.7006932015 | C114: 90174.20458 | D114: 0.1779348947 | E114: =MAX(E$3, MIN(E$7, E$5 + (-LN(1/F114 - 1) * ((-1)^(F114 <= 0.5))) * (((F114<= 0.5) * E$4 + (F114 > 0.5) * E$6) - E$5) / LN(9))) -> 139429.6043 | F114: 0.3859163164 | G114: =MAX(G$3, MIN(G$7, G$5 + (-LN(1/H114 - 1) * ((-1)^(H114 <= 0.5))) * (((H114<= 0.5) * G$4 + (H114 > 0.5) * G$6) - G$5) / LN(9))) -> 529934.9248 | H114: 0.8218322468 | I114: =MAX(I$3, MIN(I$7, I$5 + (-LN(1/J114 - 1) * ((-1)^(J114 <= 0.5))) * (((J114<= 0.5) * I$4 + (J114 > 0.5) * I$6) - I$5) / LN(9))) -> 440069.6731 | J114: 0.691910977 | K114: =MAX(K$3, MIN(K$7, K$5 + (-LN(1/L114 - 1) * ((-1)^(L114 <= 0.5))) * (((L114<= 0.5) * K$4 + (L114 > 0.5) * K$6) - K$5) / LN(9))) -> 572362.4876 | L114: 0.7540830615 | M114: =MAX(M$3, MIN(M$7, M$5 + (-LN(1/N114 - 1) * ((-1)^(N114 <= 0.5))) * (((N114<= 0.5) * M$4 + (N114 > 0.5) * M$6) - M$5) / LN(9))) -> 159266.8762 | N114: 0.3403575018 | R114: 2069950.291 | S114: 0.749
A115: 34255.40824 | B115: 0.05269439499 | C115: 84770.60872 | D115: 0.1458086427 | E115: =MAX(E$3, MIN(E$7, E$5 + (-LN(1/F115 - 1) * ((-1)^(F115 <= 0.5))) * (((F115<= 0.5) * E$4 + (F115 > 0.5) * E$6) - E$5) / LN(9))) -> 193836.5472 | F115: 0.6552336449 | G115: =MAX(G$3, MIN(G$7, G$5 + (-LN(1/H115 - 1) * ((-1)^(H115 <= 0.5))) * (((H115<= 0.5) * G$4 + (H115 > 0.5) * G$6) - G$5) / LN(9))) -> 226016.104 | H115: 0.1794326098 | I115: =MAX(I$3, MIN(I$7, I$5 + (-LN(1/J115 - 1) * ((-1)^(J115 <= 0.5))) * (((J115<= 0.5) * I$4 + (J115 > 0.5) * I$6) - I$5) / LN(9))) -> 751578.2727 | J115: 0.9525435079 | K115: =MAX(K$3, MIN(K$7, K$5 + (-LN(1/L115 - 1) * ((-1)^(L115 <= 0.5))) * (((L115<= 0.5) * K$4 + (L115 > 0.5) * K$6) - K$5) / LN(9))) -> 165868.6433 | L115: 0.05826579856 | M115: =MAX(M$3, MIN(M$7, M$5 + (-LN(1/N115 - 1) * ((-1)^(N115 <= 0.5))) * (((N115<= 0.5) * M$4 + (N115 > 0.5) * M$6) - M$5) / LN(9))) -> 169903.8838 | N115: 0.398336482 | R115: 1626229.468 | S115: 0.309
A116: 78147.81694 | B116: 0.2768215224 | C116: 206722.6226 | D116: 0.8576160898 | E116: =MAX(E$3, MIN(E$7, E$5 + (-LN(1/F116 - 1) * ((-1)^(F116 <= 0.5))) * (((F116<= 0.5) * E$4 + (F116 > 0.5) * E$6) - E$5) / LN(9))) -> 133070.7051 | F116: 0.3221411548 | G116: =MAX(G$3, MIN(G$7, G$5 + (-LN(1/H116 - 1) * ((-1)^(H116 <= 0.5))) * (((H116<= 0.5) * G$4 + (H116 > 0.5) * G$6) - G$5) / LN(9))) -> 443548.4265 | H116: 0.7153307484 | I116: =MAX(I$3, MIN(I$7, I$5 + (-LN(1/J116 - 1) * ((-1)^(J116 <= 0.5))) * (((J116<= 0.5) * I$4 + (J116 > 0.5) * I$6) - I$5) / LN(9))) -> 354556.7183 | J116: 0.55176802 | K116: =MAX(K$3, MIN(K$7, K$5 + (-LN(1/L116 - 1) * ((-1)^(L116 <= 0.5))) * (((L116<= 0.5) * K$4 + (L116 > 0.5) * K$6) - K$5) / LN(9))) -> 611976.7617 | L116: 0.795860942 | M116: =MAX(M$3, MIN(M$7, M$5 + (-LN(1/N116 - 1) * ((-1)^(N116 <= 0.5))) * (((N116<= 0.5) * M$4 + (N116 > 0.5) * M$6) - M$5) / LN(9))) -> 196427.2924 | N116: 0.5261298618 | R116: 2024450.344 | S116: 0.71
A117: 120723.642 | B117: 0.611909291 | C117: 200125.7843 | D117: 0.8389832301 | E117: =MAX(E$3, MIN(E$7, E$5 + (-LN(1/F117 - 1) * ((-1)^(F117 <= 0.5))) * (((F117<= 0.5) * E$4 + (F117 > 0.5) * E$6) - E$5) / LN(9))) -> 145450.5606 | F117: 0.4501851111 | G117: =MAX(G$3, MIN(G$7, G$5 + (-LN(1/H117 - 1) * ((-1)^(H117 <= 0.5))) * (((H117<= 0.5) * G$4 + (H117 > 0.5) * G$6) - G$5) / LN(9))) -> 434038.3824 | H117: 0.7015209016 | I117: =MAX(I$3, MIN(I$7, I$5 + (-LN(1/J117 - 1) * ((-1)^(J117 <= 0.5))) * (((J117<= 0.5) * I$4 + (J117 > 0.5) * I$6) - I$5) / LN(9))) -> 277475.195 | J117: 0.3025084146 | K117: =MAX(K$3, MIN(K$7, K$5 + (-LN(1/L117 - 1) * ((-1)^(L117 <= 0.5))) * (((L117<= 0.5) * K$4 + (L117 > 0.5) * K$6) - K$5) / LN(9))) -> 1293750 | L117: 0.9998617794 | M117: =MAX(M$3, MIN(M$7, M$5 + (-LN(1/N117 - 1) * ((-1)^(N117 <= 0.5))) * (((N117<= 0.5) * M$4 + (N117 > 0.5) * M$6) - M$5) / LN(9))) -> 245860.5963 | N117: 0.6646086833 | R117: 2717424.161 | S117: 0.981
A118: 96359.57543 | B118: 0.4600909265 | C118: 184228.664 | D118: 0.7860682803 | E118: =MAX(E$3, MIN(E$7, E$5 + (-LN(1/F118 - 1) * ((-1)^(F118 <= 0.5))) * (((F118<= 0.5) * E$4 + (F118 > 0.5) * E$6) - E$5) / LN(9))) -> 140556.447 | F118: 0.3977157068 | G118: =MAX(G$3, MIN(G$7, G$5 + (-LN(1/H118 - 1) * ((-1)^(H118 <= 0.5))) * (((H118<= 0.5) * G$4 + (H118 > 0.5) * G$6) - G$5) / LN(9))) -> 389463.5463 | H118: 0.6320775304 | I118: =MAX(I$3, MIN(I$7, I$5 + (-LN(1/J118 - 1) * ((-1)^(J118 <= 0.5))) * (((J118<= 0.5) * I$4 + (J118 > 0.5) * I$6) - I$5) / LN(9))) -> 171385.3118 | J118: 0.06296109852 | K118: =MAX(K$3, MIN(K$7, K$5 + (-LN(1/L118 - 1) * ((-1)^(L118 <= 0.5))) * (((L118<= 0.5) * K$4 + (L118 > 0.5) * K$6) - K$5) / LN(9))) -> 255286.1287 | L118: 0.1597592604 | M118: =MAX(M$3, MIN(M$7, M$5 + (-LN(1/N118 - 1) * ((-1)^(N118 <= 0.5))) * (((N118<= 0.5) * M$4 + (N118 > 0.5) * M$6) - M$5) / LN(9))) -> 344998.2659 | N118: 0.8636153563 | R118: 1582277.939 | S118: 0.26
A119: 122462.4716 | B119: 0.6209425873 | C119: 64621.81933 | D119: 0.06578661669 | E119: =MAX(E$3, MIN(E$7, E$5 + (-LN(1/F119 - 1) * ((-1)^(F119 <= 0.5))) * (((F119<= 0.5) * E$4 + (F119 > 0.5) * E$6) - E$5) / LN(9))) -> 117493.0252 | F119: 0.1933321228 | G119: =MAX(G$3, MIN(G$7, G$5 + (-LN(1/H119 - 1) * ((-1)^(H119 <= 0.5))) * (((H119<= 0.5) * G$4 + (H119 > 0.5) * G$6) - G$5) / LN(9))) -> 267291.5224 | H119: 0.3111677912 | I119: =MAX(I$3, MIN(I$7, I$5 + (-LN(1/J119 - 1) * ((-1)^(J119 <= 0.5))) * (((J119<= 0.5) * I$4 + (J119 > 0.5) * I$6) - I$5) / LN(9))) -> 623636.301 | J119: 0.8908786118 | K119: =MAX(K$3, MIN(K$7, K$5 + (-LN(1/L119 - 1) * ((-1)^(L119 <= 0.5))) * (((L119<= 0.5) * K$4 + (L119 > 0.5) * K$6) - K$5) / LN(9))) -> 294392.4482 | L119: 0.2370324784 | M119: =MAX(M$3, MIN(M$7, M$5 + (-LN(1/N119 - 1) * ((-1)^(N119 <= 0.5))) * (((N119<= 0.5) * M$4 + (N119 > 0.5) * M$6) - M$5) / LN(9))) -> 265141.6813 | N119: 0.7129687418 | R119: 1755039.269 | S119: 0.445
A120: 86772.76413 | B120: 0.3586417636 | C120: 144016.4118 | D120: 0.6029646553 | E120: =MAX(E$3, MIN(E$7, E$5 + (-LN(1/F120 - 1) * ((-1)^(F120 <= 0.5))) * (((F120<= 0.5) * E$4 + (F120 > 0.5) * E$6) - E$5) / LN(9))) -> 139239.5643 | F120: 0.3839391005 | G120: =MAX(G$3, MIN(G$7, G$5 + (-LN(1/H120 - 1) * ((-1)^(H120 <= 0.5))) * (((H120<= 0.5) * G$4 + (H120 > 0.5) * G$6) - G$5) / LN(9))) -> 203901.8047 | H120: 0.1291025715 | I120: =MAX(I$3, MIN(I$7, I$5 + (-LN(1/J120 - 1) * ((-1)^(J120 <= 0.5))) * (((J120<= 0.5) * I$4 + (J120 > 0.5) * I$6) - I$5) / LN(9))) -> 671710.675 | J120: 0.9196620307 | K120: =MAX(K$3, MIN(K$7, K$5 + (-LN(1/L120 - 1) * ((-1)^(L120 <= 0.5))) * (((L120<= 0.5) * K$4 + (L120 > 0.5) * K$6) - K$5) / LN(9))) -> 517068.9963 | L120: 0.6868336806 | M120: =MAX(M$3, MIN(M$7, M$5 + (-LN(1/N120 - 1) * ((-1)^(N120 <= 0.5))) * (((N120<= 0.5) * M$4 + (N120 > 0.5) * M$6) - M$5) / LN(9))) -> 132890.2476 | N120: 0.2175685806 | R120: 1895600.464 | S120: 0.584
A121: 109640.3694 | B121: 0.5527580266 | C121: 179416.2796 | D121: 0.7677496592 | E121: =MAX(E$3, MIN(E$7, E$5 + (-LN(1/F121 - 1) * ((-1)^(F121 <= 0.5))) * (((F121<= 0.5) * E$4 + (F121 > 0.5) * E$6) - E$5) / LN(9))) -> 111488.9132 | F121: 0.1554670252 | G121: =MAX(G$3, MIN(G$7, G$5 + (-LN(1/H121 - 1) * ((-1)^(H121 <= 0.5))) * (((H121<= 0.5) * G$4 + (H121 > 0.5) * G$6) - G$5) / LN(9))) -> 446730.4834 | H121: 0.7198646754 | I121: =MAX(I$3, MIN(I$7, I$5 + (-LN(1/J121 - 1) * ((-1)^(J121 <= 0.5))) * (((J121<= 0.5) * I$4 + (J121 > 0.5) * I$6) - I$5) / LN(9))) -> 606759.8283 | J121: 0.8787969661 | K121: =MAX(K$3, MIN(K$7, K$5 + (-LN(1/L121 - 1) * ((-1)^(L121 <= 0.5))) * (((L121<= 0.5) * K$4 + (L121 > 0.5) * K$6) - K$5) / LN(9))) -> 439706.2185 | L121: 0.5784559287 | M121: =MAX(M$3, MIN(M$7, M$5 + (-LN(1/N121 - 1) * ((-1)^(N121 <= 0.5))) * (((N121<= 0.5) * M$4 + (N121 > 0.5) * M$6) - M$5) / LN(9))) -> 216020.9379 | N121: 0.5827866624 | R121: 2109763.03 | S121: 0.785
A122: 314665.0736 | B122: 0.9911344196 | C122: 66698.14971 | D122: 0.07162143619 | E122: =MAX(E$3, MIN(E$7, E$5 + (-LN(1/F122 - 1) * ((-1)^(F122 <= 0.5))) * (((F122<= 0.5) * E$4 + (F122 > 0.5) * E$6) - E$5) / LN(9))) -> 146525.1911 | F122: 0.4618993257 | G122: =MAX(G$3, MIN(G$7, G$5 + (-LN(1/H122 - 1) * ((-1)^(H122 <= 0.5))) * (((H122<= 0.5) * G$4 + (H122 > 0.5) * G$6) - G$5) / LN(9))) -> 248997.3462 | H122: 0.2467099979 | I122: =MAX(I$3, MIN(I$7, I$5 + (-LN(1/J122 - 1) * ((-1)^(J122 <= 0.5))) * (((J122<= 0.5) * I$4 + (J122 > 0.5) * I$6) - I$5) / LN(9))) -> 188603.6292 | J122: 0.08335989049 | K122: =MAX(K$3, MIN(K$7, K$5 + (-LN(1/L122 - 1) * ((-1)^(L122 <= 0.5))) * (((L122<= 0.5) * K$4 + (L122 > 0.5) * K$6) - K$5) / LN(9))) -> 475476.0297 | L122: 0.6302407839 | M122: =MAX(M$3, MIN(M$7, M$5 + (-LN(1/N122 - 1) * ((-1)^(N122 <= 0.5))) * (((N122<= 0.5) * M$4 + (N122 > 0.5) * M$6) - M$5) / LN(9))) -> 124992.0999 | N122: 0.1877035442 | R122: 1565957.519 | S122: 0.246
A123: 85367.46784 | B123: 0.3445643676 | C123: 324962.2692 | D123: 0.9877948872 | E123: =MAX(E$3, MIN(E$7, E$5 + (-LN(1/F123 - 1) * ((-1)^(F123 <= 0.5))) * (((F123<= 0.5) * E$4 + (F123 > 0.5) * E$6) - E$5) / LN(9))) -> 132484.6325 | F123: 0.3165431582 | G123: =MAX(G$3, MIN(G$7, G$5 + (-LN(1/H123 - 1) * ((-1)^(H123 <= 0.5))) * (((H123<= 0.5) * G$4 + (H123 > 0.5) * G$6) - G$5) / LN(9))) -> 485802.8263 | H123: 0.7718017123 | I123: =MAX(I$3, MIN(I$7, I$5 + (-LN(1/J123 - 1) * ((-1)^(J123 <= 0.5))) * (((J123<= 0.5) * I$4 + (J123 > 0.5) * I$6) - I$5) / LN(9))) -> 421231.6004 | J123: 0.662982961 | K123: =MAX(K$3, MIN(K$7, K$5 + (-LN(1/L123 - 1) * ((-1)^(L123 <= 0.5))) * (((L123<= 0.5) * K$4 + (L123 > 0.5) * K$6) - K$5) / LN(9))) -> 587198.0332 | L123: 0.7703752929 | M123: =MAX(M$3, MIN(M$7, M$5 + (-LN(1/N123 - 1) * ((-1)^(N123 <= 0.5))) * (((N123<= 0.5) * M$4 + (N123 > 0.5) * M$6) - M$5) / LN(9))) -> 100583.2282 | N123: 0.1153650339 | R123: 2137630.058 | S123: 0.803
A124: 82623.75963 | B124: 0.3178673359 | C124: 325537.0696 | D124: 0.9879462179 | E124: =MAX(E$3, MIN(E$7, E$5 + (-LN(1/F124 - 1) * ((-1)^(F124 <= 0.5))) * (((F124<= 0.5) * E$4 + (F124 > 0.5) * E$6) - E$5) / LN(9))) -> 99939.08557 | F124: 0.099759341 | G124: =MAX(G$3, MIN(G$7, G$5 + (-LN(1/H124 - 1) * ((-1)^(H124 <= 0.5))) * (((H124<= 0.5) * G$4 + (H124 > 0.5) * G$6) - G$5) / LN(9))) -> 427202.2149 | H124: 0.6913599486 | I124: =MAX(I$3, MIN(I$7, I$5 + (-LN(1/J124 - 1) * ((-1)^(J124 <= 0.5))) * (((J124<= 0.5) * I$4 + (J124 > 0.5) * I$6) - I$5) / LN(9))) -> 249469.5621 | J124: 0.2095469114 | K124: =MAX(K$3, MIN(K$7, K$5 + (-LN(1/L124 - 1) * ((-1)^(L124 <= 0.5))) * (((L124<= 0.5) * K$4 + (L124 > 0.5) * K$6) - K$5) / LN(9))) -> 558561.644 | L124: 0.7382432062 | M124: =MAX(M$3, MIN(M$7, M$5 + (-LN(1/N124 - 1) * ((-1)^(N124 <= 0.5))) * (((N124<= 0.5) * M$4 + (N124 > 0.5) * M$6) - M$5) / LN(9))) -> 258581.9164 | N124: 0.6969837467 | R124: 2001915.252 | S124: 0.693
A125: 91168.86361 | B125: 0.4041796354 | C125: 167120.7236 | D125: 0.7161587771 | E125: =MAX(E$3, MIN(E$7, E$5 + (-LN(1/F125 - 1) * ((-1)^(F125 <= 0.5))) * (((F125<= 0.5) * E$4 + (F125 > 0.5) * E$6) - E$5) / LN(9))) -> 240378.4923 | F125: 0.7898263411 | G125: =MAX(G$3, MIN(G$7, G$5 + (-LN(1/H125 - 1) * ((-1)^(H125 <= 0.5))) * (((H125<= 0.5) * G$4 + (H125 > 0.5) * G$6) - G$5) / LN(9))) -> 298142.1042 | H125: 0.4372377446 | I125: =MAX(I$3, MIN(I$7, I$5 + (-LN(1/J125 - 1) * ((-1)^(J125 <= 0.5))) * (((J125<= 0.5) * I$4 + (J125 > 0.5) * I$6) - I$5) / LN(9))) -> 522785.4474 | J125: 0.8006964621 | K125: =MAX(K$3, MIN(K$7, K$5 + (-LN(1/L125 - 1) * ((-1)^(L125 <= 0.5))) * (((L125<= 0.5) * K$4 + (L125 > 0.5) * K$6) - K$5) / LN(9))) -> 522348.0066 | L125: 0.6936746895 | M125: =MAX(M$3, MIN(M$7, M$5 + (-LN(1/N125 - 1) * ((-1)^(N125 <= 0.5))) * (((N125<= 0.5) * M$4 + (N125 > 0.5) * M$6) - M$5) / LN(9))) -> 158856.195 | N125: 0.3381998478 | R125: 2000799.833 | S125: 0.692
A126: 73282.39198 | B126: 0.2361161868 | C126: 193256.8614 | D126: 0.8175381614 | E126: =MAX(E$3, MIN(E$7, E$5 + (-LN(1/F126 - 1) * ((-1)^(F126 <= 0.5))) * (((F126<= 0.5) * E$4 + (F126 > 0.5) * E$6) - E$5) / LN(9))) -> 141086.7458 | F126: 0.4033109129 | G126: =MAX(G$3, MIN(G$7, G$5 + (-LN(1/H126 - 1) * ((-1)^(H126 <= 0.5))) * (((H126<= 0.5) * G$4 + (H126 > 0.5) * G$6) - G$5) / LN(9))) -> 241979.8879 | H126: 0.2245076758 | I126: =MAX(I$3, MIN(I$7, I$5 + (-LN(1/J126 - 1) * ((-1)^(J126 <= 0.5))) * (((J126<= 0.5) * I$4 + (J126 > 0.5) * I$6) - I$5) / LN(9))) -> 326433.0757 | J126: 0.5025190099 | K126: =MAX(K$3, MIN(K$7, K$5 + (-LN(1/L126 - 1) * ((-1)^(L126 <= 0.5))) * (((L126<= 0.5) * K$4 + (L126 > 0.5) * K$6) - K$5) / LN(9))) -> 646021.9652 | L126: 0.8273528801 | M126: =MAX(M$3, MIN(M$7, M$5 + (-LN(1/N126 - 1) * ((-1)^(N126 <= 0.5))) * (((N126<= 0.5) * M$4 + (N126 > 0.5) * M$6) - M$5) / LN(9))) -> 330296.6345 | N126: 0.8420241869 | R126: 1952357.562 | S126: 0.637
A127: 76697.30679 | B127: 0.2642441203 | C127: 101728.5765 | D127: 0.2645113642 | E127: =MAX(E$3, MIN(E$7, E$5 + (-LN(1/F127 - 1) * ((-1)^(F127 <= 0.5))) * (((F127<= 0.5) * E$4 + (F127 > 0.5) * E$6) - E$5) / LN(9))) -> 217805.9086 | F127: 0.7297258417 | G127: =MAX(G$3, MIN(G$7, G$5 + (-LN(1/H127 - 1) * ((-1)^(H127 <= 0.5))) * (((H127<= 0.5) * G$4 + (H127 > 0.5) * G$6) - G$5) / LN(9))) -> 285472.3 | H127: 0.3834128299 | I127: =MAX(I$3, MIN(I$7, I$5 + (-LN(1/J127 - 1) * ((-1)^(J127 <= 0.5))) * (((J127<= 0.5) * I$4 + (J127 > 0.5) * I$6) - I$5) / LN(9))) -> 334307.012 | J127: 0.5163538409 | K127: =MAX(K$3, MIN(K$7, K$5 + (-LN(1/L127 - 1) * ((-1)^(L127 <= 0.5))) * (((L127<= 0.5) * K$4 + (L127 > 0.5) * K$6) - K$5) / LN(9))) -> 337008.9436 | L127: 0.3466167992 | M127: =MAX(M$3, MIN(M$7, M$5 + (-LN(1/N127 - 1) * ((-1)^(N127 <= 0.5))) * (((N127<= 0.5) * M$4 + (N127 > 0.5) * M$6) - M$5) / LN(9))) -> 183703.7577 | N127: 0.4777714703 | R127: 1536723.805 | S127: 0.215
A128: 87857.58137 | B128: 0.3696794053 | C128: 115791.4938 | D128: 0.4001924922 | E128: =MAX(E$3, MIN(E$7, E$5 + (-LN(1/F128 - 1) * ((-1)^(F128 <= 0.5))) * (((F128<= 0.5) * E$4 + (F128 > 0.5) * E$6) - E$5) / LN(9))) -> 326395.3202 | F128: 0.9298160784 | G128: =MAX(G$3, MIN(G$7, G$5 + (-LN(1/H128 - 1) * ((-1)^(H128 <= 0.5))) * (((H128<= 0.5) * G$4 + (H128 > 0.5) * G$6) - G$5) / LN(9))) -> 278294.3137 | H128: 0.3540553421 | I128: =MAX(I$3, MIN(I$7, I$5 + (-LN(1/J128 - 1) * ((-1)^(J128 <= 0.5))) * (((J128<= 0.5) * I$4 + (J128 > 0.5) * I$6) - I$5) / LN(9))) -> 400488.1025 | J128: 0.6296617062 | K128: =MAX(K$3, MIN(K$7, K$5 + (-LN(1/L128 - 1) * ((-1)^(L128 <= 0.5))) * (((L128<= 0.5) * K$4 + (L128 > 0.5) * K$6) - K$5) / LN(9))) -> 193960.7305 | L128: 0.08091379037 | M128: =MAX(M$3, MIN(M$7, M$5 + (-LN(1/N128 - 1) * ((-1)^(N128 <= 0.5))) * (((N128<= 0.5) * M$4 + (N128 > 0.5) * M$6) - M$5) / LN(9))) -> 71857.7934 | N128: 0.06236751115 | R128: 1474645.336 | S128: 0.157
A129: 118048.5223 | B129: 0.5978624622 | C129: 210322.7268 | D129: 0.8670048516 | E129: =MAX(E$3, MIN(E$7, E$5 + (-LN(1/F129 - 1) * ((-1)^(F129 <= 0.5))) * (((F129<= 0.5) * E$4 + (F129 > 0.5) * E$6) - E$5) / LN(9))) -> 117692.8016 | F129: 0.1947049486 | G129: =MAX(G$3, MIN(G$7, G$5 + (-LN(1/H129 - 1) * ((-1)^(H129 <= 0.5))) * (((H129<= 0.5) * G$4 + (H129 > 0.5) * G$6) - G$5) / LN(9))) -> 244709.7795 | H129: 0.2329724151 | I129: =MAX(I$3, MIN(I$7, I$5 + (-LN(1/J129 - 1) * ((-1)^(J129 <= 0.5))) * (((J129<= 0.5) * I$4 + (J129 > 0.5) * I$6) - I$5) / LN(9))) -> 544533.4828 | J129: 0.8239825137 | K129: =MAX(K$3, MIN(K$7, K$5 + (-LN(1/L129 - 1) * ((-1)^(L129 <= 0.5))) * (((L129<= 0.5) * K$4 + (L129 > 0.5) * K$6) - K$5) / LN(9))) -> 600614.4488 | L129: 0.7844436812 | M129: =MAX(M$3, MIN(M$7, M$5 + (-LN(1/N129 - 1) * ((-1)^(N129 <= 0.5))) * (((N129<= 0.5) * M$4 + (N129 > 0.5) * M$6) - M$5) / LN(9))) -> 113665.6392 | N129: 0.1505286858 | R129: 1949587.401 | S129: 0.633
A130: 91923.43145 | B130: 0.4121896753 | C130: 114521.0113 | D130: 0.3868686801 | E130: =MAX(E$3, MIN(E$7, E$5 + (-LN(1/F130 - 1) * ((-1)^(F130 <= 0.5))) * (((F130<= 0.5) * E$4 + (F130 > 0.5) * E$6) - E$5) / LN(9))) -> 185127.867 | F130: 0.6258745425 | G130: =MAX(G$3, MIN(G$7, G$5 + (-LN(1/H130 - 1) * ((-1)^(H130 <= 0.5))) * (((H130<= 0.5) * G$4 + (H130 > 0.5) * G$6) - G$5) / LN(9))) -> 324635.9139 | H130: 0.5213193286 | I130: =MAX(I$3, MIN(I$7, I$5 + (-LN(1/J130 - 1) * ((-1)^(J130 <= 0.5))) * (((J130<= 0.5) * I$4 + (J130 > 0.5) * I$6) - I$5) / LN(9))) -> 182362.2004 | J130: 0.07535091487 | K130: =MAX(K$3, MIN(K$7, K$5 + (-LN(1/L130 - 1) * ((-1)^(L130 <= 0.5))) * (((L130<= 0.5) * K$4 + (L130 > 0.5) * K$6) - K$5) / LN(9))) -> 334439.11 | L130: 0.3393460789 | M130: =MAX(M$3, MIN(M$7, M$5 + (-LN(1/N130 - 1) * ((-1)^(N130 <= 0.5))) * (((N130<= 0.5) * M$4 + (N130 > 0.5) * M$6) - M$5) / LN(9))) -> 398536.9831 | N130: 0.9222303262 | R130: 1631546.517 | S130: 0.314
A131: 63230.47136 | B131: 0.1657823936 | C131: 208087.0189 | D131: 0.8612377308 | E131: =MAX(E$3, MIN(E$7, E$5 + (-LN(1/F131 - 1) * ((-1)^(F131 <= 0.5))) * (((F131<= 0.5) * E$4 + (F131 > 0.5) * E$6) - E$5) / LN(9))) -> 226561.5463 | F131: 0.7542642641 | G131: =MAX(G$3, MIN(G$7, G$5 + (-LN(1/H131 - 1) * ((-1)^(H131 <= 0.5))) * (((H131<= 0.5) * G$4 + (H131 > 0.5) * G$6) - G$5) / LN(9))) -> 742756.2853 | H131: 0.9536989312 | I131: =MAX(I$3, MIN(I$7, I$5 + (-LN(1/J131 - 1) * ((-1)^(J131 <= 0.5))) * (((J131<= 0.5) * I$4 + (J131 > 0.5) * I$6) - I$5) / LN(9))) -> 694011.8552 | J131: 0.9305110456 | K131: =MAX(K$3, MIN(K$7, K$5 + (-LN(1/L131 - 1) * ((-1)^(L131 <= 0.5))) * (((L131<= 0.5) * K$4 + (L131 > 0.5) * K$6) - K$5) / LN(9))) -> 1005986.611 | L131: 0.9769965423 | M131: =MAX(M$3, MIN(M$7, M$5 + (-LN(1/N131 - 1) * ((-1)^(N131 <= 0.5))) * (((N131<= 0.5) * M$4 + (N131 > 0.5) * M$6) - M$5) / LN(9))) -> 102206.6195 | N131: 0.1193051963 | R131: 3042840.408 | S131: 0.998
A132: 163930.9682 | B132: 0.8029297474 | C132: 158727.8682 | D132: 0.6772313238 | E132: =MAX(E$3, MIN(E$7, E$5 + (-LN(1/F132 - 1) * ((-1)^(F132 <= 0.5))) * (((F132<= 0.5) * E$4 + (F132 > 0.5) * E$6) - E$5) / LN(9))) -> 145695.0012 | F132: 0.4528453065 | G132: =MAX(G$3, MIN(G$7, G$5 + (-LN(1/H132 - 1) * ((-1)^(H132 <= 0.5))) * (((H132<= 0.5) * G$4 + (H132 > 0.5) * G$6) - G$5) / LN(9))) -> 454519.3008 | H132: 0.7307742918 | I132: =MAX(I$3, MIN(I$7, I$5 + (-LN(1/J132 - 1) * ((-1)^(J132 <= 0.5))) * (((J132<= 0.5) * I$4 + (J132 > 0.5) * I$6) - I$5) / LN(9))) -> 438971.0278 | J132: 0.6902618636 | K132: =MAX(K$3, MIN(K$7, K$5 + (-LN(1/L132 - 1) * ((-1)^(L132 <= 0.5))) * (((L132<= 0.5) * K$4 + (L132 > 0.5) * K$6) - K$5) / LN(9))) -> 489117.2458 | L132: 0.6492931328 | M132: =MAX(M$3, MIN(M$7, M$5 + (-LN(1/N132 - 1) * ((-1)^(N132 <= 0.5))) * (((N132<= 0.5) * M$4 + (N132 > 0.5) * M$6) - M$5) / LN(9))) -> 141895.7803 | N132: 0.2556258528 | R132: 1992857.192 | S132: 0.682
A133: 7987.65125 | B133: 0.01723486358 | C133: 169031.1627 | D133: 0.7246136367 | E133: =MAX(E$3, MIN(E$7, E$5 + (-LN(1/F133 - 1) * ((-1)^(F133 <= 0.5))) * (((F133<= 0.5) * E$4 + (F133 > 0.5) * E$6) - E$5) / LN(9))) -> 246593.343 | F133: 0.8045400289 | G133: =MAX(G$3, MIN(G$7, G$5 + (-LN(1/H133 - 1) * ((-1)^(H133 <= 0.5))) * (((H133<= 0.5) * G$4 + (H133 > 0.5) * G$6) - G$5) / LN(9))) -> 348996.0486 | H133: 0.5638022927 | I133: =MAX(I$3, MIN(I$7, I$5 + (-LN(1/J133 - 1) * ((-1)^(J133 <= 0.5))) * (((J133<= 0.5) * I$4 + (J133 > 0.5) * I$6) - I$5) / LN(9))) -> 31667.6505 | J133: 0.005730893885 | K133: =MAX(K$3, MIN(K$7, K$5 + (-LN(1/L133 - 1) * ((-1)^(L133 <= 0.5))) * (((L133<= 0.5) * K$4 + (L133 > 0.5) * K$6) - K$5) / LN(9))) -> 289380.9501 | L133: 0.2258419729 | M133: =MAX(M$3, MIN(M$7, M$5 + (-LN(1/N133 - 1) * ((-1)^(N133 <= 0.5))) * (((N133<= 0.5) * M$4 + (N133 > 0.5) * M$6) - M$5) / LN(9))) -> 482294.3355 | N133: 0.9693667375 | R133: 1575951.142 | S133: 0.252
A134: 140414.7621 | B134: 0.7084779075 | C134: 86422.25562 | D134: 0.1550828137 | E134: =MAX(E$3, MIN(E$7, E$5 + (-LN(1/F134 - 1) * ((-1)^(F134 <= 0.5))) * (((F134<= 0.5) * E$4 + (F134 > 0.5) * E$6) - E$5) / LN(9))) -> 25000 | F134: 0.003617833862 | G134: =MAX(G$3, MIN(G$7, G$5 + (-LN(1/H134 - 1) * ((-1)^(H134 <= 0.5))) * (((H134<= 0.5) * G$4 + (H134 > 0.5) * G$6) - G$5) / LN(9))) -> 387578.2554 | H134: 0.6289894819 | I134: =MAX(I$3, MIN(I$7, I$5 + (-LN(1/J134 - 1) * ((-1)^(J134 <= 0.5))) * (((J134<= 0.5) * I$4 + (J134 > 0.5) * I$6) - I$5) / LN(9))) -> 338656.8368 | J134: 0.5239872818 | K134: =MAX(K$3, MIN(K$7, K$5 + (-LN(1/L134 - 1) * ((-1)^(L134 <= 0.5))) * (((L134<= 0.5) * K$4 + (L134 > 0.5) * K$6) - K$5) / LN(9))) -> 335774.4469 | L134: 0.3431148975 | M134: =MAX(M$3, MIN(M$7, M$5 + (-LN(1/N134 - 1) * ((-1)^(N134 <= 0.5))) * (((N134<= 0.5) * M$4 + (N134 > 0.5) * M$6) - M$5) / LN(9))) -> 153053.7787 | N134: 0.308462259 | R134: 1466900.336 | S134: 0.151
A135: 61087.2683 | B135: 0.1531636886 | C135: 117774.8796 | D135: 0.4212841033 | E135: =MAX(E$3, MIN(E$7, E$5 + (-LN(1/F135 - 1) * ((-1)^(F135 <= 0.5))) * (((F135<= 0.5) * E$4 + (F135 > 0.5) * E$6) - E$5) / LN(9))) -> 174390.89 | F135: 0.5883822644 | G135: =MAX(G$3, MIN(G$7, G$5 + (-LN(1/H135 - 1) * ((-1)^(H135 <= 0.5))) * (((H135<= 0.5) * G$4 + (H135 > 0.5) * G$6) - G$5) / LN(9))) -> 704605.7424 | H135: 0.9403042126 | I135: =MAX(I$3, MIN(I$7, I$5 + (-LN(1/J135 - 1) * ((-1)^(J135 <= 0.5))) * (((J135<= 0.5) * I$4 + (J135 > 0.5) * I$6) - I$5) / LN(9))) -> 30633.69614 | J135: 0.00562825868 | K135: =MAX(K$3, MIN(K$7, K$5 + (-LN(1/L135 - 1) * ((-1)^(L135 <= 0.5))) * (((L135<= 0.5) * K$4 + (L135 > 0.5) * K$6) - K$5) / LN(9))) -> 195914.7265 | L135: 0.08275712951 | M135: =MAX(M$3, MIN(M$7, M$5 + (-LN(1/N135 - 1) * ((-1)^(N135 <= 0.5))) * (((N135<= 0.5) * M$4 + (N135 > 0.5) * M$6) - M$5) / LN(9))) -> 184805.7773 | N135: 0.484219077 | R135: 1469212.98 | S135: 0.152
A136: 157327.8907 | B136: 0.7789611171 | C136: 103347.7084 | D136: 0.2785834716 | E136: =MAX(E$3, MIN(E$7, E$5 + (-LN(1/F136 - 1) * ((-1)^(F136 <= 0.5))) * (((F136<= 0.5) * E$4 + (F136 > 0.5) * E$6) - E$5) / LN(9))) -> 171318.9533 | F136: 0.5774425445 | G136: =MAX(G$3, MIN(G$7, G$5 + (-LN(1/H136 - 1) * ((-1)^(H136 <= 0.5))) * (((H136<= 0.5) * G$4 + (H136 > 0.5) * G$6) - G$5) / LN(9))) -> 693957.833 | H136: 0.9359606252 | I136: =MAX(I$3, MIN(I$7, I$5 + (-LN(1/J136 - 1) * ((-1)^(J136 <= 0.5))) * (((J136<= 0.5) * I$4 + (J136 > 0.5) * I$6) - I$5) / LN(9))) -> 311470.6297 | J136: 0.4408245051 | K136: =MAX(K$3, MIN(K$7, K$5 + (-LN(1/L136 - 1) * ((-1)^(L136 <= 0.5))) * (((L136<= 0.5) * K$4 + (L136 > 0.5) * K$6) - K$5) / LN(9))) -> 363808.2258 | L136: 0.426177618 | M136: =MAX(M$3, MIN(M$7, M$5 + (-LN(1/N136 - 1) * ((-1)^(N136 <= 0.5))) * (((N136<= 0.5) * M$4 + (N136 > 0.5) * M$6) - M$5) / LN(9))) -> 157007.1299 | N136: 0.3285692432 | R136: 1958238.371 | S136: 0.644
A137: 23989.46262 | B137: 0.03421607992 | C137: 136108.4823 | D137: 0.5607184368 | E137: =MAX(E$3, MIN(E$7, E$5 + (-LN(1/F137 - 1) * ((-1)^(F137 <= 0.5))) * (((F137<= 0.5) * E$4 + (F137 > 0.5) * E$6) - E$5) / LN(9))) -> 177266.1307 | F137: 0.5985431947 | G137: =MAX(G$3, MIN(G$7, G$5 + (-LN(1/H137 - 1) * ((-1)^(H137 <= 0.5))) * (((H137<= 0.5) * G$4 + (H137 > 0.5) * G$6) - G$5) / LN(9))) -> 253456.5527 | H137: 0.2615643345 | I137: =MAX(I$3, MIN(I$7, I$5 + (-LN(1/J137 - 1) * ((-1)^(J137 <= 0.5))) * (((J137<= 0.5) * I$4 + (J137 > 0.5) * I$6) - I$5) / LN(9))) -> 374849.2799 | J137: 0.5867379014 | K137: =MAX(K$3, MIN(K$7, K$5 + (-LN(1/L137 - 1) * ((-1)^(L137 <= 0.5))) * (((L137<= 0.5) * K$4 + (L137 > 0.5) * K$6) - K$5) / LN(9))) -> 359366.629 | L137: 0.4125992578 | M137: =MAX(M$3, MIN(M$7, M$5 + (-LN(1/N137 - 1) * ((-1)^(N137 <= 0.5))) * (((N137<= 0.5) * M$4 + (N137 > 0.5) * M$6) - M$5) / LN(9))) -> 351151.1526 | N137: 0.8718874442 | R137: 1676187.69 | S137: 0.364
A138: 41180.95198 | B138: 0.07012484651 | C138: 147717.6393 | D138: 0.6222613326 | E138: =MAX(E$3, MIN(E$7, E$5 + (-LN(1/F138 - 1) * ((-1)^(F138 <= 0.5))) * (((F138<= 0.5) * E$4 + (F138 > 0.5) * E$6) - E$5) / LN(9))) -> 215637.0276 | F138: 0.7234144134 | G138: =MAX(G$3, MIN(G$7, G$5 + (-LN(1/H138 - 1) * ((-1)^(H138 <= 0.5))) * (((H138<= 0.5) * G$4 + (H138 > 0.5) * G$6) - G$5) / LN(9))) -> 96188.21445 | H138: 0.02183242879 | I138: =MAX(I$3, MIN(I$7, I$5 + (-LN(1/J138 - 1) * ((-1)^(J138 <= 0.5))) * (((J138<= 0.5) * I$4 + (J138 > 0.5) * I$6) - I$5) / LN(9))) -> 370161.7143 | J138: 0.5787239738 | K138: =MAX(K$3, MIN(K$7, K$5 + (-LN(1/L138 - 1) * ((-1)^(L138 <= 0.5))) * (((L138<= 0.5) * K$4 + (L138 > 0.5) * K$6) - K$5) / LN(9))) -> 321440.3476 | L138: 0.303768457 | M138: =MAX(M$3, MIN(M$7, M$5 + (-LN(1/N138 - 1) * ((-1)^(N138 <= 0.5))) * (((N138<= 0.5) * M$4 + (N138 > 0.5) * M$6) - M$5) / LN(9))) -> 60171.03612 | N138: 0.04814401842 | R138: 1252496.931 | S138: 0.035
A139: =MAX(A$3, MIN(A$7, A$5 + (-LN(1/B139 - 1) * ((-1)^(B139 <= 0.5))) * (((B139<= 0.5) * A$4 + (B139 > 0.5) * A$6) - A$5) / LN(9))) -> 209784.2868 | B139: 0.9177534495 | C139: 215071.1314 | D139: 0.8785814592 | E139: =MAX(E$3, MIN(E$7, E$5 + (-LN(1/F139 - 1) * ((-1)^(F139 <= 0.5))) * (((F139<= 0.5) * E$4 + (F139 > 0.5) * E$6) - E$5) / LN(9))) -> 514643.2849 | F139: 0.9952334501 | G139: =MAX(G$3, MIN(G$7, G$5 + (-LN(1/H139 - 1) * ((-1)^(H139 <= 0.5))) * (((H139<= 0.5) * G$4 + (H139 > 0.5) * G$6) - G$5) / LN(9))) -> 301482.2118 | H139: 0.4517336582 | I139: =MAX(I$3, MIN(I$7, I$5 + (-LN(1/J139 - 1) * ((-1)^(J139 <= 0.5))) * (((J139<= 0.5) * I$4 + (J139 > 0.5) * I$6) - I$5) / LN(9))) -> 444491.1001 | J139: 0.6984980918 | K139: =MAX(K$3, MIN(K$7, K$5 + (-LN(1/L139 - 1) * ((-1)^(L139 <= 0.5))) * (((L139<= 0.5) * K$4 + (L139 > 0.5) * K$6) - K$5) / LN(9))) -> 277522.6957 | L139: 0.2008761109 | M139: =MAX(M$3, MIN(M$7, M$5 + (-LN(1/N139 - 1) * ((-1)^(N139 <= 0.5))) * (((N139<= 0.5) * M$4 + (N139 > 0.5) * M$6) - M$5) / LN(9))) -> 165762.2125 | N139: 0.3753178069 | R139: 2128756.923 | S139: =_xlfn.PERCENTRANK.INC($R$10:$R$1009,$R139) -> 0.797
A140: 75709.08131 | B140: 0.2558879317 | C140: 202774.247 | D140: 0.8466902928 | E140: =MAX(E$3, MIN(E$7, E$5 + (-LN(1/F140 - 1) * ((-1)^(F140 <= 0.5))) * (((F140<= 0.5) * E$4 + (F140 > 0.5) * E$6) - E$5) / LN(9))) -> 135675.1977 | F140: 0.3476247924 | G140: =MAX(G$3, MIN(G$7, G$5 + (-LN(1/H140 - 1) * ((-1)^(H140 <= 0.5))) * (((H140<= 0.5) * G$4 + (H140 > 0.5) * G$6) - G$5) / LN(9))) -> 658262.9248 | H140: 0.9191683092 | I140: =MAX(I$3, MIN(I$7, I$5 + (-LN(1/J140 - 1) * ((-1)^(J140 <= 0.5))) * (((J140<= 0.5) * I$4 + (J140 > 0.5) * I$6) - I$5) / LN(9))) -> 448975.4243 | J140: 0.7050963813 | K140: =MAX(K$3, MIN(K$7, K$5 + (-LN(1/L140 - 1) * ((-1)^(L140 <= 0.5))) * (((L140<= 0.5) * K$4 + (L140 > 0.5) * K$6) - K$5) / LN(9))) -> 398201.46 | L140: 0.516210531 | M140: =MAX(M$3, MIN(M$7, M$5 + (-LN(1/N140 - 1) * ((-1)^(N140 <= 0.5))) * (((N140<= 0.5) * M$4 + (N140 > 0.5) * M$6) - M$5) / LN(9))) -> 79919.27253 | N140: 0.07437314981 | R140: 1999517.608 | S140: 0.691
A141: 80030.05988 | B141: 0.293681823 | C141: 101636.1237 | D141: 0.2637217251 | E141: =MAX(E$3, MIN(E$7, E$5 + (-LN(1/F141 - 1) * ((-1)^(F141 <= 0.5))) * (((F141<= 0.5) * E$4 + (F141 > 0.5) * E$6) - E$5) / LN(9))) -> 134251.0474 | F141: 0.3335705903 | G141: =MAX(G$3, MIN(G$7, G$5 + (-LN(1/H141 - 1) * ((-1)^(H141 <= 0.5))) * (((H141<= 0.5) * G$4 + (H141 > 0.5) * G$6) - G$5) / LN(9))) -> 245696.8244 | H141: 0.2360871609 | I141: =MAX(I$3, MIN(I$7, I$5 + (-LN(1/J141 - 1) * ((-1)^(J141 <= 0.5))) * (((J141<= 0.5) * I$4 + (J141 > 0.5) * I$6) - I$5) / LN(9))) -> 247887.623 | J141: 0.2049782366 | K141: =MAX(K$3, MIN(K$7, K$5 + (-LN(1/L141 - 1) * ((-1)^(L141 <= 0.5))) * (((L141<= 0.5) * K$4 + (L141 > 0.5) * K$6) - K$5) / LN(9))) -> 419611.179 | L141: 0.5485059132 | M141: =MAX(M$3, MIN(M$7, M$5 + (-LN(1/N141 - 1) * ((-1)^(N141 <= 0.5))) * (((N141<= 0.5) * M$4 + (N141 > 0.5) * M$6) - M$5) / LN(9))) -> 103148.7975 | N141: 0.1216449463 | R141: 1332261.655 | S141: 0.072
A142: 214025.4647 | B142: 0.9245192025 | C142: 121648.3874 | D142: 0.4632451907 | E142: =MAX(E$3, MIN(E$7, E$5 + (-LN(1/F142 - 1) * ((-1)^(F142 <= 0.5))) * (((F142<= 0.5) * E$4 + (F142 > 0.5) * E$6) - E$5) / LN(9))) -> 353138.9836 | F142: 0.9514601695 | G142: =MAX(G$3, MIN(G$7, G$5 + (-LN(1/H142 - 1) * ((-1)^(H142 <= 0.5))) * (((H142<= 0.5) * G$4 + (H142 > 0.5) * G$6) - G$5) / LN(9))) -> 541994.6007 | H142: 0.833911121 | I142: =MAX(I$3, MIN(I$7, I$5 + (-LN(1/J142 - 1) * ((-1)^(J142 <= 0.5))) * (((J142<= 0.5) * I$4 + (J142 > 0.5) * I$6) - I$5) / LN(9))) -> 1106250 | J142: 0.9977832272 | K142: =MAX(K$3, MIN(K$7, K$5 + (-LN(1/L142 - 1) * ((-1)^(L142 <= 0.5))) * (((L142<= 0.5) * K$4 + (L142 > 0.5) * K$6) - K$5) / LN(9))) -> 468990.1306 | L142: 0.6210334204 | M142: =MAX(M$3, MIN(M$7, M$5 + (-LN(1/N142 - 1) * ((-1)^(N142 <= 0.5))) * (((N142<= 0.5) * M$4 + (N142 > 0.5) * M$6) - M$5) / LN(9))) -> 155353.1437 | N142: 0.3200748446 | R142: 2961400.711 | S142: 0.994
A143: 84031.23748 | B143: 0.3314267489 | C143: 184438.9622 | D143: 0.7868442968 | E143: =MAX(E$3, MIN(E$7, E$5 + (-LN(1/F143 - 1) * ((-1)^(F143 <= 0.5))) * (((F143<= 0.5) * E$4 + (F143 > 0.5) * E$6) - E$5) / LN(9))) -> 216498.1964 | F143: 0.72593128 | G143: =MAX(G$3, MIN(G$7, G$5 + (-LN(1/H143 - 1) * ((-1)^(H143 <= 0.5))) * (((H143<= 0.5) * G$4 + (H143 > 0.5) * G$6) - G$5) / LN(9))) -> 296534.373 | H143: 0.4302967453 | I143: =MAX(I$3, MIN(I$7, I$5 + (-LN(1/J143 - 1) * ((-1)^(J143 <= 0.5))) * (((J143<= 0.5) * I$4 + (J143 > 0.5) * I$6) - I$5) / LN(9))) -> 367480.8998 | J143: 0.5741218165 | K143: =MAX(K$3, MIN(K$7, K$5 + (-LN(1/L143 - 1) * ((-1)^(L143 <= 0.5))) * (((L143<= 0.5) * K$4 + (L143 > 0.5) * K$6) - K$5) / LN(9))) -> 116408.4948 | L143: 0.03217977813 | M143: =MAX(M$3, MIN(M$7, M$5 + (-LN(1/N143 - 1) * ((-1)^(N143 <= 0.5))) * (((N143<= 0.5) * M$4 + (N143 > 0.5) * M$6) - M$5) / LN(9))) -> 56249.8578 | N143: 0.0441031947 | R143: 1321642.022 | S143: 0.063
A144: 172729.8513 | B144: 0.8317440133 | C144: 152311.0441 | D144: 0.6456757467 | E144: =MAX(E$3, MIN(E$7, E$5 + (-LN(1/F144 - 1) * ((-1)^(F144 <= 0.5))) * (((F144<= 0.5) * E$4 + (F144 > 0.5) * E$6) - E$5) / LN(9))) -> 319064.2229 | F144: 0.9224764751 | G144: =MAX(G$3, MIN(G$7, G$5 + (-LN(1/H144 - 1) * ((-1)^(H144 <= 0.5))) * (((H144<= 0.5) * G$4 + (H144 > 0.5) * G$6) - G$5) / LN(9))) -> 348250.565 | H144: 0.5625128057 | I144: =MAX(I$3, MIN(I$7, I$5 + (-LN(1/J144 - 1) * ((-1)^(J144 <= 0.5))) * (((J144<= 0.5) * I$4 + (J144 > 0.5) * I$6) - I$5) / LN(9))) -> 198219.6881 | J144: 0.09721858712 | K144: =MAX(K$3, MIN(K$7, K$5 + (-LN(1/L144 - 1) * ((-1)^(L144 <= 0.5))) * (((L144<= 0.5) * K$4 + (L144 > 0.5) * K$6) - K$5) / LN(9))) -> 737862.8116 | L144: 0.8931813713 | M144: =MAX(M$3, MIN(M$7, M$5 + (-LN(1/N144 - 1) * ((-1)^(N144 <= 0.5))) * (((N144<= 0.5) * M$4 + (N144 > 0.5) * M$6) - M$5) / LN(9))) -> 41555.798 | N144: 0.03166079334 | R144: 1969993.981 | S144: 0.656
A145: 41575.1411 | B145: 0.0712628426 | C145: 183041.9885 | D145: 0.7816508613 | E145: =MAX(E$3, MIN(E$7, E$5 + (-LN(1/F145 - 1) * ((-1)^(F145 <= 0.5))) * (((F145<= 0.5) * E$4 + (F145 > 0.5) * E$6) - E$5) / LN(9))) -> 147723.2526 | F145: 0.4750082179 | G145: =MAX(G$3, MIN(G$7, G$5 + (-LN(1/H145 - 1) * ((-1)^(H145 <= 0.5))) * (((H145<= 0.5) * G$4 + (H145 > 0.5) * G$6) - G$5) / LN(9))) -> 387642.9065 | H145: 0.6290955547 | I145: =MAX(I$3, MIN(I$7, I$5 + (-LN(1/J145 - 1) * ((-1)^(J145 <= 0.5))) * (((J145<= 0.5) * I$4 + (J145 > 0.5) * I$6) - I$5) / LN(9))) -> 471020.7883 | J145: 0.7362735808 | K145: =MAX(K$3, MIN(K$7, K$5 + (-LN(1/L145 - 1) * ((-1)^(L145 <= 0.5))) * (((L145<= 0.5) * K$4 + (L145 > 0.5) * K$6) - K$5) / LN(9))) -> 490099.4358 | L145: 0.6506475732 | M145: =MAX(M$3, MIN(M$7, M$5 + (-LN(1/N145 - 1) * ((-1)^(N145 <= 0.5))) * (((N145<= 0.5) * M$4 + (N145 > 0.5) * M$6) - M$5) / LN(9))) -> 286565.1112 | N145: 0.7614957723 | R145: 2007668.624 | S145: 0.696
A146: 60958.73883 | B146: 0.1524325304 | C146: 195336.0035 | D146: 0.8242541435 | E146: =MAX(E$3, MIN(E$7, E$5 + (-LN(1/F146 - 1) * ((-1)^(F146 <= 0.5))) * (((F146<= 0.5) * E$4 + (F146 > 0.5) * E$6) - E$5) / LN(9))) -> 120049.5191 | F146: 0.2114581035 | G146: =MAX(G$3, MIN(G$7, G$5 + (-LN(1/H146 - 1) * ((-1)^(H146 <= 0.5))) * (((H146<= 0.5) * G$4 + (H146 > 0.5) * G$6) - G$5) / LN(9))) -> 715839.9585 | H146: 0.9445868708 | I146: =MAX(I$3, MIN(I$7, I$5 + (-LN(1/J146 - 1) * ((-1)^(J146 <= 0.5))) * (((J146<= 0.5) * I$4 + (J146 > 0.5) * I$6) - I$5) / LN(9))) -> 414058.8358 | J146: 0.6516235208 | K146: =MAX(K$3, MIN(K$7, K$5 + (-LN(1/L146 - 1) * ((-1)^(L146 <= 0.5))) * (((L146<= 0.5) * K$4 + (L146 > 0.5) * K$6) - K$5) / LN(9))) -> 973605.5473 | L146: 0.9721470159 | M146: =MAX(M$3, MIN(M$7, M$5 + (-LN(1/N146 - 1) * ((-1)^(N146 <= 0.5))) * (((N146<= 0.5) * M$4 + (N146 > 0.5) * M$6) - M$5) / LN(9))) -> 114640.9202 | N146: 0.1534749045 | R146: 2594489.523 | S146: 0.958
A147: 89697.73018 | B147: 0.3887123536 | C147: 120042.4426 | D147: 0.4457500625 | E147: =MAX(E$3, MIN(E$7, E$5 + (-LN(1/F147 - 1) * ((-1)^(F147 <= 0.5))) * (((F147<= 0.5) * E$4 + (F147 > 0.5) * E$6) - E$5) / LN(9))) -> 279760.7162 | F147: 0.8699770922 | G147: =MAX(G$3, MIN(G$7, G$5 + (-LN(1/H147 - 1) * ((-1)^(H147 <= 0.5))) * (((H147<= 0.5) * G$4 + (H147 > 0.5) * G$6) - G$5) / LN(9))) -> 653515.4957 | H147: 0.9166533082 | I147: =MAX(I$3, MIN(I$7, I$5 + (-LN(1/J147 - 1) * ((-1)^(J147 <= 0.5))) * (((J147<= 0.5) * I$4 + (J147 > 0.5) * I$6) - I$5) / LN(9))) -> 723892.3183 | J147: 0.9429270808 | K147: =MAX(K$3, MIN(K$7, K$5 + (-LN(1/L147 - 1) * ((-1)^(L147 <= 0.5))) * (((L147<= 0.5) * K$4 + (L147 > 0.5) * K$6) - K$5) / LN(9))) -> 638167.489 | L147: 0.8204461555 | M147: =MAX(M$3, MIN(M$7, M$5 + (-LN(1/N147 - 1) * ((-1)^(N147 <= 0.5))) * (((N147<= 0.5) * M$4 + (N147 > 0.5) * M$6) - M$5) / LN(9))) -> 181461.8513 | N147: 0.4646798101 | R147: 2686538.043 | S147: 0.975
A148: 154906.1627 | B148: 0.7696634251 | C148: 268859.7154 | D148: 0.9593368904 | E148: =MAX(E$3, MIN(E$7, E$5 + (-LN(1/F148 - 1) * ((-1)^(F148 <= 0.5))) * (((F148<= 0.5) * E$4 + (F148 > 0.5) * E$6) - E$5) / LN(9))) -> 126154.5306 | F148: 0.2596329781 | G148: =MAX(G$3, MIN(G$7, G$5 + (-LN(1/H148 - 1) * ((-1)^(H148 <= 0.5))) * (((H148<= 0.5) * G$4 + (H148 > 0.5) * G$6) - G$5) / LN(9))) -> 1093750 | H148: 0.9980210724 | I148: =MAX(I$3, MIN(I$7, I$5 + (-LN(1/J148 - 1) * ((-1)^(J148 <= 0.5))) * (((J148<= 0.5) * I$4 + (J148 > 0.5) * I$6) - I$5) / LN(9))) -> 492682.6462 | J148: 0.7647673383 | K148: =MAX(K$3, MIN(K$7, K$5 + (-LN(1/L148 - 1) * ((-1)^(L148 <= 0.5))) * (((L148<= 0.5) * K$4 + (L148 > 0.5) * K$6) - K$5) / LN(9))) -> 609164.5221 | L148: 0.7930775956 | M148: =MAX(M$3, MIN(M$7, M$5 + (-LN(1/N148 - 1) * ((-1)^(N148 <= 0.5))) * (((N148<= 0.5) * M$4 + (N148 > 0.5) * M$6) - M$5) / LN(9))) -> 246490.6145 | N148: 0.6662523534 | R148: 2992008.191 | S148: 0.996
A149: 157648.0931 | B149: 0.7801701279 | C149: 106613.788 | D149: 0.3083226608 | E149: =MAX(E$3, MIN(E$7, E$5 + (-LN(1/F149 - 1) * ((-1)^(F149 <= 0.5))) * (((F149<= 0.5) * E$4 + (F149 > 0.5) * E$6) - E$5) / LN(9))) -> 60388.5482 | F149: 0.01911597823 | G149: =MAX(G$3, MIN(G$7, G$5 + (-LN(1/H149 - 1) * ((-1)^(H149 <= 0.5))) * (((H149<= 0.5) * G$4 + (H149 > 0.5) * G$6) - G$5) / LN(9))) -> 520699.7175 | H149: 0.812124923 | I149: =MAX(I$3, MIN(I$7, I$5 + (-LN(1/J149 - 1) * ((-1)^(J149 <= 0.5))) * (((J149<= 0.5) * I$4 + (J149 > 0.5) * I$6) - I$5) / LN(9))) -> 310103.7628 | J149: 0.4349107051 | K149: =MAX(K$3, MIN(K$7, K$5 + (-LN(1/L149 - 1) * ((-1)^(L149 <= 0.5))) * (((L149<= 0.5) * K$4 + (L149 > 0.5) * K$6) - K$5) / LN(9))) -> 826856.3403 | L149: 0.9348122792 | M149: =MAX(M$3, MIN(M$7, M$5 + (-LN(1/N149 - 1) * ((-1)^(N149 <= 0.5))) * (((N149<= 0.5) * M$4 + (N149 > 0.5) * M$6) - M$5) / LN(9))) -> 161220.2997 | N149: 0.3507101863 | R149: 2143530.55 | S149: 0.809
A150: 149989.8779 | B150: 0.7499582968 | C150: 204933.289 | D150: 0.8527473972 | E150: =MAX(E$3, MIN(E$7, E$5 + (-LN(1/F150 - 1) * ((-1)^(F150 <= 0.5))) * (((F150<= 0.5) * E$4 + (F150 > 0.5) * E$6) - E$5) / LN(9))) -> 107021.8515 | F150: 0.131398143 | G150: =MAX(G$3, MIN(G$7, G$5 + (-LN(1/H150 - 1) * ((-1)^(H150 <= 0.5))) * (((H150<= 0.5) * G$4 + (H150 > 0.5) * G$6) - G$5) / LN(9))) -> 458608.4692 | H150: 0.7363932711 | I150: =MAX(I$3, MIN(I$7, I$5 + (-LN(1/J150 - 1) * ((-1)^(J150 <= 0.5))) * (((J150<= 0.5) * I$4 + (J150 > 0.5) * I$6) - I$5) / LN(9))) -> 205992.5604 | J150: 0.1098877128 | K150: =MAX(K$3, MIN(K$7, K$5 + (-LN(1/L150 - 1) * ((-1)^(L150 <= 0.5))) * (((L150<= 0.5) * K$4 + (L150 > 0.5) * K$6) - K$5) / LN(9))) -> 131840.4582 | L150: 0.03879296076 | M150: =MAX(M$3, MIN(M$7, M$5 + (-LN(1/N150 - 1) * ((-1)^(N150 <= 0.5))) * (((N150<= 0.5) * M$4 + (N150 > 0.5) * M$6) - M$5) / LN(9))) -> 199893.8672 | N150: 0.5362457876 | R150: 1458280.373 | S150: 0.144
A151: 176915.9754 | B151: 0.8442263582 | C151: 79967.129 | D151: 0.1214311737 | E151: =MAX(E$3, MIN(E$7, E$5 + (-LN(1/F151 - 1) * ((-1)^(F151 <= 0.5))) * (((F151<= 0.5) * E$4 + (F151 > 0.5) * E$6) - E$5) / LN(9))) -> 293540.8297 | F151: 0.8911565587 | G151: =MAX(G$3, MIN(G$7, G$5 + (-LN(1/H151 - 1) * ((-1)^(H151 <= 0.5))) * (((H151<= 0.5) * G$4 + (H151 > 0.5) * G$6) - G$5) / LN(9))) -> 207170.9271 | H151: 0.135702386 | I151: =MAX(I$3, MIN(I$7, I$5 + (-LN(1/J151 - 1) * ((-1)^(J151 <= 0.5))) * (((J151<= 0.5) * I$4 + (J151 > 0.5) * I$6) - I$5) / LN(9))) -> 821469.1985 | J151: 0.9704229659 | K151: =MAX(K$3, MIN(K$7, K$5 + (-LN(1/L151 - 1) * ((-1)^(L151 <= 0.5))) * (((L151<= 0.5) * K$4 + (L151 > 0.5) * K$6) - K$5) / LN(9))) -> 433151.937 | L151: 0.5687395765 | M151: =MAX(M$3, MIN(M$7, M$5 + (-LN(1/N151 - 1) * ((-1)^(N151 <= 0.5))) * (((N151<= 0.5) * M$4 + (N151 > 0.5) * M$6) - M$5) / LN(9))) -> 133152.2736 | N151: 0.2186158118 | R151: 2145368.27 | S151: 0.811
A152: 57133.72945 | B152: 0.1319602848 | C152: 105393.6831 | D152: 0.2970073339 | E152: =MAX(E$3, MIN(E$7, E$5 + (-LN(1/F152 - 1) * ((-1)^(F152 <= 0.5))) * (((F152<= 0.5) * E$4 + (F152 > 0.5) * E$6) - E$5) / LN(9))) -> 134665.2726 | F152: 0.3376293053 | G152: =MAX(G$3, MIN(G$7, G$5 + (-LN(1/H152 - 1) * ((-1)^(H152 <= 0.5))) * (((H152<= 0.5) * G$4 + (H152 > 0.5) * G$6) - G$5) / LN(9))) -> 967729.2274 | H152: 0.990116877 | I152: =MAX(I$3, MIN(I$7, I$5 + (-LN(1/J152 - 1) * ((-1)^(J152 <= 0.5))) * (((J152<= 0.5) * I$4 + (J152 > 0.5) * I$6) - I$5) / LN(9))) -> 169644.1865 | J152: 0.06117945635 | K152: =MAX(K$3, MIN(K$7, K$5 + (-LN(1/L152 - 1) * ((-1)^(L152 <= 0.5))) * (((L152<= 0.5) * K$4 + (L152 > 0.5) * K$6) - K$5) / LN(9))) -> 595004.2269 | L152: 0.77863807 | M152: =MAX(M$3, MIN(M$7, M$5 + (-LN(1/N152 - 1) * ((-1)^(N152 <= 0.5))) * (((N152<= 0.5) * M$4 + (N152 > 0.5) * M$6) - M$5) / LN(9))) -> 172639.1453 | N152: 0.4137959944 | R152: 2202209.471 | S152: 0.841
A153: 18855.98894 | B153: 0.02749603586 | C153: 56759.56352 | D153: 0.0474805088 | E153: =MAX(E$3, MIN(E$7, E$5 + (-LN(1/F153 - 1) * ((-1)^(F153 <= 0.5))) * (((F153<= 0.5) * E$4 + (F153 > 0.5) * E$6) - E$5) / LN(9))) -> 222371.301 | F153: 0.7427109304 | G153: =MAX(G$3, MIN(G$7, G$5 + (-LN(1/H153 - 1) * ((-1)^(H153 <= 0.5))) * (((H153<= 0.5) * G$4 + (H153 > 0.5) * G$6) - G$5) / LN(9))) -> 661960.2469 | H153: 0.9210788547 | I153: =MAX(I$3, MIN(I$7, I$5 + (-LN(1/J153 - 1) * ((-1)^(J153 <= 0.5))) * (((J153<= 0.5) * I$4 + (J153 > 0.5) * I$6) - I$5) / LN(9))) -> 345016.2094 | J153: 0.5351261271 | K153: =MAX(K$3, MIN(K$7, K$5 + (-LN(1/L153 - 1) * ((-1)^(L153 <= 0.5))) * (((L153<= 0.5) * K$4 + (L153 > 0.5) * K$6) - K$5) / LN(9))) -> 283827.2041 | L153: 0.2138839341 | M153: =MAX(M$3, MIN(M$7, M$5 + (-LN(1/N153 - 1) * ((-1)^(N153 <= 0.5))) * (((N153<= 0.5) * M$4 + (N153 > 0.5) * M$6) - M$5) / LN(9))) -> 146141.4624 | N153: 0.2750155399 | R153: 1734931.976 | S153: 0.424
A154: 152086.6509 | B154: 0.7584976862 | C154: 139615.7219 | D154: 0.5796021107 | E154: =MAX(E$3, MIN(E$7, E$5 + (-LN(1/F154 - 1) * ((-1)^(F154 <= 0.5))) * (((F154<= 0.5) * E$4 + (F154 > 0.5) * E$6) - E$5) / LN(9))) -> 164327.297 | F154: 0.5522754173 | G154: =MAX(G$3, MIN(G$7, G$5 + (-LN(1/H154 - 1) * ((-1)^(H154 <= 0.5))) * (((H154<= 0.5) * G$4 + (H154 > 0.5) * G$6) - G$5) / LN(9))) -> 485065.992 | H154: 0.7708879708 | I154: =MAX(I$3, MIN(I$7, I$5 + (-LN(1/J154 - 1) * ((-1)^(J154 <= 0.5))) * (((J154<= 0.5) * I$4 + (J154 > 0.5) * I$6) - I$5) / LN(9))) -> 312791.3116 | J154: 0.4465544971 | K154: =MAX(K$3, MIN(K$7, K$5 + (-LN(1/L154 - 1) * ((-1)^(L154 <= 0.5))) * (((L154<= 0.5) * K$4 + (L154 > 0.5) * K$6) - K$5) / LN(9))) -> 480039.4799 | L154: 0.6366631628 | M154: =MAX(M$3, MIN(M$7, M$5 + (-LN(1/N154 - 1) * ((-1)^(N154 <= 0.5))) * (((N154<= 0.5) * M$4 + (N154 > 0.5) * M$6) - M$5) / LN(9))) -> 388099.9089 | N154: 0.9129927321 | R154: 2122026.362 | S154: 0.794
A155: 58898.85149 | B155: 0.1411017656 | C155: 58284.80912 | D155: 0.05060545221 | E155: =MAX(E$3, MIN(E$7, E$5 + (-LN(1/F155 - 1) * ((-1)^(F155 <= 0.5))) * (((F155<= 0.5) * E$4 + (F155 > 0.5) * E$6) - E$5) / LN(9))) -> 160654.1487 | F155: 0.5389369325 | G155: =MAX(G$3, MIN(G$7, G$5 + (-LN(1/H155 - 1) * ((-1)^(H155 <= 0.5))) * (((H155<= 0.5) * G$4 + (H155 > 0.5) * G$6) - G$5) / LN(9))) -> 438599.3849 | H155: 0.7081921126 | I155: =MAX(I$3, MIN(I$7, I$5 + (-LN(1/J155 - 1) * ((-1)^(J155 <= 0.5))) * (((J155<= 0.5) * I$4 + (J155 > 0.5) * I$6) - I$5) / LN(9))) -> 179875.6559 | J155: 0.07236160161 | K155: =MAX(K$3, MIN(K$7, K$5 + (-LN(1/L155 - 1) * ((-1)^(L155 <= 0.5))) * (((L155<= 0.5) * K$4 + (L155 > 0.5) * K$6) - K$5) / LN(9))) -> 573378.7818 | L155: 0.7552236079 | M155: =MAX(M$3, MIN(M$7, M$5 + (-LN(1/N155 - 1) * ((-1)^(N155 <= 0.5))) * (((N155<= 0.5) * M$4 + (N155 > 0.5) * M$6) - M$5) / LN(9))) -> 160866.5494 | N155: 0.3488245961 | R155: 1630558.181 | S155: 0.311
A156: 104515.5598 | B156: 0.5247839198 | C156: 76984.0566 | D156: 0.108125174 | E156: =MAX(E$3, MIN(E$7, E$5 + (-LN(1/F156 - 1) * ((-1)^(F156 <= 0.5))) * (((F156<= 0.5) * E$4 + (F156 > 0.5) * E$6) - E$5) / LN(9))) -> 149709.7936 | F156: 0.4968117998 | G156: =MAX(G$3, MIN(G$7, G$5 + (-LN(1/H156 - 1) * ((-1)^(H156 <= 0.5))) * (((H156<= 0.5) * G$4 + (H156 > 0.5) * G$6) - G$5) / LN(9))) -> 345764.5541 | H156: 0.5582066577 | I156: =MAX(I$3, MIN(I$7, I$5 + (-LN(1/J156 - 1) * ((-1)^(J156 <= 0.5))) * (((J156<= 0.5) * I$4 + (J156 > 0.5) * I$6) - I$5) / LN(9))) -> 320556.249 | J156: 0.4804820852 | K156: =MAX(K$3, MIN(K$7, K$5 + (-LN(1/L156 - 1) * ((-1)^(L156 <= 0.5))) * (((L156<= 0.5) * K$4 + (L156 > 0.5) * K$6) - K$5) / LN(9))) -> 524662.5257 | L156: 0.6966475903 | M156: =MAX(M$3, MIN(M$7, M$5 + (-LN(1/N156 - 1) * ((-1)^(N156 <= 0.5))) * (((N156<= 0.5) * M$4 + (N156 > 0.5) * M$6) - M$5) / LN(9))) -> 127262.4981 | N156: 0.1959518678 | R156: 1649455.237 | S156: 0.329
A157: 102387.6133 | B157: 0.5131122993 | C157: 112743.6849 | D157: 0.3685138913 | E157: =MAX(E$3, MIN(E$7, E$5 + (-LN(1/F157 - 1) * ((-1)^(F157 <= 0.5))) * (((F157<= 0.5) * E$4 + (F157 > 0.5) * E$6) - E$5) / LN(9))) -> 413275.2983 | F157: 0.9792958516 | G157: =MAX(G$3, MIN(G$7, G$5 + (-LN(1/H157 - 1) * ((-1)^(H157 <= 0.5))) * (((H157<= 0.5) * G$4 + (H157 > 0.5) * G$6) - G$5) / LN(9))) -> 220906.1312 | H157: 0.1665860593 | I157: =MAX(I$3, MIN(I$7, I$5 + (-LN(1/J157 - 1) * ((-1)^(J157 <= 0.5))) * (((J157<= 0.5) * I$4 + (J157 > 0.5) * I$6) - I$5) / LN(9))) -> 201289.6172 | J157: 0.102058756 | K157: =MAX(K$3, MIN(K$7, K$5 + (-LN(1/L157 - 1) * ((-1)^(L157 <= 0.5))) * (((L157<= 0.5) * K$4 + (L157 > 0.5) * K$6) - K$5) / LN(9))) -> 584929.0208 | L157: 0.767933351 | M157: =MAX(M$3, MIN(M$7, M$5 + (-LN(1/N157 - 1) * ((-1)^(N157 <= 0.5))) * (((N157<= 0.5) * M$4 + (N157 > 0.5) * M$6) - M$5) / LN(9))) -> 656250 | N157: 0.9971624929 | R157: 2291781.366 | S157: 0.888
A158: 85539.05868 | B158: 0.3462692962 | C158: 100273.1204 | D158: 0.252257146 | E158: =MAX(E$3, MIN(E$7, E$5 + (-LN(1/F158 - 1) * ((-1)^(F158 <= 0.5))) * (((F158<= 0.5) * E$4 + (F158 > 0.5) * E$6) - E$5) / LN(9))) -> 179004.4862 | F158: 0.6046462078 | G158: =MAX(G$3, MIN(G$7, G$5 + (-LN(1/H158 - 1) * ((-1)^(H158 <= 0.5))) * (((H158<= 0.5) * G$4 + (H158 > 0.5) * G$6) - G$5) / LN(9))) -> 283007.3761 | H158: 0.3732228536 | I158: =MAX(I$3, MIN(I$7, I$5 + (-LN(1/J158 - 1) * ((-1)^(J158 <= 0.5))) * (((J158<= 0.5) * I$4 + (J158 > 0.5) * I$6) - I$5) / LN(9))) -> 692947.9223 | J158: 0.9300257852 | K158: =MAX(K$3, MIN(K$7, K$5 + (-LN(1/L158 - 1) * ((-1)^(L158 <= 0.5))) * (((L158<= 0.5) * K$4 + (L158 > 0.5) * K$6) - K$5) / LN(9))) -> 357472.0829 | L158: 0.40684642 | M158: =MAX(M$3, MIN(M$7, M$5 + (-LN(1/N158 - 1) * ((-1)^(N158 <= 0.5))) * (((N158<= 0.5) * M$4 + (N158 > 0.5) * M$6) - M$5) / LN(9))) -> 111059.3769 | N158: 0.1428835736 | R158: 1809303.423 | S158: 0.503
A159: 36058.71939 | B159: 0.05679330141 | C159: 97949.35724 | D159: 0.2334867343 | E159: =MAX(E$3, MIN(E$7, E$5 + (-LN(1/F159 - 1) * ((-1)^(F159 <= 0.5))) * (((F159<= 0.5) * E$4 + (F159 > 0.5) * E$6) - E$5) / LN(9))) -> 358285.7307 | F159: 0.9548258312 | G159: =MAX(G$3, MIN(G$7, G$5 + (-LN(1/H159 - 1) * ((-1)^(H159 <= 0.5))) * (((H159<= 0.5) * G$4 + (H159 > 0.5) * G$6) - G$5) / LN(9))) -> 767894.3333 | H159: 0.9609069016 | I159: =MAX(I$3, MIN(I$7, I$5 + (-LN(1/J159 - 1) * ((-1)^(J159 <= 0.5))) * (((J159<= 0.5) * I$4 + (J159 > 0.5) * I$6) - I$5) / LN(9))) -> 199704.2334 | J159: 0.0995330688 | K159: =MAX(K$3, MIN(K$7, K$5 + (-LN(1/L159 - 1) * ((-1)^(L159 <= 0.5))) * (((L159<= 0.5) * K$4 + (L159 > 0.5) * K$6) - K$5) / LN(9))) -> 283863.0706 | L159: 0.2139596604 | M159: =MAX(M$3, MIN(M$7, M$5 + (-LN(1/N159 - 1) * ((-1)^(N159 <= 0.5))) * (((N159<= 0.5) * M$4 + (N159 > 0.5) * M$6) - M$5) / LN(9))) -> 180255.9381 | N159: 0.4576567812 | R159: =A159+C159+E159+G159+I159+K159+M159 -> 1924011.383 | S159: 0.611
A160: 228085.2123 | B160: 0.9434447498 | C160: 211190.8 | D160: 0.869188816 | E160: =MAX(E$3, MIN(E$7, E$5 + (-LN(1/F160 - 1) * ((-1)^(F160 <= 0.5))) * (((F160<= 0.5) * E$4 + (F160 > 0.5) * E$6) - E$5) / LN(9))) -> 164615.9102 | F160: 0.5533205451 | G160: =MAX(G$3, MIN(G$7, G$5 + (-LN(1/H160 - 1) * ((-1)^(H160 <= 0.5))) * (((H160<= 0.5) * G$4 + (H160 > 0.5) * G$6) - G$5) / LN(9))) -> 215590.2772 | H160: 0.1540139877 | I160: =MAX(I$3, MIN(I$7, I$5 + (-LN(1/J160 - 1) * ((-1)^(J160 <= 0.5))) * (((J160<= 0.5) * I$4 + (J160 > 0.5) * I$6) - I$5) / LN(9))) -> 381430.936 | J160: 0.5979119977 | K160: =MAX(K$3, MIN(K$7, K$5 + (-LN(1/L160 - 1) * ((-1)^(L160 <= 0.5))) * (((L160<= 0.5) * K$4 + (L160 > 0.5) * K$6) - K$5) / LN(9))) -> 0 | L160: 0.006232460171 | M160: =MAX(M$3, MIN(M$7, M$5 + (-LN(1/N160 - 1) * ((-1)^(N160 <= 0.5))) * (((N160<= 0.5) * M$4 + (N160 > 0.5) * M$6) - M$5) / LN(9))) -> 120969.5097 | N160: 0.1737500962 | R160: 1321882.645 | S160: 0.064
A161: 82002.20955 | B161: 0.3119746496 | C161: 120231.1027 | D161: 0.4477992159 | E161: =MAX(E$3, MIN(E$7, E$5 + (-LN(1/F161 - 1) * ((-1)^(F161 <= 0.5))) * (((F161<= 0.5) * E$4 + (F161 > 0.5) * E$6) - E$5) / LN(9))) -> 318116.3379 | F161: 0.9214776817 | G161: =MAX(G$3, MIN(G$7, G$5 + (-LN(1/H161 - 1) * ((-1)^(H161 <= 0.5))) * (((H161<= 0.5) * G$4 + (H161 > 0.5) * G$6) - G$5) / LN(9))) -> 325214.511 | H161: 0.5223344363 | I161: =MAX(I$3, MIN(I$7, I$5 + (-LN(1/J161 - 1) * ((-1)^(J161 <= 0.5))) * (((J161<= 0.5) * I$4 + (J161 > 0.5) * I$6) - I$5) / LN(9))) -> 271914.6634 | J161: 0.2822915046 | K161: =MAX(K$3, MIN(K$7, K$5 + (-LN(1/L161 - 1) * ((-1)^(L161 <= 0.5))) * (((L161<= 0.5) * K$4 + (L161 > 0.5) * K$6) - K$5) / LN(9))) -> 290685.4764 | L161: 0.2287184992 | M161: =MAX(M$3, MIN(M$7, M$5 + (-LN(1/N161 - 1) * ((-1)^(N161 <= 0.5))) * (((N161<= 0.5) * M$4 + (N161 > 0.5) * M$6) - M$5) / LN(9))) -> 179809.8591 | N161: 0.4550630027 | R161: 1587974.16 | S161: 0.269
A162: 29489.58562 | B162: 0.04316734074 | C162: 65493.23007 | D162: 0.06817959646 | E162: =MAX(E$3, MIN(E$7, E$5 + (-LN(1/F162 - 1) * ((-1)^(F162 <= 0.5))) * (((F162<= 0.5) * E$4 + (F162 > 0.5) * E$6) - E$5) / LN(9))) -> 133517.8113 | F162: 0.3264464895 | G162: =MAX(G$3, MIN(G$7, G$5 + (-LN(1/H162 - 1) * ((-1)^(H162 <= 0.5))) * (((H162<= 0.5) * G$4 + (H162 > 0.5) * G$6) - G$5) / LN(9))) -> 389176.358 | H162: 0.6316078164 | I162: =MAX(I$3, MIN(I$7, I$5 + (-LN(1/J162 - 1) * ((-1)^(J162 <= 0.5))) * (((J162<= 0.5) * I$4 + (J162 > 0.5) * I$6) - I$5) / LN(9))) -> 639898.7822 | J162: 0.9015077433 | K162: =MAX(K$3, MIN(K$7, K$5 + (-LN(1/L162 - 1) * ((-1)^(L162 <= 0.5))) * (((L162<= 0.5) * K$4 + (L162 > 0.5) * K$6) - K$5) / LN(9))) -> 202274.9869 | L162: 0.0890244153 | M162: =MAX(M$3, MIN(M$7, M$5 + (-LN(1/N162 - 1) * ((-1)^(N162 <= 0.5))) * (((N162<= 0.5) * M$4 + (N162 > 0.5) * M$6) - M$5) / LN(9))) -> 213389.1199 | N162: 0.5752691774 | R162: 1673239.874 | S162: 0.361
A163: 182292.3858 | B163: 0.8591379581 | C163: 117334.5105 | D163: 0.4165733843 | E163: =MAX(E$3, MIN(E$7, E$5 + (-LN(1/F163 - 1) * ((-1)^(F163 <= 0.5))) * (((F163<= 0.5) * E$4 + (F163 > 0.5) * E$6) - E$5) / LN(9))) -> 91426.92701 | F163: 0.07083297243 | G163: =MAX(G$3, MIN(G$7, G$5 + (-LN(1/H163 - 1) * ((-1)^(H163 <= 0.5))) * (((H163<= 0.5) * G$4 + (H163 > 0.5) * G$6) - G$5) / LN(9))) -> 850810.0647 | H163: 0.9777936839 | I163: =MAX(I$3, MIN(I$7, I$5 + (-LN(1/J163 - 1) * ((-1)^(J163 <= 0.5))) * (((J163<= 0.5) * I$4 + (J163 > 0.5) * I$6) - I$5) / LN(9))) -> 222976.9434 | J163: 0.1426636518 | K163: =MAX(K$3, MIN(K$7, K$5 + (-LN(1/L163 - 1) * ((-1)^(L163 <= 0.5))) * (((L163<= 0.5) * K$4 + (L163 > 0.5) * K$6) - K$5) / LN(9))) -> 304557.4448 | L163: 0.2608816933 | M163: =MAX(M$3, MIN(M$7, M$5 + (-LN(1/N163 - 1) * ((-1)^(N163 <= 0.5))) * (((N163<= 0.5) * M$4 + (N163 > 0.5) * M$6) - M$5) / LN(9))) -> 57470.55237 | N163: 0.04532517158 | R163: 1826868.829 | S163: 0.519
A164: 177287.4998 | B164: 0.8452968753 | C164: 97842.71759 | D164: 0.2326490851 | E164: =MAX(E$3, MIN(E$7, E$5 + (-LN(1/F164 - 1) * ((-1)^(F164 <= 0.5))) * (((F164<= 0.5) * E$4 + (F164 > 0.5) * E$6) - E$5) / LN(9))) -> 505425.104 | F164: 0.9945481047 | G164: =MAX(G$3, MIN(G$7, G$5 + (-LN(1/H164 - 1) * ((-1)^(H164 <= 0.5))) * (((H164<= 0.5) * G$4 + (H164 > 0.5) * G$6) - G$5) / LN(9))) -> 258822.9462 | H164: 0.2801889933 | I164: =MAX(I$3, MIN(I$7, I$5 + (-LN(1/J164 - 1) * ((-1)^(J164 <= 0.5))) * (((J164<= 0.5) * I$4 + (J164 > 0.5) * I$6) - I$5) / LN(9))) -> 558724.4279 | J164: 0.8379894675 | K164: =MAX(K$3, MIN(K$7, K$5 + (-LN(1/L164 - 1) * ((-1)^(L164 <= 0.5))) * (((L164<= 0.5) * K$4 + (L164 > 0.5) * K$6) - K$5) / LN(9))) -> 421878.0226 | L164: 0.5519062755 | M164: =MAX(M$3, MIN(M$7, M$5 + (-LN(1/N164 - 1) * ((-1)^(N164 <= 0.5))) * (((N164<= 0.5) * M$4 + (N164 > 0.5) * M$6) - M$5) / LN(9))) -> 138303.0598 | N164: 0.2399357581 | R164: 2158283.778 | S164: 0.821
A165: 108039.1853 | B165: 0.5440452756 | C165: 177946.0687 | D165: 0.7619398121 | E165: =MAX(E$3, MIN(E$7, E$5 + (-LN(1/F165 - 1) * ((-1)^(F165 <= 0.5))) * (((F165<= 0.5) * E$4 + (F165 > 0.5) * E$6) - E$5) / LN(9))) -> 250676.1236 | F165: 0.8137737965 | G165: =MAX(G$3, MIN(G$7, G$5 + (-LN(1/H165 - 1) * ((-1)^(H165 <= 0.5))) * (((H165<= 0.5) * G$4 + (H165 > 0.5) * G$6) - G$5) / LN(9))) -> 378409.7116 | H165: 0.6138249445 | I165: =MAX(I$3, MIN(I$7, I$5 + (-LN(1/J165 - 1) * ((-1)^(J165 <= 0.5))) * (((J165<= 0.5) * I$4 + (J165 > 0.5) * I$6) - I$5) / LN(9))) -> 248139.854 | J165: 0.2057017013 | K165: =MAX(K$3, MIN(K$7, K$5 + (-LN(1/L165 - 1) * ((-1)^(L165 <= 0.5))) * (((L165<= 0.5) * K$4 + (L165 > 0.5) * K$6) - K$5) / LN(9))) -> 304197.8024 | L165: 0.2600119412 | M165: =MAX(M$3, MIN(M$7, M$5 + (-LN(1/N165 - 1) * ((-1)^(N165 <= 0.5))) * (((N165<= 0.5) * M$4 + (N165 > 0.5) * M$6) - M$5) / LN(9))) -> 179783.878 | N165: 0.4549120061 | R165: 1647192.623 | S165: 0.328
A166: 131176.717 | B166: 0.6648587413 | C166: 87212.75675 | D166: 0.1596893618 | E166: =MAX(E$3, MIN(E$7, E$5 + (-LN(1/F166 - 1) * ((-1)^(F166 <= 0.5))) * (((F166<= 0.5) * E$4 + (F166 > 0.5) * E$6) - E$5) / LN(9))) -> 140650.9403 | F166: 0.3987108 | G166: =MAX(G$3, MIN(G$7, G$5 + (-LN(1/H166 - 1) * ((-1)^(H166 <= 0.5))) * (((H166<= 0.5) * G$4 + (H166 > 0.5) * G$6) - G$5) / LN(9))) -> 678775.1358 | H166: 0.9292564864 | I166: =MAX(I$3, MIN(I$7, I$5 + (-LN(1/J166 - 1) * ((-1)^(J166 <= 0.5))) * (((J166<= 0.5) * I$4 + (J166 > 0.5) * I$6) - I$5) / LN(9))) -> 221608.7826 | J166: 0.1397473722 | K166: =MAX(K$3, MIN(K$7, K$5 + (-LN(1/L166 - 1) * ((-1)^(L166 <= 0.5))) * (((L166<= 0.5) * K$4 + (L166 > 0.5) * K$6) - K$5) / LN(9))) -> 613662.7087 | L166: 0.7975161738 | M166: =MAX(M$3, MIN(M$7, M$5 + (-LN(1/N166 - 1) * ((-1)^(N166 <= 0.5))) * (((N166<= 0.5) * M$4 + (N166 > 0.5) * M$6) - M$5) / LN(9))) -> 213633.7337 | N166: 0.5759694145 | R166: 2086720.775 | S166: 0.766
A167: 86332.18158 | B167: 0.354200641 | C167: 89628.87402 | D167: 0.1744565553 | E167: =MAX(E$3, MIN(E$7, E$5 + (-LN(1/F167 - 1) * ((-1)^(F167 <= 0.5))) * (((F167<= 0.5) * E$4 + (F167 > 0.5) * E$6) - E$5) / LN(9))) -> 140731.2885 | F167: 0.3995575922 | G167: =MAX(G$3, MIN(G$7, G$5 + (-LN(1/H167 - 1) * ((-1)^(H167 <= 0.5))) * (((H167<= 0.5) * G$4 + (H167 > 0.5) * G$6) - G$5) / LN(9))) -> 931394.8334 | H167: 0.9872767957 | I167: =MAX(I$3, MIN(I$7, I$5 + (-LN(1/J167 - 1) * ((-1)^(J167 <= 0.5))) * (((J167<= 0.5) * I$4 + (J167 > 0.5) * I$6) - I$5) / LN(9))) -> 257819.7844 | J167: 0.2348939769 | K167: =MAX(K$3, MIN(K$7, K$5 + (-LN(1/L167 - 1) * ((-1)^(L167 <= 0.5))) * (((L167<= 0.5) * K$4 + (L167 > 0.5) * K$6) - K$5) / LN(9))) -> 338990.3066 | L167: 0.3522721022 | M167: =MAX(M$3, MIN(M$7, M$5 + (-LN(1/N167 - 1) * ((-1)^(N167 <= 0.5))) * (((N167<= 0.5) * M$4 + (N167 > 0.5) * M$6) - M$5) / LN(9))) -> 71161.12823 | N167: 0.06141949332 | R167: 1916058.397 | S167: 0.603
A168: 207670.2613 | B168: 0.9141785905 | C168: 102338.9733 | D168: 0.2697626151 | E168: =MAX(E$3, MIN(E$7, E$5 + (-LN(1/F168 - 1) * ((-1)^(F168 <= 0.5))) * (((F168<= 0.5) * E$4 + (F168 > 0.5) * E$6) - E$5) / LN(9))) -> 122648.8529 | F168: 0.2311316579 | G168: =MAX(G$3, MIN(G$7, G$5 + (-LN(1/H168 - 1) * ((-1)^(H168 <= 0.5))) * (((H168<= 0.5) * G$4 + (H168 > 0.5) * G$6) - G$5) / LN(9))) -> 242552.2117 | H168: 0.2262640481 | I168: =MAX(I$3, MIN(I$7, I$5 + (-LN(1/J168 - 1) * ((-1)^(J168 <= 0.5))) * (((J168<= 0.5) * I$4 + (J168 > 0.5) * I$6) - I$5) / LN(9))) -> 691219.9105 | J168: 0.929230956 | K168: =MAX(K$3, MIN(K$7, K$5 + (-LN(1/L168 - 1) * ((-1)^(L168 <= 0.5))) * (((L168<= 0.5) * K$4 + (L168 > 0.5) * K$6) - K$5) / LN(9))) -> 376353.7029 | L168: 0.4650699659 | M168: =MAX(M$3, MIN(M$7, M$5 + (-LN(1/N168 - 1) * ((-1)^(N168 <= 0.5))) * (((N168<= 0.5) * M$4 + (N168 > 0.5) * M$6) - M$5) / LN(9))) -> 647278.4976 | N168: 0.9954493702 | R168: 2390062.41 | S168: 0.913
A169: 73394.275 | B169: 0.2370041289 | C169: 91158.25561 | D169: 0.1843486417 | E169: =MAX(E$3, MIN(E$7, E$5 + (-LN(1/F169 - 1) * ((-1)^(F169 <= 0.5))) * (((F169<= 0.5) * E$4 + (F169 > 0.5) * E$6) - E$5) / LN(9))) -> 317135.0701 | F169: 0.9204313239 | G169: =MAX(G$3, MIN(G$7, G$5 + (-LN(1/H169 - 1) * ((-1)^(H169 <= 0.5))) * (((H169<= 0.5) * G$4 + (H169 > 0.5) * G$6) - G$5) / LN(9))) -> 1093750 | H169: 0.998831742 | I169: =MAX(I$3, MIN(I$7, I$5 + (-LN(1/J169 - 1) * ((-1)^(J169 <= 0.5))) * (((J169<= 0.5) * I$4 + (J169 > 0.5) * I$6) - I$5) / LN(9))) -> 259237.5584 | J169: 0.2394023634 | K169: =MAX(K$3, MIN(K$7, K$5 + (-LN(1/L169 - 1) * ((-1)^(L169 <= 0.5))) * (((L169<= 0.5) * K$4 + (L169 > 0.5) * K$6) - K$5) / LN(9))) -> 727167.4562 | L169: 0.8868367518 | M169: =MAX(M$3, MIN(M$7, M$5 + (-LN(1/N169 - 1) * ((-1)^(N169 <= 0.5))) * (((N169<= 0.5) * M$4 + (N169 > 0.5) * M$6) - M$5) / LN(9))) -> 97294.83489 | N169: 0.107729675 | R169: 2659137.45 | S169: 0.972
A170: 96743.24199 | B170: 0.4642818016 | C170: 149665.5312 | D170: 0.6322675746 | E170: =MAX(E$3, MIN(E$7, E$5 + (-LN(1/F170 - 1) * ((-1)^(F170 <= 0.5))) * (((F170<= 0.5) * E$4 + (F170 > 0.5) * E$6) - E$5) / LN(9))) -> 138351.0172 | F170: 0.3747462054 | G170: =MAX(G$3, MIN(G$7, G$5 + (-LN(1/H170 - 1) * ((-1)^(H170 <= 0.5))) * (((H170<= 0.5) * G$4 + (H170 > 0.5) * G$6) - G$5) / LN(9))) -> 142675.5509 | H170: 0.04810174831 | I170: =MAX(I$3, MIN(I$7, I$5 + (-LN(1/J170 - 1) * ((-1)^(J170 <= 0.5))) * (((J170<= 0.5) * I$4 + (J170 > 0.5) * I$6) - I$5) / LN(9))) -> 303397.2711 | J170: 0.4061924114 | K170: =MAX(K$3, MIN(K$7, K$5 + (-LN(1/L170 - 1) * ((-1)^(L170 <= 0.5))) * (((L170<= 0.5) * K$4 + (L170 > 0.5) * K$6) - K$5) / LN(9))) -> 323852.0645 | L170: 0.3102103572 | M170: =MAX(M$3, MIN(M$7, M$5 + (-LN(1/N170 - 1) * ((-1)^(N170 <= 0.5))) * (((N170<= 0.5) * M$4 + (N170 > 0.5) * M$6) - M$5) / LN(9))) -> 59646.53651 | N170: 0.04758380843 | R170: 1214331.213 | S170: 0.022
A171: 123062.0679 | B171: 0.6240385242 | C171: 124428.2215 | D171: 0.4937187014 | E171: =MAX(E$3, MIN(E$7, E$5 + (-LN(1/F171 - 1) * ((-1)^(F171 <= 0.5))) * (((F171<= 0.5) * E$4 + (F171 > 0.5) * E$6) - E$5) / LN(9))) -> 230935.166 | F171: 0.7659445226 | G171: =MAX(G$3, MIN(G$7, G$5 + (-LN(1/H171 - 1) * ((-1)^(H171 <= 0.5))) * (((H171<= 0.5) * G$4 + (H171 > 0.5) * G$6) - G$5) / LN(9))) -> 372978.5981 | H171: 0.6047345886 | I171: =MAX(I$3, MIN(I$7, I$5 + (-LN(1/J171 - 1) * ((-1)^(J171 <= 0.5))) * (((J171<= 0.5) * I$4 + (J171 > 0.5) * I$6) - I$5) / LN(9))) -> 229170.3634 | J171: 0.1565039642 | K171: =MAX(K$3, MIN(K$7, K$5 + (-LN(1/L171 - 1) * ((-1)^(L171 <= 0.5))) * (((L171<= 0.5) * K$4 + (L171 > 0.5) * K$6) - K$5) / LN(9))) -> 944657.6439 | L171: 0.9669812889 | M171: =MAX(M$3, MIN(M$7, M$5 + (-LN(1/N171 - 1) * ((-1)^(N171 <= 0.5))) * (((N171<= 0.5) * M$4 + (N171 > 0.5) * M$6) - M$5) / LN(9))) -> 421603.9966 | N171: 0.939536964 | R171: 2446836.057 | S171: 0.93
A172: 86119.13883 | B172: 0.3520620753 | C172: 112730.5907 | D172: 0.3683799951 | E172: =MAX(E$3, MIN(E$7, E$5 + (-LN(1/F172 - 1) * ((-1)^(F172 <= 0.5))) * (((F172<= 0.5) * E$4 + (F172 > 0.5) * E$6) - E$5) / LN(9))) -> 128013.8728 | F172: 0.2756447242 | G172: =MAX(G$3, MIN(G$7, G$5 + (-LN(1/H172 - 1) * ((-1)^(H172 <= 0.5))) * (((H172<= 0.5) * G$4 + (H172 > 0.5) * G$6) - G$5) / LN(9))) -> 192045.5684 | H172: 0.1074244355 | I172: =MAX(I$3, MIN(I$7, I$5 + (-LN(1/J172 - 1) * ((-1)^(J172 <= 0.5))) * (((J172<= 0.5) * I$4 + (J172 > 0.5) * I$6) - I$5) / LN(9))) -> 280164.8259 | J172: 0.3125760142 | K172: =MAX(K$3, MIN(K$7, K$5 + (-LN(1/L172 - 1) * ((-1)^(L172 <= 0.5))) * (((L172<= 0.5) * K$4 + (L172 > 0.5) * K$6) - K$5) / LN(9))) -> 521750.9399 | L172: 0.692905148 | M172: =MAX(M$3, MIN(M$7, M$5 + (-LN(1/N172 - 1) * ((-1)^(N172 <= 0.5))) * (((N172<= 0.5) * M$4 + (N172 > 0.5) * M$6) - M$5) / LN(9))) -> 81780.2452 | N172: 0.07743203496 | R172: 1402605.182 | S172: 0.108
A173: 85151.98644 | B173: 0.3424289999 | C173: 176732.5353 | D173: 0.7570695581 | E173: =MAX(E$3, MIN(E$7, E$5 + (-LN(1/F173 - 1) * ((-1)^(F173 <= 0.5))) * (((F173<= 0.5) * E$4 + (F173 > 0.5) * E$6) - E$5) / LN(9))) -> 204583.1302 | F173: 0.6898766377 | G173: =MAX(G$3, MIN(G$7, G$5 + (-LN(1/H173 - 1) * ((-1)^(H173 <= 0.5))) * (((H173<= 0.5) * G$4 + (H173 > 0.5) * G$6) - G$5) / LN(9))) -> 467964.95 | H173: 0.7489636138 | I173: =MAX(I$3, MIN(I$7, I$5 + (-LN(1/J173 - 1) * ((-1)^(J173 <= 0.5))) * (((J173<= 0.5) * I$4 + (J173 > 0.5) * I$6) - I$5) / LN(9))) -> 462488.9232 | J173: 0.7244614353 | K173: =MAX(K$3, MIN(K$7, K$5 + (-LN(1/L173 - 1) * ((-1)^(L173 <= 0.5))) * (((L173<= 0.5) * K$4 + (L173 > 0.5) * K$6) - K$5) / LN(9))) -> 271151.1174 | L173: 0.1883409582 | M173: =MAX(M$3, MIN(M$7, M$5 + (-LN(1/N173 - 1) * ((-1)^(N173 <= 0.5))) * (((N173<= 0.5) * M$4 + (N173 > 0.5) * M$6) - M$5) / LN(9))) -> 93670.11945 | N173: 0.09983163125 | R173: 1761742.762 | S173: 0.451
A174: 34991.08275 | B174: 0.05433171072 | C174: 55130.92093 | D174: 0.04434651936 | E174: =MAX(E$3, MIN(E$7, E$5 + (-LN(1/F174 - 1) * ((-1)^(F174 <= 0.5))) * (((F174<= 0.5) * E$4 + (F174 > 0.5) * E$6) - E$5) / LN(9))) -> 162410.5662 | F174: 0.5453232489 | G174: =MAX(G$3, MIN(G$7, G$5 + (-LN(1/H174 - 1) * ((-1)^(H174 <= 0.5))) * (((H174<= 0.5) * G$4 + (H174 > 0.5) * G$6) - G$5) / LN(9))) -> 420910.0925 | H174: 0.6818407804 | I174: =MAX(I$3, MIN(I$7, I$5 + (-LN(1/J174 - 1) * ((-1)^(J174 <= 0.5))) * (((J174<= 0.5) * I$4 + (J174 > 0.5) * I$6) - I$5) / LN(9))) -> 580458.0464 | J174: 0.8576803427 | K174: =MAX(K$3, MIN(K$7, K$5 + (-LN(1/L174 - 1) * ((-1)^(L174 <= 0.5))) * (((L174<= 0.5) * K$4 + (L174 > 0.5) * K$6) - K$5) / LN(9))) -> 134340.0877 | L174: 0.03998030853 | M174: =MAX(M$3, MIN(M$7, M$5 + (-LN(1/N174 - 1) * ((-1)^(N174 <= 0.5))) * (((N174<= 0.5) * M$4 + (N174 > 0.5) * M$6) - M$5) / LN(9))) -> 281262.1961 | N174: 0.7500267965 | R174: 1669502.992 | S174: 0.354
A175: 140505.9001 | B175: 0.7088913267 | C175: 137387.0733 | D175: 0.5676260057 | E175: =MAX(E$3, MIN(E$7, E$5 + (-LN(1/F175 - 1) * ((-1)^(F175 <= 0.5))) * (((F175<= 0.5) * E$4 + (F175 > 0.5) * E$6) - E$5) / LN(9))) -> 144753.9552 | F175: 0.4426202094 | G175: =MAX(G$3, MIN(G$7, G$5 + (-LN(1/H175 - 1) * ((-1)^(H175 <= 0.5))) * (((H175<= 0.5) * G$4 + (H175 > 0.5) * G$6) - G$5) / LN(9))) -> 411250.8911 | H175: 0.666929293 | I175: =MAX(I$3, MIN(I$7, I$5 + (-LN(1/J175 - 1) * ((-1)^(J175 <= 0.5))) * (((J175<= 0.5) * I$4 + (J175 > 0.5) * I$6) - I$5) / LN(9))) -> 555734.3262 | J175: 0.835114896 | K175: =MAX(K$3, MIN(K$7, K$5 + (-LN(1/L175 - 1) * ((-1)^(L175 <= 0.5))) * (((L175<= 0.5) * K$4 + (L175 > 0.5) * K$6) - K$5) / LN(9))) -> 41557.38834 | L175: 0.01282429865 | M175: =MAX(M$3, MIN(M$7, M$5 + (-LN(1/N175 - 1) * ((-1)^(N175 <= 0.5))) * (((N175<= 0.5) * M$4 + (N175 > 0.5) * M$6) - M$5) / LN(9))) -> 378849.4931 | N175: 0.9039873126 | R175: 1810039.027 | S175: 0.504
A176: 183214.1348 | B176: 0.8615711804 | C176: 204923.1936 | D176: 0.8527195415 | E176: =MAX(E$3, MIN(E$7, E$5 + (-LN(1/F176 - 1) * ((-1)^(F176 <= 0.5))) * (((F176<= 0.5) * E$4 + (F176 > 0.5) * E$6) - E$5) / LN(9))) -> 122186.7632 | F176: 0.2275427471 | G176: =MAX(G$3, MIN(G$7, G$5 + (-LN(1/H176 - 1) * ((-1)^(H176 <= 0.5))) * (((H176<= 0.5) * G$4 + (H176 > 0.5) * G$6) - G$5) / LN(9))) -> 242513.6138 | H176: 0.2261452919 | I176: =MAX(I$3, MIN(I$7, I$5 + (-LN(1/J176 - 1) * ((-1)^(J176 <= 0.5))) * (((J176<= 0.5) * I$4 + (J176 > 0.5) * I$6) - I$5) / LN(9))) -> 434537.0812 | J176: 0.6835572807 | K176: =MAX(K$3, MIN(K$7, K$5 + (-LN(1/L176 - 1) * ((-1)^(L176 <= 0.5))) * (((L176<= 0.5) * K$4 + (L176 > 0.5) * K$6) - K$5) / LN(9))) -> 539039.6321 | L176: 0.7147421954 | M176: =MAX(M$3, MIN(M$7, M$5 + (-LN(1/N176 - 1) * ((-1)^(N176 <= 0.5))) * (((N176<= 0.5) * M$4 + (N176 > 0.5) * M$6) - M$5) / LN(9))) -> 254326.2321 | N176: 0.6863489861 | R176: 1980740.651 | S176: 0.668
A177: 77999.58329 | B177: 0.275519363 | C177: 104573.5701 | D177: 0.2895379661 | E177: =MAX(E$3, MIN(E$7, E$5 + (-LN(1/F177 - 1) * ((-1)^(F177 <= 0.5))) * (((F177<= 0.5) * E$4 + (F177 > 0.5) * E$6) - E$5) / LN(9))) -> 192193.9741 | F177: 0.6497781638 | G177: =MAX(G$3, MIN(G$7, G$5 + (-LN(1/H177 - 1) * ((-1)^(H177 <= 0.5))) * (((H177<= 0.5) * G$4 + (H177 > 0.5) * G$6) - G$5) / LN(9))) -> 208236.904 | H177: 0.1379150979 | I177: =MAX(I$3, MIN(I$7, I$5 + (-LN(1/J177 - 1) * ((-1)^(J177 <= 0.5))) * (((J177<= 0.5) * I$4 + (J177 > 0.5) * I$6) - I$5) / LN(9))) -> 288605.5994 | J177: 0.3453068136 | K177: =MAX(K$3, MIN(K$7, K$5 + (-LN(1/L177 - 1) * ((-1)^(L177 <= 0.5))) * (((L177<= 0.5) * K$4 + (L177 > 0.5) * K$6) - K$5) / LN(9))) -> 557887.1571 | L177: 0.7374524183 | M177: =MAX(M$3, MIN(M$7, M$5 + (-LN(1/N177 - 1) * ((-1)^(N177 <= 0.5))) * (((N177<= 0.5) * M$4 + (N177 > 0.5) * M$6) - M$5) / LN(9))) -> 230734.5303 | N177: 0.6240196994 | R177: 1660231.318 | S177: 0.34
A178: 77700.15416 | B178: 0.272900636 | C178: 171354.7656 | D178: 0.7346838823 | E178: =MAX(E$3, MIN(E$7, E$5 + (-LN(1/F178 - 1) * ((-1)^(F178 <= 0.5))) * (((F178<= 0.5) * E$4 + (F178 > 0.5) * E$6) - E$5) / LN(9))) -> 145073.4105 | F178: 0.4460862991 | G178: =MAX(G$3, MIN(G$7, G$5 + (-LN(1/H178 - 1) * ((-1)^(H178 <= 0.5))) * (((H178<= 0.5) * G$4 + (H178 > 0.5) * G$6) - G$5) / LN(9))) -> 251651.0588 | H178: 0.2554810033 | I178: =MAX(I$3, MIN(I$7, I$5 + (-LN(1/J178 - 1) * ((-1)^(J178 <= 0.5))) * (((J178<= 0.5) * I$4 + (J178 > 0.5) * I$6) - I$5) / LN(9))) -> 228792.8533 | J178: 0.155629965 | K178: =MAX(K$3, MIN(K$7, K$5 + (-LN(1/L178 - 1) * ((-1)^(L178 <= 0.5))) * (((L178<= 0.5) * K$4 + (L178 > 0.5) * K$6) - K$5) / LN(9))) -> 276602.1112 | L178: 0.1990271034 | M178: =MAX(M$3, MIN(M$7, M$5 + (-LN(1/N178 - 1) * ((-1)^(N178 <= 0.5))) * (((N178<= 0.5) * M$4 + (N178 > 0.5) * M$6) - M$5) / LN(9))) -> 139278.4995 | N178: 0.2441296733 | R178: 1290452.853 | S178: 0.049
A179: 90064.37357 | B179: 0.3925475911 | C179: 124818.425 | D179: 0.4980052051 | E179: =MAX(E$3, MIN(E$7, E$5 + (-LN(1/F179 - 1) * ((-1)^(F179 <= 0.5))) * (((F179<= 0.5) * E$4 + (F179 > 0.5) * E$6) - E$5) / LN(9))) -> 121537.3785 | F179: 0.2225659367 | G179: =MAX(G$3, MIN(G$7, G$5 + (-LN(1/H179 - 1) * ((-1)^(H179 <= 0.5))) * (((H179<= 0.5) * G$4 + (H179 > 0.5) * G$6) - G$5) / LN(9))) -> 485678.7452 | H179: 0.7716480204 | I179: =MAX(I$3, MIN(I$7, I$5 + (-LN(1/J179 - 1) * ((-1)^(J179 <= 0.5))) * (((J179<= 0.5) * I$4 + (J179 > 0.5) * I$6) - I$5) / LN(9))) -> 944262.6594 | J179: 0.9873092412 | K179: =MAX(K$3, MIN(K$7, K$5 + (-LN(1/L179 - 1) * ((-1)^(L179 <= 0.5))) * (((L179<= 0.5) * K$4 + (L179 > 0.5) * K$6) - K$5) / LN(9))) -> 800250.3348 | L179: 0.9242684278 | M179: =MAX(M$3, MIN(M$7, M$5 + (-LN(1/N179 - 1) * ((-1)^(N179 <= 0.5))) * (((N179<= 0.5) * M$4 + (N179 > 0.5) * M$6) - M$5) / LN(9))) -> 254837.324 | N179: 0.6876368743 | R179: 2821449.24 | S179: 0.989
A180: 105635.3744 | B180: 0.530915968 | C180: 109201.1091 | D180: 0.3330829259 | E180: =MAX(E$3, MIN(E$7, E$5 + (-LN(1/F180 - 1) * ((-1)^(F180 <= 0.5))) * (((F180<= 0.5) * E$4 + (F180 > 0.5) * E$6) - E$5) / LN(9))) -> 116626.3879 | F180: 0.1874620169 | G180: =MAX(G$3, MIN(G$7, G$5 + (-LN(1/H180 - 1) * ((-1)^(H180 <= 0.5))) * (((H180<= 0.5) * G$4 + (H180 > 0.5) * G$6) - G$5) / LN(9))) -> 633771.9489 | H180: 0.9054155729 | I180: =MAX(I$3, MIN(I$7, I$5 + (-LN(1/J180 - 1) * ((-1)^(J180 <= 0.5))) * (((J180<= 0.5) * I$4 + (J180 > 0.5) * I$6) - I$5) / LN(9))) -> 478511.2719 | J180: 0.7463720867 | K180: =MAX(K$3, MIN(K$7, K$5 + (-LN(1/L180 - 1) * ((-1)^(L180 <= 0.5))) * (((L180<= 0.5) * K$4 + (L180 > 0.5) * K$6) - K$5) / LN(9))) -> 314919.0259 | L180: 0.2867348254 | M180: =MAX(M$3, MIN(M$7, M$5 + (-LN(1/N180 - 1) * ((-1)^(N180 <= 0.5))) * (((N180<= 0.5) * M$4 + (N180 > 0.5) * M$6) - M$5) / LN(9))) -> 177296.3765 | N180: 0.4404975662 | R180: 1935961.495 | S180: 0.62
A181: 109066.5854 | B181: 0.549639254 | C181: 105295.625 | D181: 0.2961084047 | E181: =MAX(E$3, MIN(E$7, E$5 + (-LN(1/F181 - 1) * ((-1)^(F181 <= 0.5))) * (((F181<= 0.5) * E$4 + (F181 > 0.5) * E$6) - E$5) / LN(9))) -> 167052.0771 | F181: 0.5621227493 | G181: =MAX(G$3, MIN(G$7, G$5 + (-LN(1/H181 - 1) * ((-1)^(H181 <= 0.5))) * (((H181<= 0.5) * G$4 + (H181 > 0.5) * G$6) - G$5) / LN(9))) -> 306428.9219 | H181: 0.4733462466 | I181: =MAX(I$3, MIN(I$7, I$5 + (-LN(1/J181 - 1) * ((-1)^(J181 <= 0.5))) * (((J181<= 0.5) * I$4 + (J181 > 0.5) * I$6) - I$5) / LN(9))) -> 43298.85539 | J181: 0.007021825711 | K181: =MAX(K$3, MIN(K$7, K$5 + (-LN(1/L181 - 1) * ((-1)^(L181 <= 0.5))) * (((L181<= 0.5) * K$4 + (L181 > 0.5) * K$6) - K$5) / LN(9))) -> 207613.54 | L181: 0.09461220558 | M181: =MAX(M$3, MIN(M$7, M$5 + (-LN(1/N181 - 1) * ((-1)^(N181 <= 0.5))) * (((N181<= 0.5) * M$4 + (N181 > 0.5) * M$6) - M$5) / LN(9))) -> 171326.4285 | N181: 0.4063533922 | R181: 1110082.033 | S181: 0.007
A182: 58589.8594 | B182: 0.1394641649 | C182: 164179.2139 | D182: 0.7028393236 | E182: =MAX(E$3, MIN(E$7, E$5 + (-LN(1/F182 - 1) * ((-1)^(F182 <= 0.5))) * (((F182<= 0.5) * E$4 + (F182 > 0.5) * E$6) - E$5) / LN(9))) -> 245391.0071 | F182: 0.8017555828 | G182: =MAX(G$3, MIN(G$7, G$5 + (-LN(1/H182 - 1) * ((-1)^(H182 <= 0.5))) * (((H182<= 0.5) * G$4 + (H182 > 0.5) * G$6) - G$5) / LN(9))) -> 124763.8588 | H182: 0.03557161093 | I182: =MAX(I$3, MIN(I$7, I$5 + (-LN(1/J182 - 1) * ((-1)^(J182 <= 0.5))) * (((J182<= 0.5) * I$4 + (J182 > 0.5) * I$6) - I$5) / LN(9))) -> 448025.7531 | J182: 0.7037060451 | K182: =MAX(K$3, MIN(K$7, K$5 + (-LN(1/L182 - 1) * ((-1)^(L182 <= 0.5))) * (((L182<= 0.5) * K$4 + (L182 > 0.5) * K$6) - K$5) / LN(9))) -> 993084.0606 | L182: 0.9751717678 | M182: =MAX(M$3, MIN(M$7, M$5 + (-LN(1/N182 - 1) * ((-1)^(N182 <= 0.5))) * (((N182<= 0.5) * M$4 + (N182 > 0.5) * M$6) - M$5) / LN(9))) -> 183579.6516 | N182: 0.4770457844 | R182: 2217613.405 | S182: 0.848
A183: 72035.37529 | B183: 0.2263755481 | C183: 175366.8513 | D183: 0.7515083051 | E183: =MAX(E$3, MIN(E$7, E$5 + (-LN(1/F183 - 1) * ((-1)^(F183 <= 0.5))) * (((F183<= 0.5) * E$4 + (F183 > 0.5) * E$6) - E$5) / LN(9))) -> 278014.2645 | F183: 0.867055809 | G183: =MAX(G$3, MIN(G$7, G$5 + (-LN(1/H183 - 1) * ((-1)^(H183 <= 0.5))) * (((H183<= 0.5) * G$4 + (H183 > 0.5) * G$6) - G$5) / LN(9))) -> 195038.2591 | H183: 0.1125735767 | I183: =MAX(I$3, MIN(I$7, I$5 + (-LN(1/J183 - 1) * ((-1)^(J183 <= 0.5))) * (((J183<= 0.5) * I$4 + (J183 > 0.5) * I$6) - I$5) / LN(9))) -> 475856.4169 | J183: 0.742822262 | K183: =MAX(K$3, MIN(K$7, K$5 + (-LN(1/L183 - 1) * ((-1)^(L183 <= 0.5))) * (((L183<= 0.5) * K$4 + (L183 > 0.5) * K$6) - K$5) / LN(9))) -> 536489.9447 | L183: 0.7115808252 | M183: =MAX(M$3, MIN(M$7, M$5 + (-LN(1/N183 - 1) * ((-1)^(N183 <= 0.5))) * (((N183<= 0.5) * M$4 + (N183 > 0.5) * M$6) - M$5) / LN(9))) -> 289475.4578 | N183: 0.7676345761 | R183: 2022276.57 | S183: 0.708
A184: 225848.5393 | B184: 0.9407646793 | C184: 78177.63575 | D184: 0.113288201 | E184: =MAX(E$3, MIN(E$7, E$5 + (-LN(1/F184 - 1) * ((-1)^(F184 <= 0.5))) * (((F184<= 0.5) * E$4 + (F184 > 0.5) * E$6) - E$5) / LN(9))) -> 131603.9185 | F184: 0.3082301759 | G184: =MAX(G$3, MIN(G$7, G$5 + (-LN(1/H184 - 1) * ((-1)^(H184 <= 0.5))) * (((H184<= 0.5) * G$4 + (H184 > 0.5) * G$6) - G$5) / LN(9))) -> 240477.4654 | H184: 0.21994319 | I184: =MAX(I$3, MIN(I$7, I$5 + (-LN(1/J184 - 1) * ((-1)^(J184 <= 0.5))) * (((J184<= 0.5) * I$4 + (J184 > 0.5) * I$6) - I$5) / LN(9))) -> 329143.8357 | J184: 0.5072834349 | K184: =MAX(K$3, MIN(K$7, K$5 + (-LN(1/L184 - 1) * ((-1)^(L184 <= 0.5))) * (((L184<= 0.5) * K$4 + (L184 > 0.5) * K$6) - K$5) / LN(9))) -> 905327.431 | L184: 0.9584616383 | M184: =MAX(M$3, MIN(M$7, M$5 + (-LN(1/N184 - 1) * ((-1)^(N184 <= 0.5))) * (((N184<= 0.5) * M$4 + (N184 > 0.5) * M$6) - M$5) / LN(9))) -> 407954.8084 | N184: 0.9297859864 | R184: 2318533.634 | S184: 0.9
A185: 167951.8497 | B185: 0.81653633 | C185: 66939.47196 | D185: 0.07232977867 | E185: =MAX(E$3, MIN(E$7, E$5 + (-LN(1/F185 - 1) * ((-1)^(F185 <= 0.5))) * (((F185<= 0.5) * E$4 + (F185 > 0.5) * E$6) - E$5) / LN(9))) -> 176063.8775 | F185: 0.5943042617 | G185: =MAX(G$3, MIN(G$7, G$5 + (-LN(1/H185 - 1) * ((-1)^(H185 <= 0.5))) * (((H185<= 0.5) * G$4 + (H185 > 0.5) * G$6) - G$5) / LN(9))) -> 376251.7723 | H185: 0.6102221893 | I185: =MAX(I$3, MIN(I$7, I$5 + (-LN(1/J185 - 1) * ((-1)^(J185 <= 0.5))) * (((J185<= 0.5) * I$4 + (J185 > 0.5) * I$6) - I$5) / LN(9))) -> 261500.1748 | J185: 0.2467192382 | K185: =MAX(K$3, MIN(K$7, K$5 + (-LN(1/L185 - 1) * ((-1)^(L185 <= 0.5))) * (((L185<= 0.5) * K$4 + (L185 > 0.5) * K$6) - K$5) / LN(9))) -> 717025.1276 | L185: 0.8805189513 | M185: =MAX(M$3, MIN(M$7, M$5 + (-LN(1/N185 - 1) * ((-1)^(N185 <= 0.5))) * (((N185<= 0.5) * M$4 + (N185 > 0.5) * M$6) - M$5) / LN(9))) -> 199699.948 | N185: 0.5356806148 | R185: 1965432.222 | S185: 0.652
A186: 113351.7674 | B186: 0.5728205513 | C186: 56348.71044 | D186: 0.04667060264 | E186: =MAX(E$3, MIN(E$7, E$5 + (-LN(1/F186 - 1) * ((-1)^(F186 <= 0.5))) * (((F186<= 0.5) * E$4 + (F186 > 0.5) * E$6) - E$5) / LN(9))) -> 287806.1851 | F186: 0.8827369531 | G186: =MAX(G$3, MIN(G$7, G$5 + (-LN(1/H186 - 1) * ((-1)^(H186 <= 0.5))) * (((H186<= 0.5) * G$4 + (H186 > 0.5) * G$6) - G$5) / LN(9))) -> 712828.8996 | H186: 0.9434682343 | I186: =MAX(I$3, MIN(I$7, I$5 + (-LN(1/J186 - 1) * ((-1)^(J186 <= 0.5))) * (((J186<= 0.5) * I$4 + (J186 > 0.5) * I$6) - I$5) / LN(9))) -> 508475.7377 | J186: 0.7841539054 | K186: =MAX(K$3, MIN(K$7, K$5 + (-LN(1/L186 - 1) * ((-1)^(L186 <= 0.5))) * (((L186<= 0.5) * K$4 + (L186 > 0.5) * K$6) - K$5) / LN(9))) -> 360860.8594 | L186: 0.4171535075 | M186: =MAX(M$3, MIN(M$7, M$5 + (-LN(1/N186 - 1) * ((-1)^(N186 <= 0.5))) * (((N186<= 0.5) * M$4 + (N186 > 0.5) * M$6) - M$5) / LN(9))) -> 318535.717 | N186: 0.8228163295 | R186: 2358207.877 | S186: 0.906
A187: 147438.8683 | B187: 0.7393009641 | C187: 229013.2991 | D187: 0.9076611172 | E187: =MAX(E$3, MIN(E$7, E$5 + (-LN(1/F187 - 1) * ((-1)^(F187 <= 0.5))) * (((F187<= 0.5) * E$4 + (F187 > 0.5) * E$6) - E$5) / LN(9))) -> 158211.8011 | F187: 0.5300357449 | G187: =MAX(G$3, MIN(G$7, G$5 + (-LN(1/H187 - 1) * ((-1)^(H187 <= 0.5))) * (((H187<= 0.5) * G$4 + (H187 > 0.5) * G$6) - G$5) / LN(9))) -> 505533.9694 | H187: 0.7953115312 | I187: =MAX(I$3, MIN(I$7, I$5 + (-LN(1/J187 - 1) * ((-1)^(J187 <= 0.5))) * (((J187<= 0.5) * I$4 + (J187 > 0.5) * I$6) - I$5) / LN(9))) -> 1106250 | J187: 0.9978051611 | K187: =MAX(K$3, MIN(K$7, K$5 + (-LN(1/L187 - 1) * ((-1)^(L187 <= 0.5))) * (((L187<= 0.5) * K$4 + (L187 > 0.5) * K$6) - K$5) / LN(9))) -> 528653.946 | L187: 0.7017358836 | M187: =MAX(M$3, MIN(M$7, M$5 + (-LN(1/N187 - 1) * ((-1)^(N187 <= 0.5))) * (((N187<= 0.5) * M$4 + (N187 > 0.5) * M$6) - M$5) / LN(9))) -> 185326.0573 | N187: 0.4872650476 | R187: 2860427.941 | S187: 0.99
A188: 71029.93041 | B188: 0.218731321 | C188: 189418.021 | D188: 0.8046176188 | E188: =MAX(E$3, MIN(E$7, E$5 + (-LN(1/F188 - 1) * ((-1)^(F188 <= 0.5))) * (((F188<= 0.5) * E$4 + (F188 > 0.5) * E$6) - E$5) / LN(9))) -> 220467.7559 | F188: 0.7373466891 | G188: =MAX(G$3, MIN(G$7, G$5 + (-LN(1/H188 - 1) * ((-1)^(H188 <= 0.5))) * (((H188<= 0.5) * G$4 + (H188 > 0.5) * G$6) - G$5) / LN(9))) -> 282010.1748 | H188: 0.369131627 | I188: =MAX(I$3, MIN(I$7, I$5 + (-LN(1/J188 - 1) * ((-1)^(J188 <= 0.5))) * (((J188<= 0.5) * I$4 + (J188 > 0.5) * I$6) - I$5) / LN(9))) -> 535464.2879 | J188: 0.8145422762 | K188: =MAX(K$3, MIN(K$7, K$5 + (-LN(1/L188 - 1) * ((-1)^(L188 <= 0.5))) * (((L188<= 0.5) * K$4 + (L188 > 0.5) * K$6) - K$5) / LN(9))) -> 285806.1294 | L188: 0.2180912639 | M188: =MAX(M$3, MIN(M$7, M$5 + (-LN(1/N188 - 1) * ((-1)^(N188 <= 0.5))) * (((N188<= 0.5) * M$4 + (N188 > 0.5) * M$6) - M$5) / LN(9))) -> 227979.198 | N188: 0.6164144185 | R188: 1812175.497 | S188: 0.506
A189: 92213.48132 | B189: 0.4152813365 | C189: 98666.31572 | D189: 0.239172726 | E189: =MAX(E$3, MIN(E$7, E$5 + (-LN(1/F189 - 1) * ((-1)^(F189 <= 0.5))) * (((F189<= 0.5) * E$4 + (F189 > 0.5) * E$6) - E$5) / LN(9))) -> 251151.5719 | F189: 0.8148269247 | G189: =MAX(G$3, MIN(G$7, G$5 + (-LN(1/H189 - 1) * ((-1)^(H189 <= 0.5))) * (((H189<= 0.5) * G$4 + (H189 > 0.5) * G$6) - G$5) / LN(9))) -> 233624.0515 | H189: 0.1999726383 | I189: =MAX(I$3, MIN(I$7, I$5 + (-LN(1/J189 - 1) * ((-1)^(J189 <= 0.5))) * (((J189<= 0.5) * I$4 + (J189 > 0.5) * I$6) - I$5) / LN(9))) -> 311433.0864 | J189: 0.4406618404 | K189: =MAX(K$3, MIN(K$7, K$5 + (-LN(1/L189 - 1) * ((-1)^(L189 <= 0.5))) * (((L189<= 0.5) * K$4 + (L189 > 0.5) * K$6) - K$5) / LN(9))) -> 245397.5409 | L189: 0.1437880966 | M189: =MAX(M$3, MIN(M$7, M$5 + (-LN(1/N189 - 1) * ((-1)^(N189 <= 0.5))) * (((N189<= 0.5) * M$4 + (N189 > 0.5) * M$6) - M$5) / LN(9))) -> 593034.0208 | N189: 0.9914417378 | R189: 1825520.069 | S189: 0.517
A190: 206397.5854 | B190: 0.9119591187 | C190: 151514.5993 | D190: 0.6416620648 | E190: =MAX(E$3, MIN(E$7, E$5 + (-LN(1/F190 - 1) * ((-1)^(F190 <= 0.5))) * (((F190<= 0.5) * E$4 + (F190 > 0.5) * E$6) - E$5) / LN(9))) -> 148961.8923 | F190: 0.4885971985 | G190: =MAX(G$3, MIN(G$7, G$5 + (-LN(1/H190 - 1) * ((-1)^(H190 <= 0.5))) * (((H190<= 0.5) * G$4 + (H190 > 0.5) * G$6) - G$5) / LN(9))) -> 297243.8808 | H190: 0.4333566676 | I190: =MAX(I$3, MIN(I$7, I$5 + (-LN(1/J190 - 1) * ((-1)^(J190 <= 0.5))) * (((J190<= 0.5) * I$4 + (J190 > 0.5) * I$6) - I$5) / LN(9))) -> 462487.1205 | J190: 0.7244589052 | K190: =MAX(K$3, MIN(K$7, K$5 + (-LN(1/L190 - 1) * ((-1)^(L190 <= 0.5))) * (((L190<= 0.5) * K$4 + (L190 > 0.5) * K$6) - K$5) / LN(9))) -> 1231229.002 | L190: 0.9940245491 | M190: =MAX(M$3, MIN(M$7, M$5 + (-LN(1/N190 - 1) * ((-1)^(N190 <= 0.5))) * (((N190<= 0.5) * M$4 + (N190 > 0.5) * M$6) - M$5) / LN(9))) -> 118624.2662 | N190: 0.1660001053 | R190: 2616458.347 | S190: 0.965
A191: 152685.206 | B191: 0.7608985856 | C191: 95201.40652 | D191: 0.2125731959 | E191: =MAX(E$3, MIN(E$7, E$5 + (-LN(1/F191 - 1) * ((-1)^(F191 <= 0.5))) * (((F191<= 0.5) * E$4 + (F191 > 0.5) * E$6) - E$5) / LN(9))) -> 136000.7382 | F191: 0.3508760991 | G191: =MAX(G$3, MIN(G$7, G$5 + (-LN(1/H191 - 1) * ((-1)^(H191 <= 0.5))) * (((H191<= 0.5) * G$4 + (H191 > 0.5) * G$6) - G$5) / LN(9))) -> 265192.3516 | H191: 0.3033144253 | I191: =MAX(I$3, MIN(I$7, I$5 + (-LN(1/J191 - 1) * ((-1)^(J191 <= 0.5))) * (((J191<= 0.5) * I$4 + (J191 > 0.5) * I$6) - I$5) / LN(9))) -> 601884.0392 | J191: 0.8750977902 | K191: =MAX(K$3, MIN(K$7, K$5 + (-LN(1/L191 - 1) * ((-1)^(L191 <= 0.5))) * (((L191<= 0.5) * K$4 + (L191 > 0.5) * K$6) - K$5) / LN(9))) -> 339184.386 | L191: 0.3528283174 | M191: =MAX(M$3, MIN(M$7, M$5 + (-LN(1/N191 - 1) * ((-1)^(N191 <= 0.5))) * (((N191<= 0.5) * M$4 + (N191 > 0.5) * M$6) - M$5) / LN(9))) -> 139543.3031 | N191: 0.2452767267 | R191: 1729691.431 | S191: 0.417
A192: 118799.9965 | B192: 0.60182573 | C192: 66077.75509 | D192: 0.06982971126 | E192: =MAX(E$3, MIN(E$7, E$5 + (-LN(1/F192 - 1) * ((-1)^(F192 <= 0.5))) * (((F192<= 0.5) * E$4 + (F192 > 0.5) * E$6) - E$5) / LN(9))) -> 168175.35 | F192: 0.5661684946 | G192: =MAX(G$3, MIN(G$7, G$5 + (-LN(1/H192 - 1) * ((-1)^(H192 <= 0.5))) * (((H192<= 0.5) * G$4 + (H192 > 0.5) * G$6) - G$5) / LN(9))) -> 193737.2576 | H192: 0.1103091336 | I192: =MAX(I$3, MIN(I$7, I$5 + (-LN(1/J192 - 1) * ((-1)^(J192 <= 0.5))) * (((J192<= 0.5) * I$4 + (J192 > 0.5) * I$6) - I$5) / LN(9))) -> 389632.718 | J192: 0.611694437 | K192: =MAX(K$3, MIN(K$7, K$5 + (-LN(1/L192 - 1) * ((-1)^(L192 <= 0.5))) * (((L192<= 0.5) * K$4 + (L192 > 0.5) * K$6) - K$5) / LN(9))) -> 272068.1623 | L192: 0.1901074101 | M192: =MAX(M$3, MIN(M$7, M$5 + (-LN(1/N192 - 1) * ((-1)^(N192 <= 0.5))) * (((N192<= 0.5) * M$4 + (N192 > 0.5) * M$6) - M$5) / LN(9))) -> 94492.7197 | N192: 0.1015775898 | R192: 1302983.959 | S192: 0.056
A193: 70490.79694 | B193: 0.2147096411 | C193: 111981.9429 | D193: 0.3607588822 | E193: =MAX(E$3, MIN(E$7, E$5 + (-LN(1/F193 - 1) * ((-1)^(F193 <= 0.5))) * (((F193<= 0.5) * E$4 + (F193 > 0.5) * E$6) - E$5) / LN(9))) -> 149361.6849 | F193: 0.4929878511 | G193: =MAX(G$3, MIN(G$7, G$5 + (-LN(1/H193 - 1) * ((-1)^(H193 <= 0.5))) * (((H193<= 0.5) * G$4 + (H193 > 0.5) * G$6) - G$5) / LN(9))) -> 264975.3405 | H193: 0.302508954 | I193: =MAX(I$3, MIN(I$7, I$5 + (-LN(1/J193 - 1) * ((-1)^(J193 <= 0.5))) * (((J193<= 0.5) * I$4 + (J193 > 0.5) * I$6) - I$5) / LN(9))) -> 264600.0243 | J193: 0.2569850051 | K193: =MAX(K$3, MIN(K$7, K$5 + (-LN(1/L193 - 1) * ((-1)^(L193 <= 0.5))) * (((L193<= 0.5) * K$4 + (L193 > 0.5) * K$6) - K$5) / LN(9))) -> 468565.4236 | L193: 0.6204273726 | M193: =MAX(M$3, MIN(M$7, M$5 + (-LN(1/N193 - 1) * ((-1)^(N193 <= 0.5))) * (((N193<= 0.5) * M$4 + (N193 > 0.5) * M$6) - M$5) / LN(9))) -> 135079.6949 | N193: 0.226430415 | R193: 1465054.908 | S193: 0.147
A194: 170386.2871 | B194: 0.8244141331 | C194: 115023.3612 | D194: 0.3921179163 | E194: =MAX(E$3, MIN(E$7, E$5 + (-LN(1/F194 - 1) * ((-1)^(F194 <= 0.5))) * (((F194<= 0.5) * E$4 + (F194 > 0.5) * E$6) - E$5) / LN(9))) -> 187689.8833 | F194: 0.6346197913 | G194: =MAX(G$3, MIN(G$7, G$5 + (-LN(1/H194 - 1) * ((-1)^(H194 <= 0.5))) * (((H194<= 0.5) * G$4 + (H194 > 0.5) * G$6) - G$5) / LN(9))) -> 149600.4317 | H194: 0.05399198252 | I194: =MAX(I$3, MIN(I$7, I$5 + (-LN(1/J194 - 1) * ((-1)^(J194 <= 0.5))) * (((J194<= 0.5) * I$4 + (J194 > 0.5) * I$6) - I$5) / LN(9))) -> 439939.329 | J194: 0.6917155796 | K194: =MAX(K$3, MIN(K$7, K$5 + (-LN(1/L194 - 1) * ((-1)^(L194 <= 0.5))) * (((L194<= 0.5) * K$4 + (L194 > 0.5) * K$6) - K$5) / LN(9))) -> 396265.3132 | L194: 0.5132791948 | M194: =MAX(M$3, MIN(M$7, M$5 + (-LN(1/N194 - 1) * ((-1)^(N194 <= 0.5))) * (((N194<= 0.5) * M$4 + (N194 > 0.5) * M$6) - M$5) / LN(9))) -> 147552.0506 | N194: 0.281655903 | R194: 1606456.656 | S194: 0.288
A195: 76204.25924 | B195: 0.2600532649 | C195: 99113.58403 | D195: 0.2427676391 | E195: =MAX(E$3, MIN(E$7, E$5 + (-LN(1/F195 - 1) * ((-1)^(F195 <= 0.5))) * (((F195<= 0.5) * E$4 + (F195 > 0.5) * E$6) - E$5) / LN(9))) -> 139144.127 | F195: 0.3829475911 | G195: =MAX(G$3, MIN(G$7, G$5 + (-LN(1/H195 - 1) * ((-1)^(H195 <= 0.5))) * (((H195<= 0.5) * G$4 + (H195 > 0.5) * G$6) - G$5) / LN(9))) -> 360083.3697 | H195: 0.5828695295 | I195: =MAX(I$3, MIN(I$7, I$5 + (-LN(1/J195 - 1) * ((-1)^(J195 <= 0.5))) * (((J195<= 0.5) * I$4 + (J195 > 0.5) * I$6) - I$5) / LN(9))) -> 267936.4338 | J195: 0.2683418319 | K195: =MAX(K$3, MIN(K$7, K$5 + (-LN(1/L195 - 1) * ((-1)^(L195 <= 0.5))) * (((L195<= 0.5) * K$4 + (L195 > 0.5) * K$6) - K$5) / LN(9))) -> 543613.5663 | L195: 0.72036092 | M195: =MAX(M$3, MIN(M$7, M$5 + (-LN(1/N195 - 1) * ((-1)^(N195 <= 0.5))) * (((N195<= 0.5) * M$4 + (N195 > 0.5) * M$6) - M$5) / LN(9))) -> 214123.768 | N195: 0.5773712776 | R195: 1700219.108 | S195: 0.392
A196: 65374.17553 | B196: 0.1792239358 | C196: 195857.8358 | D196: 0.8259089047 | E196: =MAX(E$3, MIN(E$7, E$5 + (-LN(1/F196 - 1) * ((-1)^(F196 <= 0.5))) * (((F196<= 0.5) * E$4 + (F196 > 0.5) * E$6) - E$5) / LN(9))) -> 132601.8187 | F196: 0.317658311 | G196: =MAX(G$3, MIN(G$7, G$5 + (-LN(1/H196 - 1) * ((-1)^(H196 <= 0.5))) * (((H196<= 0.5) * G$4 + (H196 > 0.5) * G$6) - G$5) / LN(9))) -> 797732.1846 | H196: 0.9680689697 | I196: =MAX(I$3, MIN(I$7, I$5 + (-LN(1/J196 - 1) * ((-1)^(J196 <= 0.5))) * (((J196<= 0.5) * I$4 + (J196 > 0.5) * I$6) - I$5) / LN(9))) -> 711256.4015 | J196: 0.937953402 | K196: =MAX(K$3, MIN(K$7, K$5 + (-LN(1/L196 - 1) * ((-1)^(L196 <= 0.5))) * (((L196<= 0.5) * K$4 + (L196 > 0.5) * K$6) - K$5) / LN(9))) -> 23681.3115 | L196: 0.01027258722 | M196: =MAX(M$3, MIN(M$7, M$5 + (-LN(1/N196 - 1) * ((-1)^(N196 <= 0.5))) * (((N196<= 0.5) * M$4 + (N196 > 0.5) * M$6) - M$5) / LN(9))) -> 302501.2931 | N196: 0.7937445488 | R196: 2229005.021 | S196: 0.854
A197: 73996.46213 | B197: 0.2418227367 | C197: 128063.6855 | D197: 0.5168226605 | E197: =MAX(E$3, MIN(E$7, E$5 + (-LN(1/F197 - 1) * ((-1)^(F197 <= 0.5))) * (((F197<= 0.5) * E$4 + (F197 > 0.5) * E$6) - E$5) / LN(9))) -> 173062.6693 | F197: 0.5836622771 | G197: =MAX(G$3, MIN(G$7, G$5 + (-LN(1/H197 - 1) * ((-1)^(H197 <= 0.5))) * (((H197<= 0.5) * G$4 + (H197 > 0.5) * G$6) - G$5) / LN(9))) -> 572585.1483 | H197: 0.8616055393 | I197: =MAX(I$3, MIN(I$7, I$5 + (-LN(1/J197 - 1) * ((-1)^(J197 <= 0.5))) * (((J197<= 0.5) * I$4 + (J197 > 0.5) * I$6) - I$5) / LN(9))) -> 12500 | J197: 0.002318853593 | K197: =MAX(K$3, MIN(K$7, K$5 + (-LN(1/L197 - 1) * ((-1)^(L197 <= 0.5))) * (((L197<= 0.5) * K$4 + (L197 > 0.5) * K$6) - K$5) / LN(9))) -> 272363.121 | L197: 0.1906782605 | M197: =MAX(M$3, MIN(M$7, M$5 + (-LN(1/N197 - 1) * ((-1)^(N197 <= 0.5))) * (((N197<= 0.5) * M$4 + (N197 > 0.5) * M$6) - M$5) / LN(9))) -> 181282.2535 | N197: 0.4636329072 | R197: 1413853.34 | S197: 0.116
A198: 143436.8075 | B198: 0.7220000369 | C198: 125221.5669 | D198: 0.5012170785 | E198: =MAX(E$3, MIN(E$7, E$5 + (-LN(1/F198 - 1) * ((-1)^(F198 <= 0.5))) * (((F198<= 0.5) * E$4 + (F198 > 0.5) * E$6) - E$5) / LN(9))) -> 135719.4092 | F198: 0.3480655261 | G198: =MAX(G$3, MIN(G$7, G$5 + (-LN(1/H198 - 1) * ((-1)^(H198 <= 0.5))) * (((H198<= 0.5) * G$4 + (H198 > 0.5) * G$6) - G$5) / LN(9))) -> 186372.5778 | H198: 0.09823050101 | I198: =MAX(I$3, MIN(I$7, I$5 + (-LN(1/J198 - 1) * ((-1)^(J198 <= 0.5))) * (((J198<= 0.5) * I$4 + (J198 > 0.5) * I$6) - I$5) / LN(9))) -> 509376.401 | J198: 0.7852238226 | K198: =MAX(K$3, MIN(K$7, K$5 + (-LN(1/L198 - 1) * ((-1)^(L198 <= 0.5))) * (((L198<= 0.5) * K$4 + (L198 > 0.5) * K$6) - K$5) / LN(9))) -> 514904.6486 | L198: 0.6840050279 | M198: =MAX(M$3, MIN(M$7, M$5 + (-LN(1/N198 - 1) * ((-1)^(N198 <= 0.5))) * (((N198<= 0.5) * M$4 + (N198 > 0.5) * M$6) - M$5) / LN(9))) -> 142800.8856 | N198: 0.259683172 | R198: 1757832.297 | S198: 0.448
A199: 90731.43491 | B199: 0.3995591358 | C199: 209742.8756 | D199: 0.8655288804 | E199: =MAX(E$3, MIN(E$7, E$5 + (-LN(1/F199 - 1) * ((-1)^(F199 <= 0.5))) * (((F199<= 0.5) * E$4 + (F199 > 0.5) * E$6) - E$5) / LN(9))) -> 242870.3525 | F199: 0.7958214736 | G199: =MAX(G$3, MIN(G$7, G$5 + (-LN(1/H199 - 1) * ((-1)^(H199 <= 0.5))) * (((H199<= 0.5) * G$4 + (H199 > 0.5) * G$6) - G$5) / LN(9))) -> 283552.6242 | H199: 0.3754675866 | I199: =MAX(I$3, MIN(I$7, I$5 + (-LN(1/J199 - 1) * ((-1)^(J199 <= 0.5))) * (((J199<= 0.5) * I$4 + (J199 > 0.5) * I$6) - I$5) / LN(9))) -> 313112.9885 | J199: 0.4479523572 | K199: =MAX(K$3, MIN(K$7, K$5 + (-LN(1/L199 - 1) * ((-1)^(L199 <= 0.5))) * (((L199<= 0.5) * K$4 + (L199 > 0.5) * K$6) - K$5) / LN(9))) -> 333471.0863 | L199: 0.3366265935 | M199: =MAX(M$3, MIN(M$7, M$5 + (-LN(1/N199 - 1) * ((-1)^(N199 <= 0.5))) * (((N199<= 0.5) * M$4 + (N199 > 0.5) * M$6) - M$5) / LN(9))) -> 257929.1731 | N199: 0.6953658273 | R199: 1731410.535 | S199: 0.42
A200: 82278.0996 | B200: 0.3145829046 | C200: 151119.4352 | D200: 0.6396632026 | E200: =MAX(E$3, MIN(E$7, E$5 + (-LN(1/F200 - 1) * ((-1)^(F200 <= 0.5))) * (((F200<= 0.5) * E$4 + (F200 > 0.5) * E$6) - E$5) / LN(9))) -> 133505.1137 | F200: 0.3263238108 | G200: =MAX(G$3, MIN(G$7, G$5 + (-LN(1/H200 - 1) * ((-1)^(H200 <= 0.5))) * (((H200<= 0.5) * G$4 + (H200 > 0.5) * G$6) - G$5) / LN(9))) -> 238432.274 | H200: 0.2138374512 | I200: =MAX(I$3, MIN(I$7, I$5 + (-LN(1/J200 - 1) * ((-1)^(J200 <= 0.5))) * (((J200<= 0.5) * I$4 + (J200 > 0.5) * I$6) - I$5) / LN(9))) -> 282991.5013 | J200: 0.3233504328 | K200: =MAX(K$3, MIN(K$7, K$5 + (-LN(1/L200 - 1) * ((-1)^(L200 <= 0.5))) * (((L200<= 0.5) * K$4 + (L200 > 0.5) * K$6) - K$5) / LN(9))) -> 608503.4857 | L200: 0.7924192942 | M200: =MAX(M$3, MIN(M$7, M$5 + (-LN(1/N200 - 1) * ((-1)^(N200 <= 0.5))) * (((N200<= 0.5) * M$4 + (N200 > 0.5) * M$6) - M$5) / LN(9))) -> 373618.2618 | N200: 0.8985332575 | R200: 1870448.171 | S200: 0.556
... 809 more rows

Sheet Event Simulations
A1: Current Control Extortion Loss | D1: Current Control Availability Loss | G1: Current Control Data Loss | J1: Target Control Extortion Loss | M1: Target Control Availability Loss | P1: Target Control Data Loss | T1: Total Current Control Event Loss | W1: Total Target Control Event Loss
A2: Value | B2: Percentile | D2: Value | E2: Percentile | G2: Value | H2: Percentile | J2: Value | K2: Percentile | M2: Value | N2: Percentile | P2: Value | Q2: Percentile | T2: Value | U2: Percentile | W2: Value | X2: Percentile
A3: =MAX(2.5*'Cost Assessments'!G2 - 1.5*'Cost Assessments'!H2, 'Cost Assessments'!F2) -> 0 | B3: 0 | D3: =MAX(2.5*'Cost Assessments'!G3 - 1.5*'Cost Assessments'!H3, 'Cost Assessments'!F3) -> 0 | E3: 0 | G3: =MAX(2.5*'Cost Assessments'!G4 - 1.5*'Cost Assessments'!H4, 'Cost Assessments'!F4) -> 1500000 | H3: 0 | J3: =A3 -> 0 | K3: 0 | M3: =D3 -> 0 | N3: 0 | P3: =G3 -> 1500000 | Q3: 0 | T3: =_xlfn.PERCENTILE.INC($T$10:$T$20009,$U3) -> 0 | U3: 0 | W3: =_xlfn.PERCENTILE.INC($W$10:$W$20009,$X3) -> 0 | X3: 0
A4: ='Cost Assessments'!G2 -> 1000000 | B4: 0.1 | D4: ='Cost Assessments'!G3 -> 2000000 | E4: 0.1 | G4: ='Cost Assessments'!G4 -> 3000000 | H4: 0.1 | J4: =A4 -> 1000000 | K4: 0.1 | M4: =D4 -> 2000000 | N4: 0.1 | P4: =G4 -> 3000000 | Q4: 0.1 | T4: =_xlfn.PERCENTILE.INC($T$10:$T$20009,$U4) -> 0 | U4: 0.1 | W4: =_xlfn.PERCENTILE.INC($W$10:$W$20009,$X4) -> 0 | X4: 0.1
A5: ='Cost Assessments'!H2 -> 2000000 | B5: 0.5 | D5: ='Cost Assessments'!H3 -> 4000000 | E5: 0.5 | G5: ='Cost Assessments'!H4 -> 4000000 | H5: 0.5 | J5: =A5 -> 2000000 | K5: 0.5 | M5: =D5 -> 4000000 | N5: 0.5 | P5: 4000000 | Q5: 0.5 | T5: 0 | U5: 0.5 | W5: 0 | X5: 0.5
A6: ='Cost Assessments'!I2 -> 6000000 | B6: 0.9 | D6: ='Cost Assessments'!I3 -> 5000000 | E6: 0.9 | G6: ='Cost Assessments'!I4 -> 8000000 | H6: 0.9 | J6: =A6 -> 6000000 | K6: 0.9 | M6: =D6 -> 5000000 | N6: 0.9 | P6: 8000000 | Q6: 0.9 | T6: 5045915.452 | U6: 0.9 | W6: 0 | X6: 0.9
A7: =MIN(2.5*'Cost Assessments'!I2 - 1.5*'Cost Assessments'!H2,'Cost Assessments'!J2) -> 12000000 | B7: 1 | D7: =MIN(2.5*'Cost Assessments'!I3 - 1.5*'Cost Assessments'!H3,'Cost Assessments'!J3) -> 6500000 | E7: 1 | G7: =MIN(2.5*'Cost Assessments'!I4 - 1.5*'Cost Assessments'!H4,'Cost Assessments'!J4) -> 14000000 | H7: 1 | J7: =A7 -> 12000000 | K7: 1 | M7: =D7 -> 6500000 | N7: 1 | P7: 14000000 | Q7: 1 | T7: 22757607.84 | U7: 1 | W7: 15517712.85 | X7: 1
Z8: Probability of Exceedance
A9: =AVERAGE(A10:A20009) -> 399595.9401 | D9: =AVERAGE(D10:D20009) -> 485951.5365 | G9: =AVERAGE(G10:G20009) -> 645746.8426 | J9: =AVERAGE(J10:J20009) -> 99582.79272 | M9: =AVERAGE(M10:M20009) -> 127283.5253 | P9: =AVERAGE(P10:P20009) -> 161249.255 | T9: =AVERAGE(T10:T20009) -> 1531294.319 | U9: =1-_xlfn.PERCENTRANK.INC($T$10:$T$20009,$T9) -> 0.317 | W9: =AVERAGE(W10:W20009) -> 388115.573 | X9: =1-_xlfn.PERCENTRANK.INC($W$10:$W$20009,$W9) -> 0.096 | Z9: =1-_xlfn.PERCENTRANK.INC($T$10:$T$20009,Summary!$C$6) -> 1 | AA9: =1-_xlfn.PERCENTRANK.INC($W$10:$W$20009,Summary!$D$6) -> 0.023
A10: =C10*MAX(A$3, MIN(A$7, A$5 + (-LN(1/B10 - 1) * ((-1)^(B10 <= 0.5))) * (((B10<= 0.5) * A$4 + (B10 > 0.5) * A$6) - A$5) / LN(9))) -> 2199780.649 | B10: 0.5274076841 | C10: =1*(RAND()<='Controls Regression'!$J$44) -> 1 | D10: =F10*MAX(D$3, MIN(D$7, D$5 + (-LN(1/E10 - 1) * ((-1)^(E10 <= 0.5))) * (((E10<= 0.5) * D$4 + (E10 > 0.5) * D$6) - D$5) / LN(9))) -> 0 | E10: 0.03234765591 | F10: =1*(RAND()<='Controls Regression'!$J$44) -> 0 | G10: =I10*MAX(G$3, MIN(G$7, G$5 + (-LN(1/H10 - 1) * ((-1)^(H10 <= 0.5))) * (((H10<= 0.5) * G$4 + (H10 > 0.5) * G$6) - G$5) / LN(9))) -> 5353640.872 | H10: 0.6777745486 | I10: =1*(RAND()<='Controls Regression'!$J$44) -> 1 | J10: =L10*MAX(J$3, MIN(J$7, J$5 + (-LN(1/K10 - 1) * ((-1)^(K10 <= 0.5))) * (((K10<= 0.5) * J$4 + (K10 > 0.5) * J$6) - J$5) / LN(9))) -> 0 | K10: =B10 -> 0.5274076841 | L10: =1*(RAND()<='Controls Regression'!$K$44) -> 0 | M10: =O10*MAX(M$3, MIN(M$7, M$5 + (-LN(1/N10 - 1) * ((-1)^(N10 <= 0.5))) * (((N10<= 0.5) * M$4 + (N10 > 0.5) * M$6) - M$5) / LN(9))) -> 0 | N10: =E10 -> 0.03234765591 | O10: =1*(RAND()<='Controls Regression'!$K$44) -> 0 | P10: =R10*MAX(P$3, MIN(P$7, P$5 + (-LN(1/Q10 - 1) * ((-1)^(Q10 <= 0.5))) * (((Q10<= 0.5) * P$4 + (Q10 > 0.5) * P$6) - P$5) / LN(9))) -> 0 | Q10: =H10 -> 0.6777745486 | R10: =1*(RAND()<='Controls Regression'!$K$44) -> 0 | T10: =A10+D10+G10 -> 7553421.521 | U10: =1-_xlfn.PERCENTRANK.INC($T$10:$T$20009,$T10) -> 0.04 | W10: =J10+M10+P10 -> 0 | X10: =1-_xlfn.PERCENTRANK.INC($W$10:$W$20009,$W10) -> 1
A11: =C11*MAX(A$3, MIN(A$7, A$5 + (-LN(1/B11 - 1) * ((-1)^(B11 <= 0.5))) * (((B11<= 0.5) * A$4 + (B11 > 0.5) * A$6) - A$5) / LN(9))) -> 0 | B11: 0.3207323461 | C11: =1*(RAND()<='Controls Regression'!$J$44) -> 0 | D11: =F11*MAX(D$3, MIN(D$7, D$5 + (-LN(1/E11 - 1) * ((-1)^(E11 <= 0.5))) * (((E11<= 0.5) * D$4 + (E11 > 0.5) * D$6) - D$5) / LN(9))) -> 0 | E11: 0.9563804926 | F11: =1*(RAND()<='Controls Regression'!$J$44) -> 0 | G11: =I11*MAX(G$3, MIN(G$7, G$5 + (-LN(1/H11 - 1) * ((-1)^(H11 <= 0.5))) * (((H11<= 0.5) * G$4 + (H11 > 0.5) * G$6) - G$5) / LN(9))) -> 0 | H11: 0.4510183219 | I11: =1*(RAND()<='Controls Regression'!$J$44) -> 0 | J11: =L11*MAX(J$3, MIN(J$7, J$5 + (-LN(1/K11 - 1) * ((-1)^(K11 <= 0.5))) * (((K11<= 0.5) * J$4 + (K11 > 0.5) * J$6) - J$5) / LN(9))) -> 0 | K11: =B11 -> 0.3207323461 | L11: =1*(RAND()<='Controls Regression'!$K$44) -> 0 | M11: =O11*MAX(M$3, MIN(M$7, M$5 + (-LN(1/N11 - 1) * ((-1)^(N11 <= 0.5))) * (((N11<= 0.5) * M$4 + (N11 > 0.5) * M$6) - M$5) / LN(9))) -> 0 | N11: =E11 -> 0.9563804926 | O11: =1*(RAND()<='Controls Regression'!$K$44) -> 0 | P11: =R11*MAX(P$3, MIN(P$7, P$5 + (-LN(1/Q11 - 1) * ((-1)^(Q11 <= 0.5))) * (((Q11<= 0.5) * P$4 + (Q11 > 0.5) * P$6) - P$5) / LN(9))) -> 0 | Q11: =H11 -> 0.4510183219 | R11: =1*(RAND()<='Controls Regression'!$K$44) -> 0 | T11: 0 | U11: =1-_xlfn.PERCENTRANK.INC($T$10:$T$20009,$T11) -> 1 | W11: =J11+M11+P11 -> 0 | X11: =1-_xlfn.PERCENTRANK.INC($W$10:$W$20009,$W11) -> 1
A12: 0 | B12: 0.04477466468 | C12: =1*(RAND()<='Controls Regression'!$J$44) -> 0 | D12: 4640392.983 | E12: 0.8033061122 | F12: =1*(RAND()<='Controls Regression'!$J$44) -> 1 | G12: 0 | H12: 0.2932734041 | I12: =1*(RAND()<='Controls Regression'!$J$44) -> 0 | J12: 0 | K12: 0.04477466468 | L12: =1*(RAND()<='Controls Regression'!$K$44) -> 0 | M12: 0 | N12: 0.8033061122 | O12: =1*(RAND()<='Controls Regression'!$K$44) -> 0 | P12: 0 | Q12: 0.2932734041 | R12: =1*(RAND()<='Controls Regression'!$K$44) -> 0 | T12: 4640392.983 | U12: 0.122 | W12: 0 | X12: 1
A13: 0 | B13: 0.3355673684 | C13: =1*(RAND()<='Controls Regression'!$J$44) -> 0 | D13: 0 | E13: 0.5732618251 | F13: =1*(RAND()<='Controls Regression'!$J$44) -> 0 | G13: 0 | H13: 0.01647122394 | I13: =1*(RAND()<='Controls Regression'!$J$44) -> 0 | J13: 0 | K13: 0.3355673684 | L13: =1*(RAND()<='Controls Regression'!$K$44) -> 0 | M13: 0 | N13: 0.5732618251 | O13: =1*(RAND()<='Controls Regression'!$K$44) -> 0 | P13: 0 | Q13: 0.01647122394 | R13: =1*(RAND()<='Controls Regression'!$K$44) -> 0 | T13: 0 | U13: 1 | W13: 0 | X13: 1
A14: 1827215.958 | B14: 0.4062124387 | C14: =1*(RAND()<='Controls Regression'!$J$44) -> 1 | D14: 0 | E14: 0.2293734053 | F14: =1*(RAND()<='Controls Regression'!$J$44) -> 0 | G14: 0 | H14: 0.9868873133 | I14: =1*(RAND()<='Controls Regression'!$J$44) -> 0 | J14: 0 | K14: 0.4062124387 | L14: =1*(RAND()<='Controls Regression'!$K$44) -> 0 | M14: 0 | N14: 0.2293734053 | O14: =1*(RAND()<='Controls Regression'!$K$44) -> 0 | P14: 0 | Q14: 0.9868873133 | R14: =1*(RAND()<='Controls Regression'!$K$44) -> 0 | T14: 1827215.958 | U14: 0.299 | W14: 0 | X14: 1
A15: 0 | B15: 0.4729516819 | C15: =1*(RAND()<='Controls Regression'!$J$44) -> 0 | D15: 3492508.185 | E15: 0.3641176008 | F15: =1*(RAND()<='Controls Regression'!$J$44) -> 1 | G15: 0 | H15: 0.5278780763 | I15: =1*(RAND()<='Controls Regression'!$J$44) -> 0 | J15: 0 | K15: 0.4729516819 | L15: =1*(RAND()<='Controls Regression'!$K$44) -> 0 | M15: 0 | N15: 0.3641176008 | O15: =1*(RAND()<='Controls Regression'!$K$44) -> 0 | P15: 0 | Q15: 0.5278780763 | R15: =1*(RAND()<='Controls Regression'!$K$44) -> 0 | T15: 3492508.185 | U15: 0.216 | W15: 0 | X15: 1
A16: 0 | B16: 0.08396141034 | C16: =1*(RAND()<='Controls Regression'!$J$44) -> 0 | D16: 0 | E16: 0.9240536333 | F16: =1*(RAND()<='Controls Regression'!$J$44) -> 0 | G16: 0 | H16: 0.7526629382 | I16: =1*(RAND()<='Controls Regression'!$J$44) -> 0 | J16: 0 | K16: 0.08396141034 | L16: =1*(RAND()<='Controls Regression'!$K$44) -> 0 | M16: 0 | N16: 0.9240536333 | O16: =1*(RAND()<='Controls Regression'!$K$44) -> 0 | P16: 0 | Q16: 0.7526629382 | R16: =1*(RAND()<='Controls Regression'!$K$44) -> 0 | T16: 0 | U16: 1 | W16: 0 | X16: 1
A17: 0 | B17: 0.7201313752 | C17: =1*(RAND()<='Controls Regression'!$J$44) -> 0 | D17: 0 | E17: 0.9578927966 | F17: =1*(RAND()<='Controls Regression'!$J$44) -> 0 | G17: 0 | H17: 0.6545995044 | I17: =1*(RAND()<='Controls Regression'!$J$44) -> 0 | J17: 0 | K17: 0.7201313752 | L17: =1*(RAND()<='Controls Regression'!$K$44) -> 0 | M17: 0 | N17: 0.9578927966 | O17: =1*(RAND()<='Controls Regression'!$K$44) -> 0 | P17: 0 | Q17: 0.6545995044 | R17: =1*(RAND()<='Controls Regression'!$K$44) -> 0 | T17: 0 | U17: 1 | W17: 0 | X17: 1
A18: 0 | B18: 0.3204499341 | C18: =1*(RAND()<='Controls Regression'!$J$44) -> 0 | D18: 0 | E18: 0.08648664729 | F18: =1*(RAND()<='Controls Regression'!$J$44) -> 0 | G18: 0 | H18: 0.7518272808 | I18: =1*(RAND()<='Controls Regression'!$J$44) -> 0 | J18: 0 | K18: 0.3204499341 | L18: =1*(RAND()<='Controls Regression'!$K$44) -> 0 | M18: 0 | N18: 0.08648664729 | O18: =1*(RAND()<='Controls Regression'!$K$44) -> 0 | P18: 0 | Q18: 0.7518272808 | R18: =1*(RAND()<='Controls Regression'!$K$44) -> 0 | T18: 0 | U18: 1 | W18: 0 | X18: 1
A19: 2870210.999 | B19: 0.6172783865 | C19: =1*(RAND()<='Controls Regression'!$J$44) -> 1 | D19: 0 | E19: 0.06137132722 | F19: =1*(RAND()<='Controls Regression'!$J$44) -> 0 | G19: 0 | H19: 0.1667831042 | I19: =1*(RAND()<='Controls Regression'!$J$44) -> 0 | J19: 0 | K19: 0.6172783865 | L19: =1*(RAND()<='Controls Regression'!$K$44) -> 0 | M19: 0 | N19: 0.06137132722 | O19: =1*(RAND()<='Controls Regression'!$K$44) -> 0 | P19: 0 | Q19: 0.1667831042 | R19: =1*(RAND()<='Controls Regression'!$K$44) -> 0 | T19: 2870210.999 | U19: 0.255 | W19: 0 | X19: 1
A20: 0 | B20: 0.1828107519 | C20: =1*(RAND()<='Controls Regression'!$J$44) -> 0 | D20: 0 | E20: 0.2676093867 | F20: =1*(RAND()<='Controls Regression'!$J$44) -> 0 | G20: 2909460.961 | H20: 0.08346604765 | I20: =1*(RAND()<='Controls Regression'!$J$44) -> 1 | J20: 0 | K20: 0.1828107519 | L20: =1*(RAND()<='Controls Regression'!$K$44) -> 0 | M20: 0 | N20: 0.2676093867 | O20: =1*(RAND()<='Controls Regression'!$K$44) -> 0 | P20: 0 | Q20: 0.08346604765 | R20: =1*(RAND()<='Controls Regression'!$K$44) -> 0 | T20: 2909460.961 | U20: 0.253 | W20: 0 | X20: 1
A21: 0 | B21: 0.4167040809 | C21: =1*(RAND()<='Controls Regression'!$J$44) -> 0 | D21: 0 | E21: 0.1449275164 | F21: =1*(RAND()<='Controls Regression'!$J$44) -> 0 | G21: 0 | H21: 0.36209379 | I21: =1*(RAND()<='Controls Regression'!$J$44) -> 0 | J21: 0 | K21: 0.4167040809 | L21: =1*(RAND()<='Controls Regression'!$K$44) -> 0 | M21: 0 | N21: 0.1449275164 | O21: =1*(RAND()<='Controls Regression'!$K$44) -> 0 | P21: 0 | Q21: 0.36209379 | R21: =1*(RAND()<='Controls Regression'!$K$44) -> 0 | T21: 0 | U21: 1 | W21: 0 | X21: 1
A22: 0 | B22: 0.5963351178 | C22: =1*(RAND()<='Controls Regression'!$J$44) -> 0 | D22: 0 | E22: 0.8133279009 | F22: =1*(RAND()<='Controls Regression'!$J$44) -> 0 | G22: 0 | H22: 0.9903199372 | I22: =1*(RAND()<='Controls Regression'!$J$44) -> 0 | J22: 0 | K22: 0.5963351178 | L22: =1*(RAND()<='Controls Regression'!$K$44) -> 0 | M22: 0 | N22: 0.8133279009 | O22: =1*(RAND()<='Controls Regression'!$K$44) -> 0 | P22: 0 | Q22: 0.9903199372 | R22: =1*(RAND()<='Controls Regression'!$K$44) -> 0 | T22: 0 | U22: 1 | W22: 0 | X22: 1
A23: 0 | B23: 0.7369897592 | C23: =1*(RAND()<='Controls Regression'!$J$44) -> 0 | D23: 0 | E23: 0.5748216644 | F23: =1*(RAND()<='Controls Regression'!$J$44) -> 0 | G23: 0 | H23: 0.8582799265 | I23: =1*(RAND()<='Controls Regression'!$J$44) -> 0 | J23: 0 | K23: 0.7369897592 | L23: =1*(RAND()<='Controls Regression'!$K$44) -> 0 | M23: 0 | N23: 0.5748216644 | O23: =1*(RAND()<='Controls Regression'!$K$44) -> 0 | P23: 0 | Q23: 0.8582799265 | R23: =1*(RAND()<='Controls Regression'!$K$44) -> 0 | T23: 0 | U23: 1 | W23: 0 | X23: 1
A24: 0 | B24: 0.6451089659 | C24: =1*(RAND()<='Controls Regression'!$J$44) -> 0 | D24: 0 | E24: 0.3238435489 | F24: =1*(RAND()<='Controls Regression'!$J$44) -> 0 | G24: 0 | H24: 0.6094803526 | I24: =1*(RAND()<='Controls Regression'!$J$44) -> 0 | J24: 0 | K24: 0.6451089659 | L24: =1*(RAND()<='Controls Regression'!$K$44) -> 0 | M24: 0 | N24: 0.3238435489 | O24: =1*(RAND()<='Controls Regression'!$K$44) -> 0 | P24: 0 | Q24: 0.6094803526 | R24: =1*(RAND()<='Controls Regression'!$K$44) -> 0 | T24: 0 | U24: 1 | W24: 0 | X24: 1
A25: 0 | B25: 0.6702606577 | C25: =1*(RAND()<='Controls Regression'!$J$44) -> 0 | D25: 0 | E25: 0.1339939865 | F25: =1*(RAND()<='Controls Regression'!$J$44) -> 0 | G25: 0 | H25: 0.6401812599 | I25: =1*(RAND()<='Controls Regression'!$J$44) -> 0 | J25: 0 | K25: 0.6702606577 | L25: =1*(RAND()<='Controls Regression'!$K$44) -> 0 | M25: 0 | N25: 0.1339939865 | O25: =1*(RAND()<='Controls Regression'!$K$44) -> 0 | P25: 0 | Q25: 0.6401812599 | R25: =1*(RAND()<='Controls Regression'!$K$44) -> 0 | T25: 0 | U25: 1 | W25: 0 | X25: 1
A26: 0 | B26: 0.9399635856 | C26: =1*(RAND()<='Controls Regression'!$J$44) -> 0 | D26: 0 | E26: 0.4731602445 | F26: =1*(RAND()<='Controls Regression'!$J$44) -> 0 | G26: 0 | H26: 0.5031107288 | I26: =1*(RAND()<='Controls Regression'!$J$44) -> 0 | J26: 0 | K26: 0.9399635856 | L26: =1*(RAND()<='Controls Regression'!$K$44) -> 0 | M26: 0 | N26: 0.4731602445 | O26: =1*(RAND()<='Controls Regression'!$K$44) -> 0 | P26: 0 | Q26: 0.5031107288 | R26: =1*(RAND()<='Controls Regression'!$K$44) -> 0 | T26: 0 | U26: 1 | W26: 0 | X26: 1
A27: 0 | B27: 0.5252791443 | C27: =1*(RAND()<='Controls Regression'!$J$44) -> 0 | D27: 0 | E27: 0.6097023122 | F27: =1*(RAND()<='Controls Regression'!$J$44) -> 0 | G27: 0 | H27: 0.4710177891 | I27: =1*(RAND()<='Controls Regression'!$J$44) -> 0 | J27: 0 | K27: 0.5252791443 | L27: =1*(RAND()<='Controls Regression'!$K$44) -> 0 | M27: 4203011.144 | N27: 0.6097023122 | O27: =1*(RAND()<='Controls Regression'!$K$44) -> 1 | P27: 0 | Q27: 0.4710177891 | R27: =1*(RAND()<='Controls Regression'!$K$44) -> 0 | T27: 0 | U27: 1 | W27: 4203011.144 | X27: 0.037
A28: 0 | B28: 0.3816845023 | C28: =1*(RAND()<='Controls Regression'!$J$44) -> 0 | D28: 0 | E28: 0.8612167649 | F28: =1*(RAND()<='Controls Regression'!$J$44) -> 0 | G28: 0 | H28: 0.3108864081 | I28: =1*(RAND()<='Controls Regression'!$J$44) -> 0 | J28: 1780448.258 | K28: 0.3816845023 | L28: =1*(RAND()<='Controls Regression'!$K$44) -> 1 | M28: 0 | N28: 0.8612167649 | O28: =1*(RAND()<='Controls Regression'!$K$44) -> 0 | P28: 0 | Q28: 0.3108864081 | R28: =1*(RAND()<='Controls Regression'!$K$44) -> 0 | T28: 0 | U28: 1 | W28: 1780448.258 | X28: 0.082
A29: 0 | B29: 0.3733783344 | C29: =1*(RAND()<='Controls Regression'!$J$44) -> 0 | D29: 0 | E29: 0.1752717952 | F29: =1*(RAND()<='Controls Regression'!$J$44) -> 0 | G29: 0 | H29: 0.3529142512 | I29: =1*(RAND()<='Controls Regression'!$J$44) -> 0 | J29: 0 | K29: 0.3733783344 | L29: =1*(RAND()<='Controls Regression'!$K$44) -> 0 | M29: 0 | N29: 0.1752717952 | O29: =1*(RAND()<='Controls Regression'!$K$44) -> 0 | P29: 0 | Q29: 0.3529142512 | R29: =1*(RAND()<='Controls Regression'!$K$44) -> 0 | T29: 0 | U29: 1 | W29: 0 | X29: 1
A30: 0 | B30: 0.4647415252 | C30: =1*(RAND()<='Controls Regression'!$J$44) -> 0 | D30: 0 | E30: 0.2284531325 | F30: =1*(RAND()<='Controls Regression'!$J$44) -> 0 | G30: 0 | H30: 0.8336066104 | I30: =1*(RAND()<='Controls Regression'!$J$44) -> 0 | J30: 0 | K30: 0.4647415252 | L30: =1*(RAND()<='Controls Regression'!$K$44) -> 0 | M30: 0 | N30: 0.2284531325 | O30: =1*(RAND()<='Controls Regression'!$K$44) -> 0 | P30: 0 | Q30: 0.8336066104 | R30: =1*(RAND()<='Controls Regression'!$K$44) -> 0 | T30: 0 | U30: 1 | W30: 0 | X30: 1
A31: 0 | B31: 0.3448763047 | C31: =1*(RAND()<='Controls Regression'!$J$44) -> 0 | D31: 4442920.996 | E31: 0.7257562485 | F31: =1*(RAND()<='Controls Regression'!$J$44) -> 1 | G31: 0 | H31: 0.3783101358 | I31: =1*(RAND()<='Controls Regression'!$J$44) -> 0 | J31: 0 | K31: 0.3448763047 | L31: =1*(RAND()<='Controls Regression'!$K$44) -> 0 | M31: 0 | N31: 0.7257562485 | O31: =1*(RAND()<='Controls Regression'!$K$44) -> 0 | P31: 0 | Q31: 0.3783101358 | R31: =1*(RAND()<='Controls Regression'!$K$44) -> 0 | T31: 4442920.996 | U31: 0.135 | W31: 0 | X31: 1
A32: 0 | B32: 0.4319074497 | C32: =1*(RAND()<='Controls Regression'!$J$44) -> 0 | D32: 0 | E32: 0.07558968492 | F32: =1*(RAND()<='Controls Regression'!$J$44) -> 0 | G32: 0 | H32: 0.7684303686 | I32: =1*(RAND()<='Controls Regression'!$J$44) -> 0 | J32: 0 | K32: 0.4319074497 | L32: =1*(RAND()<='Controls Regression'!$K$44) -> 0 | M32: 0 | N32: 0.07558968492 | O32: =1*(RAND()<='Controls Regression'!$K$44) -> 0 | P32: 0 | Q32: 0.7684303686 | R32: =1*(RAND()<='Controls Regression'!$K$44) -> 0 | T32: 0 | U32: 1 | W32: 0 | X32: 1
A33: 0 | B33: 0.4952225283 | C33: =1*(RAND()<='Controls Regression'!$J$44) -> 0 | D33: 0 | E33: 0.5791215358 | F33: =1*(RAND()<='Controls Regression'!$J$44) -> 0 | G33: 0 | H33: 0.7139271299 | I33: =1*(RAND()<='Controls Regression'!$J$44) -> 0 | J33: 0 | K33: 0.4952225283 | L33: =1*(RAND()<='Controls Regression'!$K$44) -> 0 | M33: 0 | N33: 0.5791215358 | O33: =1*(RAND()<='Controls Regression'!$K$44) -> 0 | P33: 0 | Q33: 0.7139271299 | R33: =1*(RAND()<='Controls Regression'!$K$44) -> 0 | T33: 0 | U33: 1 | W33: 0 | X33: 1
A34: 0 | B34: 0.3347922068 | C34: =1*(RAND()<='Controls Regression'!$J$44) -> 0 | D34: 0 | E34: 0.7537708954 | F34: =1*(RAND()<='Controls Regression'!$J$44) -> 0 | G34: 0 | H34: 0.05447347326 | I34: =1*(RAND()<='Controls Regression'!$J$44) -> 0 | J34: 0 | K34: 0.3347922068 | L34: =1*(RAND()<='Controls Regression'!$K$44) -> 0 | M34: 0 | N34: 0.7537708954 | O34: =1*(RAND()<='Controls Regression'!$K$44) -> 0 | P34: 0 | Q34: 0.05447347326 | R34: =1*(RAND()<='Controls Regression'!$K$44) -> 0 | T34: 0 | U34: 1 | W34: 0 | X34: 1
A35: 0 | B35: 0.02683562301 | C35: =1*(RAND()<='Controls Regression'!$J$44) -> 0 | D35: 0 | E35: 0.7860661229 | F35: =1*(RAND()<='Controls Regression'!$J$44) -> 0 | G35: 4128937.621 | H35: 0.5176991587 | I35: =1*(RAND()<='Controls Regression'!$J$44) -> 1 | J35: 0 | K35: 0.02683562301 | L35: =1*(RAND()<='Controls Regression'!$K$44) -> 0 | M35: 4592280.801 | N35: 0.7860661229 | O35: =1*(RAND()<='Controls Regression'!$K$44) -> 1 | P35: 0 | Q35: 0.5176991587 | R35: =1*(RAND()<='Controls Regression'!$K$44) -> 0 | T35: 4128937.621 | U35: 0.16 | W35: 4592280.801 | X35: 0.029
A36: 0 | B36: 0.1011477272 | C36: =1*(RAND()<='Controls Regression'!$J$44) -> 0 | D36: 0 | E36: 0.8861982084 | F36: =1*(RAND()<='Controls Regression'!$J$44) -> 0 | G36: 3828561.922 | H36: 0.4069259691 | I36: =1*(RAND()<='Controls Regression'!$J$44) -> 1 | J36: 0 | K36: 0.1011477272 | L36: =1*(RAND()<='Controls Regression'!$K$44) -> 0 | M36: 0 | N36: 0.8861982084 | O36: =1*(RAND()<='Controls Regression'!$K$44) -> 0 | P36: 0 | Q36: 0.4069259691 | R36: =1*(RAND()<='Controls Regression'!$K$44) -> 0 | T36: 3828561.922 | U36: 0.185 | W36: 0 | X36: 1
A37: 0 | B37: 0.8071519949 | C37: =1*(RAND()<='Controls Regression'!$J$44) -> 0 | D37: 0 | E37: 0.5529495811 | F37: =1*(RAND()<='Controls Regression'!$J$44) -> 0 | G37: 0 | H37: 0.6249024028 | I37: =1*(RAND()<='Controls Regression'!$J$44) -> 0 | J37: 0 | K37: 0.8071519949 | L37: =1*(RAND()<='Controls Regression'!$K$44) -> 0 | M37: 0 | N37: 0.5529495811 | O37: =1*(RAND()<='Controls Regression'!$K$44) -> 0 | P37: 0 | Q37: 0.6249024028 | R37: =1*(RAND()<='Controls Regression'!$K$44) -> 0 | T37: 0 | U37: 1 | W37: 0 | X37: 1
A38: 0 | B38: 0.5330337268 | C38: =1*(RAND()<='Controls Regression'!$J$44) -> 0 | D38: 2351394.615 | E38: 0.1404957977 | F38: =1*(RAND()<='Controls Regression'!$J$44) -> 1 | G38: 0 | H38: 0.06904965396 | I38: =1*(RAND()<='Controls Regression'!$J$44) -> 0 | J38: 0 | K38: 0.5330337268 | L38: =1*(RAND()<='Controls Regression'!$K$44) -> 0 | M38: 0 | N38: 0.1404957977 | O38: =1*(RAND()<='Controls Regression'!$K$44) -> 0 | P38: 0 | Q38: 0.06904965396 | R38: =1*(RAND()<='Controls Regression'!$K$44) -> 0 | T38: 2351394.615 | U38: 0.277 | W38: 0 | X38: 1
A39: 0 | B39: 0.9955487934 | C39: =1*(RAND()<='Controls Regression'!$J$44) -> 0 | D39: 0 | E39: 0.8248324174 | F39: =1*(RAND()<='Controls Regression'!$J$44) -> 0 | G39: 0 | H39: 0.5747006641 | I39: =1*(RAND()<='Controls Regression'!$J$44) -> 0 | J39: 0 | K39: 0.9955487934 | L39: =1*(RAND()<='Controls Regression'!$K$44) -> 0 | M39: 0 | N39: 0.8248324174 | O39: =1*(RAND()<='Controls Regression'!$K$44) -> 0 | P39: 0 | Q39: 0.5747006641 | R39: =1*(RAND()<='Controls Regression'!$K$44) -> 0 | T39: 0 | U39: 1 | W39: 0 | X39: 1
A40: 0 | B40: 0.4117755955 | C40: =1*(RAND()<='Controls Regression'!$J$44) -> 0 | D40: 0 | E40: 0.05099245046 | F40: =1*(RAND()<='Controls Regression'!$J$44) -> 0 | G40: 0 | H40: 0.814491108 | I40: =1*(RAND()<='Controls Regression'!$J$44) -> 0 | J40: 0 | K40: 0.4117755955 | L40: =1*(RAND()<='Controls Regression'!$K$44) -> 0 | M40: 0 | N40: 0.05099245046 | O40: =1*(RAND()<='Controls Regression'!$K$44) -> 0 | P40: 0 | Q40: 0.814491108 | R40: =1*(RAND()<='Controls Regression'!$K$44) -> 0 | T40: 0 | U40: 1 | W40: 0 | X40: 1
A41: 0 | B41: 0.006854152779 | C41: =1*(RAND()<='Controls Regression'!$J$44) -> 0 | D41: 0 | E41: 0.6715361297 | F41: =1*(RAND()<='Controls Regression'!$J$44) -> 0 | G41: 0 | H41: 0.1661677757 | I41: =1*(RAND()<='Controls Regression'!$J$44) -> 0 | J41: 0 | K41: 0.006854152779 | L41: =1*(RAND()<='Controls Regression'!$K$44) -> 0 | M41: 0 | N41: 0.6715361297 | O41: =1*(RAND()<='Controls Regression'!$K$44) -> 0 | P41: 0 | Q41: 0.1661677757 | R41: =1*(RAND()<='Controls Regression'!$K$44) -> 0 | T41: 0 | U41: 1 | W41: 0 | X41: 1
A42: 0 | B42: 0.6172587207 | C42: =1*(RAND()<='Controls Regression'!$J$44) -> 0 | D42: 0 | E42: 0.9313122129 | F42: =1*(RAND()<='Controls Regression'!$J$44) -> 0 | G42: 0 | H42: 0.6361862706 | I42: =1*(RAND()<='Controls Regression'!$J$44) -> 0 | J42: 0 | K42: 0.6172587207 | L42: =1*(RAND()<='Controls Regression'!$K$44) -> 0 | M42: 0 | N42: 0.9313122129 | O42: =1*(RAND()<='Controls Regression'!$K$44) -> 0 | P42: 0 | Q42: 0.6361862706 | R42: =1*(RAND()<='Controls Regression'!$K$44) -> 0 | T42: 0 | U42: 1 | W42: 0 | X42: 1
A43: 0 | B43: 0.3009890874 | C43: =1*(RAND()<='Controls Regression'!$J$44) -> 0 | D43: 5351788.701 | E43: 0.9512087874 | F43: =1*(RAND()<='Controls Regression'!$J$44) -> 1 | G43: 0 | H43: 0.2206506393 | I43: =1*(RAND()<='Controls Regression'!$J$44) -> 0 | J43: 0 | K43: 0.3009890874 | L43: =1*(RAND()<='Controls Regression'!$K$44) -> 0 | M43: 0 | N43: 0.9512087874 | O43: =1*(RAND()<='Controls Regression'!$K$44) -> 0 | P43: 0 | Q43: 0.2206506393 | R43: =1*(RAND()<='Controls Regression'!$K$44) -> 0 | T43: 5351788.701 | U43: 0.089 | W43: 0 | X43: 1
A44: 3601567.139 | B44: 0.7067705512 | C44: =1*(RAND()<='Controls Regression'!$J$44) -> 1 | D44: 0 | E44: 0.7326723304 | F44: =1*(RAND()<='Controls Regression'!$J$44) -> 0 | G44: 0 | H44: 0.1700686607 | I44: =1*(RAND()<='Controls Regression'!$J$44) -> 0 | J44: 0 | K44: 0.7067705512 | L44: =1*(RAND()<='Controls Regression'!$K$44) -> 0 | M44: 4458862.264 | N44: 0.7326723304 | O44: =1*(RAND()<='Controls Regression'!$K$44) -> 1 | P44: 0 | Q44: 0.1700686607 | R44: =1*(RAND()<='Controls Regression'!$K$44) -> 0 | T44: 3601567.139 | U44: 0.207 | W44: 4458862.264 | X44: 0.031
A45: 0 | B45: 0.2148054249 | C45: =1*(RAND()<='Controls Regression'!$J$44) -> 0 | D45: 0 | E45: 0.3665107633 | F45: =1*(RAND()<='Controls Regression'!$J$44) -> 0 | G45: 0 | H45: 0.596023151 | I45: =1*(RAND()<='Controls Regression'!$J$44) -> 0 | J45: 0 | K45: 0.2148054249 | L45: =1*(RAND()<='Controls Regression'!$K$44) -> 0 | M45: 0 | N45: 0.3665107633 | O45: =1*(RAND()<='Controls Regression'!$K$44) -> 0 | P45: 0 | Q45: 0.596023151 | R45: =1*(RAND()<='Controls Regression'!$K$44) -> 0 | T45: 0 | U45: 1 | W45: 0 | X45: 1
A46: 3161957.133 | B46: 0.6543623307 | C46: =1*(RAND()<='Controls Regression'!$J$44) -> 1 | D46: 0 | E46: 0.02782341923 | F46: =1*(RAND()<='Controls Regression'!$J$44) -> 0 | G46: 5389350.932 | H46: 0.6820435316 | I46: =1*(RAND()<='Controls Regression'!$J$44) -> 1 | J46: 0 | K46: 0.6543623307 | L46: =1*(RAND()<='Controls Regression'!$K$44) -> 0 | M46: 0 | N46: 0.02782341923 | O46: =1*(RAND()<='Controls Regression'!$K$44) -> 0 | P46: 0 | Q46: 0.6820435316 | R46: =1*(RAND()<='Controls Regression'!$K$44) -> 0 | T46: 8551308.065 | U46: 0.027 | W46: 0 | X46: 1
A47: 0 | B47: 0.9977709106 | C47: =1*(RAND()<='Controls Regression'!$J$44) -> 0 | D47: 0 | E47: 0.6455742581 | F47: =1*(RAND()<='Controls Regression'!$J$44) -> 0 | G47: 0 | H47: 0.6268221238 | I47: =1*(RAND()<='Controls Regression'!$J$44) -> 0 | J47: 0 | K47: 0.9977709106 | L47: =1*(RAND()<='Controls Regression'!$K$44) -> 0 | M47: 0 | N47: 0.6455742581 | O47: =1*(RAND()<='Controls Regression'!$K$44) -> 0 | P47: 0 | Q47: 0.6268221238 | R47: =1*(RAND()<='Controls Regression'!$K$44) -> 0 | T47: 0 | U47: 1 | W47: 0 | X47: 1
A48: 0 | B48: 0.1248221134 | C48: =1*(RAND()<='Controls Regression'!$J$44) -> 0 | D48: 0 | E48: 0.8181634964 | F48: =1*(RAND()<='Controls Regression'!$J$44) -> 0 | G48: 0 | H48: 0.6942929649 | I48: =1*(RAND()<='Controls Regression'!$J$44) -> 0 | J48: 0 | K48: 0.1248221134 | L48: =1*(RAND()<='Controls Regression'!$K$44) -> 0 | M48: 0 | N48: 0.8181634964 | O48: =1*(RAND()<='Controls Regression'!$K$44) -> 0 | P48: 0 | Q48: 0.6942929649 | R48: =1*(RAND()<='Controls Regression'!$K$44) -> 0 | T48: 0 | U48: 1 | W48: 0 | X48: 1
A49: 0 | B49: 0.3576691694 | C49: =1*(RAND()<='Controls Regression'!$J$44) -> 0 | D49: 0 | E49: 0.04196807598 | F49: =1*(RAND()<='Controls Regression'!$J$44) -> 0 | G49: 0 | H49: 0.8374022213 | I49: =1*(RAND()<='Controls Regression'!$J$44) -> 0 | J49: 0 | K49: 0.3576691694 | L49: =1*(RAND()<='Controls Regression'!$K$44) -> 0 | M49: 0 | N49: 0.04196807598 | O49: =1*(RAND()<='Controls Regression'!$K$44) -> 0 | P49: 0 | Q49: 0.8374022213 | R49: =1*(RAND()<='Controls Regression'!$K$44) -> 0 | T49: 0 | U49: 1 | W49: 0 | X49: 1
A50: 0 | B50: 0.1561665736 | C50: =1*(RAND()<='Controls Regression'!$J$44) -> 0 | D50: 0 | E50: 0.9823075217 | F50: =1*(RAND()<='Controls Regression'!$J$44) -> 0 | G50: 0 | H50: 0.1617154385 | I50: =1*(RAND()<='Controls Regression'!$J$44) -> 0 | J50: 1232198.696 | K50: 0.1561665736 | L50: =1*(RAND()<='Controls Regression'!$K$44) -> 1 | M50: 0 | N50: 0.9823075217 | O50: =1*(RAND()<='Controls Regression'!$K$44) -> 0 | P50: 0 | Q50: 0.1617154385 | R50: =1*(RAND()<='Controls Regression'!$K$44) -> 0 | T50: 0 | U50: 1 | W50: 1232198.696 | X50: 0.091
A51: 8306477.689 | B51: 0.9696514208 | C51: =1*(RAND()<='Controls Regression'!$J$44) -> 1 | D51: 0 | E51: 0.2804243708 | F51: =1*(RAND()<='Controls Regression'!$J$44) -> 0 | G51: 0 | H51: 0.6539323959 | I51: =1*(RAND()<='Controls Regression'!$J$44) -> 0 | J51: 0 | K51: 0.9696514208 | L51: =1*(RAND()<='Controls Regression'!$K$44) -> 0 | M51: 0 | N51: 0.2804243708 | O51: =1*(RAND()<='Controls Regression'!$K$44) -> 0 | P51: 0 | Q51: 0.6539323959 | R51: =1*(RAND()<='Controls Regression'!$K$44) -> 0 | T51: 8306477.689 | U51: 0.03 | W51: 0 | X51: 1
A52: 0 | B52: 0.4874676793 | C52: =1*(RAND()<='Controls Regression'!$J$44) -> 0 | D52: 4135674.25 | E52: 0.5739796426 | F52: =1*(RAND()<='Controls Regression'!$J$44) -> 1 | G52: 0 | H52: 0.9370204054 | I52: =1*(RAND()<='Controls Regression'!$J$44) -> 0 | J52: 0 | K52: 0.4874676793 | L52: =1*(RAND()<='Controls Regression'!$K$44) -> 0 | M52: 0 | N52: 0.5739796426 | O52: =1*(RAND()<='Controls Regression'!$K$44) -> 0 | P52: 0 | Q52: 0.9370204054 | R52: =1*(RAND()<='Controls Regression'!$K$44) -> 0 | T52: 4135674.25 | U52: 0.159 | W52: 0 | X52: 1
A53: 0 | B53: 0.4601940405 | C53: =1*(RAND()<='Controls Regression'!$J$44) -> 0 | D53: 0 | E53: 0.3059944298 | F53: =1*(RAND()<='Controls Regression'!$J$44) -> 0 | G53: 0 | H53: 0.2007129967 | I53: =1*(RAND()<='Controls Regression'!$J$44) -> 0 | J53: 0 | K53: 0.4601940405 | L53: =1*(RAND()<='Controls Regression'!$K$44) -> 0 | M53: 0 | N53: 0.3059944298 | O53: =1*(RAND()<='Controls Regression'!$K$44) -> 0 | P53: 0 | Q53: 0.2007129967 | R53: =1*(RAND()<='Controls Regression'!$K$44) -> 0 | T53: 0 | U53: 1 | W53: 0 | X53: 1
A54: 0 | B54: 0.4781505473 | C54: =1*(RAND()<='Controls Regression'!$J$44) -> 0 | D54: 0 | E54: 0.7804186839 | F54: =1*(RAND()<='Controls Regression'!$J$44) -> 0 | G54: 3763539.934 | H54: 0.3729560923 | I54: =1*(RAND()<='Controls Regression'!$J$44) -> 1 | J54: 0 | K54: 0.4781505473 | L54: =1*(RAND()<='Controls Regression'!$K$44) -> 0 | M54: 0 | N54: 0.7804186839 | O54: =1*(RAND()<='Controls Regression'!$K$44) -> 0 | P54: 0 | Q54: 0.3729560923 | R54: =1*(RAND()<='Controls Regression'!$K$44) -> 0 | T54: 3763539.934 | U54: 0.191 | W54: 0 | X54: 1
A55: 0 | B55: 0.04815883732 | C55: =1*(RAND()<='Controls Regression'!$J$44) -> 0 | D55: 0 | E55: 0.7527868744 | F55: =1*(RAND()<='Controls Regression'!$J$44) -> 0 | G55: 0 | H55: 0.4233896179 | I55: =1*(RAND()<='Controls Regression'!$J$44) -> 0 | J55: 641971.5367 | K55: 0.04815883732 | L55: =1*(RAND()<='Controls Regression'!$K$44) -> 1 | M55: 0 | N55: 0.7527868744 | O55: =1*(RAND()<='Controls Regression'!$K$44) -> 0 | P55: 0 | Q55: 0.4233896179 | R55: =1*(RAND()<='Controls Regression'!$K$44) -> 0 | T55: 0 | U55: 1 | W55: 641971.5367 | X55: 0.095
A56: 0 | B56: 0.9682480816 | C56: =1*(RAND()<='Controls Regression'!$J$44) -> 0 | D56: 0 | E56: 0.4230696372 | F56: =1*(RAND()<='Controls Regression'!$J$44) -> 0 | G56: 0 | H56: 0.3141207063 | I56: =1*(RAND()<='Controls Regression'!$J$44) -> 0 | J56: 0 | K56: 0.9682480816 | L56: =1*(RAND()<='Controls Regression'!$K$44) -> 0 | M56: 0 | N56: 0.4230696372 | O56: =1*(RAND()<='Controls Regression'!$K$44) -> 0 | P56: 0 | Q56: 0.3141207063 | R56: =1*(RAND()<='Controls Regression'!$K$44) -> 0 | T56: 0 | U56: 1 | W56: 0 | X56: 1
A57: 0 | B57: 0.1772026936 | C57: =1*(RAND()<='Controls Regression'!$J$44) -> 0 | D57: 0 | E57: 0.2410633876 | F57: =1*(RAND()<='Controls Regression'!$J$44) -> 0 | G57: 5930426.799 | H57: 0.7427660807 | I57: =1*(RAND()<='Controls Regression'!$J$44) -> 1 | J57: 0 | K57: 0.1772026936 | L57: =1*(RAND()<='Controls Regression'!$K$44) -> 0 | M57: 0 | N57: 0.2410633876 | O57: =1*(RAND()<='Controls Regression'!$K$44) -> 0 | P57: 0 | Q57: 0.7427660807 | R57: =1*(RAND()<='Controls Regression'!$K$44) -> 0 | T57: 5930426.799 | U57: 0.072 | W57: 0 | X57: 1
A58: 0 | B58: 0.634051438 | C58: =1*(RAND()<='Controls Regression'!$J$44) -> 0 | D58: 0 | E58: 0.3251675307 | F58: =1*(RAND()<='Controls Regression'!$J$44) -> 0 | G58: 3279561.883 | H58: 0.1703760692 | I58: =1*(RAND()<='Controls Regression'!$J$44) -> 1 | J58: 0 | K58: 0.634051438 | L58: =1*(RAND()<='Controls Regression'!$K$44) -> 0 | M58: 0 | N58: 0.3251675307 | O58: =1*(RAND()<='Controls Regression'!$K$44) -> 0 | P58: 0 | Q58: 0.1703760692 | R58: =1*(RAND()<='Controls Regression'!$K$44) -> 0 | T58: 3279561.883 | U58: 0.232 | W58: 0 | X58: 1
A59: 0 | B59: 0.919191537 | C59: =1*(RAND()<='Controls Regression'!$J$44) -> 0 | D59: 0 | E59: 0.5055778869 | F59: =1*(RAND()<='Controls Regression'!$J$44) -> 0 | G59: 0 | H59: 0.8426035853 | I59: =1*(RAND()<='Controls Regression'!$J$44) -> 0 | J59: 0 | K59: 0.919191537 | L59: =1*(RAND()<='Controls Regression'!$K$44) -> 0 | M59: 0 | N59: 0.5055778869 | O59: =1*(RAND()<='Controls Regression'!$K$44) -> 0 | P59: 0 | Q59: 0.8426035853 | R59: =1*(RAND()<='Controls Regression'!$K$44) -> 0 | T59: 0 | U59: 1 | W59: 0 | X59: 1
A60: 1702976.147 | B60: 0.3423975432 | C60: =1*(RAND()<='Controls Regression'!$J$44) -> 1 | D60: 0 | E60: 0.5258528449 | F60: =1*(RAND()<='Controls Regression'!$J$44) -> 0 | G60: 0 | H60: 0.2871036612 | I60: =1*(RAND()<='Controls Regression'!$J$44) -> 0 | J60: 0 | K60: 0.3423975432 | L60: =1*(RAND()<='Controls Regression'!$K$44) -> 0 | M60: 0 | N60: 0.5258528449 | O60: =1*(RAND()<='Controls Regression'!$K$44) -> 0 | P60: 0 | Q60: 0.2871036612 | R60: =1*(RAND()<='Controls Regression'!$K$44) -> 0 | T60: 1702976.147 | U60: 0.307 | W60: 0 | X60: 1
A61: 3884064.47 | B61: 0.737870212 | C61: =1*(RAND()<='Controls Regression'!$J$44) -> 1 | D61: 0 | E61: 0.03071651809 | F61: =1*(RAND()<='Controls Regression'!$J$44) -> 0 | G61: 0 | H61: 0.3277704783 | I61: =1*(RAND()<='Controls Regression'!$J$44) -> 0 | J61: 0 | K61: 0.737870212 | L61: =1*(RAND()<='Controls Regression'!$K$44) -> 0 | M61: 0 | N61: 0.03071651809 | O61: =1*(RAND()<='Controls Regression'!$K$44) -> 0 | P61: 0 | Q61: 0.3277704783 | R61: =1*(RAND()<='Controls Regression'!$K$44) -> 0 | T61: 3884064.47 | U61: 0.179 | W61: 0 | X61: 1
A62: 0 | B62: 0.1837628732 | C62: =1*(RAND()<='Controls Regression'!$J$44) -> 0 | D62: 0 | E62: 0.3860648579 | F62: =1*(RAND()<='Controls Regression'!$J$44) -> 0 | G62: 0 | H62: 0.6528198571 | I62: =1*(RAND()<='Controls Regression'!$J$44) -> 0 | J62: 0 | K62: 0.1837628732 | L62: =1*(RAND()<='Controls Regression'!$K$44) -> 0 | M62: 0 | N62: 0.3860648579 | O62: =1*(RAND()<='Controls Regression'!$K$44) -> 0 | P62: 0 | Q62: 0.6528198571 | R62: =1*(RAND()<='Controls Regression'!$K$44) -> 0 | T62: 0 | U62: 1 | W62: 0 | X62: 1
A63: 0 | B63: 0.1722893276 | C63: =1*(RAND()<='Controls Regression'!$J$44) -> 0 | D63: 0 | E63: 0.5116659014 | F63: =1*(RAND()<='Controls Regression'!$J$44) -> 0 | G63: 0 | H63: 0.2849773521 | I63: =1*(RAND()<='Controls Regression'!$J$44) -> 0 | J63: 0 | K63: 0.1722893276 | L63: =1*(RAND()<='Controls Regression'!$K$44) -> 0 | M63: 0 | N63: 0.5116659014 | O63: =1*(RAND()<='Controls Regression'!$K$44) -> 0 | P63: 0 | Q63: 0.2849773521 | R63: =1*(RAND()<='Controls Regression'!$K$44) -> 0 | T63: 0 | U63: 1 | W63: 0 | X63: 1
A64: 0 | B64: 0.8380090825 | C64: =1*(RAND()<='Controls Regression'!$J$44) -> 0 | D64: 0 | E64: 0.9780448088 | F64: =1*(RAND()<='Controls Regression'!$J$44) -> 0 | G64: 3934172.557 | H64: 0.4639034877 | I64: =1*(RAND()<='Controls Regression'!$J$44) -> 1 | J64: 0 | K64: 0.8380090825 | L64: =1*(RAND()<='Controls Regression'!$K$44) -> 0 | M64: 0 | N64: 0.9780448088 | O64: =1*(RAND()<='Controls Regression'!$K$44) -> 0 | P64: 0 | Q64: 0.4639034877 | R64: =1*(RAND()<='Controls Regression'!$K$44) -> 0 | T64: 3934172.557 | U64: 0.175 | W64: 0 | X64: 1
A65: 0 | B65: 0.7202678627 | C65: =1*(RAND()<='Controls Regression'!$J$44) -> 0 | D65: 3775515.088 | E65: 0.4386551428 | F65: =1*(RAND()<='Controls Regression'!$J$44) -> 1 | G65: 0 | H65: 0.124603348 | I65: =1*(RAND()<='Controls Regression'!$J$44) -> 0 | J65: 0 | K65: 0.7202678627 | L65: =1*(RAND()<='Controls Regression'!$K$44) -> 0 | M65: 0 | N65: 0.4386551428 | O65: =1*(RAND()<='Controls Regression'!$K$44) -> 0 | P65: 0 | Q65: 0.124603348 | R65: =1*(RAND()<='Controls Regression'!$K$44) -> 0 | T65: 3775515.088 | U65: 0.19 | W65: 0 | X65: 1
A66: 0 | B66: 0.3076118173 | C66: =1*(RAND()<='Controls Regression'!$J$44) -> 0 | D66: 2687982.611 | E66: 0.1913288877 | F66: =1*(RAND()<='Controls Regression'!$J$44) -> 1 | G66: 0 | H66: 0.5266413082 | I66: =1*(RAND()<='Controls Regression'!$J$44) -> 0 | J66: 0 | K66: 0.3076118173 | L66: =1*(RAND()<='Controls Regression'!$K$44) -> 0 | M66: 0 | N66: 0.1913288877 | O66: =1*(RAND()<='Controls Regression'!$K$44) -> 0 | P66: 0 | Q66: 0.5266413082 | R66: =1*(RAND()<='Controls Regression'!$K$44) -> 0 | T66: 2687982.611 | U66: 0.264 | W66: 0 | X66: 1
A67: 0 | B67: 0.05885429854 | C67: =1*(RAND()<='Controls Regression'!$J$44) -> 0 | D67: 0 | E67: 0.9889947158 | F67: =1*(RAND()<='Controls Regression'!$J$44) -> 0 | G67: 0 | H67: 0.3537085688 | I67: =1*(RAND()<='Controls Regression'!$J$44) -> 0 | J67: 0 | K67: 0.05885429854 | L67: =1*(RAND()<='Controls Regression'!$K$44) -> 0 | M67: 0 | N67: 0.9889947158 | O67: =1*(RAND()<='Controls Regression'!$K$44) -> 0 | P67: 0 | Q67: 0.3537085688 | R67: =1*(RAND()<='Controls Regression'!$K$44) -> 0 | T67: 0 | U67: 1 | W67: 0 | X67: 1
A68: 0 | B68: 0.3393793979 | C68: =1*(RAND()<='Controls Regression'!$J$44) -> 0 | D68: 0 | E68: 0.7103984869 | F68: =1*(RAND()<='Controls Regression'!$J$44) -> 0 | G68: 0 | H68: 0.5801081368 | I68: =1*(RAND()<='Controls Regression'!$J$44) -> 0 | J68: 0 | K68: 0.3393793979 | L68: =1*(RAND()<='Controls Regression'!$K$44) -> 0 | M68: 0 | N68: 0.7103984869 | O68: =1*(RAND()<='Controls Regression'!$K$44) -> 0 | P68: 0 | Q68: 0.5801081368 | R68: =1*(RAND()<='Controls Regression'!$K$44) -> 0 | T68: 0 | U68: 1 | W68: 0 | X68: 1
A69: 0 | B69: 0.8578519433 | C69: =1*(RAND()<='Controls Regression'!$J$44) -> 0 | D69: 0 | E69: 0.5388037208 | F69: =1*(RAND()<='Controls Regression'!$J$44) -> 0 | G69: 0 | H69: 0.2963017965 | I69: =1*(RAND()<='Controls Regression'!$J$44) -> 0 | J69: 0 | K69: 0.8578519433 | L69: =1*(RAND()<='Controls Regression'!$K$44) -> 0 | M69: 0 | N69: 0.5388037208 | O69: =1*(RAND()<='Controls Regression'!$K$44) -> 0 | P69: 0 | Q69: 0.2963017965 | R69: =1*(RAND()<='Controls Regression'!$K$44) -> 0 | T69: 0 | U69: 1 | W69: 0 | X69: 1
A70: 0 | B70: 0.08374740206 | C70: =1*(RAND()<='Controls Regression'!$J$44) -> 0 | D70: 0 | E70: 0.1399578176 | F70: =1*(RAND()<='Controls Regression'!$J$44) -> 0 | G70: 3808066.663 | H70: 0.396105088 | I70: =1*(RAND()<='Controls Regression'!$J$44) -> 1 | J70: 0 | K70: 0.08374740206 | L70: =1*(RAND()<='Controls Regression'!$K$44) -> 0 | M70: 0 | N70: 0.1399578176 | O70: =1*(RAND()<='Controls Regression'!$K$44) -> 0 | P70: 0 | Q70: 0.396105088 | R70: =1*(RAND()<='Controls Regression'!$K$44) -> 0 | T70: 3808066.663 | U70: 0.187 | W70: 0 | X70: 1
A71: 0 | B71: 0.3336350265 | C71: =1*(RAND()<='Controls Regression'!$J$44) -> 0 | D71: 0 | E71: 0.3782555692 | F71: =1*(RAND()<='Controls Regression'!$J$44) -> 0 | G71: 3883682.978 | H71: 0.4364518741 | I71: =1*(RAND()<='Controls Regression'!$J$44) -> 1 | J71: 0 | K71: 0.3336350265 | L71: =1*(RAND()<='Controls Regression'!$K$44) -> 0 | M71: 0 | N71: 0.3782555692 | O71: =1*(RAND()<='Controls Regression'!$K$44) -> 0 | P71: 0 | Q71: 0.4364518741 | R71: =1*(RAND()<='Controls Regression'!$K$44) -> 0 | T71: 3883682.978 | U71: 0.179 | W71: 0 | X71: 1
A72: 0 | B72: 0.2370327659 | C72: =1*(RAND()<='Controls Regression'!$J$44) -> 0 | D72: 0 | E72: 0.08558068063 | F72: =1*(RAND()<='Controls Regression'!$J$44) -> 0 | G72: 0 | H72: 0.5001227251 | I72: =1*(RAND()<='Controls Regression'!$J$44) -> 0 | J72: 0 | K72: 0.2370327659 | L72: =1*(RAND()<='Controls Regression'!$K$44) -> 0 | M72: 0 | N72: 0.08558068063 | O72: =1*(RAND()<='Controls Regression'!$K$44) -> 0 | P72: 0 | Q72: 0.5001227251 | R72: =1*(RAND()<='Controls Regression'!$K$44) -> 0 | T72: 0 | U72: 1 | W72: 0 | X72: 1
A73: 2620971.275 | B73: 0.5844585117 | C73: =1*(RAND()<='Controls Regression'!$J$44) -> 1 | D73: 0 | E73: 0.8504394161 | F73: =1*(RAND()<='Controls Regression'!$J$44) -> 0 | G73: 0 | H73: 0.2505663019 | I73: =1*(RAND()<='Controls Regression'!$J$44) -> 0 | J73: 0 | K73: 0.5844585117 | L73: =1*(RAND()<='Controls Regression'!$K$44) -> 0 | M73: 0 | N73: 0.8504394161 | O73: =1*(RAND()<='Controls Regression'!$K$44) -> 0 | P73: 0 | Q73: 0.2505663019 | R73: =1*(RAND()<='Controls Regression'!$K$44) -> 0 | T73: 2620971.275 | U73: 0.267 | W73: 0 | X73: 1
A74: 0 | B74: 0.9719472196 | C74: =1*(RAND()<='Controls Regression'!$J$44) -> 0 | D74: 0 | E74: 0.1190040409 | F74: =1*(RAND()<='Controls Regression'!$J$44) -> 0 | G74: 0 | H74: 0.728228576 | I74: =1*(RAND()<='Controls Regression'!$J$44) -> 0 | J74: 0 | K74: 0.9719472196 | L74: =1*(RAND()<='Controls Regression'!$K$44) -> 0 | M74: 0 | N74: 0.1190040409 | O74: =1*(RAND()<='Controls Regression'!$K$44) -> 0 | P74: 0 | Q74: 0.728228576 | R74: =1*(RAND()<='Controls Regression'!$K$44) -> 0 | T74: =A74+D74+G74 -> 0 | U74: 1 | W74: 0 | X74: 1
A75: =C75*MAX(A$3, MIN(A$7, A$5 + (-LN(1/B75 - 1) * ((-1)^(B75 <= 0.5))) * (((B75<= 0.5) * A$4 + (B75 > 0.5) * A$6) - A$5) / LN(9))) -> 0 | B75: 0.5437205638 | C75: =1*(RAND()<='Controls Regression'!$J$44) -> 0 | D75: =F75*MAX(D$3, MIN(D$7, D$5 + (-LN(1/E75 - 1) * ((-1)^(E75 <= 0.5))) * (((E75<= 0.5) * D$4 + (E75 > 0.5) * D$6) - D$5) / LN(9))) -> 0 | E75: 0.366532816 | F75: =1*(RAND()<='Controls Regression'!$J$44) -> 0 | G75: =I75*MAX(G$3, MIN(G$7, G$5 + (-LN(1/H75 - 1) * ((-1)^(H75 <= 0.5))) * (((H75<= 0.5) * G$4 + (H75 > 0.5) * G$6) - G$5) / LN(9))) -> 0 | H75: 0.1575503468 | I75: =1*(RAND()<='Controls Regression'!$J$44) -> 0 | J75: =L75*MAX(J$3, MIN(J$7, J$5 + (-LN(1/K75 - 1) * ((-1)^(K75 <= 0.5))) * (((K75<= 0.5) * J$4 + (K75 > 0.5) * J$6) - J$5) / LN(9))) -> 0 | K75: =B75 -> 0.5437205638 | L75: =1*(RAND()<='Controls Regression'!$K$44) -> 0 | M75: =O75*MAX(M$3, MIN(M$7, M$5 + (-LN(1/N75 - 1) * ((-1)^(N75 <= 0.5))) * (((N75<= 0.5) * M$4 + (N75 > 0.5) * M$6) - M$5) / LN(9))) -> 0 | N75: =E75 -> 0.366532816 | O75: =1*(RAND()<='Controls Regression'!$K$44) -> 0 | P75: =R75*MAX(P$3, MIN(P$7, P$5 + (-LN(1/Q75 - 1) * ((-1)^(Q75 <= 0.5))) * (((Q75<= 0.5) * P$4 + (Q75 > 0.5) * P$6) - P$5) / LN(9))) -> 0 | Q75: =H75 -> 0.1575503468 | R75: =1*(RAND()<='Controls Regression'!$K$44) -> 0 | T75: 0 | U75: =1-_xlfn.PERCENTRANK.INC($T$10:$T$20009,$T75) -> 1 | W75: =J75+M75+P75 -> 0 | X75: =1-_xlfn.PERCENTRANK.INC($W$10:$W$20009,$W75) -> 1
A76: 0 | B76: 0.4537750159 | C76: =1*(RAND()<='Controls Regression'!$J$44) -> 0 | D76: 0 | E76: 0.1326218347 | F76: =1*(RAND()<='Controls Regression'!$J$44) -> 0 | G76: 0 | H76: 0.6612892021 | I76: =1*(RAND()<='Controls Regression'!$J$44) -> 0 | J76: 0 | K76: 0.4537750159 | L76: =1*(RAND()<='Controls Regression'!$K$44) -> 0 | M76: 0 | N76: 0.1326218347 | O76: =1*(RAND()<='Controls Regression'!$K$44) -> 0 | P76: 0 | Q76: 0.6612892021 | R76: =1*(RAND()<='Controls Regression'!$K$44) -> 0 | T76: 0 | U76: 1 | W76: 0 | X76: 1
A77: 926696.1441 | B77: 0.08640912153 | C77: =1*(RAND()<='Controls Regression'!$J$44) -> 1 | D77: 0 | E77: 0.3050436172 | F77: =1*(RAND()<='Controls Regression'!$J$44) -> 0 | G77: 0 | H77: 0.2427253466 | I77: =1*(RAND()<='Controls Regression'!$J$44) -> 0 | J77: 0 | K77: 0.08640912153 | L77: =1*(RAND()<='Controls Regression'!$K$44) -> 0 | M77: 0 | N77: 0.3050436172 | O77: =1*(RAND()<='Controls Regression'!$K$44) -> 0 | P77: 0 | Q77: 0.2427253466 | R77: =1*(RAND()<='Controls Regression'!$K$44) -> 0 | T77: 926696.1441 | U77: 0.339 | W77: 0 | X77: 1
A78: 6694388.07 | B78: 0.9294752332 | C78: =1*(RAND()<='Controls Regression'!$J$44) -> 1 | D78: 0 | E78: 0.2086645744 | F78: =1*(RAND()<='Controls Regression'!$J$44) -> 0 | G78: 0 | H78: 0.219536056 | I78: =1*(RAND()<='Controls Regression'!$J$44) -> 0 | J78: 0 | K78: 0.9294752332 | L78: =1*(RAND()<='Controls Regression'!$K$44) -> 0 | M78: 0 | N78: 0.2086645744 | O78: =1*(RAND()<='Controls Regression'!$K$44) -> 0 | P78: 0 | Q78: 0.219536056 | R78: =1*(RAND()<='Controls Regression'!$K$44) -> 0 | T78: 6694388.07 | U78: 0.055 | W78: 0 | X78: 1
A79: 0 | B79: 0.8368931383 | C79: =1*(RAND()<='Controls Regression'!$J$44) -> 0 | D79: 3570609.721 | E79: 0.3842060443 | F79: =1*(RAND()<='Controls Regression'!$J$44) -> 1 | G79: 0 | H79: 0.8404402607 | I79: =1*(RAND()<='Controls Regression'!$J$44) -> 0 | J79: 0 | K79: 0.8368931383 | L79: =1*(RAND()<='Controls Regression'!$K$44) -> 0 | M79: 0 | N79: 0.3842060443 | O79: =1*(RAND()<='Controls Regression'!$K$44) -> 0 | P79: 0 | Q79: 0.8404402607 | R79: =1*(RAND()<='Controls Regression'!$K$44) -> 0 | T79: 3570609.721 | U79: 0.209 | W79: 0 | X79: 1
A80: 0 | B80: 0.3659649018 | C80: =1*(RAND()<='Controls Regression'!$J$44) -> 0 | D80: 0 | E80: 0.6815898289 | F80: =1*(RAND()<='Controls Regression'!$J$44) -> 0 | G80: 3108364.857 | H80: 0.1235620284 | I80: =1*(RAND()<='Controls Regression'!$J$44) -> 1 | J80: 0 | K80: 0.3659649018 | L80: =1*(RAND()<='Controls Regression'!$K$44) -> 0 | M80: 0 | N80: 0.6815898289 | O80: =1*(RAND()<='Controls Regression'!$K$44) -> 0 | P80: 0 | Q80: 0.1235620284 | R80: =1*(RAND()<='Controls Regression'!$K$44) -> 0 | T80: 3108364.857 | U80: 0.242 | W80: 0 | X80: 1
A81: 0 | B81: 0.602679229 | C81: =1*(RAND()<='Controls Regression'!$J$44) -> 0 | D81: 0 | E81: 0.7259348945 | F81: =1*(RAND()<='Controls Regression'!$J$44) -> 0 | G81: 0 | H81: 0.7903079471 | I81: =1*(RAND()<='Controls Regression'!$J$44) -> 0 | J81: 0 | K81: 0.602679229 | L81: =1*(RAND()<='Controls Regression'!$K$44) -> 0 | M81: 0 | N81: 0.7259348945 | O81: =1*(RAND()<='Controls Regression'!$K$44) -> 0 | P81: 0 | Q81: 0.7903079471 | R81: =1*(RAND()<='Controls Regression'!$K$44) -> 0 | T81: 0 | U81: 1 | W81: 0 | X81: 1
A82: 0 | B82: 0.7521574965 | C82: =1*(RAND()<='Controls Regression'!$J$44) -> 0 | D82: 0 | E82: 0.9595210811 | F82: =1*(RAND()<='Controls Regression'!$J$44) -> 0 | G82: 0 | H82: 0.8028816447 | I82: =1*(RAND()<='Controls Regression'!$J$44) -> 0 | J82: 0 | K82: 0.7521574965 | L82: =1*(RAND()<='Controls Regression'!$K$44) -> 0 | M82: 0 | N82: 0.9595210811 | O82: =1*(RAND()<='Controls Regression'!$K$44) -> 0 | P82: 0 | Q82: 0.8028816447 | R82: =1*(RAND()<='Controls Regression'!$K$44) -> 0 | T82: 0 | U82: 1 | W82: 0 | X82: 1
A83: 0 | B83: 0.4178828226 | C83: =1*(RAND()<='Controls Regression'!$J$44) -> 0 | D83: 0 | E83: 0.4789219019 | F83: =1*(RAND()<='Controls Regression'!$J$44) -> 0 | G83: 0 | H83: 0.08013387021 | I83: =1*(RAND()<='Controls Regression'!$J$44) -> 0 | J83: 1849141.184 | K83: 0.4178828226 | L83: =1*(RAND()<='Controls Regression'!$K$44) -> 1 | M83: 0 | N83: 0.4789219019 | O83: =1*(RAND()<='Controls Regression'!$K$44) -> 0 | P83: 0 | Q83: 0.08013387021 | R83: =1*(RAND()<='Controls Regression'!$K$44) -> 0 | T83: 0 | U83: 1 | W83: 1849141.184 | X83: 0.081
A84: 0 | B84: 0.1477768446 | C84: =1*(RAND()<='Controls Regression'!$J$44) -> 0 | D84: 0 | E84: 0.6602140811 | F84: =1*(RAND()<='Controls Regression'!$J$44) -> 0 | G84: 0 | H84: 0.6233139856 | I84: =1*(RAND()<='Controls Regression'!$J$44) -> 0 | J84: 0 | K84: 0.1477768446 | L84: =1*(RAND()<='Controls Regression'!$K$44) -> 0 | M84: 0 | N84: 0.6602140811 | O84: =1*(RAND()<='Controls Regression'!$K$44) -> 0 | P84: 0 | Q84: 0.6233139856 | R84: =1*(RAND()<='Controls Regression'!$K$44) -> 0 | T84: 0 | U84: 1 | W84: 0 | X84: 1
A85: 0 | B85: 0.5057221591 | C85: =1*(RAND()<='Controls Regression'!$J$44) -> 0 | D85: 0 | E85: 0.6032126558 | F85: =1*(RAND()<='Controls Regression'!$J$44) -> 0 | G85: 0 | H85: 0.8893426637 | I85: =1*(RAND()<='Controls Regression'!$J$44) -> 0 | J85: 0 | K85: 0.5057221591 | L85: =1*(RAND()<='Controls Regression'!$K$44) -> 0 | M85: 4190635.642 | N85: 0.6032126558 | O85: =1*(RAND()<='Controls Regression'!$K$44) -> 1 | P85: 0 | Q85: 0.8893426637 | R85: =1*(RAND()<='Controls Regression'!$K$44) -> 0 | T85: 0 | U85: 1 | W85: 4190635.642 | X85: 0.038
A86: 0 | B86: 0.03060218652 | C86: =1*(RAND()<='Controls Regression'!$J$44) -> 0 | D86: 0 | E86: 0.9010446077 | F86: =1*(RAND()<='Controls Regression'!$J$44) -> 0 | G86: 0 | H86: 0.6432427955 | I86: =1*(RAND()<='Controls Regression'!$J$44) -> 0 | J86: 0 | K86: 0.03060218652 | L86: =1*(RAND()<='Controls Regression'!$K$44) -> 0 | M86: 0 | N86: 0.9010446077 | O86: =1*(RAND()<='Controls Regression'!$K$44) -> 0 | P86: 0 | Q86: 0.6432427955 | R86: =1*(RAND()<='Controls Regression'!$K$44) -> 0 | T86: 0 | U86: 1 | W86: 0 | X86: 1
A87: 0 | B87: 0.7689028578 | C87: =1*(RAND()<='Controls Regression'!$J$44) -> 0 | D87: 0 | E87: 0.4982448398 | F87: =1*(RAND()<='Controls Regression'!$J$44) -> 0 | G87: 0 | H87: 0.7510339698 | I87: =1*(RAND()<='Controls Regression'!$J$44) -> 0 | J87: 0 | K87: 0.7689028578 | L87: =1*(RAND()<='Controls Regression'!$K$44) -> 0 | M87: 0 | N87: 0.4982448398 | O87: =1*(RAND()<='Controls Regression'!$K$44) -> 0 | P87: 0 | Q87: 0.7510339698 | R87: =1*(RAND()<='Controls Regression'!$K$44) -> 0 | T87: 0 | U87: 1 | W87: 0 | X87: 1
A88: 0 | B88: 0.7732569215 | C88: =1*(RAND()<='Controls Regression'!$J$44) -> 0 | D88: 0 | E88: 0.8937683089 | F88: =1*(RAND()<='Controls Regression'!$J$44) -> 0 | G88: 0 | H88: 0.5735047926 | I88: =1*(RAND()<='Controls Regression'!$J$44) -> 0 | J88: 0 | K88: 0.7732569215 | L88: =1*(RAND()<='Controls Regression'!$K$44) -> 0 | M88: 0 | N88: 0.8937683089 | O88: =1*(RAND()<='Controls Regression'!$K$44) -> 0 | P88: 0 | Q88: 0.5735047926 | R88: =1*(RAND()<='Controls Regression'!$K$44) -> 0 | T88: 0 | U88: 1 | W88: 0 | X88: 1
A89: 0 | B89: 0.9109178328 | C89: =1*(RAND()<='Controls Regression'!$J$44) -> 0 | D89: 0 | E89: 0.0531503548 | F89: =1*(RAND()<='Controls Regression'!$J$44) -> 0 | G89: 2971375.353 | H89: 0.0944801571 | I89: =1*(RAND()<='Controls Regression'!$J$44) -> 1 | J89: 0 | K89: 0.9109178328 | L89: =1*(RAND()<='Controls Regression'!$K$44) -> 0 | M89: 0 | N89: 0.0531503548 | O89: =1*(RAND()<='Controls Regression'!$K$44) -> 0 | P89: 0 | Q89: 0.0944801571 | R89: =1*(RAND()<='Controls Regression'!$K$44) -> 0 | T89: 2971375.353 | U89: 0.25 | W89: 0 | X89: 1
A90: 0 | B90: 0.5533037255 | C90: =1*(RAND()<='Controls Regression'!$J$44) -> 0 | D90: 0 | E90: 0.08357837671 | F90: =1*(RAND()<='Controls Regression'!$J$44) -> 0 | G90: 0 | H90: 0.1341772926 | I90: =1*(RAND()<='Controls Regression'!$J$44) -> 0 | J90: 0 | K90: 0.5533037255 | L90: =1*(RAND()<='Controls Regression'!$K$44) -> 0 | M90: 0 | N90: 0.08357837671 | O90: =1*(RAND()<='Controls Regression'!$K$44) -> 0 | P90: 0 | Q90: 0.1341772926 | R90: =1*(RAND()<='Controls Regression'!$K$44) -> 0 | T90: 0 | U90: 1 | W90: 0 | X90: 1
A91: 0 | B91: 0.9519110388 | C91: =1*(RAND()<='Controls Regression'!$J$44) -> 0 | D91: 0 | E91: 0.09610624188 | F91: =1*(RAND()<='Controls Regression'!$J$44) -> 0 | G91: 0 | H91: 0.8285323686 | I91: =1*(RAND()<='Controls Regression'!$J$44) -> 0 | J91: 0 | K91: 0.9519110388 | L91: =1*(RAND()<='Controls Regression'!$K$44) -> 0 | M91: 0 | N91: 0.09610624188 | O91: =1*(RAND()<='Controls Regression'!$K$44) -> 0 | P91: 0 | Q91: 0.8285323686 | R91: =1*(RAND()<='Controls Regression'!$K$44) -> 0 | T91: 0 | U91: 1 | W91: 0 | X91: 1
A92: 2111924.518 | B92: 0.5153653667 | C92: =1*(RAND()<='Controls Regression'!$J$44) -> 1 | D92: 0 | E92: 0.02198843546 | F92: =1*(RAND()<='Controls Regression'!$J$44) -> 0 | G92: 0 | H92: 0.5212392401 | I92: =1*(RAND()<='Controls Regression'!$J$44) -> 0 | J92: 0 | K92: 0.5153653667 | L92: =1*(RAND()<='Controls Regression'!$K$44) -> 0 | M92: 0 | N92: 0.02198843546 | O92: =1*(RAND()<='Controls Regression'!$K$44) -> 0 | P92: 0 | Q92: 0.5212392401 | R92: =1*(RAND()<='Controls Regression'!$K$44) -> 0 | T92: 2111924.518 | U92: 0.284 | W92: 0 | X92: 1
A93: 0 | B93: 0.6995280179 | C93: =1*(RAND()<='Controls Regression'!$J$44) -> 0 | D93: 0 | E93: 0.4718424824 | F93: =1*(RAND()<='Controls Regression'!$J$44) -> 0 | G93: 0 | H93: 0.1446179504 | I93: =1*(RAND()<='Controls Regression'!$J$44) -> 0 | J93: 0 | K93: 0.6995280179 | L93: =1*(RAND()<='Controls Regression'!$K$44) -> 0 | M93: 0 | N93: 0.4718424824 | O93: =1*(RAND()<='Controls Regression'!$K$44) -> 0 | P93: 0 | Q93: 0.1446179504 | R93: =1*(RAND()<='Controls Regression'!$K$44) -> 0 | T93: 0 | U93: 1 | W93: 0 | X93: 1
A94: 0 | B94: 0.270441862 | C94: =1*(RAND()<='Controls Regression'!$J$44) -> 0 | D94: 0 | E94: 0.6797435322 | F94: =1*(RAND()<='Controls Regression'!$J$44) -> 0 | G94: 5020705.347 | H94: 0.6366097994 | I94: =1*(RAND()<='Controls Regression'!$J$44) -> 1 | J94: 0 | K94: 0.270441862 | L94: =1*(RAND()<='Controls Regression'!$K$44) -> 0 | M94: 0 | N94: 0.6797435322 | O94: =1*(RAND()<='Controls Regression'!$K$44) -> 0 | P94: 0 | Q94: 0.6366097994 | R94: =1*(RAND()<='Controls Regression'!$K$44) -> 0 | T94: 5020705.347 | U94: 0.102 | W94: 0 | X94: 1
A95: 0 | B95: 0.5438049028 | C95: =1*(RAND()<='Controls Regression'!$J$44) -> 0 | D95: 0 | E95: 0.8705483337 | F95: =1*(RAND()<='Controls Regression'!$J$44) -> 0 | G95: 0 | H95: 0.6625385496 | I95: =1*(RAND()<='Controls Regression'!$J$44) -> 0 | J95: 0 | K95: 0.5438049028 | L95: =1*(RAND()<='Controls Regression'!$K$44) -> 0 | M95: 0 | N95: 0.8705483337 | O95: =1*(RAND()<='Controls Regression'!$K$44) -> 0 | P95: 0 | Q95: 0.6625385496 | R95: =1*(RAND()<='Controls Regression'!$K$44) -> 0 | T95: 0 | U95: 1 | W95: 0 | X95: 1
A96: 0 | B96: 0.4111349442 | C96: =1*(RAND()<='Controls Regression'!$J$44) -> 0 | D96: 0 | E96: 0.7352575601 | F96: =1*(RAND()<='Controls Regression'!$J$44) -> 0 | G96: 3649067.198 | H96: 0.3162459208 | I96: =1*(RAND()<='Controls Regression'!$J$44) -> 1 | J96: 0 | K96: 0.4111349442 | L96: =1*(RAND()<='Controls Regression'!$K$44) -> 0 | M96: 4464888.042 | N96: 0.7352575601 | O96: =1*(RAND()<='Controls Regression'!$K$44) -> 1 | P96: 0 | Q96: 0.3162459208 | R96: =1*(RAND()<='Controls Regression'!$K$44) -> 0 | T96: 3649067.198 | U96: 0.202 | W96: 4464888.042 | X96: 0.031
A97: 0 | B97: 0.7209787051 | C97: =1*(RAND()<='Controls Regression'!$J$44) -> 0 | D97: 0 | E97: 0.8878916895 | F97: =1*(RAND()<='Controls Regression'!$J$44) -> 0 | G97: 0 | H97: 0.9715374051 | I97: =1*(RAND()<='Controls Regression'!$J$44) -> 0 | J97: 0 | K97: 0.7209787051 | L97: =1*(RAND()<='Controls Regression'!$K$44) -> 0 | M97: 0 | N97: 0.8878916895 | O97: =1*(RAND()<='Controls Regression'!$K$44) -> 0 | P97: 0 | Q97: 0.9715374051 | R97: =1*(RAND()<='Controls Regression'!$K$44) -> 0 | T97: 0 | U97: 1 | W97: 0 | X97: 1
A98: 545999.2281 | B98: 0.0393631545 | C98: =1*(RAND()<='Controls Regression'!$J$44) -> 1 | D98: 0 | E98: 0.9471762653 | F98: =1*(RAND()<='Controls Regression'!$J$44) -> 0 | G98: 0 | H98: 0.4752272759 | I98: =1*(RAND()<='Controls Regression'!$J$44) -> 0 | J98: 0 | K98: 0.0393631545 | L98: =1*(RAND()<='Controls Regression'!$K$44) -> 0 | M98: 0 | N98: 0.9471762653 | O98: =1*(RAND()<='Controls Regression'!$K$44) -> 0 | P98: 0 | Q98: 0.4752272759 | R98: =1*(RAND()<='Controls Regression'!$K$44) -> 0 | T98: 545999.2281 | U98: 0.346 | W98: 0 | X98: 1
A99: 2871627.466 | B99: 0.6174621864 | C99: =1*(RAND()<='Controls Regression'!$J$44) -> 1 | D99: 0 | E99: 0.3420613637 | F99: =1*(RAND()<='Controls Regression'!$J$44) -> 0 | G99: 0 | H99: 0.8107403793 | I99: =1*(RAND()<='Controls Regression'!$J$44) -> 0 | J99: 0 | K99: 0.6174621864 | L99: =1*(RAND()<='Controls Regression'!$K$44) -> 0 | M99: 0 | N99: 0.3420613637 | O99: =1*(RAND()<='Controls Regression'!$K$44) -> 0 | P99: 0 | Q99: 0.8107403793 | R99: =1*(RAND()<='Controls Regression'!$K$44) -> 0 | T99: 2871627.466 | U99: 0.255 | W99: 0 | X99: 1
A100: 0 | B100: 0.3178387073 | C100: =1*(RAND()<='Controls Regression'!$J$44) -> 0 | D100: 0 | E100: 0.9690723724 | F100: =1*(RAND()<='Controls Regression'!$J$44) -> 0 | G100: 0 | H100: 0.6772333333 | I100: =1*(RAND()<='Controls Regression'!$J$44) -> 0 | J100: 0 | K100: 0.3178387073 | L100: =1*(RAND()<='Controls Regression'!$K$44) -> 0 | M100: 0 | N100: 0.9690723724 | O100: =1*(RAND()<='Controls Regression'!$K$44) -> 0 | P100: 0 | Q100: 0.6772333333 | R100: =1*(RAND()<='Controls Regression'!$K$44) -> 0 | T100: 0 | U100: 1 | W100: 0 | X100: 1
A101: 0 | B101: 0.9616539119 | C101: =1*(RAND()<='Controls Regression'!$J$44) -> 0 | D101: 4574330.242 | E101: 0.7793586016 | F101: =1*(RAND()<='Controls Regression'!$J$44) -> 1 | G101: 0 | H101: 0.6240148308 | I101: =1*(RAND()<='Controls Regression'!$J$44) -> 0 | J101: 0 | K101: 0.9616539119 | L101: =1*(RAND()<='Controls Regression'!$K$44) -> 0 | M101: 0 | N101: 0.7793586016 | O101: =1*(RAND()<='Controls Regression'!$K$44) -> 0 | P101: 0 | Q101: 0.6240148308 | R101: =1*(RAND()<='Controls Regression'!$K$44) -> 0 | T101: 4574330.242 | U101: 0.126 | W101: 0 | X101: 1
A102: 0 | B102: 0.4068308102 | C102: =1*(RAND()<='Controls Regression'!$J$44) -> 0 | D102: 0 | E102: 0.9647940396 | F102: =1*(RAND()<='Controls Regression'!$J$44) -> 0 | G102: 0 | H102: 0.2372097989 | I102: =1*(RAND()<='Controls Regression'!$J$44) -> 0 | J102: 0 | K102: 0.4068308102 | L102: =1*(RAND()<='Controls Regression'!$K$44) -> 0 | M102: 0 | N102: 0.9647940396 | O102: =1*(RAND()<='Controls Regression'!$K$44) -> 0 | P102: 0 | Q102: 0.2372097989 | R102: =1*(RAND()<='Controls Regression'!$K$44) -> 0 | T102: 0 | U102: 1 | W102: 0 | X102: 1
A103: 0 | B103: 0.5060281499 | C103: =1*(RAND()<='Controls Regression'!$J$44) -> 0 | D103: 3729501.733 | E103: 0.4262487802 | F103: =1*(RAND()<='Controls Regression'!$J$44) -> 1 | G103: 6526495.881 | H103: 0.8002439443 | I103: =1*(RAND()<='Controls Regression'!$J$44) -> 1 | J103: 0 | K103: 0.5060281499 | L103: =1*(RAND()<='Controls Regression'!$K$44) -> 0 | M103: 0 | N103: 0.4262487802 | O103: =1*(RAND()<='Controls Regression'!$K$44) -> 0 | P103: 0 | Q103: 0.8002439443 | R103: =1*(RAND()<='Controls Regression'!$K$44) -> 0 | T103: 10255997.61 | U103: 0.012 | W103: 0 | X103: 1
A104: 0 | B104: 0.009063386348 | C104: =1*(RAND()<='Controls Regression'!$J$44) -> 0 | D104: 0 | E104: 0.03632936645 | F104: =1*(RAND()<='Controls Regression'!$J$44) -> 0 | G104: 0 | H104: 0.3075684156 | I104: =1*(RAND()<='Controls Regression'!$J$44) -> 0 | J104: 0 | K104: 0.009063386348 | L104: =1*(RAND()<='Controls Regression'!$K$44) -> 0 | M104: 0 | N104: 0.03632936645 | O104: =1*(RAND()<='Controls Regression'!$K$44) -> 0 | P104: 0 | Q104: 0.3075684156 | R104: =1*(RAND()<='Controls Regression'!$K$44) -> 0 | T104: 0 | U104: 1 | W104: 0 | X104: 1
A105: 0 | B105: 0.533848254 | C105: =1*(RAND()<='Controls Regression'!$J$44) -> 0 | D105: 0 | E105: 0.6360085336 | F105: =1*(RAND()<='Controls Regression'!$J$44) -> 0 | G105: 0 | H105: 0.0368753059 | I105: =1*(RAND()<='Controls Regression'!$J$44) -> 0 | J105: 0 | K105: 0.533848254 | L105: =1*(RAND()<='Controls Regression'!$K$44) -> 0 | M105: 0 | N105: 0.6360085336 | O105: =1*(RAND()<='Controls Regression'!$K$44) -> 0 | P105: 0 | Q105: 0.0368753059 | R105: =1*(RAND()<='Controls Regression'!$K$44) -> 0 | T105: 0 | U105: 1 | W105: 0 | X105: 1
A106: 0 | B106: 0.27617169 | C106: =1*(RAND()<='Controls Regression'!$J$44) -> 0 | D106: 0 | E106: 0.9036535 | F106: =1*(RAND()<='Controls Regression'!$J$44) -> 0 | G106: 0 | H106: 0.2598931281 | I106: =1*(RAND()<='Controls Regression'!$J$44) -> 0 | J106: 0 | K106: 0.27617169 | L106: =1*(RAND()<='Controls Regression'!$K$44) -> 0 | M106: 0 | N106: 0.9036535 | O106: =1*(RAND()<='Controls Regression'!$K$44) -> 0 | P106: 0 | Q106: 0.2598931281 | R106: =1*(RAND()<='Controls Regression'!$K$44) -> 0 | T106: 0 | U106: 1 | W106: 0 | X106: 1
A107: 0 | B107: 0.8641770513 | C107: =1*(RAND()<='Controls Regression'!$J$44) -> 0 | D107: 3840804.341 | E107: 0.4563875348 | F107: =1*(RAND()<='Controls Regression'!$J$44) -> 1 | G107: 0 | H107: 0.634467234 | I107: =1*(RAND()<='Controls Regression'!$J$44) -> 0 | J107: 0 | K107: 0.8641770513 | L107: =1*(RAND()<='Controls Regression'!$K$44) -> 0 | M107: 0 | N107: 0.4563875348 | O107: =1*(RAND()<='Controls Regression'!$K$44) -> 0 | P107: 0 | Q107: 0.634467234 | R107: =1*(RAND()<='Controls Regression'!$K$44) -> 0 | T107: 3840804.341 | U107: 0.183 | W107: 0 | X107: 1
A108: 5993524.446 | B108: 0.8996794087 | C108: =1*(RAND()<='Controls Regression'!$J$44) -> 1 | D108: 0 | E108: 0.9575652257 | F108: =1*(RAND()<='Controls Regression'!$J$44) -> 0 | G108: 0 | H108: 0.1024846401 | I108: =1*(RAND()<='Controls Regression'!$J$44) -> 0 | J108: 5993524.446 | K108: 0.8996794087 | L108: =1*(RAND()<='Controls Regression'!$K$44) -> 1 | M108: 0 | N108: 0.9575652257 | O108: =1*(RAND()<='Controls Regression'!$K$44) -> 0 | P108: 3012428.078 | Q108: 0.1024846401 | R108: =1*(RAND()<='Controls Regression'!$K$44) -> 1 | T108: 5993524.446 | U108: 0.07 | W108: 9005952.524 | X108: 0.004
A109: 0 | B109: 0.3328884769 | C109: =1*(RAND()<='Controls Regression'!$J$44) -> 0 | D109: 0 | E109: 0.5588674567 | F109: =1*(RAND()<='Controls Regression'!$J$44) -> 0 | G109: 0 | H109: 0.7280568478 | I109: =1*(RAND()<='Controls Regression'!$J$44) -> 0 | J109: 0 | K109: 0.3328884769 | L109: =1*(RAND()<='Controls Regression'!$K$44) -> 0 | M109: 4107666.261 | N109: 0.5588674567 | O109: =1*(RAND()<='Controls Regression'!$K$44) -> 1 | P109: 0 | Q109: 0.7280568478 | R109: =1*(RAND()<='Controls Regression'!$K$44) -> 0 | T109: 0 | U109: 1 | W109: 4107666.261 | X109: 0.04
A110: 0 | B110: 0.8169117853 | C110: =1*(RAND()<='Controls Regression'!$J$44) -> 0 | D110: 0 | E110: 0.9365649769 | F110: =1*(RAND()<='Controls Regression'!$J$44) -> 0 | G110: 0 | H110: 0.5314720006 | I110: =1*(RAND()<='Controls Regression'!$J$44) -> 0 | J110: 0 | K110: 0.8169117853 | L110: =1*(RAND()<='Controls Regression'!$K$44) -> 0 | M110: 0 | N110: 0.9365649769 | O110: =1*(RAND()<='Controls Regression'!$K$44) -> 0 | P110: 0 | Q110: 0.5314720006 | R110: =1*(RAND()<='Controls Regression'!$K$44) -> 0 | T110: 0 | U110: 1 | W110: 0 | X110: 1
A111: 0 | B111: 0.9780422485 | C111: =1*(RAND()<='Controls Regression'!$J$44) -> 0 | D111: 0 | E111: 0.6276480662 | F111: =1*(RAND()<='Controls Regression'!$J$44) -> 0 | G111: 0 | H111: 0.9792915523 | I111: =1*(RAND()<='Controls Regression'!$J$44) -> 0 | J111: 0 | K111: 0.9780422485 | L111: =1*(RAND()<='Controls Regression'!$K$44) -> 0 | M111: 0 | N111: 0.6276480662 | O111: =1*(RAND()<='Controls Regression'!$K$44) -> 0 | P111: 0 | Q111: 0.9792915523 | R111: =1*(RAND()<='Controls Regression'!$K$44) -> 0 | T111: 0 | U111: 1 | W111: 0 | X111: 1
A112: 0 | B112: 0.5189061705 | C112: =1*(RAND()<='Controls Regression'!$J$44) -> 0 | D112: 0 | E112: 0.398501438 | F112: =1*(RAND()<='Controls Regression'!$J$44) -> 0 | G112: 0 | H112: 0.2191643227 | I112: =1*(RAND()<='Controls Regression'!$J$44) -> 0 | J112: 0 | K112: 0.5189061705 | L112: =1*(RAND()<='Controls Regression'!$K$44) -> 0 | M112: 0 | N112: 0.398501438 | O112: =1*(RAND()<='Controls Regression'!$K$44) -> 0 | P112: 0 | Q112: 0.2191643227 | R112: =1*(RAND()<='Controls Regression'!$K$44) -> 0 | T112: 0 | U112: 1 | W112: 0 | X112: 1
A113: 0 | B113: 0.3575097584 | C113: =1*(RAND()<='Controls Regression'!$J$44) -> 0 | D113: 0 | E113: 0.3667020879 | F113: =1*(RAND()<='Controls Regression'!$J$44) -> 0 | G113: 0 | H113: 0.2677285389 | I113: =1*(RAND()<='Controls Regression'!$J$44) -> 0 | J113: 0 | K113: 0.3575097584 | L113: =1*(RAND()<='Controls Regression'!$K$44) -> 0 | M113: 0 | N113: 0.3667020879 | O113: =1*(RAND()<='Controls Regression'!$K$44) -> 0 | P113: 0 | Q113: 0.2677285389 | R113: =1*(RAND()<='Controls Regression'!$K$44) -> 0 | T113: 0 | U113: 1 | W113: 0 | X113: 1
A114: 0 | B114: 0.6947881098 | C114: =1*(RAND()<='Controls Regression'!$J$44) -> 0 | D114: 0 | E114: 0.08830633798 | F114: =1*(RAND()<='Controls Regression'!$J$44) -> 0 | G114: 0 | H114: 0.3110417278 | I114: =1*(RAND()<='Controls Regression'!$J$44) -> 0 | J114: 0 | K114: 0.6947881098 | L114: =1*(RAND()<='Controls Regression'!$K$44) -> 0 | M114: 0 | N114: 0.08830633798 | O114: =1*(RAND()<='Controls Regression'!$K$44) -> 0 | P114: 0 | Q114: 0.3110417278 | R114: =1*(RAND()<='Controls Regression'!$K$44) -> 0 | T114: 0 | U114: 1 | W114: 0 | X114: 1
A115: 0 | B115: 0.7260196443 | C115: =1*(RAND()<='Controls Regression'!$J$44) -> 0 | D115: 0 | E115: 0.613924229 | F115: =1*(RAND()<='Controls Regression'!$J$44) -> 0 | G115: 0 | H115: 0.1793394494 | I115: =1*(RAND()<='Controls Regression'!$J$44) -> 0 | J115: 0 | K115: 0.7260196443 | L115: =1*(RAND()<='Controls Regression'!$K$44) -> 0 | M115: 0 | N115: 0.613924229 | O115: =1*(RAND()<='Controls Regression'!$K$44) -> 0 | P115: 0 | Q115: 0.1793394494 | R115: =1*(RAND()<='Controls Regression'!$K$44) -> 0 | T115: 0 | U115: 1 | W115: 0 | X115: 1
A116: 0 | B116: 0.9339138435 | C116: =1*(RAND()<='Controls Regression'!$J$44) -> 0 | D116: 0 | E116: 0.4903885375 | F116: =1*(RAND()<='Controls Regression'!$J$44) -> 0 | G116: 0 | H116: 0.593486091 | I116: =1*(RAND()<='Controls Regression'!$J$44) -> 0 | J116: 6821400.46 | K116: 0.9339138435 | L116: =1*(RAND()<='Controls Regression'!$K$44) -> 1 | M116: 0 | N116: 0.4903885375 | O116: =1*(RAND()<='Controls Regression'!$K$44) -> 0 | P116: 0 | Q116: 0.593486091 | R116: =1*(RAND()<='Controls Regression'!$K$44) -> 0 | T116: 0 | U116: 1 | W116: 6821400.46 | X116: 0.01
A117: 0 | B117: 0.8161686362 | C117: =1*(RAND()<='Controls Regression'!$J$44) -> 0 | D117: 0 | E117: 0.7849393169 | F117: =1*(RAND()<='Controls Regression'!$J$44) -> 0 | G117: 0 | H117: 0.5460723133 | I117: =1*(RAND()<='Controls Regression'!$J$44) -> 0 | J117: 0 | K117: 0.8161686362 | L117: =1*(RAND()<='Controls Regression'!$K$44) -> 0 | M117: 0 | N117: 0.7849393169 | O117: =1*(RAND()<='Controls Regression'!$K$44) -> 0 | P117: 0 | Q117: 0.5460723133 | R117: =1*(RAND()<='Controls Regression'!$K$44) -> 0 | T117: 0 | U117: 1 | W117: 0 | X117: 1
A118: 0 | B118: 0.3812285743 | C118: =1*(RAND()<='Controls Regression'!$J$44) -> 0 | D118: 3576153.68 | E118: 0.3856480573 | F118: =1*(RAND()<='Controls Regression'!$J$44) -> 1 | G118: 0 | H118: 0.3223642193 | I118: =1*(RAND()<='Controls Regression'!$J$44) -> 0 | J118: 0 | K118: 0.3812285743 | L118: =1*(RAND()<='Controls Regression'!$K$44) -> 0 | M118: 0 | N118: 0.3856480573 | O118: =1*(RAND()<='Controls Regression'!$K$44) -> 0 | P118: 0 | Q118: 0.3223642193 | R118: =1*(RAND()<='Controls Regression'!$K$44) -> 0 | T118: 3576153.68 | U118: 0.209 | W118: 0 | X118: 1
A119: 0 | B119: 0.3469809188 | C119: =1*(RAND()<='Controls Regression'!$J$44) -> 0 | D119: 0 | E119: 0.6630481086 | F119: =1*(RAND()<='Controls Regression'!$J$44) -> 0 | G119: 0 | H119: 0.8113284408 | I119: =1*(RAND()<='Controls Regression'!$J$44) -> 0 | J119: 0 | K119: 0.3469809188 | L119: =1*(RAND()<='Controls Regression'!$K$44) -> 0 | M119: 0 | N119: 0.6630481086 | O119: =1*(RAND()<='Controls Regression'!$K$44) -> 0 | P119: 0 | Q119: 0.8113284408 | R119: =1*(RAND()<='Controls Regression'!$K$44) -> 0 | T119: 0 | U119: 1 | W119: 0 | X119: 1
A120: 0 | B120: 0.7232641741 | C120: =1*(RAND()<='Controls Regression'!$J$44) -> 0 | D120: 0 | E120: 0.4043300723 | F120: =1*(RAND()<='Controls Regression'!$J$44) -> 0 | G120: 3905023.399 | H120: 0.4480172838 | I120: =1*(RAND()<='Controls Regression'!$J$44) -> 1 | J120: 0 | K120: 0.7232641741 | L120: =1*(RAND()<='Controls Regression'!$K$44) -> 0 | M120: 0 | N120: 0.4043300723 | O120: =1*(RAND()<='Controls Regression'!$K$44) -> 0 | P120: 0 | Q120: 0.4480172838 | R120: =1*(RAND()<='Controls Regression'!$K$44) -> 0 | T120: 3905023.399 | U120: 0.177 | W120: 0 | X120: 1
A121: 0 | B121: 0.7335906586 | C121: =1*(RAND()<='Controls Regression'!$J$44) -> 0 | D121: 0 | E121: 0.4651571189 | F121: =1*(RAND()<='Controls Regression'!$J$44) -> 0 | G121: 0 | H121: 0.4223010395 | I121: =1*(RAND()<='Controls Regression'!$J$44) -> 0 | J121: 0 | K121: 0.7335906586 | L121: =1*(RAND()<='Controls Regression'!$K$44) -> 0 | M121: 0 | N121: 0.4651571189 | O121: =1*(RAND()<='Controls Regression'!$K$44) -> 0 | P121: 0 | Q121: 0.4223010395 | R121: =1*(RAND()<='Controls Regression'!$K$44) -> 0 | T121: 0 | U121: 1 | W121: 0 | X121: 1
A122: 1497372.886 | B122: 0.2489192452 | C122: =1*(RAND()<='Controls Regression'!$J$44) -> 1 | D122: 0 | E122: 0.1796784194 | F122: =1*(RAND()<='Controls Regression'!$J$44) -> 0 | G122: 3849186.512 | H122: 0.4179070503 | I122: =1*(RAND()<='Controls Regression'!$J$44) -> 1 | J122: 0 | K122: 0.2489192452 | L122: =1*(RAND()<='Controls Regression'!$K$44) -> 0 | M122: 0 | N122: 0.1796784194 | O122: =1*(RAND()<='Controls Regression'!$K$44) -> 0 | P122: 0 | Q122: 0.4179070503 | R122: =1*(RAND()<='Controls Regression'!$K$44) -> 0 | T122: 5346559.398 | U122: 0.089 | W122: 0 | X122: 1
A123: 0 | B123: 0.925941999 | C123: =1*(RAND()<='Controls Regression'!$J$44) -> 0 | D123: 0 | E123: 0.3496254514 | F123: =1*(RAND()<='Controls Regression'!$J$44) -> 0 | G123: 0 | H123: 0.2166430677 | I123: =1*(RAND()<='Controls Regression'!$J$44) -> 0 | J123: 0 | K123: 0.925941999 | L123: =1*(RAND()<='Controls Regression'!$K$44) -> 0 | M123: 3435027.271 | N123: 0.3496254514 | O123: =1*(RAND()<='Controls Regression'!$K$44) -> 1 | P123: 0 | Q123: 0.2166430677 | R123: =1*(RAND()<='Controls Regression'!$K$44) -> 0 | T123: 0 | U123: 1 | W123: 3435027.271 | X123: 0.059
A124: 1901508.772 | B124: 0.4461083213 | C124: =1*(RAND()<='Controls Regression'!$J$44) -> 1 | D124: 0 | E124: 0.5567801851 | F124: =1*(RAND()<='Controls Regression'!$J$44) -> 0 | G124: 0 | H124: 0.4575138361 | I124: =1*(RAND()<='Controls Regression'!$J$44) -> 0 | J124: 0 | K124: 0.4461083213 | L124: =1*(RAND()<='Controls Regression'!$K$44) -> 0 | M124: 0 | N124: 0.5567801851 | O124: =1*(RAND()<='Controls Regression'!$K$44) -> 0 | P124: 0 | Q124: 0.4575138361 | R124: =1*(RAND()<='Controls Regression'!$K$44) -> 0 | T124: 1901508.772 | U124: 0.294 | W124: 0 | X124: 1
A125: 0 | B125: 0.7074694081 | C125: =1*(RAND()<='Controls Regression'!$J$44) -> 0 | D125: 0 | E125: 0.7104476238 | F125: =1*(RAND()<='Controls Regression'!$J$44) -> 0 | G125: 0 | H125: 0.2454530766 | I125: =1*(RAND()<='Controls Regression'!$J$44) -> 0 | J125: 0 | K125: 0.7074694081 | L125: =1*(RAND()<='Controls Regression'!$K$44) -> 0 | M125: 0 | N125: 0.7104476238 | O125: =1*(RAND()<='Controls Regression'!$K$44) -> 0 | P125: 0 | Q125: 0.2454530766 | R125: =1*(RAND()<='Controls Regression'!$K$44) -> 0 | T125: 0 | U125: 1 | W125: 0 | X125: 1
A126: 0 | B126: 0.1347169985 | C126: =1*(RAND()<='Controls Regression'!$J$44) -> 0 | D126: 0 | E126: 0.4961995111 | F126: =1*(RAND()<='Controls Regression'!$J$44) -> 0 | G126: 0 | H126: 0.7228207732 | I126: =1*(RAND()<='Controls Regression'!$J$44) -> 0 | J126: 0 | K126: 0.1347169985 | L126: =1*(RAND()<='Controls Regression'!$K$44) -> 0 | M126: 0 | N126: 0.4961995111 | O126: =1*(RAND()<='Controls Regression'!$K$44) -> 0 | P126: 0 | Q126: 0.7228207732 | R126: =1*(RAND()<='Controls Regression'!$K$44) -> 0 | T126: 0 | U126: 1 | W126: 0 | X126: 1
A127: 0 | B127: 0.9435890205 | C127: =1*(RAND()<='Controls Regression'!$J$44) -> 0 | D127: 0 | E127: 0.7497106199 | F127: =1*(RAND()<='Controls Regression'!$J$44) -> 0 | G127: 0 | H127: 0.0009237353892 | I127: =1*(RAND()<='Controls Regression'!$J$44) -> 0 | J127: 0 | K127: 0.9435890205 | L127: =1*(RAND()<='Controls Regression'!$K$44) -> 0 | M127: 0 | N127: 0.7497106199 | O127: =1*(RAND()<='Controls Regression'!$K$44) -> 0 | P127: 0 | Q127: 0.0009237353892 | R127: =1*(RAND()<='Controls Regression'!$K$44) -> 0 | T127: 0 | U127: 1 | W127: 0 | X127: 1
A128: 0 | B128: 0.8171462404 | C128: =1*(RAND()<='Controls Regression'!$J$44) -> 0 | D128: 0 | E128: 0.6067254266 | F128: =1*(RAND()<='Controls Regression'!$J$44) -> 0 | G128: 7505154.374 | H128: 0.8727397095 | I128: =1*(RAND()<='Controls Regression'!$J$44) -> 1 | J128: 0 | K128: 0.8171462404 | L128: =1*(RAND()<='Controls Regression'!$K$44) -> 0 | M128: 0 | N128: 0.6067254266 | O128: =1*(RAND()<='Controls Regression'!$K$44) -> 0 | P128: 0 | Q128: 0.8727397095 | R128: =1*(RAND()<='Controls Regression'!$K$44) -> 0 | T128: 7505154.374 | U128: 0.041 | W128: 0 | X128: 1
A129: 0 | B129: 0.7016871741 | C129: =1*(RAND()<='Controls Regression'!$J$44) -> 0 | D129: 0 | E129: 0.4453398124 | F129: =1*(RAND()<='Controls Regression'!$J$44) -> 0 | G129: 3140302.665 | H129: 0.1313644514 | I129: =1*(RAND()<='Controls Regression'!$J$44) -> 1 | J129: 0 | K129: 0.7016871741 | L129: =1*(RAND()<='Controls Regression'!$K$44) -> 0 | M129: 0 | N129: 0.4453398124 | O129: =1*(RAND()<='Controls Regression'!$K$44) -> 0 | P129: 0 | Q129: 0.1313644514 | R129: =1*(RAND()<='Controls Regression'!$K$44) -> 0 | T129: 3140302.665 | U129: 0.24 | W129: 0 | X129: 1
A130: 0 | B130: 0.769160517 | C130: =1*(RAND()<='Controls Regression'!$J$44) -> 0 | D130: 4439138.646 | E130: 0.7240990414 | F130: =1*(RAND()<='Controls Regression'!$J$44) -> 1 | G130: 0 | H130: 0.9246938359 | I130: =1*(RAND()<='Controls Regression'!$J$44) -> 0 | J130: 0 | K130: 0.769160517 | L130: =1*(RAND()<='Controls Regression'!$K$44) -> 0 | M130: 0 | N130: 0.7240990414 | O130: =1*(RAND()<='Controls Regression'!$K$44) -> 0 | P130: 0 | Q130: 0.9246938359 | R130: =1*(RAND()<='Controls Regression'!$K$44) -> 0 | T130: 4439138.646 | U130: 0.135 | W130: 0 | X130: 1
A131: 0 | B131: 0.4086206403 | C131: =1*(RAND()<='Controls Regression'!$J$44) -> 0 | D131: 0 | E131: 0.6804145329 | F131: =1*(RAND()<='Controls Regression'!$J$44) -> 0 | G131: 0 | H131: 0.006451751055 | I131: =1*(RAND()<='Controls Regression'!$J$44) -> 0 | J131: 0 | K131: 0.4086206403 | L131: =1*(RAND()<='Controls Regression'!$K$44) -> 0 | M131: 0 | N131: 0.6804145329 | O131: =1*(RAND()<='Controls Regression'!$K$44) -> 0 | P131: 0 | Q131: 0.006451751055 | R131: =1*(RAND()<='Controls Regression'!$K$44) -> 0 | T131: 0 | U131: 1 | W131: 0 | X131: 1
A132: 0 | B132: 0.002636904503 | C132: =1*(RAND()<='Controls Regression'!$J$44) -> 0 | D132: 0 | E132: 0.2501244411 | F132: =1*(RAND()<='Controls Regression'!$J$44) -> 0 | G132: 0 | H132: 0.5871805144 | I132: =1*(RAND()<='Controls Regression'!$J$44) -> 0 | J132: 0 | K132: 0.002636904503 | L132: =1*(RAND()<='Controls Regression'!$K$44) -> 0 | M132: 0 | N132: 0.2501244411 | O132: =1*(RAND()<='Controls Regression'!$K$44) -> 0 | P132: 0 | Q132: 0.5871805144 | R132: =1*(RAND()<='Controls Regression'!$K$44) -> 0 | T132: 0 | U132: 1 | W132: 0 | X132: 1
A133: 0 | B133: 0.4449408375 | C133: =1*(RAND()<='Controls Regression'!$J$44) -> 0 | D133: 0 | E133: 0.1470833205 | F133: =1*(RAND()<='Controls Regression'!$J$44) -> 0 | G133: 0 | H133: 0.9954283964 | I133: =1*(RAND()<='Controls Regression'!$J$44) -> 0 | J133: 0 | K133: 0.4449408375 | L133: =1*(RAND()<='Controls Regression'!$K$44) -> 0 | M133: 0 | N133: 0.1470833205 | O133: =1*(RAND()<='Controls Regression'!$K$44) -> 0 | P133: 0 | Q133: 0.9954283964 | R133: =1*(RAND()<='Controls Regression'!$K$44) -> 0 | T133: 0 | U133: 1 | W133: 0 | X133: 1
A134: 0 | B134: 0.2935333037 | C134: =1*(RAND()<='Controls Regression'!$J$44) -> 0 | D134: 0 | E134: 0.4553210914 | F134: =1*(RAND()<='Controls Regression'!$J$44) -> 0 | G134: 0 | H134: 0.6565382654 | I134: =1*(RAND()<='Controls Regression'!$J$44) -> 0 | J134: 0 | K134: 0.2935333037 | L134: =1*(RAND()<='Controls Regression'!$K$44) -> 0 | M134: 0 | N134: 0.4553210914 | O134: =1*(RAND()<='Controls Regression'!$K$44) -> 0 | P134: 0 | Q134: 0.6565382654 | R134: =1*(RAND()<='Controls Regression'!$K$44) -> 0 | T134: 0 | U134: 1 | W134: 0 | X134: 1
A135: 622633.5098 | B135: 0.04624808626 | C135: =1*(RAND()<='Controls Regression'!$J$44) -> 1 | D135: 0 | E135: 0.951136568 | F135: =1*(RAND()<='Controls Regression'!$J$44) -> 0 | G135: 0 | H135: 0.04797644401 | I135: =1*(RAND()<='Controls Regression'!$J$44) -> 0 | J135: 0 | K135: 0.04624808626 | L135: =1*(RAND()<='Controls Regression'!$K$44) -> 0 | M135: 0 | N135: 0.951136568 | O135: =1*(RAND()<='Controls Regression'!$K$44) -> 0 | P135: 0 | Q135: 0.04797644401 | R135: =1*(RAND()<='Controls Regression'!$K$44) -> 0 | T135: 622633.5098 | U135: 0.344 | W135: 0 | X135: 1
A136: 0 | B136: 0.0954629423 | C136: =1*(RAND()<='Controls Regression'!$J$44) -> 0 | D136: 0 | E136: 0.4485376483 | F136: =1*(RAND()<='Controls Regression'!$J$44) -> 0 | G136: 0 | H136: 0.521704601 | I136: =1*(RAND()<='Controls Regression'!$J$44) -> 0 | J136: 0 | K136: 0.0954629423 | L136: =1*(RAND()<='Controls Regression'!$K$44) -> 0 | M136: 0 | N136: 0.4485376483 | O136: =1*(RAND()<='Controls Regression'!$K$44) -> 0 | P136: 0 | Q136: 0.521704601 | R136: =1*(RAND()<='Controls Regression'!$K$44) -> 0 | T136: 0 | U136: 1 | W136: 0 | X136: 1
A137: 0 | B137: 0.6283702925 | C137: =1*(RAND()<='Controls Regression'!$J$44) -> 0 | D137: 0 | E137: 0.1827671576 | F137: =1*(RAND()<='Controls Regression'!$J$44) -> 0 | G137: 0 | H137: 0.8286900991 | I137: =1*(RAND()<='Controls Regression'!$J$44) -> 0 | J137: 0 | K137: 0.6283702925 | L137: =1*(RAND()<='Controls Regression'!$K$44) -> 0 | M137: 0 | N137: 0.1827671576 | O137: =1*(RAND()<='Controls Regression'!$K$44) -> 0 | P137: 0 | Q137: 0.8286900991 | R137: =1*(RAND()<='Controls Regression'!$K$44) -> 0 | T137: 0 | U137: 1 | W137: 0 | X137: 1
A138: 5791918.202 | B138: 0.8892323666 | C138: =1*(RAND()<='Controls Regression'!$J$44) -> 1 | D138: 0 | E138: 0.2438304683 | F138: =1*(RAND()<='Controls Regression'!$J$44) -> 0 | G138: 0 | H138: 0.5760692517 | I138: =1*(RAND()<='Controls Regression'!$J$44) -> 0 | J138: 0 | K138: 0.8892323666 | L138: =1*(RAND()<='Controls Regression'!$K$44) -> 0 | M138: 0 | N138: 0.2438304683 | O138: =1*(RAND()<='Controls Regression'!$K$44) -> 0 | P138: 0 | Q138: 0.5760692517 | R138: =1*(RAND()<='Controls Regression'!$K$44) -> 0 | T138: =A138+D138+G138 -> 5791918.202 | U138: 0.075 | W138: 0 | X138: 1
A139: =C139*MAX(A$3, MIN(A$7, A$5 + (-LN(1/B139 - 1) * ((-1)^(B139 <= 0.5))) * (((B139<= 0.5) * A$4 + (B139 > 0.5) * A$6) - A$5) / LN(9))) -> 0 | B139: 0.2592882998 | C139: =1*(RAND()<='Controls Regression'!$J$44) -> 0 | D139: =F139*MAX(D$3, MIN(D$7, D$5 + (-LN(1/E139 - 1) * ((-1)^(E139 <= 0.5))) * (((E139<= 0.5) * D$4 + (E139 > 0.5) * D$6) - D$5) / LN(9))) -> 0 | E139: 0.8546738625 | F139: =1*(RAND()<='Controls Regression'!$J$44) -> 0 | G139: =I139*MAX(G$3, MIN(G$7, G$5 + (-LN(1/H139 - 1) * ((-1)^(H139 <= 0.5))) * (((H139<= 0.5) * G$4 + (H139 > 0.5) * G$6) - G$5) / LN(9))) -> 4775329.53 | H139: 0.6048925952 | I139: =1*(RAND()<='Controls Regression'!$J$44) -> 1 | J139: =L139*MAX(J$3, MIN(J$7, J$5 + (-LN(1/K139 - 1) * ((-1)^(K139 <= 0.5))) * (((K139<= 0.5) * J$4 + (K139 > 0.5) * J$6) - J$5) / LN(9))) -> 0 | K139: =B139 -> 0.2592882998 | L139: =1*(RAND()<='Controls Regression'!$K$44) -> 0 | M139: =O139*MAX(M$3, MIN(M$7, M$5 + (-LN(1/N139 - 1) * ((-1)^(N139 <= 0.5))) * (((N139<= 0.5) * M$4 + (N139 > 0.5) * M$6) - M$5) / LN(9))) -> 4806353.4 | N139: =E139 -> 0.8546738625 | O139: =1*(RAND()<='Controls Regression'!$K$44) -> 1 | P139: =R139*MAX(P$3, MIN(P$7, P$5 + (-LN(1/Q139 - 1) * ((-1)^(Q139 <= 0.5))) * (((Q139<= 0.5) * P$4 + (Q139 > 0.5) * P$6) - P$5) / LN(9))) -> 0 | Q139: =H139 -> 0.6048925952 | R139: =1*(RAND()<='Controls Regression'!$K$44) -> 0 | T139: 4775329.53 | U139: =1-_xlfn.PERCENTRANK.INC($T$10:$T$20009,$T139) -> 0.114 | W139: =J139+M139+P139 -> 4806353.4 | X139: =1-_xlfn.PERCENTRANK.INC($W$10:$W$20009,$W139) -> 0.026
A140: 936720.6345 | B140: 0.08816382945 | C140: =1*(RAND()<='Controls Regression'!$J$44) -> 1 | D140: 0 | E140: 0.1534700859 | F140: =1*(RAND()<='Controls Regression'!$J$44) -> 0 | G140: 0 | H140: 0.7172984091 | I140: =1*(RAND()<='Controls Regression'!$J$44) -> 0 | J140: 0 | K140: 0.08816382945 | L140: =1*(RAND()<='Controls Regression'!$K$44) -> 0 | M140: 0 | N140: 0.1534700859 | O140: =1*(RAND()<='Controls Regression'!$K$44) -> 0 | P140: 0 | Q140: 0.7172984091 | R140: =1*(RAND()<='Controls Regression'!$K$44) -> 0 | T140: 936720.6345 | U140: 0.339 | W140: 0 | X140: 1
A141: 1269584.123 | B141: 0.1672995971 | C141: =1*(RAND()<='Controls Regression'!$J$44) -> 1 | D141: 2943864.174 | E141: 0.2386157217 | F141: =1*(RAND()<='Controls Regression'!$J$44) -> 1 | G141: 0 | H141: 0.5012746465 | I141: =1*(RAND()<='Controls Regression'!$J$44) -> 0 | J141: 0 | K141: 0.1672995971 | L141: =1*(RAND()<='Controls Regression'!$K$44) -> 0 | M141: 0 | N141: 0.2386157217 | O141: =1*(RAND()<='Controls Regression'!$K$44) -> 0 | P141: 0 | Q141: 0.5012746465 | R141: =1*(RAND()<='Controls Regression'!$K$44) -> 0 | T141: 4213448.297 | U141: 0.153 | W141: 0 | X141: 1
A142: 0 | B142: 0.7572358242 | C142: =1*(RAND()<='Controls Regression'!$J$44) -> 0 | D142: 0 | E142: 0.2092151569 | F142: =1*(RAND()<='Controls Regression'!$J$44) -> 0 | G142: 0 | H142: 0.6190548945 | I142: =1*(RAND()<='Controls Regression'!$J$44) -> 0 | J142: 0 | K142: 0.7572358242 | L142: =1*(RAND()<='Controls Regression'!$K$44) -> 0 | M142: 0 | N142: 0.2092151569 | O142: =1*(RAND()<='Controls Regression'!$K$44) -> 0 | P142: 0 | Q142: 0.6190548945 | R142: =1*(RAND()<='Controls Regression'!$K$44) -> 0 | T142: 0 | U142: 1 | W142: 0 | X142: 1
A143: 0 | B143: 0.5971159923 | C143: =1*(RAND()<='Controls Regression'!$J$44) -> 0 | D143: 0 | E143: 0.1933413874 | F143: =1*(RAND()<='Controls Regression'!$J$44) -> 0 | G143: 0 | H143: 0.6861051148 | I143: =1*(RAND()<='Controls Regression'!$J$44) -> 0 | J143: 0 | K143: 0.5971159923 | L143: =1*(RAND()<='Controls Regression'!$K$44) -> 0 | M143: 0 | N143: 0.1933413874 | O143: =1*(RAND()<='Controls Regression'!$K$44) -> 0 | P143: 0 | Q143: 0.6861051148 | R143: =1*(RAND()<='Controls Regression'!$K$44) -> 0 | T143: 0 | U143: 1 | W143: 0 | X143: 1
A144: 0 | B144: 0.8948589344 | C144: =1*(RAND()<='Controls Regression'!$J$44) -> 0 | D144: 0 | E144: 0.0790772298 | F144: =1*(RAND()<='Controls Regression'!$J$44) -> 0 | G144: 0 | H144: 0.8360218622 | I144: =1*(RAND()<='Controls Regression'!$J$44) -> 0 | J144: 0 | K144: 0.8948589344 | L144: =1*(RAND()<='Controls Regression'!$K$44) -> 0 | M144: 0 | N144: 0.0790772298 | O144: =1*(RAND()<='Controls Regression'!$K$44) -> 0 | P144: 0 | Q144: 0.8360218622 | R144: =1*(RAND()<='Controls Regression'!$K$44) -> 0 | T144: 0 | U144: 1 | W144: 0 | X144: 1
A145: 0 | B145: 0.2605044302 | C145: =1*(RAND()<='Controls Regression'!$J$44) -> 0 | D145: 0 | E145: 0.8041860427 | F145: =1*(RAND()<='Controls Regression'!$J$44) -> 0 | G145: 0 | H145: 0.007578212083 | I145: =1*(RAND()<='Controls Regression'!$J$44) -> 0 | J145: 0 | K145: 0.2605044302 | L145: =1*(RAND()<='Controls Regression'!$K$44) -> 0 | M145: 0 | N145: 0.8041860427 | O145: =1*(RAND()<='Controls Regression'!$K$44) -> 0 | P145: 0 | Q145: 0.007578212083 | R145: =1*(RAND()<='Controls Regression'!$K$44) -> 0 | T145: 0 | U145: 1 | W145: 0 | X145: 1
A146: 0 | B146: 0.4122309891 | C146: =1*(RAND()<='Controls Regression'!$J$44) -> 0 | D146: 0 | E146: 0.7987357463 | F146: =1*(RAND()<='Controls Regression'!$J$44) -> 0 | G146: 0 | H146: 0.5504037514 | I146: =1*(RAND()<='Controls Regression'!$J$44) -> 0 | J146: 0 | K146: 0.4122309891 | L146: =1*(RAND()<='Controls Regression'!$K$44) -> 0 | M146: 0 | N146: 0.7987357463 | O146: =1*(RAND()<='Controls Regression'!$K$44) -> 0 | P146: 0 | Q146: 0.5504037514 | R146: =1*(RAND()<='Controls Regression'!$K$44) -> 0 | T146: 0 | U146: 1 | W146: 0 | X146: 1
A147: 0 | B147: 0.5260658135 | C147: =1*(RAND()<='Controls Regression'!$J$44) -> 0 | D147: 0 | E147: 0.5216642068 | F147: =1*(RAND()<='Controls Regression'!$J$44) -> 0 | G147: 0 | H147: 0.03428928848 | I147: =1*(RAND()<='Controls Regression'!$J$44) -> 0 | J147: 0 | K147: 0.5260658135 | L147: =1*(RAND()<='Controls Regression'!$K$44) -> 0 | M147: 0 | N147: 0.5216642068 | O147: =1*(RAND()<='Controls Regression'!$K$44) -> 0 | P147: 0 | Q147: 0.03428928848 | R147: =1*(RAND()<='Controls Regression'!$K$44) -> 0 | T147: 0 | U147: 1 | W147: 0 | X147: 1
A148: 0 | B148: 0.8877289889 | C148: =1*(RAND()<='Controls Regression'!$J$44) -> 0 | D148: 0 | E148: 0.7955940941 | F148: =1*(RAND()<='Controls Regression'!$J$44) -> 0 | G148: 6883389.298 | H148: 0.8297509821 | I148: =1*(RAND()<='Controls Regression'!$J$44) -> 1 | J148: 0 | K148: 0.8877289889 | L148: =1*(RAND()<='Controls Regression'!$K$44) -> 0 | M148: 0 | N148: 0.7955940941 | O148: =1*(RAND()<='Controls Regression'!$K$44) -> 0 | P148: 6883389.298 | Q148: 0.8297509821 | R148: =1*(RAND()<='Controls Regression'!$K$44) -> 1 | T148: 6883389.298 | U148: 0.052 | W148: 6883389.298 | X148: 0.01
A149: 0 | B149: 0.3502184708 | C149: =1*(RAND()<='Controls Regression'!$J$44) -> 0 | D149: 0 | E149: 0.7091702402 | F149: =1*(RAND()<='Controls Regression'!$J$44) -> 0 | G149: 0 | H149: 0.9468816061 | I149: =1*(RAND()<='Controls Regression'!$J$44) -> 0 | J149: 1718700.108 | K149: 0.3502184708 | L149: =1*(RAND()<='Controls Regression'!$K$44) -> 1 | M149: 0 | N149: 0.7091702402 | O149: =1*(RAND()<='Controls Regression'!$K$44) -> 0 | P149: 0 | Q149: 0.9468816061 | R149: =1*(RAND()<='Controls Regression'!$K$44) -> 0 | T149: 0 | U149: 1 | W149: 1718700.108 | X149: 0.084
A150: 0 | B150: 0.9032003901 | C150: =1*(RAND()<='Controls Regression'!$J$44) -> 0 | D150: 0 | E150: 0.1403364193 | F150: =1*(RAND()<='Controls Regression'!$J$44) -> 0 | G150: 3885173.313 | H150: 0.4372574674 | I150: =1*(RAND()<='Controls Regression'!$J$44) -> 1 | J150: 0 | K150: 0.9032003901 | L150: =1*(RAND()<='Controls Regression'!$K$44) -> 0 | M150: 0 | N150: 0.1403364193 | O150: =1*(RAND()<='Controls Regression'!$K$44) -> 0 | P150: 0 | Q150: 0.4372574674 | R150: =1*(RAND()<='Controls Regression'!$K$44) -> 0 | T150: 3885173.313 | U150: 0.179 | W150: 0 | X150: 1
A151: 0 | B151: 0.759808202 | C151: =1*(RAND()<='Controls Regression'!$J$44) -> 0 | D151: 0 | E151: 0.9964194572 | F151: =1*(RAND()<='Controls Regression'!$J$44) -> 0 | G151: 0 | H151: 0.1932015036 | I151: =1*(RAND()<='Controls Regression'!$J$44) -> 0 | J151: 0 | K151: 0.759808202 | L151: =1*(RAND()<='Controls Regression'!$K$44) -> 0 | M151: 0 | N151: 0.9964194572 | O151: =1*(RAND()<='Controls Regression'!$K$44) -> 0 | P151: 0 | Q151: 0.1932015036 | R151: =1*(RAND()<='Controls Regression'!$K$44) -> 0 | T151: 0 | U151: 1 | W151: 0 | X151: 1
A152: 0 | B152: 0.2151068115 | C152: =1*(RAND()<='Controls Regression'!$J$44) -> 0 | D152: 0 | E152: 0.1654180785 | F152: =1*(RAND()<='Controls Regression'!$J$44) -> 0 | G152: 0 | H152: 0.181808453 | I152: =1*(RAND()<='Controls Regression'!$J$44) -> 0 | J152: 0 | K152: 0.2151068115 | L152: =1*(RAND()<='Controls Regression'!$K$44) -> 0 | M152: 0 | N152: 0.1654180785 | O152: =1*(RAND()<='Controls Regression'!$K$44) -> 0 | P152: 0 | Q152: 0.181808453 | R152: =1*(RAND()<='Controls Regression'!$K$44) -> 0 | T152: 0 | U152: 1 | W152: 0 | X152: 1
A153: 0 | B153: 0.8373579132 | C153: =1*(RAND()<='Controls Regression'!$J$44) -> 0 | D153: 5773547.793 | E153: 0.9800989843 | F153: =1*(RAND()<='Controls Regression'!$J$44) -> 1 | G153: 0 | H153: 0.1884008576 | I153: =1*(RAND()<='Controls Regression'!$J$44) -> 0 | J153: 0 | K153: 0.8373579132 | L153: =1*(RAND()<='Controls Regression'!$K$44) -> 0 | M153: 0 | N153: 0.9800989843 | O153: =1*(RAND()<='Controls Regression'!$K$44) -> 0 | P153: 0 | Q153: 0.1884008576 | R153: =1*(RAND()<='Controls Regression'!$K$44) -> 0 | T153: 5773547.793 | U153: 0.075 | W153: 0 | X153: 1
A154: 0 | B154: 0.2804441906 | C154: =1*(RAND()<='Controls Regression'!$J$44) -> 0 | D154: 0 | E154: 0.3749537072 | F154: =1*(RAND()<='Controls Regression'!$J$44) -> 0 | G154: 0 | H154: 0.005620169067 | I154: =1*(RAND()<='Controls Regression'!$J$44) -> 0 | J154: 0 | K154: 0.2804441906 | L154: =1*(RAND()<='Controls Regression'!$K$44) -> 0 | M154: 0 | N154: 0.3749537072 | O154: =1*(RAND()<='Controls Regression'!$K$44) -> 0 | P154: 0 | Q154: 0.005620169067 | R154: =1*(RAND()<='Controls Regression'!$K$44) -> 0 | T154: 0 | U154: 1 | W154: 0 | X154: 1
A155: 0 | B155: 0.8826301487 | C155: =1*(RAND()<='Controls Regression'!$J$44) -> 0 | D155: 0 | E155: 0.9537249494 | F155: =1*(RAND()<='Controls Regression'!$J$44) -> 0 | G155: 3210867.978 | H155: 0.1500893717 | I155: =1*(RAND()<='Controls Regression'!$J$44) -> 1 | J155: 0 | K155: 0.8826301487 | L155: =1*(RAND()<='Controls Regression'!$K$44) -> 0 | M155: 0 | N155: 0.9537249494 | O155: =1*(RAND()<='Controls Regression'!$K$44) -> 0 | P155: 0 | Q155: 0.1500893717 | R155: =1*(RAND()<='Controls Regression'!$K$44) -> 0 | T155: 3210867.978 | U155: 0.236 | W155: 0 | X155: 1
A156: 0 | B156: 0.562162878 | C156: =1*(RAND()<='Controls Regression'!$J$44) -> 0 | D156: 0 | E156: 0.1450292465 | F156: =1*(RAND()<='Controls Regression'!$J$44) -> 0 | G156: 0 | H156: 0.2338452393 | I156: =1*(RAND()<='Controls Regression'!$J$44) -> 0 | J156: 0 | K156: 0.562162878 | L156: =1*(RAND()<='Controls Regression'!$K$44) -> 0 | M156: 0 | N156: 0.1450292465 | O156: =1*(RAND()<='Controls Regression'!$K$44) -> 0 | P156: 0 | Q156: 0.2338452393 | R156: =1*(RAND()<='Controls Regression'!$K$44) -> 0 | T156: 0 | U156: 1 | W156: 0 | X156: 1
A157: 0 | B157: 0.5554309738 | C157: =1*(RAND()<='Controls Regression'!$J$44) -> 0 | D157: 0 | E157: 0.5312505434 | F157: =1*(RAND()<='Controls Regression'!$J$44) -> 0 | G157: 0 | H157: 0.09455840853 | I157: =1*(RAND()<='Controls Regression'!$J$44) -> 0 | J157: 0 | K157: 0.5554309738 | L157: =1*(RAND()<='Controls Regression'!$K$44) -> 0 | M157: 0 | N157: 0.5312505434 | O157: =1*(RAND()<='Controls Regression'!$K$44) -> 0 | P157: 0 | Q157: 0.09455840853 | R157: =1*(RAND()<='Controls Regression'!$K$44) -> 0 | T157: 0 | U157: 1 | W157: 0 | X157: 1
A158: 0 | B158: 0.6642966434 | C158: =1*(RAND()<='Controls Regression'!$J$44) -> 0 | D158: 0 | E158: 0.3784699887 | F158: =1*(RAND()<='Controls Regression'!$J$44) -> 0 | G158: 0 | H158: 0.6942253902 | I158: =1*(RAND()<='Controls Regression'!$J$44) -> 0 | J158: 0 | K158: 0.6642966434 | L158: =1*(RAND()<='Controls Regression'!$K$44) -> 0 | M158: 0 | N158: 0.3784699887 | O158: =1*(RAND()<='Controls Regression'!$K$44) -> 0 | P158: 0 | Q158: 0.6942253902 | R158: =1*(RAND()<='Controls Regression'!$K$44) -> 0 | T158: 0 | U158: 1 | W158: 0 | X158: 1
A159: 0 | B159: 0.001451525651 | C159: =1*(RAND()<='Controls Regression'!$J$44) -> 1 | D159: 3006866.549 | E159: 0.251417105 | F159: =1*(RAND()<='Controls Regression'!$J$44) -> 1 | G159: 0 | H159: 0.1172263933 | I159: =1*(RAND()<='Controls Regression'!$J$44) -> 0 | J159: 0 | K159: 0.001451525651 | L159: =1*(RAND()<='Controls Regression'!$K$44) -> 0 | M159: 0 | N159: 0.251417105 | O159: =1*(RAND()<='Controls Regression'!$K$44) -> 0 | P159: 0 | Q159: 0.1172263933 | R159: =1*(RAND()<='Controls Regression'!$K$44) -> 0 | T159: 3006866.549 | U159: 0.248 | W159: 0 | X159: 1
A160: 0 | B160: 0.7741660192 | C160: =1*(RAND()<='Controls Regression'!$J$44) -> 0 | D160: 0 | E160: 0.6121225964 | F160: =1*(RAND()<='Controls Regression'!$J$44) -> 0 | G160: 0 | H160: 0.01075083268 | I160: =1*(RAND()<='Controls Regression'!$J$44) -> 0 | J160: 0 | K160: 0.7741660192 | L160: =1*(RAND()<='Controls Regression'!$K$44) -> 0 | M160: 0 | N160: 0.6121225964 | O160: =1*(RAND()<='Controls Regression'!$K$44) -> 0 | P160: 0 | Q160: 0.01075083268 | R160: =1*(RAND()<='Controls Regression'!$K$44) -> 0 | T160: 0 | U160: 1 | W160: 0 | X160: 1
A161: 0 | B161: 0.5551873864 | C161: =1*(RAND()<='Controls Regression'!$J$44) -> 0 | D161: 0 | E161: 0.2118188483 | F161: =1*(RAND()<='Controls Regression'!$J$44) -> 0 | G161: 0 | H161: 0.8128222575 | I161: =1*(RAND()<='Controls Regression'!$J$44) -> 0 | J161: 0 | K161: 0.5551873864 | L161: =1*(RAND()<='Controls Regression'!$K$44) -> 0 | M161: 0 | N161: 0.2118188483 | O161: =1*(RAND()<='Controls Regression'!$K$44) -> 0 | P161: 0 | Q161: 0.8128222575 | R161: =1*(RAND()<='Controls Regression'!$K$44) -> 0 | T161: 0 | U161: 1 | W161: 0 | X161: 1
A162: 0 | B162: 0.8383225446 | C162: =1*(RAND()<='Controls Regression'!$J$44) -> 0 | D162: 0 | E162: 0.2867396434 | F162: =1*(RAND()<='Controls Regression'!$J$44) -> 0 | G162: 0 | H162: 0.6142636762 | I162: =1*(RAND()<='Controls Regression'!$J$44) -> 0 | J162: 0 | K162: 0.8383225446 | L162: =1*(RAND()<='Controls Regression'!$K$44) -> 0 | M162: 0 | N162: 0.2867396434 | O162: =1*(RAND()<='Controls Regression'!$K$44) -> 0 | P162: 0 | Q162: 0.6142636762 | R162: =1*(RAND()<='Controls Regression'!$K$44) -> 0 | T162: 0 | U162: 1 | W162: 0 | X162: 1
A163: 0 | B163: 0.2262321948 | C163: =1*(RAND()<='Controls Regression'!$J$44) -> 0 | D163: 0 | E163: 0.1392839591 | F163: =1*(RAND()<='Controls Regression'!$J$44) -> 0 | G163: 0 | H163: 0.1876290549 | I163: =1*(RAND()<='Controls Regression'!$J$44) -> 0 | J163: 0 | K163: 0.2262321948 | L163: =1*(RAND()<='Controls Regression'!$K$44) -> 0 | M163: 0 | N163: 0.1392839591 | O163: =1*(RAND()<='Controls Regression'!$K$44) -> 0 | P163: 0 | Q163: 0.1876290549 | R163: =1*(RAND()<='Controls Regression'!$K$44) -> 0 | T163: 0 | U163: 1 | W163: 0 | X163: 1
A164: 0 | B164: 0.08203562179 | C164: =1*(RAND()<='Controls Regression'!$J$44) -> 0 | D164: 0 | E164: 0.7342120566 | F164: =1*(RAND()<='Controls Regression'!$J$44) -> 0 | G164: 0 | H164: 0.3749943494 | I164: =1*(RAND()<='Controls Regression'!$J$44) -> 0 | J164: 0 | K164: 0.08203562179 | L164: =1*(RAND()<='Controls Regression'!$K$44) -> 0 | M164: 0 | N164: 0.7342120566 | O164: =1*(RAND()<='Controls Regression'!$K$44) -> 0 | P164: 0 | Q164: 0.3749943494 | R164: =1*(RAND()<='Controls Regression'!$K$44) -> 0 | T164: 0 | U164: 1 | W164: 0 | X164: 1
A165: 1927976.707 | B165: 0.4605195224 | C165: =1*(RAND()<='Controls Regression'!$J$44) -> 1 | D165: 0 | E165: 0.8454253512 | F165: =1*(RAND()<='Controls Regression'!$J$44) -> 0 | G165: 0 | H165: 0.2645974604 | I165: =1*(RAND()<='Controls Regression'!$J$44) -> 0 | J165: 0 | K165: 0.4605195224 | L165: =1*(RAND()<='Controls Regression'!$K$44) -> 0 | M165: 0 | N165: 0.8454253512 | O165: =1*(RAND()<='Controls Regression'!$K$44) -> 0 | P165: 0 | Q165: 0.2645974604 | R165: =1*(RAND()<='Controls Regression'!$K$44) -> 0 | T165: 1927976.707 | U165: 0.291 | W165: 0 | X165: 1
A166: 0 | B166: 0.2439801604 | C166: =1*(RAND()<='Controls Regression'!$J$44) -> 0 | D166: 0 | E166: 0.5212063689 | F166: =1*(RAND()<='Controls Regression'!$J$44) -> 0 | G166: 0 | H166: 0.1910290176 | I166: =1*(RAND()<='Controls Regression'!$J$44) -> 0 | J166: 0 | K166: 0.2439801604 | L166: =1*(RAND()<='Controls Regression'!$K$44) -> 0 | M166: 4038628.911 | N166: 0.5212063689 | O166: =1*(RAND()<='Controls Regression'!$K$44) -> 1 | P166: 0 | Q166: 0.1910290176 | R166: =1*(RAND()<='Controls Regression'!$K$44) -> 0 | T166: 0 | U166: 1 | W166: 4038628.911 | X166: 0.042
A167: 0 | B167: 0.1732061411 | C167: =1*(RAND()<='Controls Regression'!$J$44) -> 0 | D167: 2229984.964 | E167: 0.1251477178 | F167: =1*(RAND()<='Controls Regression'!$J$44) -> 1 | G167: 0 | H167: 0.0294676567 | I167: =1*(RAND()<='Controls Regression'!$J$44) -> 0 | J167: 0 | K167: 0.1732061411 | L167: =1*(RAND()<='Controls Regression'!$K$44) -> 0 | M167: 0 | N167: 0.1251477178 | O167: =1*(RAND()<='Controls Regression'!$K$44) -> 0 | P167: 2409561.095 | Q167: 0.0294676567 | R167: =1*(RAND()<='Controls Regression'!$K$44) -> 1 | T167: 2229984.964 | U167: 0.281 | W167: 2409561.095 | X167: 0.074
A168: 0 | B168: 0.8835209547 | C168: =1*(RAND()<='Controls Regression'!$J$44) -> 0 | D168: 0 | E168: 0.7541673362 | F168: =1*(RAND()<='Controls Regression'!$J$44) -> 0 | G168: 0 | H168: 0.8053438373 | I168: =1*(RAND()<='Controls Regression'!$J$44) -> 0 | J168: 0 | K168: 0.8835209547 | L168: =1*(RAND()<='Controls Regression'!$K$44) -> 0 | M168: 0 | N168: 0.7541673362 | O168: =1*(RAND()<='Controls Regression'!$K$44) -> 0 | P168: 0 | Q168: 0.8053438373 | R168: =1*(RAND()<='Controls Regression'!$K$44) -> 0 | T168: 0 | U168: 1 | W168: 0 | X168: 1
A169: 0 | B169: 0.4466893541 | C169: =1*(RAND()<='Controls Regression'!$J$44) -> 0 | D169: 0 | E169: 0.7832138621 | F169: =1*(RAND()<='Controls Regression'!$J$44) -> 0 | G169: 0 | H169: 0.9612528782 | I169: =1*(RAND()<='Controls Regression'!$J$44) -> 0 | J169: 0 | K169: 0.4466893541 | L169: =1*(RAND()<='Controls Regression'!$K$44) -> 0 | M169: 0 | N169: 0.7832138621 | O169: =1*(RAND()<='Controls Regression'!$K$44) -> 0 | P169: 0 | Q169: 0.9612528782 | R169: =1*(RAND()<='Controls Regression'!$K$44) -> 0 | T169: 0 | U169: 1 | W169: 0 | X169: 1
A170: 0 | B170: 0.5789579278 | C170: =1*(RAND()<='Controls Regression'!$J$44) -> 0 | D170: 3663272.289 | E170: 0.4085571627 | F170: =1*(RAND()<='Controls Regression'!$J$44) -> 1 | G170: 0 | H170: 0.2812648298 | I170: =1*(RAND()<='Controls Regression'!$J$44) -> 0 | J170: 0 | K170: 0.5789579278 | L170: =1*(RAND()<='Controls Regression'!$K$44) -> 0 | M170: 3663272.289 | N170: 0.4085571627 | O170: =1*(RAND()<='Controls Regression'!$K$44) -> 1 | P170: 0 | Q170: 0.2812648298 | R170: =1*(RAND()<='Controls Regression'!$K$44) -> 0 | T170: 3663272.289 | U170: 0.2 | W170: 3663272.289 | X170: 0.053
A171: 0 | B171: 0.03177579801 | C171: =1*(RAND()<='Controls Regression'!$J$44) -> 0 | D171: 0 | E171: 0.2320659597 | F171: =1*(RAND()<='Controls Regression'!$J$44) -> 0 | G171: 0 | H171: 0.8450970337 | I171: =1*(RAND()<='Controls Regression'!$J$44) -> 0 | J171: 0 | K171: 0.03177579801 | L171: =1*(RAND()<='Controls Regression'!$K$44) -> 0 | M171: 0 | N171: 0.2320659597 | O171: =1*(RAND()<='Controls Regression'!$K$44) -> 0 | P171: 0 | Q171: 0.8450970337 | R171: =1*(RAND()<='Controls Regression'!$K$44) -> 0 | T171: 0 | U171: 1 | W171: 0 | X171: 1
A172: 0 | B172: 0.8332345818 | C172: =1*(RAND()<='Controls Regression'!$J$44) -> 0 | D172: 0 | E172: 0.848877129 | F172: =1*(RAND()<='Controls Regression'!$J$44) -> 0 | G172: 0 | H172: 0.9629060582 | I172: =1*(RAND()<='Controls Regression'!$J$44) -> 0 | J172: 0 | K172: 0.8332345818 | L172: =1*(RAND()<='Controls Regression'!$K$44) -> 0 | M172: 0 | N172: 0.848877129 | O172: =1*(RAND()<='Controls Regression'!$K$44) -> 0 | P172: 0 | Q172: 0.9629060582 | R172: =1*(RAND()<='Controls Regression'!$K$44) -> 0 | T172: 0 | U172: 1 | W172: 0 | X172: 1
A173: 2424604.584 | B173: 0.558046571 | C173: =1*(RAND()<='Controls Regression'!$J$44) -> 1 | D173: 5170555.026 | E173: 0.9290358344 | F173: =1*(RAND()<='Controls Regression'!$J$44) -> 1 | G173: 0 | H173: 0.5512730888 | I173: =1*(RAND()<='Controls Regression'!$J$44) -> 0 | J173: 0 | K173: 0.558046571 | L173: =1*(RAND()<='Controls Regression'!$K$44) -> 0 | M173: 0 | N173: 0.9290358344 | O173: =1*(RAND()<='Controls Regression'!$K$44) -> 0 | P173: 0 | Q173: 0.5512730888 | R173: =1*(RAND()<='Controls Regression'!$K$44) -> 0 | T173: 7595159.61 | U173: 0.039 | W173: 0 | X173: 1
A174: 0 | B174: 0.4289893249 | C174: =1*(RAND()<='Controls Regression'!$J$44) -> 0 | D174: 0 | E174: 0.2100178021 | F174: =1*(RAND()<='Controls Regression'!$J$44) -> 0 | G174: 0 | H174: 0.1108070444 | I174: =1*(RAND()<='Controls Regression'!$J$44) -> 0 | J174: 1869846.773 | K174: 0.4289893249 | L174: =1*(RAND()<='Controls Regression'!$K$44) -> 1 | M174: 0 | N174: 0.2100178021 | O174: =1*(RAND()<='Controls Regression'!$K$44) -> 0 | P174: 0 | Q174: 0.1108070444 | R174: =1*(RAND()<='Controls Regression'!$K$44) -> 0 | T174: 0 | U174: 1 | W174: 1869846.773 | X174: 0.08
A175: 0 | B175: 0.5254419795 | C175: =1*(RAND()<='Controls Regression'!$J$44) -> 0 | D175: 0 | E175: 0.2911052226 | F175: =1*(RAND()<='Controls Regression'!$J$44) -> 0 | G175: 0 | H175: 0.1469850188 | I175: =1*(RAND()<='Controls Regression'!$J$44) -> 0 | J175: 0 | K175: 0.5254419795 | L175: =1*(RAND()<='Controls Regression'!$K$44) -> 0 | M175: 0 | N175: 0.2911052226 | O175: =1*(RAND()<='Controls Regression'!$K$44) -> 0 | P175: 0 | Q175: 0.1469850188 | R175: =1*(RAND()<='Controls Regression'!$K$44) -> 0 | T175: 0 | U175: 1 | W175: 0 | X175: 1
A176: 0 | B176: 0.6108297305 | C176: =1*(RAND()<='Controls Regression'!$J$44) -> 0 | D176: 0 | E176: 0.8259278245 | F176: =1*(RAND()<='Controls Regression'!$J$44) -> 0 | G176: 0 | H176: 0.7450907141 | I176: =1*(RAND()<='Controls Regression'!$J$44) -> 0 | J176: 0 | K176: 0.6108297305 | L176: =1*(RAND()<='Controls Regression'!$K$44) -> 0 | M176: 0 | N176: 0.8259278245 | O176: =1*(RAND()<='Controls Regression'!$K$44) -> 0 | P176: 0 | Q176: 0.7450907141 | R176: =1*(RAND()<='Controls Regression'!$K$44) -> 0 | T176: 0 | U176: 1 | W176: 0 | X176: 1
A177: 0 | B177: 0.2648246516 | C177: =1*(RAND()<='Controls Regression'!$J$44) -> 0 | D177: 0 | E177: 0.09170539527 | F177: =1*(RAND()<='Controls Regression'!$J$44) -> 0 | G177: 0 | H177: 0.04474659639 | I177: =1*(RAND()<='Controls Regression'!$J$44) -> 0 | J177: 0 | K177: 0.2648246516 | L177: =1*(RAND()<='Controls Regression'!$K$44) -> 0 | M177: 0 | N177: 0.09170539527 | O177: =1*(RAND()<='Controls Regression'!$K$44) -> 0 | P177: 0 | Q177: 0.04474659639 | R177: =1*(RAND()<='Controls Regression'!$K$44) -> 0 | T177: 0 | U177: 1 | W177: 0 | X177: 1
A178: 0 | B178: 0.9926956056 | C178: =1*(RAND()<='Controls Regression'!$J$44) -> 0 | D178: 0 | E178: 0.8445693197 | F178: =1*(RAND()<='Controls Regression'!$J$44) -> 0 | G178: 0 | H178: 0.00624974659 | I178: =1*(RAND()<='Controls Regression'!$J$44) -> 0 | J178: 0 | K178: 0.9926956056 | L178: =1*(RAND()<='Controls Regression'!$K$44) -> 0 | M178: 0 | N178: 0.8445693197 | O178: =1*(RAND()<='Controls Regression'!$K$44) -> 0 | P178: 0 | Q178: 0.00624974659 | R178: =1*(RAND()<='Controls Regression'!$K$44) -> 0 | T178: 0 | U178: 1 | W178: 0 | X178: 1
A179: 0 | B179: 0.6530432586 | C179: =1*(RAND()<='Controls Regression'!$J$44) -> 0 | D179: 0 | E179: 0.2219152596 | F179: =1*(RAND()<='Controls Regression'!$J$44) -> 0 | G179: 0 | H179: 0.9413382943 | I179: =1*(RAND()<='Controls Regression'!$J$44) -> 0 | J179: 0 | K179: 0.6530432586 | L179: =1*(RAND()<='Controls Regression'!$K$44) -> 0 | M179: 0 | N179: 0.2219152596 | O179: =1*(RAND()<='Controls Regression'!$K$44) -> 0 | P179: 0 | Q179: 0.9413382943 | R179: =1*(RAND()<='Controls Regression'!$K$44) -> 0 | T179: 0 | U179: 1 | W179: 0 | X179: 1
A180: 8327614.262 | B180: 0.969991231 | C180: =1*(RAND()<='Controls Regression'!$J$44) -> 1 | D180: 3864049.165 | E180: 0.4627299435 | F180: =1*(RAND()<='Controls Regression'!$J$44) -> 1 | G180: 3868922.169 | H180: 0.4284917503 | I180: =1*(RAND()<='Controls Regression'!$J$44) -> 1 | J180: 0 | K180: 0.969991231 | L180: =1*(RAND()<='Controls Regression'!$K$44) -> 0 | M180: 0 | N180: 0.4627299435 | O180: =1*(RAND()<='Controls Regression'!$K$44) -> 0 | P180: 0 | Q180: 0.4284917503 | R180: =1*(RAND()<='Controls Regression'!$K$44) -> 0 | T180: 16060585.59 | U180: 0.001 | W180: 0 | X180: 1
A181: 0 | B181: 0.7077666516 | C181: =1*(RAND()<='Controls Regression'!$J$44) -> 0 | D181: 0 | E181: 0.3464915899 | F181: =1*(RAND()<='Controls Regression'!$J$44) -> 0 | G181: 0 | H181: 0.5044539099 | I181: =1*(RAND()<='Controls Regression'!$J$44) -> 0 | J181: 0 | K181: 0.7077666516 | L181: =1*(RAND()<='Controls Regression'!$K$44) -> 0 | M181: 0 | N181: 0.3464915899 | O181: =1*(RAND()<='Controls Regression'!$K$44) -> 0 | P181: 0 | Q181: 0.5044539099 | R181: =1*(RAND()<='Controls Regression'!$K$44) -> 0 | T181: 0 | U181: 1 | W181: 0 | X181: 1
A182: 0 | B182: 0.0552653134 | C182: =1*(RAND()<='Controls Regression'!$J$44) -> 0 | D182: 0 | E182: 0.6081100754 | F182: =1*(RAND()<='Controls Regression'!$J$44) -> 0 | G182: 0 | H182: 0.03516826839 | I182: =1*(RAND()<='Controls Regression'!$J$44) -> 0 | J182: 0 | K182: 0.0552653134 | L182: =1*(RAND()<='Controls Regression'!$K$44) -> 0 | M182: 0 | N182: 0.6081100754 | O182: =1*(RAND()<='Controls Regression'!$K$44) -> 0 | P182: 0 | Q182: 0.03516826839 | R182: =1*(RAND()<='Controls Regression'!$K$44) -> 0 | T182: 0 | U182: 1 | W182: 0 | X182: 1
A183: 0 | B183: 0.8414747833 | C183: =1*(RAND()<='Controls Regression'!$J$44) -> 0 | D183: 0 | E183: 0.8155741198 | F183: =1*(RAND()<='Controls Regression'!$J$44) -> 0 | G183: 3583526.77 | H183: 0.2859603729 | I183: =1*(RAND()<='Controls Regression'!$J$44) -> 1 | J183: 0 | K183: 0.8414747833 | L183: =1*(RAND()<='Controls Regression'!$K$44) -> 0 | M183: 0 | N183: 0.8155741198 | O183: =1*(RAND()<='Controls Regression'!$K$44) -> 0 | P183: 0 | Q183: 0.2859603729 | R183: =1*(RAND()<='Controls Regression'!$K$44) -> 0 | T183: 3583526.77 | U183: 0.208 | W183: 0 | X183: 1
A184: 0 | B184: 0.6040127453 | C184: =1*(RAND()<='Controls Regression'!$J$44) -> 0 | D184: 0 | E184: 0.7852761818 | F184: =1*(RAND()<='Controls Regression'!$J$44) -> 0 | G184: 0 | H184: 0.7711761937 | I184: =1*(RAND()<='Controls Regression'!$J$44) -> 0 | J184: 0 | K184: 0.6040127453 | L184: =1*(RAND()<='Controls Regression'!$K$44) -> 0 | M184: 0 | N184: 0.7852761818 | O184: =1*(RAND()<='Controls Regression'!$K$44) -> 0 | P184: 0 | Q184: 0.7711761937 | R184: =1*(RAND()<='Controls Regression'!$K$44) -> 0 | T184: 0 | U184: 1 | W184: 0 | X184: 1
A185: 0 | B185: 0.5081663782 | C185: =1*(RAND()<='Controls Regression'!$J$44) -> 0 | D185: 0 | E185: 0.6538368137 | F185: =1*(RAND()<='Controls Regression'!$J$44) -> 0 | G185: 0 | H185: 0.402484921 | I185: =1*(RAND()<='Controls Regression'!$J$44) -> 0 | J185: 0 | K185: 0.5081663782 | L185: =1*(RAND()<='Controls Regression'!$K$44) -> 0 | M185: 0 | N185: 0.6538368137 | O185: =1*(RAND()<='Controls Regression'!$K$44) -> 0 | P185: 0 | Q185: 0.402484921 | R185: =1*(RAND()<='Controls Regression'!$K$44) -> 0 | T185: 0 | U185: 1 | W185: 0 | X185: 1
A186: 0 | B186: 0.3463406519 | C186: =1*(RAND()<='Controls Regression'!$J$44) -> 0 | D186: 4901082.132 | E186: 0.8786683489 | F186: =1*(RAND()<='Controls Regression'!$J$44) -> 1 | G186: 0 | H186: 0.8447355301 | I186: =1*(RAND()<='Controls Regression'!$J$44) -> 0 | J186: 0 | K186: 0.3463406519 | L186: =1*(RAND()<='Controls Regression'!$K$44) -> 0 | M186: 0 | N186: 0.8786683489 | O186: =1*(RAND()<='Controls Regression'!$K$44) -> 0 | P186: 0 | Q186: 0.8447355301 | R186: =1*(RAND()<='Controls Regression'!$K$44) -> 0 | T186: 4901082.132 | U186: 0.107 | W186: 0 | X186: 1
A187: 2997321.565 | B187: 0.633633117 | C187: =1*(RAND()<='Controls Regression'!$J$44) -> 1 | D187: 0 | E187: 0.6167541087 | F187: =1*(RAND()<='Controls Regression'!$J$44) -> 0 | G187: 0 | H187: 0.4784862211 | I187: =1*(RAND()<='Controls Regression'!$J$44) -> 0 | J187: 0 | K187: 0.633633117 | L187: =1*(RAND()<='Controls Regression'!$K$44) -> 0 | M187: 0 | N187: 0.6167541087 | O187: =1*(RAND()<='Controls Regression'!$K$44) -> 0 | P187: 0 | Q187: 0.4784862211 | R187: =1*(RAND()<='Controls Regression'!$K$44) -> 0 | T187: 2997321.565 | U187: 0.249 | W187: 0 | X187: 1
